Workbook

Sheet Information
A1: =Main!A1 -> GDS Tariff Model, September 2023
A3: Prior to using this model
B4: The Excel VBA macro must be enabled prior to opening this model to allow the use of macro to perform computation.
B5: (File -> Option -> Trust Centre -> Trust Centre Setting -> Macro Setting)
A21: Colour codes:
B22: Number | C22: ===> Hard coded data
B23: Number | C23: ===> Number or texts that are linked to other sheet
B24: Number | C24: ===> Contains formula that is not consistent with the others in the same row
B25: -Number | C25: ===> Excel formatting for negative number
A27: Tariff model method: Principles
B28: End of year cashflow assumption
B29: Unless otherwise stated all real dollars are in real $ December 2023
A31: Depreciation
B32: For AA1 period depreciation began in the year of acquisition but the ERA has modified the asset life in subsequent AA periods to
B33: assume asset depreciation began in the year after acquisition effectively adding one year to asset life for capex 2000 to 2004
B34: For all subsequent AA periods depreciation began in the year after acquisition
B35: Regulatory depreciation is rolled forward on forecast basis
B36: ICB tax assets as at 30 June 2000 (not 1 Jan 2000)
A38: Tax Depreciation
B39: Tax Depreciation is in nominal straight line.
A41: Taxation
B42: Revenue is based on cost of service or unsmoothed revenue
A44: Other
B45: AA4 Equity raising costs per last ERA tariff variation model (1 January 2019)
B46: Input data from 2019 onwards are forecast.
A54: Worksheets
B56: Worksheet | C56: Description
B57: Main | C57: Summary of outputs
B58: WACC | C58: Contains the relevant parameters related to computing the WACC
B59: Input | C59: Contains general inputs of assumptions, capital expenditures, operating expenditures, UAFG expense, approved depreciations
B60: 2019 Capex NGR 77(2)(a) | C60: Calculation of the benefit or loss due to the difference between AA5 forecast capex and actual 2019 capex
B61: CoS | C61: Computations of total revenue building block (cost of service), inflationary gain and Credit Foncier Check
B62: Price_path_AA5 | C62: Contains the macro to calculate the price path necessary to equate in NPV terms the cost of service and expected tariff revenue
B63: Load_Tariffs | C63: Contains inputs of gas volumes, customer connections and other relevant information required to compute the reference tariffs
B64: Revenue | C64: Contains calculation of tariffs and revenue
B65: Working_Capital | C65: Contains calculation of working capital
B66: Tax_CoRE | C66: Contains calculation of tax, imputation credit and cost of raising equity
B67: Asset | C67: Contains regulatory asset base. Includes initial capital base, capital expenditure account, Vines and Westnet. Computations in Real 31-Dec-2019 $m
B68: Tax_Asset | C68: Contains tax asset base. Includes Initial Capital Base per E&Y less commercial meters, capital expenditure account, Vines and Westnet. Computations in nominal $m
B69: SolverSheet | C69: Contains inputs, target outputs and settings for Solver to compute the X-Factor and tariffs after the annual update of Trailing Average DRP
B70: TariffVariation | C70: Tariff Variation sheet produces the tariff published for 2020 and performs checks on the annual tariffs proposed by ATCO for 2021 to 2024

Sheet Main
A1: GDS Tariff Model, September 2023
A2: Main Summary
A3: Ref | C3: =COLUMN() -> 3 | D3: =COLUMN() -> 4 | E3: =COLUMN() -> 5 | F3: =COLUMN() -> 6 | G3: =COLUMN() -> 7 | H3: =COLUMN() -> 8
A4: WACC
A5: =ROW() -> 5 | E5: ="Real at "&Input!$G$52 -> Real at 31/12/2023 | F5: Nominal
A6: =ROW() -> 6 | D6: Post-tax WACC | E6: =WACC!$AJ$38 -> 0.04543740663 | F6: =WACC!$AJ$37 -> 0.07328369564
A7: =ROW() -> 7
A8: Closing Regulated Asset Base
A9: =ROW() -> 9 | E9: 2024 | F9: 2029
A10: =ROW() -> 10 | D10: Closing Asset Value [Real $m 30/6/2023] | E10: =Asset!$AI$24 -> 1605.371046 | F10: =Asset!$AN$24 -> 1642.499969
A11: =ROW() -> 11
A12: Revenue Building Block
A13: =ROW() -> 13 | E13: ="Real at "&Input!$G$52&" [m$]" -> Real at 31/12/2023 [m$] | F13: Nominal [m$] | G13: Real % | H13: Nominal % | S13: Instruction:
A14: =ROW() -> 14 | C14: PV of Cost of Service
A15: =ROW() -> 15 | D15: Operating Expenditure | E15: =CoS!$F70 -> 399.6753188 | F15: =CoS!$F43 -> 412.6647667 | G15: =E15/E$23 -> 0.3516132738 | H15: 0.3516132738 | S15: (1) Macro must be enabled
A16: =ROW() -> 16 | D16: Return on Asset | E16: =CoS!$F73 -> 323.8796525 | F16: =CoS!$F47 -> 525.3528045 | G16: 0.2849322427 | H16: 0.4476297334 | S16: (2) Update the annual DRP and Sep CPI in the Input sheet
A17: =ROW() -> 17 | D17: Depreciation | E17: =CoS!$F71 -> 304.9897143 | F17: =CoS!$F44 -> 314.90188 | G17: 0.2683138709 | H17: 0.2683138709 | S17: (3) Click the "Calculate X-Factor" button to recalculate the model
A18: =ROW() -> 18 | D18: Inflationary Gain | F18: =CoS!$F45 -> -190.9470633 | H18: =F18/F$23 -> -0.1626974907 | S18: (4) The future tariff change will be identical to the latest calculated X-Factor
D19: Accelerated depreciaiton | E19: =CoS!F72 -> 70.15409546 | F19: =CoS!F59 -> 72.43410356
A20: =ROW() -> 20 | D20: Tax | E20: =CoS!$F75 -> 55.09081684 | F20: =CoS!$F49 -> 56.88126838 | G20: =E20/E$23 -> 0.04846599616 | H20: 0.04846599616 | S20: (5) The output will be a new tariff starting 1 January of the following year
A21: =ROW() -> 21 | D21: Imputation Credits | E21: =CoS!$F76 -> -27.54540842 | F21: =CoS!$F50 -> -28.44063419 | G21: -0.02423299808 | H21: -0.02423299808
A22: =ROW() -> 22 | D22: Return on Working Capital | E22: =CoS!$F74 -> 10.44588619 | F22: =CoS!$F48 -> 10.78537749 | G22: 0.009189739939 | H22: 0.009189739939 | U22: Recalculate for years: | V22: 2025 to 2029
A23: =ROW() -> 23 | D23: Cost of Service (Total Revenue Required) | E23: =SUM(E15:E22) -> 1136.690076 | F23: =SUM(F15:F22) -> 1173.632503 | G23: 1 | H23: 1 | V23: ="X-Factor_"&Input!AJ6 -> X-Factor_2025 | W23: ="X-Factor_"&Input!AK6 -> X-Factor_2026 | X23: ="X-Factor_"&Input!AL6 -> X-Factor_2027 | Y23: ="X-Factor_"&Input!AM6 -> X-Factor_2028 | Z23: ="X-Factor_"&Input!AN6 -> X-Factor_2029
A24: =ROW() -> 24 | D24: Total Forecast Revenue ( check real $ 2023 to nominal) | E24: =E23*Input!$AI$53 -> 1173.632503 | I24: $ real 2023 inflated to $2024 | U24: X-Factor (Real) = | V24: =Price_path_AA6!G7 -> 0.3856062165 | W24: =Price_path_AA6!H7 -> 0 | X24: =Price_path_AA6!I7 -> 0 | Y24: =Price_path_AA6!J7 -> 0 | Z24: =Price_path_AA6!K7 -> 0
A25: =ROW() -> 25
A26: =ROW() -> 26 | U26: Delta = | V26: =CoS!$F$53 -> 0
A27: PV of Forecast Revenue
A28: =ROW() -> 28 | E28: ="Real at "&Input!$G$52&" [m$]" -> Real at 31/12/2023 [m$] | F28: Nominal [m$] | G28: % of Total Forecast Revenue
A29: =ROW() -> 29 | D29: A1 | E29: =Revenue!$F$133 -> 48.22828863 | F29: =Revenue!$F$231 -> 49.79570801 | G29: =E29/$E$37 -> 0.04242870581
A30: =ROW() -> 30 | D30: A2 | E30: =Revenue!$F$134 -> 31.43905166 | F30: =Revenue!$F$232 -> 32.46082084 | G30: 0.02765842022
A31: =ROW() -> 31 | D31: B1 | E31: =Revenue!$F$135 -> 64.12826001 | F31: =Revenue!$F$233 -> 66.21242846 | G31: 0.0564166624
A32: =ROW() -> 32 | D32: B2 | E32: =Revenue!$F$136 -> 66.2642537 | F32: =Revenue!$F$234 -> 68.41784195 | G32: 0.05829579704
A33: =ROW() -> 33 | D33: B3 | E33: =Revenue!$F$137 -> 902.9657413 | F33: =Revenue!$F$235 -> 932.3121279 | G33: 0.794381656
A34: =ROW() -> 34 | D34: Total Tariff Revenue | E34: =SUM(E29:E33) -> 1113.025595 | F34: =SUM(F29:F33) -> 1149.198927 | G34: 0.9791812415
A35: =ROW() -> 35 | D35: Revenue from Prudent Discounts | E35: =Revenue!F$139 -> 0 | F35: =Revenue!F$237 -> 0 | G35: 0
A36: =ROW() -> 36 | D36: Revenue from Ancillary Services | E36: =Revenue!$F$140 -> 23.66447608 | F36: =Revenue!$F$238 -> 24.43357156 | G36: 0.0208187585
A37: =ROW() -> 37 | D37: Total Forecast Revenue | E37: =SUM(E34:E36) -> 1136.690071 | F37: =SUM(F34:F36) -> 1173.632499 | G37: 1
D38: Total Forecast Revenue ( check real $ 2023 to nominal) | E38: =E37*Input!$AI$53 -> 1173.632499
A39: =ROW() -> 39 | D39: Difference: NPV tariff revenue v cost of service | E39: =E23-E37 -> 4.280568191e-06 | F39: 4.419687002e-06 | G39: Negatvie means revenue is higher than cost of servcie
A40: =ROW() -> 40 | D40: Check: PV CoS = PV Tot. Fore. Rev. | E40: =IF(ROUND(E23-E37,3)=0,"OK","Wrong") -> OK | F40: =IF(ROUND(F23-F37,3)=0,"OK","Wrong") -> OK
A41: =ROW() -> 41
A42: =ROW() -> 42
A43: Tariffs | M43: CHECK only - Remove from publication
A44: =ROW() -> 44 | O44: Year on Year increase
A45: =ROW() -> 45 | D45: ="Charging parameter (" & Input!$G$52&" $)" -> Charging parameter (31/12/2023 $) | E45: Units $ real 2023 | F45: 2025 | G45: 2026 | H45: 2027 | I45: 2028 | J45: 2029 | M45: 2020 | N45: 2021 | O45: 2022 | P45: 2023 | Q45: 2024
A46: =ROW() -> 46 | D46: Reference tariff A1
A47: =ROW() -> 47 | D47: Standing charge | E47: $/year | F47: =Price_path_AA6!G117 -> 53538.4 | G47: =Price_path_AA6!H117 -> 53538.4 | H47: =Price_path_AA6!I117 -> 53538.4 | I47: =Price_path_AA6!J117 -> 53538.4 | J47: =Price_path_AA6!K117 -> 53538.4 | M47: =Price_path_AA6!N117 -> 0 | N47: =Price_path_AA6!O117 -> 0 | O47: =Price_path_AA6!P117 -> 0 | P47: =Price_path_AA6!Q117 -> 0 | Q47: =Price_path_AA6!R117 -> 0 | S47: 0 | T47: 0 | U47: 0 | V47: 0 | W47: 0
A48: =ROW() -> 48 | D48: Demand charge | S48: 0 | T48: 0 | U48: 0 | V48: 0 | W48: 0
A49: =ROW() -> 49 | D49: First 10 km | E49: $/GJ km | F49: =Price_path_AA6!G119 -> 225.65 | G49: =Price_path_AA6!H119 -> 225.65 | H49: =Price_path_AA6!I119 -> 225.65 | I49: =Price_path_AA6!J119 -> 225.65 | J49: =Price_path_AA6!K119 -> 225.65 | M49: =Price_path_AA6!N119 -> 0 | N49: =Price_path_AA6!O119 -> 0 | O49: =Price_path_AA6!P119 -> 0 | P49: =Price_path_AA6!Q119 -> 0 | Q49: =Price_path_AA6!R119 -> 0 | S49: 0 | T49: 0 | U49: 0 | V49: 0 | W49: 0
A50: =ROW() -> 50 | D50: Distance > 10 km | E50: $/GJ km | F50: =Price_path_AA6!G120 -> 118.77 | G50: =Price_path_AA6!H120 -> 118.77 | H50: =Price_path_AA6!I120 -> 118.77 | I50: =Price_path_AA6!J120 -> 118.77 | J50: =Price_path_AA6!K120 -> 118.77 | M50: =Price_path_AA6!N120 -> 0 | N50: =Price_path_AA6!O120 -> 0 | O50: =Price_path_AA6!P120 -> 0 | P50: =Price_path_AA6!Q120 -> 0 | Q50: =Price_path_AA6!R120 -> 0 | S50: 0 | T50: 0 | U50: 0 | V50: 0 | W50: 0
A51: =ROW() -> 51 | D51: Usage charge | S51: 0 | T51: 0 | U51: 0 | V51: 0 | W51: 0
A52: =ROW() -> 52 | D52: First 10 km | E52: $/GJ km | F52: =Price_path_AA6!G122 -> 0.04773 | G52: =Price_path_AA6!H122 -> 0.04773 | H52: =Price_path_AA6!I122 -> 0.04773 | I52: =Price_path_AA6!J122 -> 0.04773 | J52: =Price_path_AA6!K122 -> 0.04773 | M52: =Price_path_AA6!N122 -> 0 | N52: =Price_path_AA6!O122 -> 0 | O52: =Price_path_AA6!P122 -> 0 | P52: =Price_path_AA6!Q122 -> 0 | Q52: =Price_path_AA6!R122 -> 0 | S52: 0 | T52: 0 | U52: 0 | V52: 0 | W52: 0
A53: =ROW() -> 53 | D53: Distance > 10 km | E53: $/GJ km | F53: =Price_path_AA6!G123 -> 0.02405 | G53: =Price_path_AA6!H123 -> 0.02405 | H53: =Price_path_AA6!I123 -> 0.02405 | I53: =Price_path_AA6!J123 -> 0.02405 | J53: =Price_path_AA6!K123 -> 0.02405 | M53: =Price_path_AA6!N123 -> 0 | N53: =Price_path_AA6!O123 -> 0 | O53: =Price_path_AA6!P123 -> 0 | P53: =Price_path_AA6!Q123 -> 0 | Q53: =Price_path_AA6!R123 -> 0 | S53: 0 | T53: 0 | U53: 0 | V53: 0 | W53: 0
A54: =ROW() -> 54 | D54: Reference tariff A2 | S54: 0 | T54: 0 | U54: 0 | V54: 0 | W54: 0
A55: =ROW() -> 55 | D55: Standing charge | E55: $/Year | F55: =Price_path_AA6!G125 -> 29621.79 | G55: =Price_path_AA6!H125 -> 29621.79 | H55: =Price_path_AA6!I125 -> 29621.79 | I55: =Price_path_AA6!J125 -> 29621.79 | J55: =Price_path_AA6!K125 -> 29621.79 | M55: =Price_path_AA6!N125 -> 0 | N55: =Price_path_AA6!O125 -> 0 | O55: =Price_path_AA6!P125 -> 0 | P55: =Price_path_AA6!Q125 -> 0 | Q55: =Price_path_AA6!R125 -> 0 | S55: 0 | T55: 0 | U55: 0 | V55: 0 | W55: 0
A56: =ROW() -> 56 | D56: First 10 TJ | E56: $/GJ | F56: =Price_path_AA6!G126 -> 2.88 | G56: =Price_path_AA6!H126 -> 2.88 | H56: =Price_path_AA6!I126 -> 2.88 | I56: =Price_path_AA6!J126 -> 2.88 | J56: =Price_path_AA6!K126 -> 2.88 | M56: =Price_path_AA6!N126 -> 0 | N56: =Price_path_AA6!O126 -> 0 | O56: =Price_path_AA6!P126 -> 0 | P56: =Price_path_AA6!Q126 -> 0 | Q56: =Price_path_AA6!R126 -> 0 | S56: 0 | T56: 0 | U56: 0 | V56: 0 | W56: 0
A57: =ROW() -> 57 | D57: Volume > 10 TJ | E57: $/GJ | F57: =Price_path_AA6!G127 -> 1.52 | G57: =Price_path_AA6!H127 -> 1.52 | H57: =Price_path_AA6!I127 -> 1.52 | I57: =Price_path_AA6!J127 -> 1.52 | J57: =Price_path_AA6!K127 -> 1.52 | M57: =Price_path_AA6!N127 -> 0 | N57: =Price_path_AA6!O127 -> 0 | O57: =Price_path_AA6!P127 -> 0 | P57: =Price_path_AA6!Q127 -> 0 | Q57: =Price_path_AA6!R127 -> 0 | S57: 0 | T57: 0 | U57: 0 | V57: 0 | W57: 0
A58: =ROW() -> 58 | D58: Reference tariff B1 | S58: 0 | T58: 0 | U58: 0 | V58: 0 | W58: 0
A59: =ROW() -> 59 | D59: Standing charge | E59: $/Year | F59: =Price_path_AA6!G129 -> 1497.69 | G59: =Price_path_AA6!H129 -> 1497.69 | H59: =Price_path_AA6!I129 -> 1497.69 | I59: =Price_path_AA6!J129 -> 1497.69 | J59: =Price_path_AA6!K129 -> 1497.69 | M59: =Price_path_AA6!N129 -> 0 | N59: =Price_path_AA6!O129 -> 0 | O59: =Price_path_AA6!P129 -> 0 | P59: =Price_path_AA6!Q129 -> 0 | Q59: =Price_path_AA6!R129 -> 0 | S59: 0 | T59: 0 | U59: 0 | V59: 0 | W59: 0
A60: =ROW() -> 60 | D60: First 5 TJ | E60: $/GJ | F60: =Price_path_AA6!G130 -> 5.69 | G60: =Price_path_AA6!H130 -> 5.69 | H60: =Price_path_AA6!I130 -> 5.69 | I60: =Price_path_AA6!J130 -> 5.69 | J60: =Price_path_AA6!K130 -> 5.69 | M60: =Price_path_AA6!N130 -> 0 | N60: =Price_path_AA6!O130 -> 0 | O60: =Price_path_AA6!P130 -> 0 | P60: =Price_path_AA6!Q130 -> 0 | Q60: =Price_path_AA6!R130 -> 0 | S60: 0 | T60: 0 | U60: 0 | V60: 0 | W60: 0
A61: =ROW() -> 61 | D61: Volume > 5 TJ | E61: $/GJ | F61: =Price_path_AA6!G131 -> 4.89 | G61: =Price_path_AA6!H131 -> 4.89 | H61: =Price_path_AA6!I131 -> 4.89 | I61: =Price_path_AA6!J131 -> 4.89 | J61: =Price_path_AA6!K131 -> 4.89 | M61: =Price_path_AA6!N131 -> 0 | N61: =Price_path_AA6!O131 -> 0 | O61: =Price_path_AA6!P131 -> 0 | P61: =Price_path_AA6!Q131 -> 0 | Q61: =Price_path_AA6!R131 -> 0 | S61: 0 | T61: 0 | U61: 0 | V61: 0 | W61: 0
A62: =ROW() -> 62 | D62: Reference tariff B2 | S62: 0 | T62: 0 | U62: 0 | V62: 0 | W62: 0
A63: =ROW() -> 63 | D63: Standing charge | E63: $/Year | F63: =Price_path_AA6!G133 -> 403.16 | G63: =Price_path_AA6!H133 -> 403.16 | H63: =Price_path_AA6!I133 -> 403.16 | I63: =Price_path_AA6!J133 -> 403.16 | J63: =Price_path_AA6!K133 -> 403.16 | M63: =Price_path_AA6!N133 -> 0 | N63: =Price_path_AA6!O133 -> 0 | O63: =Price_path_AA6!P133 -> 0 | P63: =Price_path_AA6!Q133 -> 0 | Q63: =Price_path_AA6!R133 -> 0 | S63: 0 | T63: 0 | U63: 0 | V63: 0 | W63: 0
A64: =ROW() -> 64 | D64: First 100 GJ | E64: $/GJ | F64: =Price_path_AA6!G134 -> 8.97 | G64: =Price_path_AA6!H134 -> 8.97 | H64: =Price_path_AA6!I134 -> 8.97 | I64: =Price_path_AA6!J134 -> 8.97 | J64: =Price_path_AA6!K134 -> 8.97 | M64: =Price_path_AA6!N134 -> 0 | N64: =Price_path_AA6!O134 -> 0 | O64: =Price_path_AA6!P134 -> 0 | P64: =Price_path_AA6!Q134 -> 0 | Q64: =Price_path_AA6!R134 -> 0 | S64: 0 | T64: 0 | U64: 0 | V64: 0 | W64: 0
A65: =ROW() -> 65 | D65: Volume > 100 GJ | E65: $/GJ | F65: =Price_path_AA6!G135 -> 6.68 | G65: =Price_path_AA6!H135 -> 6.68 | H65: =Price_path_AA6!I135 -> 6.68 | I65: =Price_path_AA6!J135 -> 6.68 | J65: =Price_path_AA6!K135 -> 6.68 | M65: =Price_path_AA6!N135 -> 0 | N65: =Price_path_AA6!O135 -> 0 | O65: =Price_path_AA6!P135 -> 0 | P65: =Price_path_AA6!Q135 -> 0 | Q65: =Price_path_AA6!R135 -> 0 | S65: 0 | T65: 0 | U65: 0 | V65: 0 | W65: 0
A66: =ROW() -> 66 | D66: Reference tariff B3 | S66: 0 | T66: 0 | U66: 0 | V66: 0 | W66: 0
A67: =ROW() -> 67 | D67: Standing charge | E67: $/Year | F67: =Price_path_AA6!G137 -> 167.96 | G67: =Price_path_AA6!H137 -> 167.96 | H67: =Price_path_AA6!I137 -> 167.96 | I67: =Price_path_AA6!J137 -> 167.96 | J67: =Price_path_AA6!K137 -> 167.96 | M67: =Price_path_AA6!N137 -> 0 | N67: =Price_path_AA6!O137 -> 0 | O67: =Price_path_AA6!P137 -> 0 | P67: =Price_path_AA6!Q137 -> 0 | Q67: =Price_path_AA6!R137 -> 0 | S67: 0 | T67: 0 | U67: 0 | V67: 0 | W67: 0
A68: =ROW() -> 68 | D68: First 9.855 GJ | E68: $/GJ | F68: =Price_path_AA6!G139 -> 8.28 | G68: =Price_path_AA6!H139 -> 8.28 | H68: =Price_path_AA6!I139 -> 8.28 | I68: =Price_path_AA6!J139 -> 8.28 | J68: =Price_path_AA6!K139 -> 8.28 | M68: =Price_path_AA6!N139 -> 0 | N68: =Price_path_AA6!O139 -> 0 | O68: =Price_path_AA6!P139 -> 0 | P68: =Price_path_AA6!Q139 -> 0 | Q68: =Price_path_AA6!R139 -> 0 | S68: 0 | T68: 0 | U68: 0 | V68: 0 | W68: 0
A69: =ROW() -> 69 | D69: Volume > 9.855 GJ | E69: $/GJ | F69: =Price_path_AA6!G140 -> 6.85 | G69: =Price_path_AA6!H140 -> 6.85 | H69: =Price_path_AA6!I140 -> 6.85 | I69: =Price_path_AA6!J140 -> 6.85 | J69: =Price_path_AA6!K140 -> 6.85 | M69: =Price_path_AA6!N140 -> 0 | N69: =Price_path_AA6!O140 -> 0 | O69: =Price_path_AA6!P140 -> 0 | P69: =Price_path_AA6!Q140 -> 0 | Q69: =Price_path_AA6!R140 -> 0 | S69: 0 | T69: 0 | U69: 0 | V69: 0 | W69: 0

Sheet WACC
A1: =Main!A1 -> GDS Tariff Model, September 2023
A2: Determination of the Weighted Average Cost of Capital (WACC)
A3: Ref | B3: =COLUMN() -> 2 | C3: =COLUMN() -> 3 | I3: =COLUMN() -> 9 | K3: =COLUMN() -> 11 | L3: =COLUMN() -> 12 | M3: =COLUMN() -> 13 | N3: =COLUMN() -> 14 | O3: =COLUMN() -> 15 | Q3: =COLUMN() -> 17 | S3: =COLUMN() -> 19 | T3: =COLUMN() -> 20 | U3: =COLUMN() -> 21 | W3: =COLUMN() -> 23 | Y3: =COLUMN() -> 25 | Z3: =COLUMN() -> 26 | AA3: =COLUMN() -> 27 | AE3: =COLUMN() -> 31 | AF3: =COLUMN() -> 32 | AG3: =COLUMN() -> 33 | AH3: =COLUMN() -> 34 | AI3: =COLUMN() -> 35
A4: =ROW() -> 4 | I4: OffGAR | K4: ERA | L4: ERA | M4: ERA | N4: ERA | O4: ERA | Q4: WAGN | S4: ERA | U4: WAGN | W4: ERA | Y4: ERA | Z4: ERA | AA4: ERA | AB4: ERA | AC4: ERA | AD4: ERA | AE4: ERA | AF4: ERA | AG4: ERA | AH4: ERA | AI4: ERA | AJ4: ERA | AK4: ERA | AL4: ERA | AM4: ERA | AN4: ERA
A5: =ROW() -> 5 | I5: FD1 | K5: FD2 - Lo | L5: FD 2 - Hi | M5: FD 2 Lo + Range*10% | N5: FD 2 Hi - Range*10% | O5: FD 2 | Q5: AA3 | S5: AA3 DD 3 | U5: AA3 Post DD3 | W5: AA3 FD | Y5: AA4 Jul - Dec 2014 | Z5: AA4 2015 | AA5: AA4 2016 | AB5: AA4 2017 | AC5: AA4 2018 | AD5: AA4 2019 | AE5: AA5 2020 | AF5: AA5 2021 | AG5: AA5 2022 | AH5: AA5 2023 | AI5: AA5 2024 | AJ5: AA6 2025 | AK5: AA6 2026 | AL5: AA6 2027 | AM5: AA6 2028 | AN5: AA6 2029
A6: =ROW() -> 6 | K6: 2005-06-30 | L6: =K6 -> 2005-06-30 | M6: 2005-06-30 | N6: 2005-06-30 | O6: 2005-06-30 | S6: 2010-07-30 | W6: 2012-06-28 | Y6: 2015-04-02 | Z6: 2015-06-12 | AA6: 2016-09-30 | AB6: 2017-09-30 | AC6: 2018-09-30 | AD6: 2019-09-30 | AE6: 2018-11-30 | AF6: 2021-09-30 | AG6: 2022-09-30 | AH6: 2023-09-30 | AI6: 2024-09-30 | AJ6: 2018-11-30 | AK6: 2021-09-30 | AL6: 2022-09-30 | AM6: 2023-09-30 | AN6: 2024-09-30
C7: Return on Debt
A8: =ROW() -> 8 | C8: Debt: Nominal Risk Free Rate (DRfn) | I8: 0.0627 | K8: 0.0515 | L8: =K8 -> 0.0515 | M8: =L8 -> 0.0515 | N8: =M8 -> 0.0515 | O8: =N8 -> 0.0515 | Q8: 0.0559 | S8: 0.0516 | W8: 0.0561 | Y8: 0.0196 | Z8: =Y8 -> 0.0196 | AA8: 0.0196 | AB8: 0.0196 | AC8: 0.0196 | AD8: 0.0196
A9: =ROW() -> 9 | C9: Debt: Real Risk Free Rate (DRfr) | I9: =(1+I8)/(1+I28)-1 -> 0.03395602257 | K9: 0.0258 | L9: 0.0258 | M9: 0.0258 | N9: 0.0258 | O9: 0.0258 | Q9: =(1+Q8)/(1+Q28)-1 -> 0.03044793598 | S9: =(1+S8)/(1+S28)-1 -> 0.02495126706 | W9: =(1+W8)/(1+W28)-1 -> 0.02933723197 | Y9: =(1+Y8)/(1+Y28)-1 -> 0.0005888125613 | Z9: 0.0005888125613 | AA9: 0.0005888125613 | AB9: 0.0005888125613 | AC9: 0.0005888125613 | AD9: 0.001173493976
A10: =ROW() -> 10 | C10: Cost of Debt; 5 year Interest Rate Swap Spread | Y10: 0.00471 | Z10: =Y10 -> 0.00471 | AA10: 0.00471 | AB10: =AA10 -> 0.00471 | AC10: =AB10 -> 0.00471 | AD10: =AC10 -> 0.00471 | AE10: 0.00961 | AF10: =AE10 -> 0.00961 | AG10: =AF10 -> 0.00961 | AH10: =AG10 -> 0.00961 | AI10: =AH10 -> 0.00961 | AJ10: 0.04273767265 | AK10: 0.04273767265 | AL10: 0.04273767265 | AM10: 0.04273767265 | AN10: 0.04273767265
A11: =ROW() -> 11 | C11: Cost of Debt; Debt Risk Premium (Drp) | K11: 0.0123 | L11: 0.0133 | Q11: 0.045 | S11: 0.03293 | W11: 0.02893 | Y11: 0.02429 | Z11: 0.02502 | AA11: =AA42 -> 0.02502 | AB11: =AB42 -> 0.02502 | AC11: =AC42 -> 0.02502 | AD11: =AD42 -> 0.02502 | AE11: 0.02273 | AF11: =AF42 -> 0.02243 | AG11: =AG42 -> 0.02082 | AH11: =AH42 -> 0.01997 | AI11: =AI42 -> 0.01994 | AJ11: 0.0202 | AK11: 0.0202 | AL11: 0.0202 | AM11: 0.0202 | AN11: 0.0202
A12: =ROW() -> 12 | C12: Cost of Debt; Debt Issuing Cost (Disc) | K12: 0.0008 | L12: 0.00125 | Q12: 0.00228 | S12: 0.00125 | W12: 0.00125 | Y12: 0.00125 | Z12: =Y12 -> 0.00125 | AA12: 0.00125 | AB12: 0.00125 | AC12: 0.00125 | AD12: 0.00125 | AE12: 0.001 | AF12: =AE12 -> 0.001 | AG12: 0.001 | AH12: =AG12 -> 0.001 | AI12: =AH12 -> 0.001 | AJ12: 0.00165 | AK12: =AJ12 -> 0.00165 | AL12: =AK12 -> 0.00165 | AM12: =AL12 -> 0.00165 | AN12: =AM12 -> 0.00165
A13: =ROW() -> 13 | C13: Cost of Debt; Hedging Cost | Y13: 0.00114 | Z13: 0.00114 | AA13: 0.00114 | AB13: 0.00114 | AC13: 0.00114 | AD13: 0.00114 | AE13: 0.00114 | AF13: 0.00114 | AG13: 0.00114 | AH13: 0.00114 | AI13: 0.00114 | AJ13: 0.00123 | AK13: 0.00123 | AL13: 0.00123 | AM13: 0.00123 | AN13: 0.00123
A14: =ROW() -> 14 | C14: Cost of Debt; Risk Margin (Rm) -- Nominal Return on Debt (DPn) | I14: 0.012 | K14: =K11+K12+K13+K10 -> 0.0131 | L14: =L11+L12+L13+L10 -> 0.01455 | Q14: =Q11+Q12+Q13+Q10 -> 0.04728 | S14: =S11+S12+S13+S10 -> 0.03418 | W14: =W11+W12+W13+W10 -> 0.03018 | Y14: =Y11+Y12+Y13+Y10 -> 0.03139 | Z14: 0.03212 | AA14: 0.03212 | AB14: 0.03212 | AC14: 0.03212 | AD14: 0.03212 | AE14: 0.03448 | AF14: 0.03418 | AG14: 0.03257 | AH14: 0.03172 | AI14: 0.03169 | AJ14: =AJ11+AJ12+AJ13+AJ10 -> 0.06581767265 | AK14: 0.06581767265 | AL14: 0.06581767265 | AM14: 0.06581767265 | AN14: 0.06581767265
A15: =ROW() -> 15 | C15: Nominal Cost of Debt (DPn) | I15: =I8+I14 -> 0.0747 | K15: =K8+K14 -> 0.0646 | Q15: =Q8+Q14 -> 0.10318 | S15: =S8+S14 -> 0.08578 | W15: =W8+W14 -> 0.08628 | Y15: =Y8+Y14 -> 0.05099 | Z15: 0.05172 | AA15: 0.05172 | AB15: 0.05172 | AC15: 0.05172 | AD15: 0.05172 | AE15: =AE14 -> 0.03448 | AF15: 0.03418 | AG15: 0.03257 | AH15: 0.03172 | AI15: 0.03169 | AJ15: =AJ14 -> 0.06581767265 | AK15: 0.06581767265 | AL15: 0.06581767265 | AM15: 0.06581767265 | AN15: 0.06581767265
A16: =ROW() -> 16
A17: =ROW() -> 17 | C17: Return on Equity
A18: =ROW() -> 18 | C18: Equity: Nominal Risk Free Rate (ERfn) | I18: =I8 -> 0.0627 | K18: =K8 -> 0.0515 | L18: =L8 -> 0.0515 | M18: =M8 -> 0.0515 | Q18: =Q8 -> 0.0559 | S18: =S8 -> 0.0516 | W18: =W8 -> 0.0561 | Y18: 0.0196 | Z18: =Y18 -> 0.0196 | AA18: 0.0196 | AB18: 0.0196 | AC18: 0.0196 | AD18: 0.0196 | AE18: 0.0082 | AF18: =AE18 -> 0.0082 | AG18: 0.0082 | AH18: =AG18 -> 0.0082 | AI18: =AH18 -> 0.0082 | AJ18: 0.03970883485 | AK18: =AJ18 -> 0.03970883485 | AL18: =AK18 -> 0.03970883485 | AM18: =AL18 -> 0.03970883485 | AN18: =AM18 -> 0.03970883485
A19: =ROW() -> 19 | C19: Australian Market Risk Premium (Rp) | I19: 0.06 | K19: 0.05 | L19: 0.06 | Q19: 0.08 | S19: 0.06 | W19: 0.06 | Y19: =7.6%-0.1% -> 0.075 | Z19: =Y19 -> 0.075 | AA19: 0.075 | AB19: 0.075 | AC19: 0.075 | AD19: 0.075 | AE19: 0.06 | AF19: =AE19 -> 0.06 | AG19: 0.06 | AH19: 0.06 | AI19: 0.06 | AJ19: 0.061 | AK19: 0.061 | AL19: 0.061 | AM19: 0.061 | AN19: 0.061
A20: =ROW() -> 20 | C20: Equity Beta (Be) | I20: 1.075 | K20: 0.8 | L20: 1 | S20: 0.8 | W20: 0.8 | Y20: 0.7 | Z20: =Y20 -> 0.7 | AA20: =Z20 -> 0.7 | AB20: =AA20 -> 0.7 | AC20: =AB20 -> 0.7 | AD20: =AC20 -> 0.7 | AE20: 0.7 | AF20: 0.7 | AG20: 0.7 | AH20: 0.7 | AI20: 0.7 | AJ20: 0.7 | AK20: 0.7 | AL20: 0.7 | AM20: 0.7 | AN20: 0.7
A21: =ROW() -> 21 | C21: Nominal Pre Tax Cost of Equity (EPn) | I21: =I22/(1-I29*(1-I30)) -> 0.1508896797 | K21: =K22/(1-K29*(1-K30)) -> 0.1039772727 | L21: =L22/(1-L29*(1-L30)) -> 0.1411392405 | S21: =S22/(1-S29*(1-S30)) -> 0.1131818182 | W21: =W22/(1-W29*(1-W30)) -> 0.1343225806 | Y21: =Y22/(1-Y29*(1-Y30)) -> 0.09303225806 | Z21: 0.09303225806 | AA21: 0.09303225806 | AB21: 0.09303225806 | AC21: 0.09303225806 | AD21: 0.09303225806 | AE21: 0.05905882353 | AF21: 0.05905882353 | AG21: 0.05905882353 | AH21: 0.05905882353 | AI21: 0.05905882353 | AJ21: =AJ22/(1-AJ29*(1-AJ30)) -> 0.09695157041 | AK21: 0.09695157041 | AL21: 0.09695157041 | AM21: 0.09695157041 | AN21: 0.09695157041
A22: =ROW() -> 22 | C22: Nominal After Tax Cost of Equity (EAn) -- Nominal return on Equity | I22: =I18+(I19*I20) -> 0.1272 | K22: =K18+(K19*K20) -> 0.0915 | L22: =L18+(L19*L20) -> 0.1115 | S22: =S18+(S19*S20) -> 0.0996 | W22: =W18+(W19*W20) -> 0.1041 | Y22: =Y18+(Y19*Y20) -> 0.0721 | Z22: 0.0721 | AA22: 0.0721 | AB22: 0.0721 | AC22: 0.0721 | AD22: 0.0721 | AE22: 0.0502 | AF22: 0.0502 | AG22: 0.0502 | AH22: 0.0502 | AI22: 0.0502 | AJ22: =AJ18+(AJ19*AJ20) -> 0.08240883485 | AK22: 0.08240883485 | AL22: 0.08240883485 | AM22: 0.08240883485 | AN22: 0.08240883485
A23: =ROW() -> 23
A24: =ROW() -> 24 | C24: Other Parameter
A25: =ROW() -> 25 | C25: Debt Proportion (D) | I25: 0.6 | K25: 0.6 | L25: =K25 -> 0.6 | M25: =L25 -> 0.6 | N25: =M25 -> 0.6 | O25: =N25 -> 0.6 | Q25: =K25 -> 0.6 | S25: 0.6 | W25: 0.6 | Y25: 0.6 | Z25: =Y25 -> 0.6 | AA25: 0.6 | AB25: 0.6 | AC25: 0.6 | AD25: 0.6 | AE25: 0.55 | AF25: =AE25 -> 0.55 | AG25: 0.55 | AH25: =AG25 -> 0.55 | AI25: =AH25 -> 0.55 | AJ25: 0.55 | AK25: =AJ25 -> 0.55 | AL25: =AK25 -> 0.55 | AM25: =AL25 -> 0.55 | AN25: =AM25 -> 0.55
A26: =ROW() -> 26 | C26: Equity Proportion (E) | I26: =1-I25 -> 0.4 | K26: =1-K25 -> 0.4 | L26: =1-L25 -> 0.4 | M26: =1-M25 -> 0.4 | N26: =1-N25 -> 0.4 | O26: =1-O25 -> 0.4 | Q26: =1-Q25 -> 0.4 | S26: =1-S25 -> 0.4 | W26: =1-W25 -> 0.4 | Y26: =1-Y25 -> 0.4 | Z26: =1-Z25 -> 0.4 | AA26: =1-AA25 -> 0.4 | AB26: =1-AB25 -> 0.4 | AC26: =1-AC25 -> 0.4 | AD26: =1-AD25 -> 0.4 | AE26: =1-AE25 -> 0.45 | AF26: =1-AF25 -> 0.45 | AG26: =1-AG25 -> 0.45 | AH26: 0.45 | AI26: 0.45 | AJ26: =1-AJ25 -> 0.45 | AK26: =1-AK25 -> 0.45 | AL26: =1-AL25 -> 0.45 | AM26: 0.45 | AN26: 0.45
A27: =ROW() -> 27 | C27: Equity: Real Risk Free Rate (ERfr) | I27: =(1+I18)/(1+I28)-1 -> 0.03395602257 | K27: =K9 -> 0.0258 | L27: =L9 -> 0.0258 | M27: =M9 -> 0.0258 | Q27: =(1+Q18)/(1+Q28)-1 -> 0.03044793598 | S27: =(1+S18)/(1+S28)-1 -> 0.02495126706 | W27: =(1+W18)/(1+W28)-1 -> 0.02933723197 | Y27: =(1+Y18)/(1+Y28)-1 -> 0.0005888125613 | Z27: 0.0005888125613 | AA27: 0.0005888125613 | AB27: 0.0005888125613 | AC27: 0.0005888125613 | AD27: 0.001173493976 | AE27: -0.003163931184 | AF27: -0.003163931184 | AG27: -0.003163931184 | AH27: -0.003163931184 | AI27: -0.003163931184 | AJ27: =(1+AJ18)/(1+AJ28)-1 -> 0.01273364384 | AK27: 0.01273364384 | AL27: 0.01273364384 | AM27: 0.01273364384 | AN27: 0.01273364384
A28: =ROW() -> 28 | C28: Inflation Rate for WACC (I) | I28: 0.0278 | K28: =(1+K8)/(1+K9)-1 -> 0.02505361669 | L28: =(1+L8)/(1+L9)-1 -> 0.02505361669 | M28: =(1+M8)/(1+M9)-1 -> 0.02505361669 | N28: =(1+N8)/(1+N9)-1 -> 0.02505361669 | O28: =(1+O8)/(1+O9)-1 -> 0.02505361669 | Q28: 0.0247 | S28: 0.026 | U28: 0.026 | W28: 0.026 | Y28: 0.019 | Z28: =Y28 -> 0.019 | AA28: =Z28 -> 0.019 | AB28: =AA28 -> 0.019 | AC28: =AB28 -> 0.019 | AD28: =Input!AD43 -> 0.01840490798 | AE28: 0.0114 | AF28: =AE28 -> 0.0114 | AG28: =AF28 -> 0.0114 | AH28: =AG28 -> 0.0114 | AI28: =AH28 -> 0.0114 | AJ28: 0.02663601745 | AK28: =AJ28 -> 0.02663601745 | AL28: =AK28 -> 0.02663601745 | AM28: =AL28 -> 0.02663601745 | AN28: =AM28 -> 0.02663601745
A29: =ROW() -> 29 | C29: Corporate Tax Rate (T) | I29: 0.314 | K29: 0.3 | L29: 0.3 | M29: 0.3 | N29: 0.3 | O29: 0.3 | Q29: 0.3 | S29: 0.3 | W29: 0.3 | Y29: 0.3 | Z29: =Y29 -> 0.3 | AA29: 0.3 | AB29: 0.3 | AC29: 0.3 | AD29: 0.3 | AE29: 0.3 | AF29: =AE29 -> 0.3 | AG29: 0.3 | AH29: =AG29 -> 0.3 | AI29: =AH29 -> 0.3 | AJ29: 0.3 | AK29: =AJ29 -> 0.3 | AL29: =AK29 -> 0.3 | AM29: =AL29 -> 0.3 | AN29: =AM29 -> 0.3
A30: =ROW() -> 30 | C30: Franking Credit (g) | I30: 0.5 | K30: 0.6 | L30: 0.3 | Q30: 0.2 | S30: 0.6 | W30: 0.25 | Y30: =40%*0 + 25% -> 0.25 | Z30: 0.25 | AA30: 0.25 | AB30: 0.25 | AC30: 0.25 | AD30: 0.25 | AE30: 0.5 | AF30: 0.5 | AG30: 0.5 | AH30: 0.5 | AI30: 0.5 | AJ30: 0.5 | AK30: 0.5 | AL30: 0.5 | AM30: 0.5 | AN30: 0.5
A31: =ROW() -> 31 | C31: Imputation Adj (G) | I31: =(1-I29)/(1-I29*(1-I30)) -> 0.8137603796 | K31: =(1-K29)/(1-K29*(1-K30)) -> 0.7954545455 | L31: =(1-L29)/(1-L29*(1-L30)) -> 0.8860759494 | Q31: =(1-Q29)/(1-Q29*(1-Q30)) -> 0.9210526316 | S31: =(1-S29)/(1-S29*(1-S30)) -> 0.7954545455 | W31: =(1-W29)/(1-W29*(1-W30)) -> 0.9032258065 | Y31: =(1-Y29)/(1-Y29*(1-Y30)) -> 0.9032258065 | Z31: =(1-Z29)/(1-Z29*(1-Z30)) -> 0.9032258065 | AA31: 0.9032258065 | AB31: 0.9032258065 | AC31: 0.9032258065 | AD31: 0.9032258065 | AE31: =(1-AE29)/(1-AE29*(1-AE30)) -> 0.8235294118 | AF31: 0.8235294118 | AG31: 0.8235294118 | AH31: 0.8235294118 | AI31: 0.8235294118 | AJ31: =(1-AJ29)/(1-AJ29*(1-AJ30)) -> 0.8235294118 | AK31: 0.8235294118 | AL31: 0.8235294118 | AM31: 0.8235294118 | AN31: 0.8235294118
A32: =ROW() -> 32
A33: =ROW() -> 33 | C33: WACC; Pre-tax Officer (Market Practise or Forward Transformation)
A34: =ROW() -> 34 | C34: Nominal Pre Tax WACC (WPn) | I34: =I21*I26+I15*I25 -> 0.1051758719 | K34: =K21*K26+K15*K25 -> 0.08035090909 | L34: =L21*L26+L15*L25 -> 0.0564556962 | M34: =K34+(L34-K34)*0.1 -> 0.0779613878 | N34: =L34-(L34-K34)*0.1 -> 0.05884521749 | O34: =(1+O35)*(1+O28)-1 -> 0.0945522519 | Q34: =(1+Q35)*(1+Q28)-1 -> 0.1384417 | S34: =S21*S26+S15*S25 -> 0.09674072727 | W34: =W21*W26+W15*W25 -> 0.1054970323 | Y34: =Y21*Y26+Y15*Y25 -> 0.06780690323 | Z34: 0.06824490323 | AA34: 0.06824490323 | AB34: 0.06824490323 | AC34: 0.06824490323 | AD34: 0.06824490323 | AE34: 0.04554047059 | AF34: 0.04537547059 | AG34: 0.04448997059 | AH34: 0.04402247059 | AI34: 0.04400597059 | AJ34: =AJ21*AJ26+AJ15*AJ25 -> 0.07982792665 | AK34: 0.07982792665 | AL34: 0.07982792665 | AM34: 0.07982792665 | AN34: 0.07982792665
A35: =ROW() -> 35 | C35: Real Pre Tax WACC (WPr) | I35: =(1+I34)/(1+I28)-1 -> 0.07528300436 | K35: =(1+K34)/(1+K28)-1 -> 0.05394575611 | L35: =(1+L34)/(1+L28)-1 -> 0.03063457267 | M35: =(1+M34)/(1+M28)-1 -> 0.05161463776 | N35: =(1+N34)/(1+N28)-1 -> 0.03296569102 | O35: 0.0678 | Q35: 0.111 | S35: =(1+S34)/(1+S28)-1 -> 0.06894807726 | U35: 0.096 | W35: =(1+W34)/(1+W28)-1 -> 0.07748248758 | Y35: =(1+Y34)/(1+Y28)-1 -> 0.04789686283 | Z35: 0.048326696 | AA35: 0.048326696 | AB35: 0.048326696 | AC35: 0.048326696 | AD35: 0.04893927244 | AE35: 0.03375565611 | AF35: 0.03359251591 | AG35: 0.03271699682 | AH35: 0.03225476625 | AI35: 0.03223845223 | AJ35: =(1+AJ34)/(1+AJ28)-1 -> 0.05181184791 | AK35: 0.05181184791 | AL35: 0.05181184791 | AM35: 0.05181184791 | AN35: 0.05181184791
A36: =ROW() -> 36 | C36: WACC: Vanilla
A37: =ROW() -> 37 | C37: Nominal After Tax WACC | I37: =I25*I15+I26*I22 -> 0.0957 | K37: =K25*K15+K26*K22 -> 0.07536 | L37: =L25*L15+L26*L22 -> 0.0446 | S37: =S25*S15+S26*S22 -> 0.091308 | W37: =W25*W15+W26*W22 -> 0.093408 | Y37: =Y25*Y15+Y26*Y22 -> 0.059434 | Z37: 0.059872 | AA37: 0.059872 | AB37: 0.059872 | AC37: 0.059872 | AD37: 0.059872 | AE37: 0.041554 | AF37: 0.041389 | AG37: 0.0405035 | AH37: 0.040036 | AI37: 0.0400195 | AJ37: =AJ25*AJ15+AJ26*AJ22 -> 0.07328369564 | AK37: 0.07328369564 | AL37: 0.07328369564 | AM37: 0.07328369564 | AN37: 0.07328369564
A38: =ROW() -> 38 | C38: Real After Tax WACC | I38: =(1+I37)/(1+I28)-1 -> 0.06606343647 | K38: =(1+K37)/(1+K28)-1 -> 0.04907683119 | L38: =(1+L37)/(1+L28)-1 -> 0.01906864479 | S38: =(1+S37)/(1+S28)-1 -> 0.06365302144 | W38: =(1+W37)/(1+W28)-1 -> 0.06569980507 | Y38: =(1+Y37)/(1+Y28)-1 -> 0.03968007851 | Z38: 0.04010991168 | AA38: 0.04010991168 | AB38: 0.04010991168 | AC38: 0.04010991168 | AD38: 0.04071768675 | AE38: 0.02981411904 | AF38: 0.02965097884 | AG38: 0.02877545976 | AH38: 0.02831322919 | AI38: 0.02829691517 | AJ38: =(1+AJ37)/(1+AJ28)-1 -> 0.04543740663 | AK38: 0.04543740663 | AL38: 0.04543740663 | AM38: 0.04543740663 | AN38: 0.04543740663
A39: =ROW() -> 39
A40: =ROW() -> 40 | C40: Cost of Debt; Debt Risk Premium (Drp)
A41: =ROW() -> 41 | C41: Trailing Average DRP | Y41: =Y11 -> 0.02429 | Z41: =Z11 -> 0.02502 | AA41: =IF(Input!AA12="","",Input!AA12) ->  | AB41: =IF(Input!AB12="","",Input!AB12) ->  | AC41: =IF(Input!AC12="","",Input!AC12) ->  | AD41: =IF(Input!AD12="","",Input!AD12) ->  | AE41: =IF(Input!AE13="","",Input!AE13) -> 0.02273 | AF41: =IF(Input!AF13="","",Input!AF13) -> 0.02243 | AG41: =IF(Input!AG13="","",Input!AG13) -> 0.02082 | AH41: =IF(Input!AH13="","",Input!AH13) -> 0.01997 | AI41: =IF(Input!AI13="","",Input!AI13) -> 0.01994 | AJ41: =IF(Input!AJ13="","",Input!AJ13) -> 0.0202 | AK41: =IF(Input!AK13="","",Input!AK13) ->  | AL41: =IF(Input!AL13="","",Input!AL13) ->  | AM41: =IF(Input!AM13="","",Input!AM13) ->  | AN41: =IF(Input!AN13="","",Input!AN13) -> 
A42: =ROW() -> 42 | C42: Modelled DRP | Y42: =IF(Y41="",X42,Y41) -> 0.02429 | Z42: =IF(Z41="",Y42,Z41) -> 0.02502 | AA42: 0.02502 | AB42: 0.02502 | AC42: 0.02502 | AD42: 0.02502 | AE42: 0.02273 | AF42: 0.02243 | AG42: 0.02082 | AH42: 0.01997 | AI42: 0.01994 | AJ42: =IF(AJ41="",AI42,AJ41) -> 0.0202 | AK42: =IF(AK41="",AJ42,AK41) -> 0.0202 | AL42: =IF(AL41="",AK42,AL41) -> 0.0202 | AM42: =IF(AM41="",AL42,AM41) -> 0.0202 | AN42: =IF(AN41="",AM42,AN41) -> 0.0202
A43: =ROW() -> 43 | AA43: If change these then change the Recalc_From_Date
A44: =ROW() -> 44
A45: =ROW() -> 45 | C45: Annual Update of Debt Risk Premium | Y45: 2014 | Z45: =Y45+1 -> 2015 | AA45: =Z45+1 -> 2016 | AB45: 2017 | AC45: =AB45+1 -> 2018 | AD45: 2019 | AE45: 2020 | AF45: 2021 | AG45: 2022 | AH45: =AG45+1 -> 2023 | AI45: 2024 | AJ45: =AI45+1 -> 2025 | AK45: =AJ45+1 -> 2026 | AL45: =AK45+1 -> 2027 | AM45: =AL45+1 -> 2028 | AN45: =AM45+1 -> 2029
A46: =ROW() -> 46 | C46: Trailing Average DRP | Z46: =IF(Z63="","",ROUND(AVERAGE(Z54:Z72),5)) -> 0.02502 | AA46: =IF(AA62="","",ROUND(AVERAGE(AA54:AA72),5)) -> 0.02676 | AB46: =IF(AB61="","",ROUND(AVERAGE(AB54:AB72),5)) -> 0.02785 | AC46: =IF(AC60="","",ROUND(AVERAGE(AC54:AC72),5)) -> 0.02605 | AD46: =IF(AD59="","",ROUND(AVERAGE(AD54:AD72),5)) -> 0.02309 | AE46: =IF(AE58="","",ROUND(AVERAGE(AE54:AE72),5)) -> 0.02273 | AF46: =IF(AF57="","",ROUND(AVERAGE(AF57:AF66),5)) -> 0.02243 | AG46: =IF(AG56="","",ROUND(AVERAGE(AG56:AG65),5)) -> 0.02082 | AH46: =IF(AH55="","",ROUND(AVERAGE(AH55:AH64),5)) -> 0.01997 | AI46: =IF(AI54="","",ROUND(AVERAGE(AI54:AI63),5)) -> 0.01994 | AJ46: =IF(AJ53="","",ROUND(AVERAGE(AJ53:AJ62),5)) -> 0.0202 | AK46: =IF(AK52="","",ROUND(AVERAGE(AK52:AK61),5)) ->  | AL46: =IF(AL51="","",ROUND(AVERAGE(AL51:AL60),5)) ->  | AM46: =IF(AM50="","",ROUND(AVERAGE(AM50:AM59),5)) ->  | AN46: =IF(AN49="","",ROUND(AVERAGE(AN49:AN58),5)) -> 
A47: =ROW() -> 47
A48: =ROW() -> 48 | C48: Annual Debt Risk Premium, Year | Y48: 2014 | Z48: =Y48+1 -> 2015 | AA48: =Z48+1 -> 2016 | AB48: 2017 | AC48: 2018 | AD48: 2019 | AE48: 2020 | AF48: 2021 | AG48: 2022 | AH48: 2023 | AI48: 2024 | AJ48: =AI48+1 -> 2025 | AK48: =AJ48+1 -> 2026 | AL48: =AK48+1 -> 2027 | AM48: =AL48+1 -> 2028 | AN48: =AM48+1 -> 2029
AN49: =IF(Input!AN$12="","",Input!AN$12) -> 
AM50: =IF(Input!AM$12="","",Input!AM$12) ->  | AN50: =AM50 -> 
AL51: =IF(Input!AL$12="","",Input!AL$12) -> 
AK52: =IF(Input!AK$12="","",Input!AK$12) -> 
AJ53: =AI54 -> 0.02215 | AK53: 0.02215 | AL53: 0.02215 | AM53: 0.02215 | AN53: 0.02215
A54: =ROW() -> 54 | C54: 2024 | AI54: =AH55 -> 0.02215 | AJ54: 0.02215 | AK54: 0.02215 | AL54: 0.02215 | AM54: 0.02215 | AN54: 0.02215
A55: =ROW() -> 55 | C55: =C54-1 -> 2023 | AH55: 0.02215 | AI55: 0.02215 | AJ55: 0.02215 | AK55: 0.02215 | AL55: 0.02215 | AM55: 0.02215 | AN55: 0.02215
A56: =ROW() -> 56 | C56: 2022 | AG56: =0.01562 -> 0.01562 | AH56: 0.01562 | AI56: 0.01562 | AJ56: 0.01562 | AK56: 0.01562 | AL56: 0.01562 | AM56: 0.01562 | AN56: 0.01562
A57: =ROW() -> 57 | C57: 2021 | AF57: 0.02075 | AG57: 0.02075 | AH57: 0.02075 | AI57: 0.02075 | AJ57: 0.02075 | AK57: 0.02075 | AL57: 0.02075 | AM57: 0.02075 | AN57: 0.02075
A58: =ROW() -> 58 | C58: 2020 | AE58: =IF(Input!AE$12="","",Input!AE$12) -> 0.0177 | AF58: 0.0177 | AG58: 0.0177 | AH58: 0.0177 | AI58: 0.0177 | AJ58: 0.0177 | AK58: 0.0177 | AL58: 0.0177 | AM58: 0.0177 | AN58: 0.0177
A59: =ROW() -> 59 | C59: =C58-1 -> 2019 | AD59: 0.01663 | AE59: 0.01663 | AF59: 0.01663 | AG59: 0.01663 | AH59: 0.01663 | AI59: 0.01663 | AJ59: 0.01663 | AK59: 0.01663 | AL59: 0.01663 | AM59: 0.01663
A60: =ROW() -> 60 | C60: 2018 | AC60: 0.01689 | AD60: 0.01689 | AE60: 0.01689 | AF60: 0.01689 | AG60: 0.01689 | AH60: 0.01689 | AI60: 0.01689 | AJ60: 0.01689 | AK60: 0.01689 | AL60: 0.01689
A61: =ROW() -> 61 | C61: 2017 | AB61: 0.02326 | AC61: 0.02326 | AD61: 0.02326 | AE61: 0.02326 | AF61: 0.02326 | AG61: 0.02326 | AH61: 0.02326 | AI61: 0.02326 | AJ61: 0.02326 | AK61: 0.02326
A62: =ROW() -> 62 | C62: 2016 | AA62: 0.02467 | AB62: 0.02467 | AC62: 0.02467 | AD62: 0.02467 | AE62: 0.02467 | AF62: 0.02467 | AG62: 0.02467 | AH62: 0.02467 | AI62: 0.02467 | AJ62: 0.02467
A63: =ROW() -> 63 | C63: 2015 | Z63: 0.01953 | AA63: 0.01953 | AB63: 0.01953 | AC63: 0.01953 | AD63: 0.01953 | AE63: 0.01953 | AF63: 0.01953 | AG63: 0.01953 | AH63: 0.01953 | AI63: 0.01953
A64: =ROW() -> 64 | C64: 2014 | Y64: 0.0225 | Z64: 0.0225 | AA64: 0.0225 | AB64: 0.0225 | AC64: 0.0225 | AD64: 0.0225 | AE64: 0.0225 | AF64: 0.0225 | AG64: 0.0225 | AH64: 0.0225
A65: =ROW() -> 65 | C65: 2013 | Y65: 0.03068 | Z65: 0.03068 | AA65: 0.03068 | AB65: 0.03068 | AC65: 0.03068 | AD65: 0.03068 | AE65: 0.03068 | AF65: 0.03068 | AG65: 0.03068
A66: =ROW() -> 66 | C66: 2012 | Y66: 0.03172 | Z66: 0.03172 | AA66: 0.03172 | AB66: 0.03172 | AC66: 0.03172 | AD66: 0.03172 | AE66: 0.03172 | AF66: 0.03172
A67: =ROW() -> 67 | C67: 2011 | Y67: 0.02371 | Z67: 0.02371 | AA67: 0.02371 | AB67: 0.02371 | AC67: 0.02371 | AD67: 0.02371 | AE67: 0.02371
A68: =ROW() -> 68 | C68: 2010 | Y68: 0.02127 | Z68: 0.02127 | AA68: 0.02127 | AB68: 0.02127 | AC68: 0.02127 | AD68: 0.02127
A69: =ROW() -> 69 | C69: 2009 | Y69: 0.04624 | Z69: 0.04624 | AA69: 0.04624 | AB69: 0.04624 | AC69: 0.04624
A70: =ROW() -> 70 | C70: 2008 | Y70: 0.03489 | Z70: 0.03489 | AA70: 0.03489 | AB70: 0.03489
A71: =ROW() -> 71 | C71: 2007 | Y71: 0.01241 | Z71: 0.01241 | AA71: 0.01241
A72: =ROW() -> 72 | C72: 2006 | Y72: 0.00724 | Z72: 0.00724

Sheet Input
A1: =Main!A1 -> GDS Tariff Model, September 2023
A2: Inputs
A3: Ref | C3: =COLUMN() -> 3 | D3: =COLUMN() -> 4 | E3: =COLUMN() -> 5 | F3: =COLUMN() -> 6 | G3: =COLUMN() -> 7 | H3: =COLUMN() -> 8 | I3: =COLUMN() -> 9 | J3: =COLUMN() -> 10 | K3: =COLUMN() -> 11 | L3: =COLUMN() -> 12 | M3: =COLUMN() -> 13 | N3: =COLUMN() -> 14 | O3: =COLUMN() -> 15 | P3: =COLUMN() -> 16 | Q3: =COLUMN() -> 17 | R3: =COLUMN() -> 18 | S3: =COLUMN() -> 19 | T3: =COLUMN() -> 20 | U3: =COLUMN() -> 21 | V3: =COLUMN() -> 22 | W3: =COLUMN() -> 23 | X3: =COLUMN() -> 24 | Y3: =COLUMN() -> 25 | Z3: =COLUMN() -> 26 | AA3: =COLUMN() -> 27 | AB3: =COLUMN() -> 28 | AC3: =COLUMN() -> 29 | AD3: =COLUMN() -> 30 | AE3: =COLUMN() -> 31 | AF3: =COLUMN() -> 32 | AG3: =COLUMN() -> 33 | AH3: =COLUMN() -> 34 | AI3: =COLUMN() -> 35 | AJ3: =COLUMN() -> 36 | AK3: =COLUMN() -> 37 | AL3: =COLUMN() -> 38 | AM3: =COLUMN() -> 39 | AN3: =COLUMN() -> 40
A4: =ROW() -> 4 | J4: Year ending 31 December | O4: Year ending 31 December | T4: Year Ending 30 June | Y4: Year Ending 31 December | AG4: Year Ending 31 December | AL4: Year Ending 31 December
A5: Regulatory Period | J5: 1 | K5: 1 | L5: 1 | M5: 1 | N5: 1 | O5: 2 | P5: 2 | Q5: 2 | R5: 2 | S5: 2 | T5: 3 | U5: 3 | V5: 3 | W5: 3 | X5: 3 | Y5: 4 | Z5: 4 | AA5: 4 | AB5: 4 | AC5: 4 | AD5: 4 | AE5: 5 | AF5: 5 | AG5: 5 | AH5: 5 | AI5: 5 | AJ5: 6 | AK5: 6 | AL5: 6 | AM5: 6 | AN5: 6
A6: Year ending | I6: 1999 | J6: 2000 | K6: 2001 | L6: 2002 | M6: 2003 | N6: 2004 | O6: 2005 | P6: 2006 | Q6: 2007 | R6: 2008 | S6: =1+R6 -> 2009 | T6: =1+S6 -> 2010 | U6: =T6+1 -> 2011 | V6: =U6+1 -> 2012 | W6: =V6+1 -> 2013 | X6: =W6+1 -> 2014 | Y6: 2014 | Z6: =Y6+1 -> 2015 | AA6: 2016 | AB6: 2017 | AC6: 2018 | AD6: 2019 | AE6: 2020 | AF6: 2021 | AG6: 2022 | AH6: 2023 | AI6: 2024 | AJ6: =AI6+1 -> 2025 | AK6: =AJ6+1 -> 2026 | AL6: =AK6+1 -> 2027 | AM6: =AL6+1 -> 2028 | AN6: =AM6+1 -> 2029
A7: Months | I7: 1 to 12 | J7: 1 to 12 | K7: 1 to 12 | L7: 1 to 12 | M7: 1 to 12 | N7: 1 to 12 | O7: 1 to 12 | P7: 1 to 12 | Q7: 1 to 12 | R7: 1 to 12 | S7: 1 to 12 | T7: 1 to 6 | U7: 7 to 6 | V7: 7 to 6 | W7: 7 to 6 | X7: 7 to 6 | Y7: 7 to 12 | Z7: 1 to 12 | AA7: 1 to 12 | AB7: 1 to 12 | AC7: 1 to 12 | AD7: 1 to 12 | AE7: 1 to 12 | AF7: 1 to 12 | AG7: 1 to 12 | AH7: 1 to 12 | AI7: 1 to 12 | AJ7: 1 to 12 | AK7: 1 to 12 | AL7: 1 to 12 | AM7: 1 to 12 | AN7: 1 to 12
A8: Days | I8: 365 | J8: 366 | K8: 365 | L8: 365 | M8: 365 | N8: 366 | O8: 365 | P8: 365 | Q8: 365 | R8: 366 | S8: 365 | T8: 181 | U8: 365 | V8: 366 | W8: 365 | X8: 365 | Y8: =DATEVALUE("31/12/2014")-DATEVALUE("30/6/2014") -> 184 | Z8: 365 | AA8: 366 | AB8: 365 | AC8: 365 | AD8: 365 | AE8: 366 | AF8: 365 | AG8: 365 | AH8: 365 | AI8: 366 | AJ8: 366 | AK8: 365 | AL8: 365 | AM8: 365 | AN8: 366
A9: Year portion | I9: 1 | J9: =I9 -> 1 | K9: =J9 -> 1 | L9: 1 | M9: 1 | N9: 1 | O9: 1 | P9: 1 | Q9: 1 | R9: 1 | S9: 1 | T9: =T8/365 -> 0.495890411 | U9: 1 | V9: =U9 -> 1 | W9: =V9 -> 1 | X9: 1 | Y9: =Y8/365 -> 0.504109589 | Z9: 1 | AA9: =Z9 -> 1 | AB9: =AA9 -> 1 | AC9: 1 | AD9: 1 | AE9: 1 | AF9: =AE9 -> 1 | AG9: =AF9 -> 1 | AH9: =AG9 -> 1 | AI9: =AH9 -> 1 | AJ9: 1 | AK9: =AJ9 -> 1 | AL9: =AK9 -> 1 | AM9: =AL9 -> 1 | AN9: =AM9 -> 1
A10: General Inputs
A11: =ROW() -> 11 | C11: Tariff Recalculation | F11: =IF(ISNUMBER($AI$12),$AI$6,IF(ISNUMBER($AH$12),$AH$6,IF(ISNUMBER($AG$12),$AG$6,IF(ISNUMBER($AF$12),$AF$6,$AE$6)))) -> 2023 | G11: =AN6 -> 2029
A12: =ROW() -> 12 | C12: Annual DRP | AE12: 0.0177 | AF12: 0.02075 | AG12: 0.01562 | AH12: =WACC!AH55 -> 0.02215 | AJ12: =WACC!AJ11 -> 0.0202
A13: =ROW() -> 13 | C13: Trailing Average DRP (10 year ave, modelled) | AE13: =IF(WACC!AE46="","",WACC!AE46) -> 0.02273 | AF13: =IF(WACC!AF46="","",WACC!AF46) -> 0.02243 | AG13: =IF(WACC!AG46="","",WACC!AG46) -> 0.02082 | AH13: =IF(WACC!AH46="","",WACC!AH46) -> 0.01997 | AI13: =IF(WACC!AI46="","",WACC!AI46) -> 0.01994 | AJ13: =IF(WACC!AJ46="","",WACC!AJ46) -> 0.0202 | AK13: =IF(WACC!AK46="","",WACC!AK46) ->  | AL13: =IF(WACC!AL46="","",WACC!AL46) ->  | AM13: =IF(WACC!AM46="","",WACC!AM46) ->  | AN13: =IF(WACC!AN46="","",WACC!AN46) -> 
A14: =ROW() -> 14 | C14: X-Factor (Real) | AJ14: =X_Factor_2020 -> 0.3856062165 | AK14: =X_Factor_2021 -> 0 | AL14: =X_Factor_2022 -> 0 | AM14: =X_Factor_2023 -> 0 | AN14: =X_Factor_2024 -> 0
A16: =ROW() -> 16
A17: 8 Cities Inflation
A18: =ROW() -> 18 | I18: Actual | J18: Actual | K18: Actual | L18: Actual | M18: Actual | N18: Actual | O18: Actual | P18: Actual | Q18: Actual | R18: Actual | S18: Actual | T18: Actual | U18: Actual | V18: Actual | W18: Actual | X18: Actual | Y18: Actual | Z18: Actual | AA18: Actual | AB18: Actual | AC18: Actual | AD18: Actual | AE18: Actual | AF18: Actual | AG18: Forecast | AH18: Forecast | AI18: Forecast
A19: =ROW() -> 19 | C19: Actual June and Forecast Inflation | I19: 1999-06-30 | J19: 2000-06-30 | K19: 2001-06-30 | L19: 2002-06-30 | M19: 2003-06-30 | N19: 2004-06-30 | O19: 2005-06-30 | P19: 2006-06-30 | Q19: 2007-06-30 | R19: 2008-06-30 | S19: 2009-06-30 | T19: 2010-06-30 | U19: 2011-06-30 | V19: 2012-06-30 | W19: 2013-06-30 | X19: 2014-06-30 | Y19: =X19 -> 2014-06-30 | Z19: 2015-06-30 | AA19: 2016-06-30 | AB19: 2017-06-30 | AC19: 2018-06-30 | AD19: 2019-06-30 | AE19: 2020-06-30 | AF19: 2021-06-30 | AG19: 2022-06-30 | AH19: 2023-06-30 | AI19: 2024-06-30
A20: =ROW() -> 20 | D20: June CPI All Groups, 8 Capital Cities - (Pre-2012 index) | I20: =J20/(1+J21) -> 122.3 | J20: 126.2 | K20: 133.8 | L20: 137.6 | M20: 141.3 | N20: 144.8 | O20: 148.4 | P20: 154.3 | Q20: 157.5 | R20: 164.6 | S20: 167 | T20: 172.1 | U20: 178.3 | V20: 180.4 | AC20: 113 | AD20: 114.8
A21: =ROW() -> 21 | D21: June inflation All Groups, 8 Capital Cities - (Pre-2012 index) | J21: 0.03188879804 | K21: 0.06022187005 | L21: 0.02840059791 | M21: 0.02688953488 | N21: 0.02476999292 | O21: 0.02486187845 | P21: 0.0397574124 | Q21: 0.02073882048 | R21: 0.04507936508 | S21: 0.01458080194 | T21: =T20/S20-1 -> 0.03053892216 | U21: =U20/T20-1 -> 0.03602556653 | V21: =V20/U20-1 -> 0.01177790241
A22: =ROW() -> 22 | D22: June CPI All Groups, 8 Capital Cities - published Mar-2014 | I22: =J22/(1+J21) -> 68.03058637 | J22: 70.2 | K22: 74.5 | L22: 76.6 | M22: 78.6 | N22: 80.6 | O22: 82.6 | P22: 85.9 | Q22: 87.7 | R22: 91.6 | S22: 92.9 | T22: 95.8 | U22: 99.2 | V22: 100.4 | W22: 102.8 | X22: 105.9 | Y22: =X22 -> 105.9 | Z22: 107.5 | AA22: 108.6 | AB22: 110.7 | AC22: 113 | AD22: 114.8 | AE22: 114.4 | AF22: 118.8 | AG22: 126.1 | AH22: =AG22*(1+AH23) -> 129.6308 | AI22: =AH22*(1+AI23) -> 132.8067546
A23: =ROW() -> 23 | D23: June inflation All Groups, 8 Capital Cities - (Sep-2012 base index) | J23: =J22/I22-1 -> 0.03188879804 | K23: =K22/J22-1 -> 0.06125356125 | L23: =L22/K22-1 -> 0.02818791946 | M23: =M22/L22-1 -> 0.02610966057 | N23: =N22/M22-1 -> 0.02544529262 | O23: =O22/N22-1 -> 0.02481389578 | P23: =P22/O22-1 -> 0.03995157385 | Q23: =Q22/P22-1 -> 0.02095459837 | R23: =R22/Q22-1 -> 0.04446978335 | S23: 0.01419213974 | T23: 0.03121636168 | U23: =U22/T22-1 -> 0.03549060543 | V23: 0.01209677419 | W23: =W22/V22-1 -> 0.02390438247 | X23: 0.03015564202 | Y23: =X23 -> 0.03015564202 | Z23: =Z22/Y22-1 -> 0.01510859301 | AA23: =AA22/Z22-1 -> 0.01023255814 | AB23: =AB22/AA22-1 -> 0.01933701657 | AC23: =AC22/AB22-1 -> 0.02077687444 | AD23: 0.01592920354 | AE23: =AE22/AD22-1 -> -0.003484320557 | AF23: =AF22/AE22-1 -> 0.03846153846 | AG23: =AG22/AF22-1 -> 0.06144781145 | AH23: 0.028 | AI23: 0.0245
A24: =ROW() -> 24
A25: =ROW() -> 25 | C25: Inflation to be used in tariff variation calculations | W25: Actual | X25: Actual | Y25: Actual | Z25: Actual | AA25: Actual | AB25: Actual | AC25: Actual | AD25: Actual | AE25: Actual | AF25: Actual | AG25: Forecast | AH25: Forecast | AI25: Forecast | AJ25: Forecast | AK25: Forecast | AL25: Forecast | AM25: Forecast | AN25: Forecast
C26: CPI: Actual September and Forecast Inflation | AC26: 2018-09-30 | AD26: 2019-09-30
D27: September CPI All Groups, 8 Capital Cities | AC27: 113.5 | AD27: 115.4 | AE27: 116.2 | AF27: 119.7 | AG27: 126.1 | AH27: =AG27*(1+AH28) -> 129.6308 | AI27: =AH27*(1+AI28) -> 132.8067546 | AJ27: =AI27*(1+AJ28) -> 136.1269235 | AK27: 139.5300966 | AL27: 143.018349 | AM27: 146.5938077 | AN27: 150.2586529
D28: September inflation All Groups, 8 Capital Cities | AD28: =AD27/AC27-1 -> 0.01674008811 | AE28: =AE27/AD27-1 -> 0.006932409012 | AF28: =AF27/AE27-1 -> 0.03012048193 | AG28: =AG23 -> 0.06144781145 | AH28: =AH23 -> 0.028 | AI28: 0.0245 | AJ28: 0.025 | AK28: 0.025 | AL28: 0.025 | AM28: 0.025 | AN28: 0.025
C30: Estiamted tariff inflation nominal dolalrs 2023 to 2024
D31: September CPI All Groups, 8 Capital Cities | AI31: =(AG42/AG35-1)+((1+AH43)^0.75)-1 -> 0.05225521706
A34: =ROW() -> 34 | C34: Cumulative inflation index and inflation used in tariff variation calculations | W34: 2013-09-30 | X34: 2014-09-30 | AC34: 2018-09-30 | AD34: 2019-09-30 | AE34: 2020-09-30 | AF34: 2021-09-30 | AG34: 2022-09-30 | AH34: 2023-09-30 | AI34: 2024-09-30 | AJ34: 2025-09-30 | AK34: 2026-09-30 | AL34: 2027-09-30 | AM34: 2028-09-30 | AN34: 2029-09-30
A35: =ROW() -> 35 | D35: September CPI All Groups, 8 Capital Cities | W35: 104 | X35: 106.4035952 | AC35: 113.5 | AD35: 115.4 | AE35: 116.2 | AF35: =AF27 -> 119.7 | AG35: 128.4 | AH35: 129.6308 | AI35: 132.8067546 | AJ35: =AJ27 -> 136.1269235 | AK35: 139.5300966 | AL35: 143.018349 | AM35: 146.5938077 | AN35: 150.2586529
A36: =ROW() -> 36 | D36: September inflation All Groups, 8 Capital Cities | X36: =X35/W35-1 -> 0.02311149251 | AD36: =AD35/AC35-1 -> 0.01674008811 | AE36: =AE28 -> 0.006932409012 | AF36: =AF28 -> 0.03012048193 | AG36: =IF(AG35="","",AG35/AF35-1) -> 0.07268170426 | AH36: 0.009585669782 | AI36: 0.0245 | AJ36: =AJ28 -> 0.025 | AK36: =AK28 -> 0.025 | AL36: =IF(AL35="","",AL35/AK35-1) -> 0.025 | AM36: =IF(AM35="","",AM35/AL35-1) -> 0.025 | AN36: =IF(AN35="","",AN35/AM35-1) -> 0.025
A37: =ROW() -> 37
A38: =ROW() -> 38 | I38: Actual | J38: Actual | K38: Actual | L38: Actual | M38: Actual | N38: Actual | O38: Actual | P38: Actual | Q38: Actual | R38: Actual | S38: Actual | T38: Actual | U38: Actual | V38: Actual | W38: Actual | X38: Actual | Y38: Actual | Z38: Actual | AA38: Actual | AB38: Actual | AC38: Actual | AD38: Actual | AE38: Actual | AF38: Actual | AG38: Forecast | AH38: Forecast | AI38: Forecast | AJ38: Forecast | AK38: Forecast | AL38: Forecast | AM38: Forecast | AN38: Forecast
A39: =ROW() -> 39 | C39: Actual December and Forecast Inflation | I39: 1999-12-31 | J39: 2000-12-31 | K39: 2001-12-31 | L39: 2002-12-31 | M39: 2003-12-31 | N39: 2004-12-31 | O39: 2005-12-31 | P39: 2006-12-31 | Q39: 2007-12-31 | R39: 2008-12-31 | S39: 2009-12-31 | T39: 2010-12-31 | U39: 2011-12-31 | V39: 2012-12-31 | W39: 2013-12-31 | X39: 2014-12-31 | Y39: =X39 -> 2014-12-31 | Z39: 2015-12-31 | AA39: 2016-12-31 | AB39: 2017-12-31 | AC39: 2018-12-31 | AD39: 2019-12-31 | AE39: 2020-12-31 | AF39: 2021-12-31 | AG39: 2022-12-31 | AH39: 2023-12-31 | AI39: 2024-12-31 | AJ39: 2025-12-31 | AK39: 2026-12-31 | AL39: 2027-12-31 | AM39: 2028-12-31 | AN39: 2029-12-03
A40: =ROW() -> 40 | D40: December CPI All Groups, 8 Capital Cities - (Pre-2012 index) | I40: 124.1 | J40: 131.3 | K40: 135.4 | L40: 139.5 | M40: 142.8 | N40: 146.5 | O40: 150.6 | P40: 155.5 | Q40: 160.1 | R40: 166 | S40: 169.5 | T40: 174 | U40: 179.4
A41: =ROW() -> 41 | D41: December inflation All Groups, 8 Capital Cities - (Pre-2012 index) | J41: 0.05801772764 | K41: 0.03122619954 | L41: 0.03028064993 | M41: 0.02365591398 | N41: 0.02591036415 | O41: 0.02798634812 | P41: 0.03253652058 | Q41: 0.02958199357 | R41: 0.03685196752 | S41: 0.02108433735 | T41: =T40/S40-1 -> 0.02654867257 | U41: =U40/T40-1 -> 0.03103448276
A42: =ROW() -> 42 | D42: December CPI All Groups, 8 Capital Cities | I42: 69.1 | J42: 73.1 | K42: 75.4 | L42: 77.6 | M42: 79.5 | N42: 81.5 | O42: 83.8 | P42: 86.6 | Q42: 89.1 | R42: 92.4 | S42: 94.3 | T42: 96.9 | U42: 99.8 | V42: 102 | W42: 104.8 | X42: 106.6 | Y42: =X42 -> 106.6 | Z42: 108.4 | AA42: 110 | AB42: 112.1 | AC42: 114.1 | AD42: 116.2 | AE42: 117.2 | AF42: 121.3 | AG42: 130.8 | AH42: =AG42*(1+AH43) -> 136.686 | AI42: 141.128295 | AJ42: =AI42*(1+AJ43) -> 144.8873907 | AK42: =AJ42*(1+AK43) -> 148.7466138 | AL42: =AK42*(1+AL43) -> 152.7086312 | AM42: =AL42*(1+AM43) -> 156.776181 | AN42: =AM42*(1+AN43) -> 160.9520741
A43: =ROW() -> 43 | D43: December inflation All Groups , 8 Capital Cities - (Sep-2012 base index) | J43: =J42/I42-1 -> 0.05788712012 | K43: 0.03146374829 | L43: 0.02917771883 | M43: 0.02448453608 | N43: 0.0251572327 | O43: 0.0282208589 | P43: 0.03341288783 | Q43: 0.02886836028 | R43: 0.03703703704 | S43: 0.02056277056 | T43: =T42/S42-1 -> 0.02757158006 | U43: 0.02992776058 | V43: =V42/U42-1 -> 0.02204408818 | W43: =W42/V42-1 -> 0.02745098039 | X43: =(X42/W42-1) -> 0.01717557252 | Y43: =X43*1+(Y42/W42-1)*0 -> 0.01717557252 | Z43: =Z42/Y42-1 -> 0.01688555347 | AA43: =AA42/Z42-1 -> 0.0147601476 | AB43: =AB42/AA42-1 -> 0.01909090909 | AC43: 0.0178412132 | AD43: =AD42/AC42-1 -> 0.01840490798 | AE43: =AE42/AD42-1 -> 0.008605851979 | AF43: 0.03498293515 | AG43: 0.07831821929 | AH43: 0.045 | AI43: 0.0325 | AJ43: =WACC!AJ28 -> 0.02663601745 | AK43: =WACC!AK28 -> 0.02663601745 | AL43: =WACC!AL28 -> 0.02663601745 | AM43: =WACC!AM28 -> 0.02663601745 | AN43: =WACC!AN28 -> 0.02663601745
A44: =ROW() -> 44
A46: =ROW() -> 46 | C46: Modelled Inflation AA6
A47: =ROW() -> 47 | D47: Selected CPI period | F47: Base period: | G47: =AH47 -> 2023-12-31 | I47: =I39 -> 1999-12-31 | J47: 2000-12-31 | K47: 2001-12-31 | L47: 2002-12-31 | M47: 2003-12-31 | N47: 2004-12-31 | O47: 2005-12-31 | P47: 2006-12-31 | Q47: 2007-12-31 | R47: 2008-12-31 | S47: 2009-12-31 | T47: =T19 -> 2010-06-30 | U47: =U19 -> 2011-06-30 | V47: =V19 -> 2012-06-30 | W47: =W19 -> 2013-06-30 | X47: =X19 -> 2014-06-30 | Y47: =Y39 -> 2014-12-31 | Z47: 2015-12-31 | AA47: 2016-12-31 | AB47: 2017-12-31 | AC47: 2018-12-31 | AD47: 2019-12-31 | AE47: 2020-12-31 | AF47: 2021-12-31 | AG47: 2022-12-31 | AH47: 2023-12-31 | AI47: 2024-12-31 | AJ47: 2025-12-31 | AK47: 2026-12-31 | AL47: 2027-12-31 | AM47: 2028-12-31 | AN47: 2029-12-03
A48: =ROW() -> 48 | D48: CPI | I48: =J48/(J49+1) -> 69.06674058 | J48: 73.07383592 | K48: 75.3556541 | L48: 77.63747228 | M48: 79.47405765 | N48: 81.53325942 | O48: 83.81507761 | P48: 86.5421286 | Q48: 89.10221729 | R48: 92.38580931 | S48: 94.33370288 | T48: 95.78070953 | U48: 99.23126386 | V48: =V22 -> 100.4 | W48: =W22 -> 102.8 | X48: =X22 -> 105.9 | Y48: =Y42 -> 106.6 | Z48: 108.4 | AA48: 110 | AB48: 112.1 | AC48: 114.1 | AD48: 116.2 | AE48: 117.2 | AF48: 121.3 | AG48: 130.8 | AH48: 136.686 | AI48: 141.128295 | AJ48: 144.8873907 | AK48: 148.7466138 | AL48: 152.7086312 | AM48: 156.776181 | AN48: 160.9520741
A49: =ROW() -> 49 | D49: Inflation | J49: =J$41 -> 0.05801772764 | K49: =K$41 -> 0.03122619954 | L49: 0.03028064993 | M49: 0.02365591398 | N49: 0.02591036415 | O49: 0.02798634812 | P49: 0.03253652058 | Q49: 0.02958199357 | R49: 0.03685196752 | S49: 0.02108433735 | T49: =T$20/S$40-1 -> 0.01533923304 | U49: =U$21 -> 0.03602556653 | V49: =V$21 -> 0.01177790241 | W49: =W48/V48-1 -> 0.02390438247 | X49: 0.03015564202 | Y49: 0.006610009443 | Z49: 0.01688555347 | AA49: 0.0147601476 | AB49: 0.01909090909 | AC49: 0.0178412132 | AD49: 0.01840490798 | AE49: =AE48/AD48-1 -> 0.008605851979 | AF49: =AF48/AE48-1 -> 0.03498293515 | AG49: =AG48/AF48-1 -> 0.07831821929 | AH49: =AH48/AG48-1 -> 0.045 | AI49: =AI48/AH48-1 -> 0.0325 | AJ49: =AJ48/AI48-1 -> 0.02663601745 | AK49: =AK48/AJ48-1 -> 0.02663601745 | AL49: =AL48/AK48-1 -> 0.02663601745 | AM49: =AM48/AL48-1 -> 0.02663601745 | AN49: =AN48/AM48-1 -> 0.02663601745
A50: Financial Parameters
A51: =ROW() -> 51 | C51: Inflation factor | L51: Actual 1 | Q51: Actual 2 | V51: Actual 3 | AA51: Actual 4 | AD51: Forecast | AG51: Forecast | AL51: Forecast
A52: =ROW() -> 52 | D52: ="Inflation Factor (convert to real "&$G$52&" $)" -> Inflation Factor (convert to real 31/12/2023 $) | F52: Real $ at | G52: =TEXT($G$47,"dd/mm/yyyy") -> 31/12/2023 | I52: =HLOOKUP($G$47,$I$47:$AI$48,2,FALSE)/I$48 -> 1.979042284 | J52: 1.870519021 | K52: 1.813878489 | L52: 1.760567365 | M52: 1.719881985 | N52: 1.676444692 | O52: 1.630804432 | P52: 1.579415739 | Q52: 1.534035899 | R52: 1.479512936 | S52: 1.448962522 | T52: 1.427072327 | U52: 1.377448948 | V52: 1.361414343 | W52: 1.32963035 | X52: 1.290708215 | Y52: 1.282232645 | Z52: 1.260940959 | AA52: 1.2426 | AB52: 1.219322034 | AC52: 1.197949167 | AD52: 1.176299484 | AE52: 1.166262799 | AF52: 1.126842539 | AG52: 1.045 | AH52: 1 | AI52: 0.9685230024 | AJ52: 0.9433947241 | AK52: 0.9189183976 | AL52: 0.8950771081 | AM52: 0.8718543797 | AN52: 0.8492341636
A53: =ROW() -> 53 | D53: ="Inflation Factor (convert " &$G$52& " $ to nominal $)" -> Inflation Factor (convert 31/12/2023 $ to nominal $) | I53: =1/I52 -> 0.5052949137 | J53: 0.5346109764 | K53: 0.5513048454 | L53: 0.5679987145 | M53: 0.5814352432 | N53: 0.5965004421 | O53: 0.6131943111 | P53: 0.6331455204 | Q53: 0.6518752271 | R53: 0.6758981118 | S53: 0.6901489756 | T53: =1/T52 -> 0.7007353316 | U53: =1/U52 -> 0.7259797189 | V53: 0.7345302372 | W53: 0.7520887289 | X53: 0.7747684474 | Y53: 0.7798896741 | Z53: 0.7930585429 | AA53: 0.8047642041 | AB53: 0.8201278843 | AC53: 0.8347599608 | AD53: 0.850123641 | AE53: =1/AE52 -> 0.8574396793 | AF53: 0.887435436 | AG53: 0.956937799 | AH53: 1 | AI53: 1.0325 | AJ53: =1/AJ52 -> 1.060001688 | AK53: 1.088235911 | AL53: 1.117222182 | AM53: 1.146980532 | AN53: 1.177531525
A54: =ROW() -> 54 | C54: Real Pre-tax WACC | L54: Approved 1 | Q54: Approved 2 | V54: Actual 3 | AA54: Actual 4 | AD54: Forecast | AG54: Forecast | AL54: Forecast
A55: =ROW() -> 55 | D55: WACC | J55: =WACC!I35 -> 0.07528300436 | K55: =J55 -> 0.07528300436 | L55: =K55 -> 0.07528300436 | M55: =L55 -> 0.07528300436 | N55: =M55 -> 0.07528300436 | O55: =WACC!O35 -> 0.0678 | P55: =O55 -> 0.0678 | Q55: =P55 -> 0.0678 | R55: =Q55 -> 0.0678 | S55: =R55 -> 0.0678 | T55: =(1+U55)^(T$8/365)-1 -> 0.03770024064 | U55: =WACC!$W$35 -> 0.07748248758 | V55: =U55 -> 0.07748248758 | W55: =V55 -> 0.07748248758 | X55: =W55 -> 0.07748248758
A56: =ROW() -> 56 | D56: Discounting Factor | J56: =K56*(1+J55) -> 1.868846251 | K56: 1.738004082 | L56: 1.61632247 | M56: 1.503160065 | N56: 1.397920416 | O56: 1.300048834 | P56: 1.217502186 | Q56: 1.14019684 | R56: 1.0678 | S56: 1 | T56: =S56/(1+T55) -> 0.9636694306 | U56: =T56/(1+U55) -> 0.8943713162 | V56: =U56/(1+V55) -> 0.8300564756 | W56: =V56/(1+W55) -> 0.7703665583 | X56: =W56/(1+X55) -> 0.714968983
A57: =ROW() -> 57 | C57: Real Post Tax WACC
A58: =ROW() -> 58 | D58: WACC | T58: =(1+U58)^(T$8/365)-1 -> 0.03205745465 | U58: =WACC!$W$38 -> 0.06569980507 | V58: =U58 -> 0.06569980507 | W58: =V58 -> 0.06569980507 | X58: =W58 -> 0.06569980507 | Y58: =(1+WACC!Y$38)^Y$9-1 -> 0.0198101078 | Z58: =WACC!Z$38 -> 0.04010991168 | AA58: =WACC!AA$38 -> 0.04010991168 | AB58: =WACC!AB$38 -> 0.04010991168 | AC58: =WACC!AC$38 -> 0.04010991168 | AD58: =WACC!AD$38 -> 0.04071768675 | AE58: =WACC!AE$38 -> 0.02981411904 | AF58: =WACC!AE$38 -> 0.02981411904 | AG58: =WACC!AF$38 -> 0.02965097884 | AH58: =WACC!AG$38 -> 0.02877545976 | AI58: =WACC!AH$38 -> 0.02831322919 | AJ58: =WACC!AJ$38 -> 0.04543740663 | AK58: =WACC!AJ$38 -> 0.04543740663 | AL58: =WACC!AK$38 -> 0.04543740663 | AM58: =WACC!AL$38 -> 0.04543740663 | AN58: =WACC!AM$38 -> 0.04543740663
A59: =ROW() -> 59 | D59: Discounting Factor | T59: =1/(1+T58) -> 0.9689383043 | U59: =T59/(1+U58) -> 0.9092037923 | V59: =U59/(1+V58) -> 0.8531518801 | W59: =V59/(1+W58) -> 0.8005555374 | X59: =W59/(1+X58) -> 0.7512017301 | Y59: =1/(1+Y58) -> 0.9805747093 | Z59: =Y59/(1+Z58) -> 0.9427606624 | AA59: =Z59/(1+AA58) -> 0.9064048442 | AB59: =AA59/(1+AB58) -> 0.8714510207 | AC59: =AB59/(1+AC58) -> 0.8378451267 | AD59: =AC59/(1+AD58) -> 0.8050647523 | AE59: =1/(1+AE58) -> 0.9710490287 | AF59: =AE59/(1+AF58) -> 0.9429362161 | AG59: =AF59/(1+AG58) -> 0.9157823723 | AH59: =AG59/(1+AH58) -> 0.8901673962 | AI59: =AH59/(1+AI58) -> 0.8656578278 | AJ59: =1/(1+AJ58) -> 0.9565374203 | AK59: =AJ59/(1+AK58) -> 0.9149638364 | AL59: =AK59/(1+AL58) -> 0.8751971477 | AM59: =AL59/(1+AM58) -> 0.8371588219 | AN59: =AM59/(1+AN58) -> 0.8007737399
A60: =ROW() -> 60 | C60: Nominal Post Tax WACC
A61: =ROW() -> 61 | D61: WACC | T61: =(1+U61)^(T$8/365)-1 -> 0.04527784254 | U61: =WACC!$W$37 -> 0.093408 | V61: =U61 -> 0.093408 | W61: =V61 -> 0.093408 | X61: =W61 -> 0.093408 | Y61: =(1+WACC!Y$37)^Y$9-1 -> 0.02953234787 | Z61: =WACC!Z$37 -> 0.059872 | AA61: =WACC!AA$37 -> 0.059872 | AB61: =WACC!AB$37 -> 0.059872 | AC61: =WACC!AC$37 -> 0.059872 | AD61: =WACC!AD$37 -> 0.059872 | AE61: =WACC!AE$37 -> 0.041554 | AF61: =WACC!AE$37 -> 0.041554 | AG61: =WACC!AF$37 -> 0.041389 | AH61: =WACC!AG$37 -> 0.0405035 | AI61: =WACC!AH$37 -> 0.040036 | AJ61: =WACC!AJ$37 -> 0.07328369564 | AK61: =WACC!AJ$37 -> 0.07328369564 | AL61: =WACC!AK$37 -> 0.07328369564 | AM61: =WACC!AL$37 -> 0.07328369564 | AN61: =WACC!AM$37 -> 0.07328369564
A62: =ROW() -> 62 | D62: Discounting Factor | T62: =1/(1+T61) -> 0.9566834379 | U62: =T62/(1+U61) -> 0.8749555865 | V62: =U62/(1+V61) -> 0.8002096075 | W62: =V62/(1+W61) -> 0.7318490513 | X62: =W62/(1+X61) -> 0.6693284221 | Y62: =1/(1+Y61) -> 0.9713147936 | Z62: =Y62/(1+Z61) -> 0.9164453761 | AA62: =Z62/(1+AA61) -> 0.8646755231 | AB62: =AA62/(1+AB61) -> 0.8158301409 | AC62: =AB62/(1+AC61) -> 0.7697440266 | AD62: =AC62/(1+AD61) -> 0.7262613095 | AE62: =1/(1+AE61) -> 0.9601038448 | AF62: =AE62/(1+AF61) -> 0.9217993929 | AG62: =AF62/(1+AG61) -> 0.8851633663 | AH62: =AG62/(1+AH61) -> 0.8507067648 | AI62: =AH62/(1+AI61) -> 0.8179589599 | AJ62: =1/(1+AJ61) -> 0.9317201072 | AK62: =AJ62/(1+AK61) -> 0.8681023582 | AL62: =AK62/(1+AL61) -> 0.8088284223 | AM62: =AL62/(1+AM61) -> 0.7536017044 | AN62: =AM62/(1+AN61) -> 0.7021458608
A63: =ROW() -> 63
A64: Assets Life
A65: =ROW() -> 65 | J65: 1999-2013/14 | Y65: Capex from Jun-2014 onwards | Z65: Capex from 2020 onwards | AB65: Capex up to Dec-2007 | AC65: Capex from 2008 Onwards | AD65: Capex from 2020 Onwards
A66: =ROW() -> 66 | C66: Asset Life for new Capex (years) | J66: Economic Life | Y66: Economic Life | Z66: Economic Life | AB66: Tax Asset Life | AC66: Tax Asset Life | AD66: Tax Asset Life
A67: =ROW() -> 67 | D67: High Pressure Mains - Steel | J67: 120 | Y67: 80 | Z67: =Y67 -> 80 | AB67: 20 | AC67: 20 | AD67: 20
A68: =ROW() -> 68 | D68: High Pressure Mains - PE | J68: 120 | Y68: 60 | Z68: =Y68 -> 60 | AB68: 20 | AC68: 20 | AD68: 20
A69: =ROW() -> 69 | D69: Medium Pressure Mains | J69: 60 | Y69: 60 | Z69: 60 | AB69: 20 | AC69: 20 | AD69: 20
A70: =ROW() -> 70 | D70: Medium / Low Pressure Mains | J70: 60 | Y70: 60 | Z70: 60 | AB70: 20 | AC70: 20 | AD70: 20
A71: =ROW() -> 71 | D71: Low Pressure Mains | J71: 60 | Y71: 60 | Z71: 60 | AB71: 20 | AC71: 20 | AD71: 20
A72: =ROW() -> 72 | D72: Regulators | J72: 40 | Y72: 40 | Z72: 40 | AB72: 40 | AC72: 40 | AD72: 20
A73: =ROW() -> 73 | D73: Secondary Gate Stations | J73: 40 | Y73: 40 | Z73: 40 | AB73: 40 | AC73: 40 | AD73: 20
A74: =ROW() -> 74 | D74: Buildings | J74: 40 | Y74: 40 | Z74: 40 | AB74: 40 | AC74: 40 | AD74: 40
A75: =ROW() -> 75 | D75: Meter and Services Pipes | J75: 25 | Y75: 25 | Z75: 25 | AB75: 25 | AC75: 15 | AD75: 15
A76: =ROW() -> 76 | D76: Equipment & Vehicles | J76: 10 | Y76: 10 | Z76: 10 | AB76: 10 | AC76: 10 | AD76: 10
A77: =ROW() -> 77 | D77: Vehicle | J77: 10 | Y77: 10 | Z77: =Y77 -> 10 | AB77: 10 | AC77: 10 | AD77: 10
A78: =ROW() -> 78 | D78: Information Technology | J78: 5 | Y78: 5 | Z78: 5 | AB78: 4 | AC78: 4 | AD78: 5
A79: =ROW() -> 79 | D79: Telemetry and Monitoring | J79: 10 | Y79: 10 | Z79: 10 | AB79: 10 | AC79: 10 | AD79: 10
A80: =ROW() -> 80 | D80: FRC | J80: 5 | Y80: 5 | Z80: 5 | AB80: 4 | AC80: 4 | AD80: 4
A81: =ROW() -> 81 | D81: Land | J81: 0 | Y81: 0 | Z81: 0 | AB81: 0 | AC81: 0 | AD81: 0
A82: =ROW() -> 82 | D82: Equity Raising Cost | J82: =SUMPRODUCT($J$67:$J$80,Asset!$Y$55:$Y$68)/SUM(Asset!$Y$55:$Y$68) -> 65.84277447 | Y82: =J82 -> 65.84277447 | Z82: =SUMPRODUCT($Z$67:$Z$80,Asset!$AE$55:$AE$68)/SUM(Asset!$AE$55:$AE$68) -> 53.69138079 | AB82: 5 | AC82: 5 | AD82: 5
A83: Initial Capital Base | N83: ICB as at 31/12/2004 | S83: ICB as at 31/12/2009
A84: =ROW() -> 84 | C84: Initial Capital Base | F84: Life 31/12/98 | G84: BT E&Y Tax Asset Life 31/12/1998 | I84: Initial Value at 1999 m$ 31/12/99 | M84: ="Initial Value at 1999 m$ 31/12/04" -> Initial Value at 1999 m$ 31/12/04 | N84: WDV in 2004 m$ 31/12/04 | O84: Over depreciation correction | R84: ="Initial Value at 1999 m$ 31/12/09" -> Initial Value at 1999 m$ 31/12/09 | S84: WDV in 2004 m$ 31/12/09 | T84: Over depreciation correction | W84: ="Initial Value at 1999 m$ "&$G$52 -> Initial Value at 1999 m$ 31/12/2023 | X84: ="WDV in 2004 m$ "&$G$52 -> WDV in 2004 m$ 31/12/2023 | Y84: Over depreciation correction
A85: =ROW() -> 85 | D85: High Pressure Mains - Steel | F85: 106 | G85: 106 | I85: 149.0525001 | M85: =I85*$I$52/$N$52 -> 175.9564163 | N85: 167.7680127 | O85: 0 | R85: =M85*$N$52/$S$52 -> 203.5809732 | S85: 194.1070181 | T85: =O85*$N$52 -> 0 | W85: =R85*$S$52/$AH$52 -> 294.9812002 | X85: =N85*$N$52 -> 281.2537945 | Y85: =O85*$N$52 -> 0
A86: =ROW() -> 86 | D86: High Pressure Mains - PE | F86: 106 | M86: =I86*$I$52/$N$52 -> 0 | R86: =M86*$N$52/$S$52 -> 0 | T86: =O86*$N$52 -> 0 | W86: 0 | X86: =N86*$N$52 -> 0 | Y86: 0
A87: =ROW() -> 87 | D87: Medium Pressure Mains | F87: 51 | G87: 51 | I87: 176.9970506 | M87: 208.944947 | N87: 188.6930491 | O87: 0 | R87: 241.7485905 | S87: 218.3172139 | T87: =O87*$N$52 -> 0 | W87: 350.2846473 | X87: 316.3334607 | Y87: 0
A88: =ROW() -> 88 | D88: Medium / Low Pressure Mains | F88: 41 | G88: 41 | I88: 96.15873274 | M88: 113.5153453 | N88: 99.14965429 | O88: 0 | R88: 131.336867 | S88: 114.7158116 | T88: =O88*$N$52 -> 0 | W88: 190.302198 | X88: 166.2189117 | Y88: 0
A89: =ROW() -> 89 | D89: Low Pressure Mains | F89: 33 | G89: 33 | I89: 27.7917523 | M89: 32.80815239 | N89: 27.64155259 | O89: -0.5911241171 | R89: 37.95892035 | S89: 31.98118201 | T89: -0.683928586 | W89: 55.00105294 | X89: 46.33953413 | Y89: -0.9909868885
A90: =ROW() -> 90 | D90: Regulators | F90: 28 | G90: 28 | I90: 9.716025086 | M90: 11.4697637 | N90: 9.535022566 | O90: 0 | R90: 13.27047745 | S90: 11.03198857 | T90: 0 | W90: 19.22842447 | X90: 15.98493797 | Y90: 0
A91: =ROW() -> 91 | D91: Secondary Gate Stations | F91: 25 | G91: 25 | I91: 1.972158078 | M91: 2.328131817 | N91: 1.837078987 | O91: -0.04208879663 | R91: 2.693640566 | S91: 2.125494118 | T91: -0.04869659406 | W91: 3.902984227 | X91: 3.079761317 | Y91: -0.07055953972
A92: =ROW() -> 92 | D92: Buildings | F92: 24 | G92: 24 | I92: 1.739642739 | M92: 2.053647553 | N92: 1.601656344 | O92: 0 | R92: 2.376063209 | S92: 1.853110923 | T92: 0 | W92: 3.442826539 | X92: 2.685088276 | Y92: 0
A93: =ROW() -> 93 | D93: Meter and Services Pipes | F93: 11 | G93: 11 | I93: 52.79515012 | M93: 62.32465345 | N93: 35.72045608 | O93: 0 | R93: 72.10941132 | S93: 41.32844578 | T93: 0 | W93: 104.4838345 | X93: 59.88336901 | Y93: 0
A94: =ROW() -> 94 | D94: Equipment & Vehicles | F94: 11 | G94: 6 | I94: 15.06392605 | M94: 17.78295863 | N94: 2.494216868 | O94: -5.384402837 | R94: 20.57482245 | S94: 2.885800404 | T94: -6.229735706 | W94: 29.81214661 | X94: 4.18141663 | Y94: -9.026653557
A95: =ROW() -> 95 | D95: Vehicle | F95: 11 | M95: 0 | R95: 0 | S95: 0 | T95: =O95*$N$52 -> 0 | W95: 0 | X95: 0 | Y95: 0
A96: =ROW() -> 96 | D96: Information Technology | F96: 6 | I96: 0 | M96: 0 | N96: 0 | O96: 0 | R96: 0 | S96: 0 | T96: 0 | W96: 0 | X96: 0 | Y96: 0
A97: =ROW() -> 97 | D97: Telemetry and Monitoring | F97: 0 | I97: 0 | M97: =I97*$I$52/$N$52 -> 0 | N97: 0 | O97: 0 | R97: =M97*$N$52/$S$52 -> 0 | S97: 0 | T97: 0 | W97: 0 | X97: =N97*$N$52 -> 0 | Y97: =O97*$N$52 -> 0
A98: =ROW() -> 98 | D98: FRC | F98: 6 | I98: 0 | M98: 0 | N98: 0 | O98: 0 | R98: 0 | S98: 0 | T98: 0 | W98: 0 | X98: 0 | Y98: 0
A99: =ROW() -> 99 | D99: Land | F99: 0 | I99: 4.470241902 | M99: =I99*$I$52/$N$52 -> 5.277118764 | N99: 5.277118764 | O99: 0 | R99: =M99*$N$52/$S$52 -> 6.105608399 | S99: 6.105608399 | T99: 0 | W99: 8.846797742 | X99: =N99*$N$52 -> 8.846797742 | Y99: =O99*$N$52 -> 0
A100: =ROW() -> 100 | D100: Equity Raising Cost | F100: 0 | M100: 0 | O100: 0 | R100: 0 | T100: 0 | W100: 0 | X100: 0 | Y100: 0
A101: =ROW() -> 101 | D101: Total | I101: =SUM(I85:I100) -> 535.7571798 | M101: =SUM(M85:M100) -> 632.4611349 | N101: =SUM(N85:N100) -> 539.7178184 | O101: =SUM(O85:O100) -> -6.017615751 | R101: =SUM(R85:R100) -> 731.7553745 | S101: =SUM(S85:S100) -> 624.4516738 | T101: =SUM(T85:T100) -> -6.962360886 | U101: =M101*N52 -> 1060.286113 | W101: =SUM(W85:W100) -> 1060.286113 | X101: =SUM(X85:X100) -> 904.8070719 | Y101: =SUM(Y85:Y100) -> -10.08819999
A102: =ROW() -> 102 | M102: =M101-N102 -> 539.7178184 | N102: =SUM(J406:N406) -> 92.74331652 | O102: =N102*N52 -> 155.4790407 | W102: checked to ATCO model
A103: Vines, New Assets
A104: =ROW() -> 104 | C104: CAPEX | P104: Life at 31/12/09 | Q104: Tax Asset Life at 31/12/09 | R104: m$ 31/12/09 | S104: ="m$ "&TEXT($G$52,"d/m/yy") -> m$ 31/12/23
A105: =ROW() -> 105 | D105: High Pressure Mains - Steel | P105: 0 | Q105: 0 | R105: 0 | S105: =R105*$S$52 -> 0
A106: =ROW() -> 106 | D106: High Pressure Mains - PE | P106: 0 | Q106: 0 | R106: 0 | S106: =R106*$S$52 -> 0
A107: =ROW() -> 107 | D107: Medium Pressure Mains | P107: 0 | Q107: 0 | R107: 0 | S107: 0
A108: =ROW() -> 108 | D108: Medium / Low Pressure Mains | P108: 50.34 | Q108: =$AC70-($J70-P108)-1 -> 9.34 | R108: 0.426991 | S108: 0.6186939561
A109: =ROW() -> 109 | D109: Low Pressure Mains | P109: 0 | Q109: 0 | R109: 0 | S109: 0
A110: =ROW() -> 110 | D110: Regulators | P110: 0 | Q110: 0 | R110: 0 | S110: 0
A111: =ROW() -> 111 | D111: Secondary Gate Stations | P111: 0 | Q111: 0 | R111: 0 | S111: 0
A112: =ROW() -> 112 | D112: Buildings | P112: 0 | Q112: 0 | R112: 0 | S112: 0
A113: =ROW() -> 113 | D113: Meter and Services Pipes | P113: 15.34 | Q113: =$AC75-($J75-P113)-1 -> 4.34 | R113: 0.152832 | S113: 0.2214478401
A114: =ROW() -> 114 | D114: Equipment & Vehicles | P114: 0 | Q114: 0 | R114: 0 | S114: 0
A115: =ROW() -> 115 | D115: Vehicle | P115: 0 | Q115: 0 | S115: 0
A116: =ROW() -> 116 | D116: Information Technology | P116: 0 | Q116: 0 | R116: 0 | S116: 0
A117: =ROW() -> 117 | D117: Telemetry and Monitoring | P117: 0 | Q117: 0 | R117: 0 | S117: =R117*$S$52 -> 0
A118: =ROW() -> 118 | D118: FRC | P118: 0 | Q118: 0 | R118: 0 | S118: 0
A119: =ROW() -> 119 | D119: Land | P119: 0 | Q119: 0 | R119: 0 | S119: 0
A120: =ROW() -> 120 | D120: Equity Raising Cost | P120: 0 | Q120: 0 | R120: 0 | S120: 0
A121: =ROW() -> 121 | D121: Total | R121: =SUM(R105:R120) -> 0.579823 | S121: =SUM(S105:S120) -> 0.8401417962 | X121: =SUM(X105:X120) -> 0
A122: West Net Energy, New Assets
A123: =ROW() -> 123 | C123: CAPEX | R123: Life 30/06/10 | S123: Tax Asset Life at 30/6/10 | T123: m$ 30/6/10 | U123: ="m$ "&TEXT($G$52,"d/m/yy") -> m$ 31/12/23
A124: =ROW() -> 124 | D124: High Pressure Mains - Steel | R124: 0 | S124: 0 | T124: 0
A125: =ROW() -> 125 | D125: High Pressure Mains - PE | R125: 0 | S125: 0 | T125: 0
A126: =ROW() -> 126 | D126: Medium Pressure Mains | R126: 0 | S126: 0 | T126: 0
A127: =ROW() -> 127 | D127: Medium / Low Pressure Mains | R127: 0 | S127: 0 | T127: 0
A128: =ROW() -> 128 | D128: Low Pressure Mains | R128: 0 | S128: 0 | T128: 0
A129: =ROW() -> 129 | D129: Regulators | R129: 0 | S129: 0 | T129: 0
A130: =ROW() -> 130 | D130: Secondary Gate Stations | R130: 0 | S130: 0 | T130: 0
A131: =ROW() -> 131 | D131: Buildings | R131: 35.09881279 | S131: =$AC74-($J74-R131)-0.5 -> 34.59881279 | T131: =0.0130522132542073 -> 0.01305221325 | U131: =T131*$T$52 -> 0.01862645234
A132: =ROW() -> 132 | D132: Meter and Services Pipes | R132: 0 | S132: 0 | T132: 0
A133: =ROW() -> 133 | D133: Equipment & Vehicles | R133: 6.536661454 | S133: =$AC76-($J76-R133)-0.5 -> 6.036661454 | T133: =2.88462274182994 -> 2.884622742 | U133: =T133*$T$52 -> 4.116565288
A134: =ROW() -> 134 | D134: Vehicle | R134: 0 | S134: 0 | T134: 0
A135: =ROW() -> 135 | D135: Information Technology | R135: 4.021920327 | S135: =$AC78-($J78-R135)-0.5 -> 2.521920327 | T135: =0.104081321679867 -> 0.1040813217 | U135: =T135*$T$52 -> 0.1485315739
A136: =ROW() -> 136 | D136: Telemetry and Monitoring | R136: 0 | S136: 0 | T136: 0
A137: =ROW() -> 137 | D137: FRC | R137: 0 | S137: 0 | T137: 0
A138: =ROW() -> 138 | D138: Land | R138: 0 | S138: 0 | T138: 0
A139: =ROW() -> 139 | D139: Equity Raising Cost | R139: 0 | S139: 0 | T139: 0
A140: =ROW() -> 140 | D140: Total | T140: =SUM(T124:T139) -> 3.001756277 | U140: =SUM(U124:U139) -> 4.283723314 | Y140: =SUM(Y124:Y139) -> 0
A141: Redundant Assets (ICB) and accelerated depreciation
A142: =ROW() -> 142 | C142: Redundant Asset | O142: Actual 2 [m$ 30/6/2014] | T142: Actual 3 [m$ 30/6/2014] | Z142: Actual 4 [m$ 31/12/2019] | AD142: Forecast [m$ 31/12/2019] | AG142: Forecast 5 [m$ 31/12/2019] | AL142: Forecast 5 [m$ 31/12/2023]
A143: =ROW() -> 143 | D143: High Pressure Mains - Steel | AJ143: 16 | AK143: 16 | AL143: 16 | AM143: 16 | AN143: 16
A144: =ROW() -> 144 | D144: High Pressure Mains - PE | AJ144: 0 | AK144: 0 | AL144: 0 | AM144: 0 | AN144: 0
A145: =ROW() -> 145 | D145: Medium Pressure Mains | AJ145: 0 | AK145: 0 | AL145: 0 | AM145: 0 | AN145: 0
A146: =ROW() -> 146 | D146: Medium / Low Pressure Mains | AJ146: 0 | AK146: 0 | AL146: 0 | AM146: 0 | AN146: 0
A147: =ROW() -> 147 | D147: Low Pressure Mains | AJ147: 0 | AK147: 0 | AL147: 0 | AM147: 0 | AN147: 0
A148: =ROW() -> 148 | D148: Regulators | AJ148: 0 | AK148: 0 | AL148: 0 | AM148: 0 | AN148: 0
A149: =ROW() -> 149 | D149: Secondary Gate Stations | AJ149: 0 | AK149: 0 | AL149: 0 | AM149: 0 | AN149: 0
A150: =ROW() -> 150 | D150: Buildings | AJ150: 0 | AK150: 0 | AL150: 0 | AM150: 0 | AN150: 0
A151: =ROW() -> 151 | D151: Meter and Services Pipes | AJ151: 0 | AK151: 0 | AL151: 0 | AM151: 0 | AN151: 0
A152: =ROW() -> 152 | D152: Equipment & Vehicles | AJ152: 0 | AK152: 0 | AL152: 0 | AM152: 0 | AN152: 0
A153: =ROW() -> 153 | D153: Vehicle | AJ153: 0 | AK153: 0 | AL153: 0 | AM153: 0 | AN153: 0
A154: =ROW() -> 154 | D154: Information Technology | AJ154: 0 | AK154: 0 | AL154: 0 | AM154: 0 | AN154: 0
A155: =ROW() -> 155 | D155: Telemetry and Monitoring
A156: =ROW() -> 156 | D156: FRC | AJ156: 0 | AK156: 0 | AL156: 0 | AM156: 0 | AN156: 0
A157: =ROW() -> 157 | D157: Land | AJ157: 0 | AK157: 0 | AL157: 0 | AM157: 0 | AN157: 0
A158: =ROW() -> 158 | D158: Equity Raising Cost | AJ158: 0 | AK158: 0 | AL158: 0 | AM158: 0 | AN158: 0
A159: =ROW() -> 159 | D159: Total | AJ159: =SUM(AJ143:AJ158) -> 16 | AK159: 16 | AL159: 16 | AM159: 16 | AN159: 16
A160: Redundant Assets (ICB) and accelerated depreciation
A161: =ROW() -> 161 | C161: Redundant Asset | AL161: Forecast 5 [m$ 31/12/2023]
A162: =ROW() -> 162 | D162: High Pressure Mains - Steel | AJ162: =AJ143*$AH$52 -> 16 | AK162: 16 | AL162: 16 | AM162: 16 | AN162: 16
A163: =ROW() -> 163 | D163: High Pressure Mains - PE | AJ163: 0 | AK163: 0 | AL163: 0 | AM163: 0 | AN163: 0
A164: =ROW() -> 164 | D164: Medium Pressure Mains | AJ164: 0 | AK164: 0 | AL164: 0 | AM164: 0 | AN164: 0
A165: =ROW() -> 165 | D165: Medium / Low Pressure Mains | AJ165: 0 | AK165: 0 | AL165: 0 | AM165: 0 | AN165: 0
A166: =ROW() -> 166 | D166: Low Pressure Mains | AJ166: 0 | AK166: 0 | AL166: 0 | AM166: 0 | AN166: 0
A167: =ROW() -> 167 | D167: Regulators | AJ167: 0 | AK167: 0 | AL167: 0 | AM167: 0 | AN167: 0
A168: =ROW() -> 168 | D168: Secondary Gate Stations | AJ168: 0 | AK168: 0 | AL168: 0 | AM168: 0 | AN168: 0
A169: =ROW() -> 169 | D169: Buildings | AJ169: 0 | AK169: 0 | AL169: 0 | AM169: 0 | AN169: 0
A170: =ROW() -> 170 | D170: Meter and Services Pipes | AJ170: 0 | AK170: 0 | AL170: 0 | AM170: 0 | AN170: 0
A171: =ROW() -> 171 | D171: Equipment & Vehicles | AJ171: 0 | AK171: 0 | AL171: 0 | AM171: 0 | AN171: 0
A172: =ROW() -> 172 | D172: Vehicle | AJ172: =AJ153*$AH$52 -> 0 | AK172: 0 | AL172: 0 | AM172: 0 | AN172: 0
A173: =ROW() -> 173 | D173: Information Technology | AJ173: 0 | AK173: 0 | AL173: 0 | AM173: 0 | AN173: 0
A174: =ROW() -> 174 | D174: Telemetry and Monitoring | AJ174: 0 | AK174: 0 | AL174: 0 | AM174: 0 | AN174: 0
A175: =ROW() -> 175 | D175: FRC | AJ175: 0 | AK175: 0 | AL175: 0 | AM175: 0 | AN175: 0
A176: =ROW() -> 176 | D176: Land | AJ176: 0 | AK176: 0 | AL176: 0 | AM176: 0 | AN176: 0
A177: =ROW() -> 177 | D177: Equity Raising Cost | AJ177: 0 | AK177: 0 | AL177: 0 | AM177: 0 | AN177: 0
A178: =ROW() -> 178 | D178: Total | AJ178: =SUM(AJ162:AJ177) -> 16 | AK178: 16 | AL178: 16 | AM178: 16 | AN178: 16
A179: Asset Disposal (ICB)
A180: =ROW() -> 180 | N180: WAGN Inflation from 2005 to 2009 OD to 31/12/09 | O180: 1.159945318 | P180: 1.10770235 | Q180: 1.074050633 | R180: 1.027861902 | S180: 1.013739546
A181: =ROW() -> 181 | C181: Asset Disposal (ICB) | N181: Using Perth Inflation and (Estim Dec)/(Actual Jun) Adjustment for 2005-2009 | O181: WAGN Actual 2 [m$ 31/12/2009] | T181: Actual 3 [m$ 30/6/2014] | Y181: Actual 4 [m$ 31/12/2019] | AE181: Actual 5 [m$ 31/12/2023] | AH181: Forecast 5 [m$ 31/12/2023] | AL181: Forecast 5 [m$ 31/12/2023]
A182: =ROW() -> 182 | D182: High Pressure Mains - Steel | O182: 0 | P182: 0 | Q182: 0 | R182: 0 | S182: 0 | T182: 0 | U182: 0 | V182: 0 | W182: 0 | X182: 0 | Y182: 0 | Z182: 0 | AA182: 0 | AB182: 0 | AC182: 0 | AD182: 0 | AE182: 0 | AF182: 0 | AG182: 0 | AH182: 0 | AI182: 0 | AJ182: 0 | AK182: 0 | AL182: 0 | AM182: 0 | AN182: 0
A183: =ROW() -> 183 | D183: High Pressure Mains - PE | O183: 0 | P183: 0 | Q183: 0 | R183: 0 | S183: 0 | T183: 0 | U183: 0 | V183: 0 | W183: 0 | X183: 0 | Y183: 0 | Z183: 0 | AA183: 0 | AB183: 0 | AC183: 0 | AD183: 0 | AE183: 0 | AF183: 0 | AG183: 0 | AH183: 0 | AI183: 0 | AJ183: 0 | AK183: 0 | AL183: 0 | AM183: 0 | AN183: 0
A184: =ROW() -> 184 | D184: Medium Pressure Mains | O184: 0 | P184: 0 | Q184: 0 | R184: 0 | S184: 0 | T184: 0 | U184: 0 | V184: 0 | W184: 0 | X184: 0 | Y184: 0 | Z184: 0 | AA184: 0 | AB184: 0 | AC184: 0 | AD184: 0 | AE184: 0 | AF184: 0 | AG184: 0 | AH184: 0 | AI184: 0 | AJ184: 0 | AK184: 0 | AL184: 0 | AM184: 0 | AN184: 0
A185: =ROW() -> 185 | D185: Medium / Low Pressure Mains | O185: 0 | P185: 0 | Q185: 0 | R185: 0 | S185: 0 | T185: 0 | U185: 0 | V185: 0 | W185: 0 | X185: 0 | Y185: 0 | Z185: 0 | AA185: 0 | AB185: 0 | AC185: 0 | AD185: 0 | AE185: 0 | AF185: 0 | AG185: 0 | AH185: 0 | AI185: 0 | AJ185: 0 | AK185: 0 | AL185: 0 | AM185: 0 | AN185: 0
A186: =ROW() -> 186 | D186: Low Pressure Mains | O186: 0 | P186: 0 | Q186: 0 | R186: 0 | S186: 0 | T186: 0 | U186: 0 | V186: 0 | W186: 0 | X186: 0 | Y186: 0 | Z186: 0 | AA186: 0 | AB186: 0 | AC186: 0 | AD186: 0 | AE186: 0 | AF186: 0 | AG186: 0 | AH186: 0 | AI186: 0 | AJ186: 0 | AK186: 0 | AL186: 0 | AM186: 0 | AN186: 0
A187: =ROW() -> 187 | D187: Regulators | O187: 0 | P187: 0 | Q187: 0 | R187: 0 | S187: 0 | T187: 0 | U187: 0 | V187: 0 | W187: 0 | X187: 0 | Y187: 0 | Z187: 0 | AA187: 0 | AB187: 0 | AC187: 0 | AD187: 0 | AE187: 0 | AF187: 0 | AG187: 0 | AH187: 0 | AI187: 0 | AJ187: 0 | AK187: 0 | AL187: 0 | AM187: 0 | AN187: 0
A188: =ROW() -> 188 | D188: Secondary Gate Stations | O188: 0 | P188: 0 | Q188: 0 | R188: 0 | S188: 0 | T188: 0 | U188: 0 | V188: 0 | W188: 0 | X188: 0 | Y188: 0 | Z188: 0 | AA188: 0 | AB188: 0 | AC188: 0 | AD188: 0 | AE188: 0 | AF188: 0 | AG188: 0 | AH188: 0 | AI188: 0 | AJ188: 0 | AK188: 0 | AL188: 0 | AM188: 0 | AN188: 0
A189: =ROW() -> 189 | D189: Buildings | O189: 0 | P189: 0 | Q189: 0 | R189: 0 | S189: 1.042 | T189: 0 | U189: 0 | V189: 0 | W189: 0 | X189: 0 | Y189: 0 | Z189: 0 | AA189: 0 | AB189: 0 | AC189: 0 | AD189: 0 | AE189: 0 | AF189: 0 | AG189: 0 | AH189: 0 | AI189: 0 | AJ189: 0 | AK189: 0 | AL189: 0 | AM189: 0 | AN189: 0
A190: =ROW() -> 190 | D190: Meter and Services Pipes | O190: 0 | P190: 0 | Q190: 0 | R190: 0 | S190: 0 | T190: 0 | U190: 0 | V190: 0 | W190: 0 | X190: 0 | Y190: 0 | Z190: 0 | AA190: 0 | AB190: 0 | AC190: 0 | AD190: 0 | AE190: 0 | AF190: 0 | AG190: 0 | AH190: 0 | AI190: 0 | AJ190: 0 | AK190: 0 | AL190: 0 | AM190: 0 | AN190: 0
A191: =ROW() -> 191 | D191: Equipment & Vehicles | O191: 0 | P191: 0 | Q191: 0 | R191: 0 | S191: 0 | T191: 0 | U191: 0 | V191: 0 | W191: 0 | X191: 0 | Y191: 0 | Z191: 0 | AA191: 0 | AB191: 0 | AC191: 0 | AD191: 0 | AE191: 0 | AF191: 0 | AG191: 0 | AH191: 0 | AI191: 0 | AJ191: 0 | AK191: 0 | AL191: 0 | AM191: 0 | AN191: 0
A192: =ROW() -> 192 | D192: Vehicle | O192: 0 | P192: 0 | Q192: 0 | R192: 0 | S192: 0 | T192: 0 | U192: 0 | V192: 0 | W192: 0 | X192: 0 | Y192: 0 | Z192: 0 | AA192: 0 | AB192: 0 | AC192: 0 | AD192: 0 | AE192: 0 | AF192: 0 | AG192: 0 | AH192: 0 | AI192: 0 | AJ192: 0 | AK192: 0 | AL192: 0 | AM192: 0 | AN192: 0
A193: =ROW() -> 193 | D193: Information Technology | O193: 0 | P193: 0 | Q193: 0 | R193: 0 | S193: 0 | T193: 0 | U193: 0 | V193: 0 | W193: 0 | X193: 0 | Y193: 0 | Z193: 0 | AA193: 0 | AB193: 0 | AC193: 0 | AD193: 0 | AE193: 0 | AF193: 0 | AG193: 0 | AH193: 0 | AI193: 0 | AJ193: 0 | AK193: 0 | AL193: 0 | AM193: 0 | AN193: 0
A194: =ROW() -> 194 | D194: Telemetry and Monitoring
A195: =ROW() -> 195 | D195: FRC | O195: 0 | P195: 0 | Q195: 0 | R195: 0 | S195: 0 | T195: 0 | U195: 0 | V195: 0 | W195: 0 | X195: 0 | Y195: 0 | Z195: 0 | AA195: 0 | AB195: 0 | AC195: 0 | AD195: 0 | AE195: 0 | AF195: 0 | AG195: 0 | AH195: 0 | AI195: 0 | AJ195: 0 | AK195: 0 | AL195: 0 | AM195: 0 | AN195: 0
A196: =ROW() -> 196 | D196: Land | O196: 0 | P196: 0 | Q196: 0 | R196: 0 | S196: 3.428 | T196: 0 | U196: 0 | V196: 0 | W196: 0 | X196: 0 | Y196: 0 | Z196: 0 | AA196: 0 | AB196: 0 | AC196: 0 | AD196: 0 | AE196: 0 | AF196: 0 | AG196: 0 | AH196: 0 | AI196: 0 | AJ196: 0 | AK196: 0 | AL196: 0 | AM196: 0 | AN196: 0
A197: =ROW() -> 197 | D197: Equity Raising Cost | O197: 0 | P197: 0 | Q197: 0 | R197: 0 | S197: 0 | T197: 0 | U197: 0 | V197: 0 | W197: 0 | X197: 0 | Y197: 0 | Z197: 0 | AA197: 0 | AB197: 0 | AC197: 0 | AD197: 0 | AE197: 0 | AF197: 0 | AG197: 0 | AH197: 0 | AI197: 0 | AJ197: 0 | AK197: 0 | AL197: 0 | AM197: 0 | AN197: 0
A198: =ROW() -> 198 | D198: Total | O198: =SUM(O182:O197) -> 0 | P198: 0 | Q198: 0 | R198: 0 | S198: 4.47 | T198: 0 | U198: 0 | V198: 0 | W198: 0 | X198: 0 | Y198: 0 | Z198: 0 | AA198: 0 | AB198: 0 | AC198: 0 | AD198: 0 | AE198: 0 | AF198: 0 | AG198: 0 | AH198: 0 | AI198: 0 | AJ198: 0 | AK198: 0 | AL198: 0 | AM198: 0 | AN198: 0
A199: =ROW() -> 199 | C199: Asset Disposal (ICB) | O199: ="Actual 2 [m$ "&$G$52&"]" -> Actual 2 [m$ 31/12/2023] | T199: ="Actual 3 [m$ "&$G$52&"]" -> Actual 3 [m$ 31/12/2023] | Y199: ="Actual 3 [m$ "&$G$52&"]" -> Actual 3 [m$ 31/12/2023] | AE199: Actual 5 [m$ 31/12/2023] | AH199: Forecast 5 [m$ 31/12/2023] | AL199: Forecast 5 [m$ 31/12/2023]
A200: =ROW() -> 200 | D200: High Pressure Mains - Steel | O200: =O182/$S$180*$S$52 -> 0 | P200: 0 | Q200: 0 | R200: 0 | S200: 0 | T200: =T182*$X$52 -> 0 | U200: 0 | V200: 0 | W200: 0 | X200: 0 | Y200: =Y182*$AD$52 -> 0 | Z200: 0 | AA200: 0 | AB200: 0 | AC200: 0 | AD200: 0 | AE200: =AE182*$AH$52 -> 0 | AF200: 0 | AG200: 0 | AH200: 0 | AI200: 0 | AJ200: 0 | AK200: 0 | AL200: 0 | AM200: 0 | AN200: 0
A201: =ROW() -> 201 | D201: High Pressure Mains - PE | O201: 0 | P201: 0 | Q201: 0 | R201: 0 | S201: 0 | T201: =T183*$X$52 -> 0 | U201: 0 | V201: 0 | W201: 0 | X201: 0 | Y201: 0 | Z201: 0 | AA201: 0 | AB201: 0 | AC201: 0 | AD201: 0 | AE201: =AE183*$AH$52 -> 0 | AF201: 0 | AG201: 0 | AH201: 0 | AI201: 0 | AJ201: 0 | AK201: 0 | AL201: 0 | AM201: 0 | AN201: 0
A202: =ROW() -> 202 | D202: Medium Pressure Mains | O202: 0 | P202: 0 | Q202: 0 | R202: 0 | S202: 0 | T202: =T184*$X$52 -> 0 | U202: 0 | V202: 0 | W202: 0 | X202: 0 | Y202: 0 | Z202: 0 | AA202: 0 | AB202: 0 | AC202: 0 | AD202: 0 | AE202: =AE184*$AH$52 -> 0 | AF202: 0 | AG202: 0 | AH202: 0 | AI202: 0 | AJ202: 0 | AK202: 0 | AL202: 0 | AM202: 0 | AN202: 0
A203: =ROW() -> 203 | D203: Medium / Low Pressure Mains | O203: 0 | P203: 0 | Q203: 0 | R203: 0 | S203: 0 | T203: =T185*$X$52 -> 0 | U203: 0 | V203: 0 | W203: 0 | X203: 0 | Y203: 0 | Z203: 0 | AA203: 0 | AB203: 0 | AC203: 0 | AD203: 0 | AE203: =AE185*$AH$52 -> 0 | AF203: 0 | AG203: 0 | AH203: 0 | AI203: 0 | AJ203: 0 | AK203: 0 | AL203: 0 | AM203: 0 | AN203: 0
A204: =ROW() -> 204 | D204: Low Pressure Mains | O204: 0 | P204: 0 | Q204: 0 | R204: 0 | S204: 0 | T204: =T186*$X$52 -> 0 | U204: 0 | V204: 0 | W204: 0 | X204: 0 | Y204: 0 | Z204: 0 | AA204: 0 | AB204: 0 | AC204: 0 | AD204: 0 | AE204: =AE186*$AH$52 -> 0 | AF204: 0 | AG204: 0 | AH204: 0 | AI204: 0 | AJ204: 0 | AK204: 0 | AL204: 0 | AM204: 0 | AN204: 0
A205: =ROW() -> 205 | D205: Regulators | O205: 0 | P205: 0 | Q205: 0 | R205: 0 | S205: 0 | T205: =T187*$X$52 -> 0 | U205: 0 | V205: 0 | W205: 0 | X205: 0 | Y205: 0 | Z205: 0 | AA205: 0 | AB205: 0 | AC205: 0 | AD205: 0 | AE205: =AE187*$AH$52 -> 0 | AF205: 0 | AG205: 0 | AH205: 0 | AI205: 0 | AJ205: 0 | AK205: 0 | AL205: 0 | AM205: 0 | AN205: 0
... 1584 more rows

Sheet 2019 Capex NGR 77(2)(a)
A1: ERA, GDS Tariff Model, Final Decision, November 2019
A2: Building Block of Total Revenue Required
A3: Ref | C3: =COLUMN() -> 3 | D3: =COLUMN() -> 4 | E3: =COLUMN() -> 5 | F3: =COLUMN() -> 6 | G3: =COLUMN() -> 7 | H3: =COLUMN() -> 8
A4: Inputs
C5: Forecast capex [$m 31/12/2019] | E5: Source ERA FD model AA4 | I5: AA5 FD capex $m 2019 | J5: Actual capex 2019 $M 2019 or nominal same net of disposals | K5: Variance $ 2019 | L5: Benefit adjustment $ 2019 | M5: Benefit adjustment $ 2023
D6: High pressure mains - steel | I6: 2.552879258 | J6: =Input!AD501+Input!AD558 -> 2.3652408 | K6: =J6-I6 -> -0.187638458 | L6: =K6/$K$22*$G$48 -> -0.02880042596 | M6: =K6/$K$22*$G$51 -> -0.03387792618
D7: High pressure mains - PE | I7: 0 | J7: =Input!AD502+Input!AD559 -> -0.04909022 | K7: -0.04909022 | L7: -0.007534805294 | M7: -0.008863187576
D8: Medium pressure mains | I8: 0 | J8: =Input!AD503+Input!AD560 -> 0 | K8: 0 | L8: 0 | M8: 0
D9: Medium/low pressure mains | I9: 26.73025615 | J9: =Input!AD504+Input!AD561 -> 27.78614903 | K9: 1.055892879 | L9: 0.1620678671 | M9: 0.1906403484
D10: Low pressure mains | I10: 0 | J10: =Input!AD505+Input!AD562 -> 0 | K10: 0 | L10: 0 | M10: 0
D11: Regulators | I11: 0.7403024779 | J11: =Input!AD506+Input!AD563 -> 0.48697699 | K11: -0.2533254879 | L11: -0.03888265784 | M11: -0.04573765034
D12: Secondary gate stations | I12: 5.017380852 | J12: =Input!AD507+Input!AD564 -> 0.15572516 | K12: -4.861655692 | L12: -0.7462103256 | M12: -0.8777668206
D13: Buildings | I13: 2.871171486 | J13: =Input!AD508+Input!AD565 -> 3.506637878 | K13: 0.6354663924 | L13: 0.09753705601 | M13: 0.1147327886
D14: Meter and services pipes | I14: 31.37179774 | J14: =Input!AD509+Input!AD566 -> 29.10323552 | K14: -2.268562229 | L14: -0.348199187 | M14: -0.4095865239
D15: Equipment and vehicles | I15: 0.4857503152 | J15: =Input!AD510+Input!AD567 -> 0.5734294651 | K15: 0.08767914986 | L15: 0.01345777881 | M15: 0.01583037827
D16: Vehicles | I16: 3.558630338 | J16: =Input!AD511+Input!AD568 -> 2.33606575 | K16: -1.222564588 | L16: -0.1876501293 | M16: -0.2207327502
D17: Information technology | I17: 2.21961088 | J17: =Input!AD512+Input!AD569 -> 1.202981395 | K17: -1.016629484 | L17: -0.1560413708 | M17: -0.1835513839
D18: Telemetry and monitoring | I18: 0.5912575352 | J18: =Input!AD513+Input!AD570 -> 0.88771814 | K18: 0.2964606048 | L18: 0.04550342074 | M18: 0.05352565032
D19: Full retail contestability | I19: 0 | J19: =Input!AD514+Input!AD571 -> 0 | K19: 0 | L19: 0 | M19: 0
D20: Land | I20: 2.022995 | J20: =Input!AD515+Input!AD572 -> 2.04484278 | K20: 0.02184778 | L20: 0.003353392354 | M20: 0.003944593694
D21: Equity raising costs | I21: 0.6787944882 | J21: =Input!AD516+Input!AD573 -> 0.6791704141 | K21: 0.0003759259303 | L21: 5.770046843e-05 | M21: 6.787303122e-05
I22: =SUM(I6:I21) -> 78.84082652 | J22: =SUM(J6:J21) -> 71.07908309 | K22: =SUM(K6:K21) -> -7.761743428 | L22: =SUM(L6:L21) -> -1.191341686 | M22: =SUM(M6:M21) -> -1.40137461
I23: Source 2019 FD capex: Input Tab Cell AD512 of ERA Final Decision Public Model
I25: 2019 | J25: 2020 | K25: 2021 | L25: 202 | M25: 2023 | N25: 2024
C26: Actual capex [$m 31/12/2019]
D27: 2019 Actual Capex | I27: =J22 -> 71.07908309 | Q27: Source: 2022 RIN Response
D28: Overheads adjustment
D29: 2019 Actual modelled capex | I29: =I27-I28 -> 71.07908309
C31: Actual Inflation | I31: 2019 | J31: 2020 | K31: 2021 | L31: 2022 | M31: 2023 | N31: 2024
D32: CPI Dec Quarter | I32: 116.2 | J32: 117.2 | K32: 121.3 | L32: 130.8 | M32: 136.686 | N32: 141.128295
D33: Inflation (Dec-Dec) | J33: =(J32-I32)/I32 -> 0.008605851979 | K33: =(K32-J32)/J32 -> 0.03498293515 | L33: 0.07831821929 | M33: 0.045 | N33: 0.0325 | Q33: Source: ABS actaul and RBA forecat and TVM for 2024/2022 TVM Model
R34: use forecast inflation as that is the inflation that is added to the RAB
C35: Actual WACC
D36: Nominal WACC | J36: =(1+J39)*(1+J33)-1 -> 0.03867654692 | K36: =(1+K39)*(1+K33)-1 -> 0.06567119226 | L36: 0.1093473218 | M36: 0.0745873245 | N36: 0.06171656491
D37: Discounting Factor | J37: =1/(1+J36) -> 0.9627636274 | K37: =J37/(1+K36) -> 0.903434037 | L37: =K37/(1+L36) -> 0.814383394 | M37: 0.7578568772 | N37: 0.7138033843
D39: Real WACC | J39: =WACC!AE38 -> 0.02981411904 | K39: =WACC!AF38 -> 0.02965097884 | L39: =WACC!AG38 -> 0.02877545976 | M39: =WACC!AH38 -> 0.02831322919 | N39: =WACC!AI38 -> 0.02829691517 | Q39: Source: 2023 TVM Model
D40: Discounting Factor | J40: =1/(1+J39) -> 0.9710490287 | K40: =J40/(1+K39) -> 0.943085617 | L40: =K40/(1+L39) -> 0.916706953 | M40: 0.8914666533 | N40: 0.8669350653
A42: Calculation of total adjustment to AA6 RAB | I42: 2019 | J42: 2020 | K42: 2021 | L42: 202 | M42: 2023 | N42: 2024
D43: Actual less forecast 2019 capex | E43: $ million real 2019 | I43: =K22 -> -7.761743428
D44: Potential writedown of overhead included in capex | E44: $ million real 2019
D45: Total forecast capex reduction | E45: $ million real 2019 | I45: =I43+I44 -> -7.761743428
D46: Real return on asset difference | E46: $ million real 2019 | J46: =$I$45*J39 -> -0.2314095425 | K46: =$I$45*K39 -> -0.2301432902 | L46: =$I$45*L39 -> -0.2233477357 | M46: =$I$45*M39 -> -0.2197600206 | N46: =$I$45*N39 -> -0.2196333953
D47: Retiurn on return recieved (compounding) | E47: $ million real 2019 | J47: 0 | K47: =K39*J48 -> -0.00686151945 | L47: =L39*SUM($J$48:K48) -> -0.01347883834 | M47: =M39*SUM($J$48:L48) -> -0.01996764797 | N47: =N39*SUM($J$48:M48) -> -0.02673969616
D48: Total benefit asset base adjustment | E48: $ million real 2019 | G48: =SUM(J48:N48) -> -1.191341686 | J48: =SUM(J43:J47) -> -0.2314095425 | K48: =SUM(K46:K47) -> -0.2370048096 | L48: -0.236826574 | M48: -0.2397276685 | N48: -0.2463730915
D49: Total asset base adjustment | E49: $ million real 2019 | I49: =I45 -> -7.761743428
D50: Inflator 2019 to 2023 | F50: =M32/I32 -> 1.176299484
D51: Benefit received to deduct from actual 2019 capex | E51: $ million real 2023 | G51: =SUM(I51:N51) -> -1.40137461 | J51: =J48*$F$50 -> -0.2722069254 | K51: =K48*$F$50 -> -0.2787886352 | L51: =L48*$F$50 -> -0.2785789767 | M51: =M48*$F$50 -> -0.2819915327 | N51: =N48*$F$50 -> -0.2898085403
D52: Actual less forecast 2019 capex | E52: $ million real 2023 | G52: -9.130134787 | I52: =I49*$F$50 -> -9.130134787
D54: Total adjustment to AA6 opening asset base | E54: $ million real 2023 | G54: =G51+G52 -> -10.5315094
A56: Nominal cross check of total adjustment to RAB
C57: 2019 Difference Account
D58: Opening Value (start period) | E58: $ Million nominal | J58: =I64 -> -10.5315094 | K58: =J64 -> -10.62214201 | L58: -10.99373571 | M58: -11.85474552 | N58: -12.38820907
D59: Inflation on Opening Value (start period) | E59: $ Million nominal | J59: =J58*J33 -> -0.09063261099 | K59: =K58*K33 -> -0.3715937051 | L59: =L58*L33 -> -0.8610098044 | M59: =M58*M33 -> -0.5334635483 | N59: =N58*N33 -> -0.4026167946
D60: Opening Value (end period) | E60: $ Million nominal | J60: =SUM(J58:J59) -> -10.62214201 | K60: -10.99373571 | L60: -11.85474552 | M60: -12.38820907 | N60: -12.79082586
D61: Capex | E61: $ Million nominal
D62: Depreciation | E62: $ Million nominal
D63: Asset Adjustment, Redundant Assets & Asset Disposal | E63: $ Million nominal
D64: Closing Value | E64: $ Million nominal | I64: =G54 -> -10.5315094 | J64: =SUM(J60:J63) -> -10.62214201 | K64: -10.99373571 | L64: -11.85474552 | M64: -12.38820907 | N64: -12.79082586
A66: Nominal cross check of cost of service
C67: Cost of Service | F67: PV
D68: Return on Asset | E68: $ Million nominal | F68: =SUMPRODUCT($J$37:$N$37,J68:N68) -> -3.217213129 | J68: =J58*J36 -> -0.4073224173 | K68: =K58*K36 -> -0.6975687301 | L68: =L58*L36 -> -1.202135557 | M68: =M58*M36 -> -0.8842137508 | N68: =N58*N36 -> -0.7645577089
D69: less Inflationary Gain in Return on Asset | E69: $ Million nominal | F69: =SUMPRODUCT($J$37:$N$37,J69:N69) -> 1.815838519 | J69: =-J59 -> 0.09063261099 | K69: =-K59 -> 0.3715937051 | L69: 0.8610098044 | M69: 0.5334635483 | N69: 0.4026167946
D70: Net Cost of Service Adjustment | E70: $ Million nominal | F70: -1.40137461 | J70: =SUM(J68:J69) -> -0.3166898063 | K70: =SUM(K68:K69) -> -0.325975025 | L70: -0.3411257526 | M70: -0.3507502025 | N70: -0.3619409143
C72: Cost of Service | F72: PV | J72: PV | K72: PV | L72: PV | M72: PV | N72: PV
D73: Return on Asset difference | E73: $ Million nominal | F73: =SUM(J73:N73) -> -3.217213129 | J73: =J68*J$37 -> -0.392155208 | K73: =K68*K$37 -> -0.6302073339 | L73: -0.9789992349 | M73: -0.6701074719 | N73: -0.5457438801
D74: less Inflationary Gain in Return on Asset | E74: $ Million nominal | F74: =SUM(J74:N74) -> 1.815838519 | J74: =J69*J$37 -> 0.08725778132 | K74: 0.3357104011 | L74: 0.7011920867 | M74: 0.4042890188 | N74: 0.2873892306
D75: Net Cost of Service Adjustment | E75: $ Million nominal | F75: -1.40137461 | J75: =SUM(J73:J74) -> -0.3048974267 | K75: =SUM(K73:K74) -> -0.2944969328 | L75: -0.2778071482 | M75: -0.2658184531 | N75: -0.2583546495
A78: Credit Foncier Check ($ nominal)
C79: Net Cash Flow | F79: PV
D80: RAB Difference at start of period | F80: =SUMPRODUCT($J$37:$N$37,J80:N80)+I80 -> 10.5315094 | I80: =-I64 -> 10.5315094
D81: Additional revenue requirement over period | F81: =SUMPRODUCT($J$37:$N$37,J81:N81)+I81 -> -1.40137461 | J81: =J70 -> -0.3166898063 | K81: =K70 -> -0.325975025 | L81: -0.3411257526 | M81: -0.3507502025 | N81: -0.3619409143
D82: RAB Difference at end of period | F82: -9.130134787 | N82: =N64 -> -12.79082586
D83: Net Cash Flow (should be 0) | F83: =SUM(F80:F82) -> 0

Sheet CoS
A1: =Main!A1 -> GDS Tariff Model, September 2023
A2: Building Block of Total Revenue Required
A3: Ref | C3: =COLUMN() -> 3 | D3: =COLUMN() -> 4 | F3: =COLUMN() -> 6 | H3: =COLUMN() -> 8 | I3: =COLUMN() -> 9 | J3: =COLUMN() -> 10 | K3: =COLUMN() -> 11 | L3: =COLUMN() -> 12 | M3: =COLUMN() -> 13 | N3: =COLUMN() -> 14 | O3: =COLUMN() -> 15 | P3: =COLUMN() -> 16 | Q3: =COLUMN() -> 17 | R3: =COLUMN() -> 18 | S3: =COLUMN() -> 19 | T3: =COLUMN() -> 20 | U3: =COLUMN() -> 21 | V3: =COLUMN() -> 22 | W3: =COLUMN() -> 23 | X3: =COLUMN() -> 24 | Y3: =COLUMN() -> 25 | Z3: =COLUMN() -> 26 | AA3: =COLUMN() -> 27 | AB3: =COLUMN() -> 28 | AC3: =COLUMN() -> 29 | AD3: =COLUMN() -> 30 | AE3: =COLUMN() -> 31 | AF3: =COLUMN() -> 32 | AG3: =COLUMN() -> 33 | AH3: =COLUMN() -> 34 | AI3: =COLUMN() -> 35 | AJ3: =COLUMN() -> 36 | AK3: =COLUMN() -> 37 | AL3: =COLUMN() -> 38 | AM3: =COLUMN() -> 39 | AN3: =COLUMN() -> 40
A4: Regulatory Period | J4: 1 | K4: 1 | L4: 1 | M4: 1 | N4: 1 | O4: 2 | P4: 2 | Q4: 2 | R4: 2 | S4: 2 | T4: 3 | U4: 3 | V4: 3 | W4: 3 | X4: 3 | Y4: 4 | Z4: 4 | AA4: 4 | AB4: 4 | AC4: 4 | AD4: 4 | AE4: 5 | AF4: 5 | AG4: 5 | AH4: 5 | AI4: 5 | AJ4: 6 | AK4: 6 | AL4: 6 | AM4: 6 | AN4: 6
A5: Year ending | I5: 1999 | J5: 2000 | K5: 2001 | L5: 2002 | M5: 2003 | N5: 2004 | O5: 2005 | P5: 2006 | Q5: 2007 | R5: 2008 | S5: =1+R5 -> 2009 | T5: =1+S5 -> 2010 | U5: =T5+1 -> 2011 | V5: =U5+1 -> 2012 | W5: =V5+1 -> 2013 | X5: =W5+1 -> 2014 | Y5: 2014 | Z5: =Y5+1 -> 2015 | AA5: =Z5+1 -> 2016 | AB5: 2017 | AC5: 2018 | AD5: 2019 | AE5: 2020 | AF5: 2021 | AG5: 2022 | AH5: 2023 | AI5: 2024 | AJ5: =AI5+1 -> 2025 | AK5: =AJ5+1 -> 2026 | AL5: =AK5+1 -> 2027 | AM5: =AL5+1 -> 2028 | AN5: =AM5+1 -> 2029
A6: Months | I6: 1 to 12 | J6: 1 to 12 | K6: 1 to 12 | L6: 1 to 12 | M6: 1 to 12 | N6: 1 to 12 | O6: 1 to 12 | P6: 1 to 12 | Q6: 1 to 12 | R6: 1 to 12 | S6: 1 to 12 | T6: 1 to 6 | U6: 7 to 6 | V6: 7 to 6 | W6: 7 to 6 | X6: 7 to 6 | Y6: 7 to 12 | Z6: 1 to 12 | AA6: 1 to 12 | AB6: 1 to 12 | AC6: 1 to 12 | AD6: 1 to 12 | AE6: 1 to 12 | AF6: 1 to 12 | AG6: 1 to 12 | AH6: 1 to 12 | AI6: 1 to 12 | AJ6: 1 to 12 | AK6: 1 to 12 | AL6: 1 to 12 | AM6: 1 to 12 | AN6: 1 to 12
A7: Days | I7: =Input!I$8 -> 365 | J7: =Input!J$8 -> 366 | K7: =Input!K$8 -> 365 | L7: =Input!L$8 -> 365 | M7: =Input!M$8 -> 365 | N7: =Input!N$8 -> 366 | O7: =Input!O$8 -> 365 | P7: =Input!P$8 -> 365 | Q7: =Input!Q$8 -> 365 | R7: =Input!R$8 -> 366 | S7: =Input!S$8 -> 365 | T7: =Input!T$8 -> 181 | U7: =Input!U$8 -> 365 | V7: =Input!V$8 -> 366 | W7: =Input!W$8 -> 365 | X7: =Input!X$8 -> 365 | Y7: =Input!Y$8 -> 184 | Z7: =Input!Z$8 -> 365 | AA7: =Input!AA$8 -> 366 | AB7: =Input!AB$8 -> 365 | AC7: =Input!AC$8 -> 365 | AD7: =Input!AD$8 -> 365 | AE7: =Input!AE$8 -> 366 | AF7: =Input!AF$8 -> 365 | AG7: =Input!AG$8 -> 365 | AH7: =Input!AH$8 -> 365 | AI7: =Input!AI$8 -> 366 | AJ7: =Input!AJ$8 -> 366 | AK7: =Input!AK$8 -> 365 | AL7: =Input!AL$8 -> 365 | AM7: =Input!AM$8 -> 365 | AN7: =Input!AN$8 -> 366
A8: Year portion | I8: =Input!I$9 -> 1 | J8: =Input!J$9 -> 1 | K8: =Input!K$9 -> 1 | L8: =Input!L$9 -> 1 | M8: =Input!M$9 -> 1 | N8: =Input!N$9 -> 1 | O8: =Input!O$9 -> 1 | P8: =Input!P$9 -> 1 | Q8: =Input!Q$9 -> 1 | R8: =Input!R$9 -> 1 | S8: =Input!S$9 -> 1 | T8: =Input!T$9 -> 0.495890411 | U8: =Input!U$9 -> 1 | V8: =Input!V$9 -> 1 | W8: =Input!W$9 -> 1 | X8: =Input!X$9 -> 1 | Y8: =Input!Y$9 -> 0.504109589 | Z8: =Input!Z$9 -> 1 | AA8: =Input!AA$9 -> 1 | AB8: =Input!AB$9 -> 1 | AC8: =Input!AC$9 -> 1 | AD8: =Input!AD$9 -> 1 | AE8: =Input!AE$9 -> 1 | AF8: =Input!AF$9 -> 1 | AG8: =Input!AG$9 -> 1 | AH8: =Input!AH$9 -> 1 | AI8: =Input!AI$9 -> 1 | AJ8: =Input!AJ$9 -> 1 | AK8: =Input!AK$9 -> 1 | AL8: =Input!AL$9 -> 1 | AM8: =Input!AM$9 -> 1 | AN8: =Input!AN$9 -> 1
A9: Financial Parameters
A10: =ROW() -> 10 | C10: Modelled Inflation | J10: Actual 1 | O10: Actual 2 | T10: Actual 3 | AD10: Forecast | AG10: Forecast 5 | AL10: Forecast 5
A11: =ROW() -> 11 | D11: Inflation | J11: =Input!J$49 -> 0.05801772764 | K11: =Input!K$49 -> 0.03122619954 | L11: =Input!L$49 -> 0.03028064993 | M11: =Input!M$49 -> 0.02365591398 | N11: =Input!N$49 -> 0.02591036415 | O11: =Input!O$49 -> 0.02798634812 | P11: =Input!P$49 -> 0.03253652058 | Q11: =Input!Q$49 -> 0.02958199357 | R11: =Input!R$49 -> 0.03685196752 | S11: =Input!S$49 -> 0.02108433735 | T11: =Load_Tariffs!T14 -> 0.01533923304 | U11: =Load_Tariffs!W14 -> 0.03602556653 | V11: =Load_Tariffs!X14 -> 0.01177790241 | W11: =Load_Tariffs!Y14 -> 0.02390438247 | X11: =Load_Tariffs!Z14 -> 0.03015564202 | Y11: =Load_Tariffs!AA14 -> 0.006610009443 | Z11: =Load_Tariffs!AD14 -> 0.01688555347 | AA11: =Load_Tariffs!AE14 -> 0.0147601476 | AB11: =Load_Tariffs!AF14 -> 0.01909090909 | AC11: =Load_Tariffs!AG14 -> 0.0178412132 | AD11: =Load_Tariffs!AH14 -> 0.01840490798 | AE11: =Load_Tariffs!AI14 -> 0.008605851979 | AF11: =Load_Tariffs!AJ14 -> 0.03498293515 | AG11: =Load_Tariffs!AK14 -> 0.07831821929 | AH11: =Load_Tariffs!AL14 -> 0.045 | AI11: =Load_Tariffs!AM14 -> 0.0325 | AJ11: =Load_Tariffs!AN14 -> 0.02663601745 | AK11: =Load_Tariffs!AO14 -> 0.02663601745 | AL11: =Load_Tariffs!AP14 -> 0.02663601745 | AM11: =Load_Tariffs!AQ14 -> 0.02663601745 | AN11: =Load_Tariffs!AR14 -> 0.02663601745
A12: =ROW() -> 12 | D12: Inflation Factor (convert to nominal $) | J12: =Input!J$53 -> 0.5346109764 | K12: =Input!K$53 -> 0.5513048454 | L12: =Input!L$53 -> 0.5679987145 | M12: =Input!M$53 -> 0.5814352432 | N12: =Input!N$53 -> 0.5965004421 | O12: =Input!O$53 -> 0.6131943111 | P12: =Input!P$53 -> 0.6331455204 | Q12: =Input!Q$53 -> 0.6518752271 | R12: =Input!R$53 -> 0.6758981118 | S12: =Input!S$53 -> 0.6901489756 | T12: =Load_Tariffs!V17 -> 0.7259797189 | U12: =Load_Tariffs!W17 -> 0.7259797189 | V12: =Load_Tariffs!X17 -> 0.7345302372 | W12: =Load_Tariffs!Y17 -> 0.7520887289 | X12: =Load_Tariffs!Z17 -> 0.7747684474 | Y12: =Load_Tariffs!AA17 -> 0.7798896741 | Z12: =Load_Tariffs!AD17 -> 0.7930585429 | AA12: =Load_Tariffs!AE17 -> 0.8047642041 | AB12: =Load_Tariffs!AF17 -> 0.8201278843 | AC12: =Load_Tariffs!AG17 -> 0.8347599608 | AD12: =Load_Tariffs!AH17 -> 0.850123641 | AE12: =Load_Tariffs!AI17 -> 0.8574396793 | AF12: =Load_Tariffs!AJ17 -> 0.887435436 | AG12: =Load_Tariffs!AK17 -> 0.956937799 | AH12: =Load_Tariffs!AL17 -> 1 | AI12: =Load_Tariffs!AM17 -> 1.0325 | AJ12: =Load_Tariffs!AN17 -> 1.060001688 | AK12: =Load_Tariffs!AO17 -> 1.088235911 | AL12: =Load_Tariffs!AP17 -> 1.117222182 | AM12: =Load_Tariffs!AQ17 -> 1.146980532 | AN12: =Load_Tariffs!AR17 -> 1.177531525
A13: =ROW() -> 13 | C13: Real Post Tax WACC
A14: =ROW() -> 14 | D14: WACC | T14: =Revenue!T16 -> 0.04527784254 | U14: =Revenue!W16 -> 0.06569980507 | V14: =Revenue!X16 -> 0.06569980507 | W14: =Revenue!Y16 -> 0.06569980507 | X14: =Revenue!Z16 -> 0.06569980507 | Y14: =Revenue!AA16 -> 0.0198101078 | Z14: =Revenue!AD16 -> 0.04010991168 | AA14: =Revenue!AE16 -> 0.04010991168 | AB14: =Revenue!AF16 -> 0.04010991168 | AC14: =Revenue!AG16 -> 0.04010991168 | AD14: =Revenue!AH16 -> 0.04071768675 | AE14: =Revenue!AI16 -> 0.02981411904 | AF14: =Revenue!AJ16 -> 0.02965097884 | AG14: =Revenue!AK16 -> 0.02877545976 | AH14: =Revenue!AL16 -> 0.02831322919 | AI14: =Revenue!AM16 -> 0.02829691517 | AJ14: =Revenue!AN16 -> 0.04543740663 | AK14: =Revenue!AO16 -> 0.04543740663 | AL14: =Revenue!AP16 -> 0.04543740663 | AM14: =Revenue!AQ16 -> 0.04543740663 | AN14: =Revenue!AR16 -> 0.04543740663
A15: =ROW() -> 15 | D15: Discounting Factor | T15: =Revenue!T17 -> 0.9566834379 | U15: =Revenue!W17 -> 0.8977044318 | V15: =Revenue!X17 -> 0.8423614488 | W15: =Revenue!Y17 -> 0.7904303302 | X15: =Revenue!Z17 -> 0.7417007364 | Y15: =Revenue!AA17 -> 0.9805747093 | Z15: =Revenue!AD17 -> 0.9427606624 | AA15: =Revenue!AE17 -> 0.9064048442 | AB15: =Revenue!AF17 -> 0.8714510207 | AC15: =Revenue!AG17 -> 0.8378451267 | AD15: =Revenue!AH17 -> 0.8050647523 | AE15: =Revenue!AI17 -> 0.9710490287 | AF15: =Revenue!AJ17 -> 0.943085617 | AG15: =Revenue!AK17 -> 0.916706953 | AH15: =Revenue!AL17 -> 0.8914666533 | AI15: =Revenue!AM17 -> 0.8669350653 | AJ15: =Revenue!AN17 -> 0.9565374203 | AK15: =Revenue!AO17 -> 0.9149638364 | AL15: =Revenue!AP17 -> 0.8751971477 | AM15: =Revenue!AQ17 -> 0.8371588219 | AN15: =Revenue!AR17 -> 0.8007737399
A16: =ROW() -> 16 | C16: Nominal Post Tax WACC
A17: =ROW() -> 17 | D17: WACC | T17: =Revenue!T19 -> 0.04527784254 | U17: =Revenue!W19 -> 0.093408 | V17: =Revenue!X19 -> 0.093408 | W17: =Revenue!Y19 -> 0.093408 | X17: =Revenue!Z19 -> 0.093408 | Y17: =Revenue!AA19 -> 0.02953234787 | Z17: =Revenue!AD19 -> 0.059872 | AA17: =Revenue!AE19 -> 0.059872 | AB17: =Revenue!AF19 -> 0.059872 | AC17: =Revenue!AG19 -> 0.059872 | AD17: =Revenue!AH19 -> 0.059872 | AE17: =Revenue!AI19 -> 0.041554 | AF17: =Revenue!AJ19 -> 0.041389 | AG17: =Revenue!AK19 -> 0.0405035 | AH17: =Revenue!AL19 -> 0.040036 | AI17: =Revenue!AM19 -> 0.0400195 | AJ17: =Revenue!AN19 -> 0.07328369564 | AK17: =Revenue!AO19 -> 0.07328369564 | AL17: =Revenue!AP19 -> 0.07328369564 | AM17: =Revenue!AQ19 -> 0.07328369564 | AN17: =Revenue!AR19 -> 0.07328369564
A18: =ROW() -> 18 | D18: Discounting Factor | T18: =Revenue!T20 -> 0.9566834379 | U18: =Revenue!W20 -> 0.8749555865 | V18: =Revenue!X20 -> 0.8002096075 | W18: =Revenue!Y20 -> 0.7318490513 | X18: =Revenue!Z20 -> 0.6693284221 | Y18: =Revenue!AA20 -> 0.9713147936 | Z18: =Revenue!AD20 -> 0.9164453761 | AA18: =Revenue!AE20 -> 0.8646755231 | AB18: =Revenue!AF20 -> 0.8158301409 | AC18: =Revenue!AG20 -> 0.7697440266 | AD18: =Revenue!AH20 -> 0.7262613095 | AE18: =Revenue!AI20 -> 0.9601038448 | AF18: =Revenue!AJ20 -> 0.9219454448 | AG18: =Revenue!AK20 -> 0.8860570337 | AH18: =Revenue!AL20 -> 0.8519484265 | AI18: =Revenue!AM20 -> 0.81916582 | AJ18: =Revenue!AN20 -> 0.9317201072 | AK18: =Revenue!AO20 -> 0.8681023582 | AL18: =Revenue!AP20 -> 0.8088284223 | AM18: =Revenue!AQ20 -> 0.7536017044 | AN18: =Revenue!AR20 -> 0.7021458608
A19: ="Capital Base [m$ "&Input!$G$52&"] - CCA" -> Capital Base [m$ 31/12/2023] - CCA
A20: =ROW() -> 20 | C20: Asset Account
A21: =ROW() -> 21 | D21: Opening Value | O21: =N25 -> 1114.236182 | P21: 1102.50677 | Q21: 1106.3921 | R21: 1110.286673 | S21: 1113.137382 | T21: =S25 -> 1132.88503 | U21: 1157.047373 | V21: 1176.131457 | W21: 1188.629321 | X21: 1250.455296 | Y21: 1297.681844 | Z21: =Y25 -> 1326.503661 | AA21: =Z25 -> 1366.652562 | AB21: =AA25 -> 1413.93645 | AC21: 1457.634384 | AD21: 1499.210632 | AE21: 1518.832267 | AF21: 1535.784456 | AG21: 1554.17246 | AH21: 1571.883599 | AI21: 1588.339352 | AJ21: 1605.371046 | AK21: 1623.478049 | AL21: 1629.803881 | AM21: 1634.714126 | AN21: 1638.544951
A22: =ROW() -> 22 | D22: Capex | O22: =Asset!O$17+Asset!O18+Asset!O19 -> 39.88746586 | P22: =Asset!P$17+Asset!P18+Asset!P19 -> 48.05873453 | Q22: =Asset!Q$17+Asset!Q18+Asset!Q19 -> 50.50905227 | R22: =Asset!R$17+Asset!R18+Asset!R19 -> 51.44945388 | S22: =Asset!S$17+Asset!S18+Asset!S19 -> 62.32492439 | T22: =Asset!T$17+Asset!T18+Asset!T19 -> 40.02511975 | U22: =Asset!U$17+Asset!U18+Asset!U19 -> 53.4576609 | V22: =Asset!V$17+Asset!V18+Asset!V19 -> 49.96902104 | W22: =Asset!W$17+Asset!W18+Asset!W19 -> 102.3431401 | X22: =Asset!X$17+Asset!X18+Asset!X19 -> 90.72511182 | Y22: =Asset!Y$17+Asset!Y18+Asset!Y19 -> 50.10176205 | Z22: =Asset!Z$17+Asset!Z18+Asset!Z19 -> 87.05691604 | AA22: =Asset!AA$17+Asset!AA18+Asset!AA19 -> 99.55670886 | AB22: =Asset!AB$17+Asset!AB18+Asset!AB19 -> 99.56133155 | AC22: =Asset!AC$17+Asset!AC18+Asset!AC19 -> 101.117489 | AD22: =Asset!AD$17+Asset!AD18+Asset!AD19 -> 84.64759568 | AE22: =Asset!AE$17+Asset!AE18+Asset!AE19 -> 71.89652183 | AF22: =Asset!AF$17+Asset!AF18+Asset!AF19 -> 84.03641858 | AG22: =Asset!AG$17+Asset!AG18+Asset!AG19 -> 84.95064824 | AH22: =Asset!AH$17+Asset!AH18+Asset!AH19 -> 84.73277152 | AI22: =Asset!AI$17+Asset!AI18+Asset!AI19 -> 88.04151313 | AJ22: =Asset!AJ$17+Asset!AJ18+Asset!AJ19 -> 95.82910467 | AK22: =Asset!AK$17+Asset!AK18+Asset!AK19 -> 93.81865361 | AL22: =Asset!AL$17+Asset!AL18+Asset!AL19 -> 92.95971215 | AM22: =Asset!AM$17+Asset!AM18+Asset!AM19 -> 91.91906346 | AN22: =Asset!AN$17+Asset!AN18+Asset!AN19 -> 91.29860933
A23: =ROW() -> 23 | D23: Depreciation | O23: =Asset!O$21 -> -41.52867781 | P23: =Asset!P$21 -> -44.17340475 | Q23: =Asset!Q$21 -> -46.61447873 | R23: =Asset!R$21 -> -48.59874484 | S23: =Asset!S$21 -> -51.13494181 | T23: =Asset!T$21 -> -15.86277593 | U23: =Asset!U$21 -> -34.37357768 | V23: =Asset!V$21 -> -37.471157 | W23: =Asset!W$21 -> -40.51716485 | X23: =Asset!X$21 -> -43.49856357 | Y23: =Asset!Y$21 -> -21.22995157 | Z23: =Asset!Z$21 -> -46.88970458 | AA23: =Asset!AA$21 -> -52.03264856 | AB23: =Asset!AB$21 -> -55.61199563 | AC23: =Asset!AC$21 -> -58.93079304 | AD23: =Asset!AD$21 -> -63.9886541 | AE23: =Asset!AE$21 -> -54.25533228 | AF23: =Asset!AF$21 -> -65.08023076 | AG23: =Asset!AG$21 -> -66.81140346 | AH23: =Asset!AH$21 -> -68.27701814 | AI23: =Asset!AI$21 -> -71.009819 | AJ23: =Asset!AJ$21 -> -61.722102 | AK23: =Asset!AK$21 -> -71.49282151 | AL23: =Asset!AL$21 -> -72.04946717 | AM23: =Asset!AM$21 -> -72.08823834 | AN23: =Asset!AN$21 -> -71.34359197
A24: =ROW() -> 24 | D24: Asset Adjustment, Redundant Assets & Asset Disposal | O24: =Asset!O$16+Asset!O20+Asset!O23 -> -10.08819999 | P24: =Asset!P$16+Asset!P20+Asset!P23 -> 0 | Q24: =Asset!Q$16+Asset!Q20+Asset!Q23 -> 0 | R24: =Asset!R$16+Asset!R20+Asset!R23 -> 0 | S24: =Asset!S$16+Asset!S20+Asset!S23 -> 8.557664535 | T24: =Asset!T$16+Asset!T20+Asset!T23 -> 0 | U24: =Asset!U$16+Asset!U20+Asset!U23 -> 0 | V24: =Asset!V$16+Asset!V20+Asset!V23 -> 0 | W24: =Asset!W$16+Asset!W20+Asset!W23 -> 0 | X24: =Asset!X$16+Asset!X20+Asset!X23 -> 3.552713679e-15 | Y24: =Asset!Y$16+Asset!Y20+Asset!Y23 -> -0.04999377833 | Z24: =Asset!Z$16+Asset!Z20+Asset!Z23 -> -0.01831071705 | AA24: =Asset!AA$16+Asset!AA20+Asset!AA23 -> -0.2401718844 | AB24: =Asset!AB$16+Asset!AB20+Asset!AB23 -> -0.2514020483 | AC24: =Asset!AC$16+Asset!AC20+Asset!AC23 -> -0.6104475919 | AD24: =Asset!AD$16+Asset!AD20+Asset!AD23 -> -1.037306937 | AE24: =Asset!AE$16+Asset!AE20+Asset!AE23 -> -0.6890001878 | AF24: =Asset!AF$16+Asset!AF20+Asset!AF23 -> -0.5681844217 | AG24: =Asset!AG$16+Asset!AG20+Asset!AG23 -> -0.4281055993 | AH24: =Asset!AH$16+Asset!AH20+Asset!AH23 -> 0 | AI24: =Asset!AI$16+Asset!AI20+Asset!AI23 -> 0 | AJ24: =Asset!AJ$16+Asset!AJ20+Asset!AJ23 -> -16 | AK24: =Asset!AK$16+Asset!AK20+Asset!AK23 -> -16 | AL24: =Asset!AL$16+Asset!AL20+Asset!AL23 -> -16 | AM24: =Asset!AM$16+Asset!AM20+Asset!AM23 -> -16 | AN24: =Asset!AN$16+Asset!AN20+Asset!AN23 -> -16
A25: =ROW() -> 25 | D25: Closing Value | N25: =Asset!N$24 -> 1114.236182 | O25: =SUM(O21:O24) -> 1102.50677 | P25: 1106.3921 | Q25: 1110.286673 | R25: 1113.137382 | S25: 1132.88503 | T25: 1157.047373 | U25: 1176.131457 | V25: 1188.629321 | W25: 1250.455296 | X25: 1297.681844 | Y25: 1326.503661 | Z25: 1366.652562 | AA25: 1413.93645 | AB25: 1457.634384 | AC25: 1499.210632 | AD25: 1518.832267 | AE25: 1535.784456 | AF25: 1554.17246 | AG25: 1571.883599 | AH25: 1588.339352 | AI25: 1605.371046 | AJ25: 1623.478049 | AK25: 1629.803881 | AL25: 1634.714126 | AM25: 1638.544951 | AN25: 1642.499969
D26: Check Total | O26: =Asset!O24 -> 1102.50677 | P26: =Asset!P24 -> 1106.3921 | Q26: =Asset!Q24 -> 1110.286673 | R26: =Asset!R24 -> 1113.137382 | S26: =Asset!S24 -> 1132.88503 | T26: =Asset!T24 -> 1157.047373 | U26: =Asset!U24 -> 1176.131457 | V26: =Asset!V24 -> 1188.629321 | W26: =Asset!W24 -> 1250.455296 | X26: =Asset!X24 -> 1297.681844 | Y26: =Asset!Y24 -> 1326.503661 | Z26: =Asset!Z24 -> 1366.652562 | AA26: =Asset!AA24 -> 1413.93645 | AB26: =Asset!AB24 -> 1457.634384 | AC26: =Asset!AC24 -> 1499.210632 | AD26: =Asset!AD24 -> 1518.832267 | AE26: =Asset!AE24 -> 1535.784456 | AF26: =Asset!AF24 -> 1554.17246 | AG26: =Asset!AG24 -> 1571.883599 | AH26: =Asset!AH24 -> 1588.339352 | AI26: =Asset!AI24 -> 1605.371046 | AJ26: =Asset!AJ24 -> 1623.478049 | AK26: =Asset!AK24 -> 1629.803881 | AL26: =Asset!AL24 -> 1634.714126 | AM26: =Asset!AM24 -> 1638.544951 | AN26: =Asset!AN24 -> 1642.499969
D27: Check | O27: =O25-O26 -> 0 | P27: 0 | Q27: 0 | R27: 0 | S27: 0 | T27: =T25-T26 -> 0 | U27: =U25-U26 -> 0 | V27: =V25-V26 -> 0 | W27: =W25-W26 -> 0 | X27: =X25-X26 -> 0 | Y27: =Y25-Y26 -> 0 | Z27: 0 | AA27: 0 | AB27: 0 | AC27: 0 | AD27: 0 | AE27: 0 | AF27: 0 | AG27: 0 | AH27: 0 | AI27: 0 | AJ27: 0 | AK27: 0 | AL27: 0 | AM27: 0 | AN27: 0
A29: Capital Base [m$ nominal] - CCA
A30: =ROW() -> 30 | C30: Asset Account
A31: =ROW() -> 31 | D31: Opening Value (start period) | O31: =N37 -> 664.6423751 | P31: 676.0508794 | Q31: 700.5072018 | R31: 723.7683774 | S31: 752.367455 | T31: =S37 -> 781.8594427 | U31: 839.9929269 | V31: 853.8475843 | W31: 873.0841768 | X31: =W37 -> 940.453334 | Y31: =X37 -> 1005.402948 | Z31: =Y37 -> 1034.526508 | AA31: 1083.835489 | AB31: 1137.885442 | AC31: 1195.446603 | AD31: 1251.481009 | AE31: =AD37 -> 1291.195217 | AF31: 1316.842532 | AG31: =AF37 -> 1379.227714 | AH31: =AG37 -> 1504.194831 | AI31: =AH37 -> 1588.339352 | AJ31: =AI37 -> 1657.545605 | AK31: =AJ37 -> 1720.889472 | AL31: =AK37 -> 1773.611112 | AM31: =AL37 -> 1826.338883 | AN31: =AM37 -> 1879.379159
A32: =ROW() -> 32 | D32: Inflation on Opening Value (start period) | O32: =O31*O$11 -> 18.60091289 | P32: 21.99634335 | Q32: 20.72239954 | R32: 26.67228874 | S32: 15.86316923 | T32: 11.99312419 | U32: 30.26122107 | V32: 10.05653352 | W32: 20.87053809 | X32: 28.35997408 | Y32: 6.645722978 | Z32: 17.46855266 | AA32: 15.9975718 | AB32: 21.72326753 | AC32: 21.32821772 | AD32: 23.0333928 | AE32: =AE31*AE$11 -> 11.11183491 | AF32: 46.06701689 | AG32: 108.0186586 | AH32: 67.68876741 | AI32: 51.62102895 | AJ32: =AJ31*AJ$11 -> 44.15041368 | AK32: 45.83764202 | AL32: 47.24193654 | AM32: 48.64639437 | AN32: 50.05917609
A33: =ROW() -> 33 | D33: Opening Value (end period) | O33: =SUM(O31:O32) -> 683.243288 | P33: =SUM(P31:P32) -> 698.0472227 | Q33: =SUM(Q31:Q32) -> 721.2296014 | R33: =SUM(R31:R32) -> 750.4406661 | S33: =SUM(S31:S32) -> 768.2306242 | T33: =SUM(T31:T32) -> 793.8525669 | U33: =SUM(U31:U32) -> 870.254148 | V33: =SUM(V31:V32) -> 863.9041178 | W33: =SUM(W31:W32) -> 893.9547149 | X33: =SUM(X31:X32) -> 968.8133081 | Y33: 1012.048671 | Z33: 1051.99506 | AA33: 1099.833061 | AB33: 1159.608709 | AC33: 1216.774821 | AD33: 1274.514401 | AE33: =SUM(AE31:AE32) -> 1302.307052 | AF33: 1362.909548 | AG33: 1487.246373 | AH33: 1571.883599 | AI33: 1639.960381 | AJ33: =SUM(AJ31:AJ32) -> 1701.696019 | AK33: 1766.727114 | AL33: 1820.853049 | AM33: 1874.985278 | AN33: 1929.438336
A34: =ROW() -> 34 | D34: Capex | O34: =O22*O$12 -> 24.45876715 | P34: 30.42817248 | Q34: 32.92559992 | R34: 34.77458873 | S34: 43.01348273 | T34: 29.05742519 | U34: 38.80917763 | V34: 36.70375687 | W34: 76.97112215 | X34: 70.29095403 | Y34: 39.07384688 | Z34: 69.04123098 | AA34: 80.11967557 | AB34: 81.65302421 | AC34: 84.40883113 | AD34: 71.96092224 | AE34: =AE22*AE$12 -> 61.64693062 | AF34: 74.57689576 | AG34: 81.29248636 | AH34: 84.73277152 | AI34: 90.90286231 | AJ34: =AJ22*AJ$12 -> 101.5790127 | AK34: 102.096828 | AL34: 103.8566525 | AM34: 105.4293763 | AN34: 107.5069907
A35: =ROW() -> 35 | D35: Depreciation | O35: =O23*O$12 -> -25.46514898 | P35: -27.96819334 | Q35: -30.38682391 | R35: -32.84779987 | S35: -35.29072771 | T35: -11.51605361 | U35: -24.95452027 | V35: -27.52369784 | W35: -30.47250301 | X35: -33.70131456 | Y35: -16.55702001 | Z35: -37.1862808 | AA35: -41.87401301 | AB35: -45.60894832 | AC35: -49.19306649 | AD35: -54.39826761 | AE35: =AE23*AE$12 -> -46.52067471 | AF35: -57.75450296 | AG35: -63.93435737 | AH35: -68.27701814 | AI35: -73.31763811 | AJ35: =AJ23*AJ$12 -> -65.4255323 | AK35: -77.80105578 | AL35: -80.49526294 | AM35: -82.68380595 | AN35: -84.00932867
A36: =ROW() -> 36 | D36: Asset Adjustment, Redundant Assets & Asset Disposal | O36: =O24*O$12 -> -6.18602684 | P36: 0 | Q36: 0 | R36: 0 | S36: 5.906063413 | T36: 0 | U36: 0 | V36: 0 | W36: 0 | X36: 2.752530461e-15 | Y36: -0.03898963149 | Z36: -0.01452147058 | AA36: -0.1932817354 | AB36: -0.20618183 | AC36: -0.5095772079 | AD36: -0.88183915 | AE36: =AE24*AE$12 -> -0.5907761 | AF36: -0.50422699 | AG36: -0.40967043 | AH36: 0 | AI36: 0 | AJ36: =AJ24*AJ$12 -> -16.96002701 | AK36: -17.41177458 | AL36: -17.87555492 | AM36: -18.35168851 | AN36: -18.8405044
A37: =ROW() -> 37 | D37: Closing Value | N37: =Asset!N24*N$12 -> 664.6423751 | O37: =Asset!O24*O$12 -> 676.0508794 | P37: =Asset!P24*P$12 -> 700.5072018 | Q37: =Asset!Q24*Q$12 -> 723.7683774 | R37: =Asset!R24*R$12 -> 752.367455 | S37: =Asset!S24*S$12 -> 781.8594427 | T37: =Asset!T24*T$12 -> 839.9929269 | U37: =Asset!U24*U$12 -> 853.8475843 | V37: =Asset!V24*V$12 -> 873.0841768 | W37: =Asset!W24*W$12 -> 940.453334 | X37: =Asset!X24*X$12 -> 1005.402948 | Y37: =Asset!Y24*Y$12 -> 1034.526508 | Z37: =Asset!Z24*Z$12 -> 1083.835489 | AA37: =Asset!AA24*AA$12 -> 1137.885442 | AB37: =Asset!AB24*AB$12 -> 1195.446603 | AC37: =Asset!AC24*AC$12 -> 1251.481009 | AD37: =Asset!AD24*AD$12 -> 1291.195217 | AE37: =Asset!AE24*AE$12 -> 1316.842532 | AF37: =Asset!AF24*AF$12 -> 1379.227714 | AG37: =Asset!AG24*AG$12 -> 1504.194831 | AH37: =Asset!AH24*AH$12 -> 1588.339352 | AI37: =Asset!AI24*AI$12 -> 1657.545605 | AJ37: =Asset!AJ24*AJ$12 -> 1720.889472 | AK37: =Asset!AK24*AK$12 -> 1773.611112 | AL37: =Asset!AL24*AL$12 -> 1826.338883 | AM37: =Asset!AM24*AM$12 -> 1879.379159 | AN37: =Asset!AN24*AN$12 -> 1934.095493
A38: =ROW() -> 38 | D38: Check closing value (should be 0) | O38: =SUM(O33:O36)-O37 -> 0 | P38: =SUM(P33:P36)-P37 -> 0 | Q38: 0 | R38: 0 | S38: 0 | T38: -28.59898846 | U38: 30.26122107 | V38: 0 | W38: 0 | X38: 0 | Y38: 0 | Z38: 0 | AA38: 0 | AB38: 0 | AC38: 0 | AD38: 0 | AE38: =SUM(AE33:AE36)-AE37 -> 0 | AF38: 0 | AG38: 0 | AH38: 0 | AI38: 0 | AJ38: =SUM(AJ33:AJ36)-AJ37 -> 0 | AK38: 0 | AL38: 0 | AM38: 0 | AN38: 0
A39: =ROW() -> 39 | D39: Check to real dolalr value (should be 0) | AD39: =AD25*AD12-AD37 -> 0 | AE39: =AE25*AE12-AE37 -> 0 | AF39: 0 | AG39: 0 | AH39: 0 | AI39: 0 | AJ39: 0 | AK39: 0 | AL39: 0 | AM39: 0 | AN39: 0
A41: Cost of Service, Allowable Revenue [m$ nominal]
A42: =ROW() -> 42 | C42: Cost of Service | F42: PV | I42: PV $2023
A43: =ROW() -> 43 | D43: OPEX | F43: =SUMPRODUCT($AJ$18:$AN$18,AJ43:AN43) -> 412.6647667 | AJ43: =Input!AJ$1688*AJ$12 -> 89.91134558 | AK43: =Input!AK$1688*AK$12 -> 104.0248135 | AL43: =Input!AL$1688*AL$12 -> 108.2760103 | AM43: =Input!AM$1688*AM$12 -> 102.4418148 | AN43: =Input!AN$1688*AN$12 -> 105.1225046
A44: =ROW() -> 44 | D44: Depreciation | F44: 314.90188 | AJ44: =-AJ$35 -> 65.4255323 | AK44: =-AK$35 -> 77.80105578 | AL44: =-AL$35 -> 80.49526294 | AM44: =-AM$35 -> 82.68380595 | AN44: =-AN$35 -> 84.00932867
A45: =ROW() -> 45 | D45: Inflationary Gain in Return on Asset | F45: -190.9470633 | AJ45: =-AJ$32 -> -44.15041368 | AK45: =-AK$32 -> -45.83764202 | AL45: =-AL$32 -> -47.24193654 | AM45: =-AM$32 -> -48.64639437 | AN45: =-AN$32 -> -50.05917609
A46: =ROW() -> 46 | D46: Accelerated depreciation | F46: 72.43410356 | AJ46: =-Asset!AJ$20*AJ$12 -> 16.96002701 | AK46: =-Asset!AK$20*AK$12 -> 17.41177458 | AL46: =-Asset!AL$20*AL$12 -> 17.87555492 | AM46: =-Asset!AM$20*AM$12 -> 18.35168851 | AN46: =-Asset!AN$20*AN$12 -> 18.8405044
A47: =ROW() -> 47 | D47: Return on Asset | F47: 525.3528045 | AJ47: =AJ$17*AJ$31 -> 121.4710677 | AK47: =AK$17*AK$31 -> 126.1131403 | AL47: =AL$17*AL$31 -> 129.9767769 | AM47: =AM$17*AM$31 -> 133.8408629 | AN47: =AN$17*AN$31 -> 137.7278503
A48: =ROW() -> 48 | D48: Return on Working Capital | F48: 10.78537749 | AJ48: =Working_Capital!AJ$35 -> 1.687643687 | AK48: =Working_Capital!AK$35 -> 2.633297086 | AL48: =Working_Capital!AL$35 -> 2.983744631 | AM48: =Working_Capital!AM$35 -> 3.093778644 | AN48: =Working_Capital!AN$35 -> 3.107873052
A49: =ROW() -> 49 | D49: Tax | F49: 56.88126838 | AJ49: =-Tax_CoRE!AJ$51 -> 10.83956649 | AK49: =-Tax_CoRE!AK$51 -> 14.29201894 | AL49: =-Tax_CoRE!AL$51 -> 14.74926189 | AM49: =-Tax_CoRE!AM$51 -> 15.18362085 | AN49: =-Tax_CoRE!AN$51 -> 15.67034262
A50: =ROW() -> 50 | D50: Imputation Credits | F50: -28.44063419 | AJ50: =-AJ49*WACC!AJ$30 -> -5.419783243 | AK50: =-AK49*WACC!AK$30 -> -7.146009472 | AL50: =-AL49*WACC!AL$30 -> -7.374630947 | AM50: =-AM49*WACC!AM$30 -> -7.591810424 | AN50: =-AN49*WACC!AN$30 -> -7.83517131
A51: =ROW() -> 51 | D51: Net Cost of Service | F51: 1173.632503 | AJ51: =SUM(AJ43:AJ50) -> 256.7249858 | AK51: 289.2924487 | AL51: 299.7400441 | AM51: 299.3573668 | AN51: 306.5840562
A52: =ROW() -> 52 | D52: Total Smoothed Revenue | F52: 1173.632499 | AJ52: =Revenue!AN$239 -> 273.794625 | AK52: =Revenue!AO$239 -> 281.5299409 | AL52: =Revenue!AP$239 -> 289.4991218 | AM52: =Revenue!AQ$239 -> 297.9283584 | AN52: =Revenue!AR$239 -> 306.8611683
A53: =ROW() -> 53 | D53: Check CoS - Revenue (should be 0) | F53: =ROUND(F51-F52,5) -> 0
A54: =ROW() -> 54
A55: =ROW() -> 55 | C55: Cost of Service | F55: PV | AJ55: PV | AK55: PV | AL55: PV | AM55: PV | AN55: PV
A56: =ROW() -> 56 | D56: OPEX | F56: =SUM(AJ56:AN56) -> 412.6647667 | AJ56: =AJ43*AJ$18 -> 83.77220854 | AK56: 90.3041859 | AL56: 87.57671458 | AM56: 77.20032621 | AN56: 73.81133145
A57: =ROW() -> 57 | D57: Depreciation | F57: =SUM(AJ57:AN57) -> 314.90188 | AJ57: =AJ44*AJ$18 -> 60.95828397 | AK57: 67.53928 | AL57: 65.10685653 | AM57: 62.31065708 | AN57: 58.9868024
A58: =ROW() -> 58 | D58: Inflationary Gain in Return on Asset | F58: -190.9470633 | AJ58: =AJ45*AJ$18 -> -41.13582816 | AK58: -39.79176514 | AL58: -38.210621 | AM58: -36.66000571 | AN58: -35.14884329
A59: =ROW() -> 59 | D59: Accelerated depreciation | F59: 72.43410356 | AJ59: =AJ46*AJ$18 -> 15.80199818 | AK59: 15.11520258 | AL59: 14.45825688 | AM59: 13.82986374 | AN59: 13.22878218
A60: =ROW() -> 60 | D60: Return on Asset | F60: 525.3528045 | AJ60: =AJ47*AJ$18 -> 113.1770362 | AK60: 109.4791145 | AL60: 105.1289114 | AM60: 100.8627024 | AN60: 96.70504002
A61: =ROW() -> 61 | D61: Return on Working Capital | F61: 10.78537749 | AJ61: =AJ48*AJ$18 -> 1.572411557 | AK61: 2.28597141 | AL61: 2.413337462 | AM61: 2.331476859 | AN61: 2.182180199
A62: =ROW() -> 62 | D62: Tax | F62: 56.88126838 | AJ62: =AJ49*AJ$18 -> 10.09944205 | AK62: 12.40693535 | AL62: 11.92962223 | AM62: 11.44240255 | AN62: 11.00286621
A63: =ROW() -> 63 | D63: Imputation Credits | F63: -28.44063419 | I63: $2023 check to real | AJ63: =AJ50*AJ$18 -> -5.049721025 | AK63: -6.203467675 | AL63: -5.964811114 | AM63: -5.721201275 | AN63: -5.501433104
A64: =ROW() -> 64 | D64: Net Cost of Service | F64: =SUM(AJ64:AN64) -> 1173.632503 | I64: =F64/$AI$12 -> 1136.690076 | AJ64: =AJ51*AJ$18 -> 239.1958313 | AK64: 251.1354569 | AL64: 242.438267 | AM64: 225.5962218 | AN64: 215.2667261
A65: =ROW() -> 65 | D65: Total Smoothed Revenue | F65: =SUM(AJ65:AN65) -> 1173.632499 | I65: =F65/$AI$12 -> 1136.690071 | AJ65: =AJ52*AJ$18 -> 255.0999573 | AK65: 244.3968056 | AL65: 234.1551179 | AM65: 224.5193186 | AN65: 215.4612992
A66: =ROW() -> 66 | D66: Check CoS - Revenue (should be 0) | F66: =ROUND(F64-F65,5) -> 0
A67: =ROW() -> 67
A68: ="CHECK -- Cost of Service, Allowable Revenue [m$ "&Input!$G$52&"]" -> CHECK -- Cost of Service, Allowable Revenue [m$ 31/12/2023]
A69: =ROW() -> 69 | C69: Cost of Service | F69: PV
A70: =ROW() -> 70 | D70: OPEX | F70: =SUMPRODUCT($AJ$15:$AN$15,AJ70:AN70) -> 399.6753188 | AJ70: =Input!AJ1688 -> 84.82188905 | AK70: =Input!AK1688 -> 95.59031492 | AL70: =Input!AL1688 -> 96.91537817 | AM70: =Input!AM1688 -> 89.31434487 | AN70: =Input!AN1688 -> 89.27362224
A71: =ROW() -> 71 | D71: Depreciation | F71: 304.9897143 | AJ71: =-AJ23 -> 61.722102 | AK71: =-AK23 -> 71.49282151 | AL71: =-AL23 -> 72.04946717 | AM71: =-AM23 -> 72.08823834 | AN71: =-AN23 -> 71.34359197
A72: =ROW() -> 72 | D72: Accelerated depreciation | F72: 70.15409546 | AJ72: =-Asset!AJ20 -> 16 | AK72: =-Asset!AK20 -> 16 | AL72: =-Asset!AL20 -> 16 | AM72: =-Asset!AM20 -> 16 | AN72: =-Asset!AN20 -> 16
A73: =ROW() -> 73 | D73: Return on Asset | F73: 323.8796525 | AJ73: =AJ$14*AJ$21 -> 72.94389703 | AK73: 73.76663227 | AL73: 74.05406168 | AM73: 74.27717047 | AN73: 74.45123323
A74: =ROW() -> 74 | D74: Return on Working Capital | F74: 10.44588619 | AJ74: =AJ48/AJ$12 -> 1.592114151 | AK74: =AK48/AK$12 -> 2.419785139 | AL74: 2.670681516 | AM74: 2.69732446 | AN74: 2.639311972
A75: =ROW() -> 75 | D75: Tax | F75: 55.09081684 | AJ75: =AJ49/AJ$12 -> 10.22598983 | AK75: 13.13319915 | AL75: 13.20172668 | AM75: 13.23790634 | AN75: 13.30779031
A76: =ROW() -> 76 | D76: Imputation Credits | F76: -27.54540842 | I76: Check to nominal | AJ76: =-AJ75*WACC!AJ$30 -> -5.112994917 | AK76: =-AK75*WACC!AJ$30 -> -6.566599574 | AL76: =-AL75*WACC!AK$30 -> -6.600863341 | AM76: =-AM75*WACC!AL$30 -> -6.618953168 | AN76: =-AN75*WACC!AM$30 -> -6.653895155
A77: =ROW() -> 77 | D77: Net Cost of Service | F77: 1136.690076 | I77: =F77-I51 -> 1136.690076 | AJ77: =SUM(AJ70:AJ76) -> 242.1929971 | AK77: 265.8361534 | AL77: 268.2904519 | AM77: 260.9960313 | AN77: 260.3616546
A78: =ROW() -> 78 | D78: Total Smoothed Revenue | F78: 1136.690071 | I78: 1136.690071 | AJ78: =Revenue!AN$141 -> 258.2964047 | AK78: =Revenue!AO$141 -> 258.7030422 | AL78: =Revenue!AP$141 -> 259.1240367 | AM78: =Revenue!AQ$141 -> 259.7501441 | AN78: =Revenue!AR$141 -> 260.5969876
A79: =ROW() -> 79 | D79: Check CoS - Revenue (should be 0) | F79: =ROUND(F77-F78,5) -> 0
A80: =ROW() -> 80
A81: =ROW() -> 81 | C81: Cost of Service | F81: PV | AJ81: PV | AK81: PV | AL81: PV | AM81: PV | AN81: PV
A82: =ROW() -> 82 | D82: OPEX | F82: =SUM(AJ82:AN82) -> 399.6753188 | AJ82: =AJ70*AJ$15 -> 81.13531094 | AK82: 87.46168126 | AL82: 84.82006254 | AM82: 74.77029173 | AN82: 71.48797235
A83: =ROW() -> 83 | D83: Depreciation | F83: 304.9897143 | AJ83: =AJ71*AJ$15 -> 59.03950022 | AK83: 65.41334624 | AL83: 63.05748816 | AM83: 60.34930468 | AN83: 57.13007496
A84: =ROW() -> 84 | D84: Accelerated depreciation | F84: 70.15409546 | AJ84: =AJ72*AJ$15 -> 15.30459872 | AK84: 14.63942138 | AL84: 14.00315436 | AM84: 13.39454115 | AN84: 12.81237984
A85: =ROW() -> 85 | D85: Return on Asset | F85: 323.8796525 | AJ85: =AJ73*AJ$15 -> 69.77356709 | AK85: 67.49380086 | AL85: 64.81190355 | AM85: 62.18178853 | AN85: 59.61859247
A86: =ROW() -> 86 | D86: Return on Working Capital | F86: 10.44588619 | AJ86: =AJ74*AJ$15 -> 1.522916762 | AK86: 2.214015894 | AL86: 2.337372845 | AM86: 2.258088967 | AN86: 2.113491718
A87: =ROW() -> 87 | D87: Tax | F87: 55.09081684 | AJ87: =AJ75*AJ$15 -> 9.781541936 | AK87: 12.01640228 | AL87: 11.55411354 | AM87: 11.08223007 | AN87: 10.65652902
A88: =ROW() -> 88 | D88: Imputation Credits | F88: -27.54540842 | AJ88: =AJ76*AJ$15 -> -4.890770968 | AK88: -6.008201138 | AL88: -5.777056769 | AM88: -5.541115036 | AN88: -5.328264508
A89: =ROW() -> 89 | D89: Net Cost of Service | F89: 1136.690076 | AJ89: =AJ77*AJ$15 -> 231.6666647 | AK89: 243.2304668 | AL89: 234.8070382 | AM89: 218.4951301 | AN89: 208.4907758
A90: =ROW() -> 90 | D90: Total Smoothed Revenue | F90: 1136.690071 | AJ90: =AJ78*AJ$15 -> 247.0701766 | AK90: 236.703928 | AL90: 226.7846179 | AM90: 217.4521246 | AN90: 208.6792244
A91: =ROW() -> 91 | D91: Check CoS - Revenue (should be 0) | F91: =ROUND(F89-F90,5) -> 0
A92: =ROW() -> 92
A93: Credit Foncier Check (nominal)
A94: =ROW() -> 94 | C94: Net Cash Flow | F94: PV
A95: =ROW() -> 95 | D95: Total Smoothed Revenue | F95: =AI95+SUMPRODUCT($AJ$18:$AN$18,AJ95:AN95) -> 1173.632499 | AJ95: =AJ$52 -> 273.794625 | AK95: =AK$52 -> 281.5299409 | AL95: =AL$52 -> 289.4991218 | AM95: =AM$52 -> 297.9283584 | AN95: =AN$52 -> 306.8611683
A96: =ROW() -> 96 | D96: Opex | F96: =AI96+SUMPRODUCT($AJ$18:$AN$18,AJ96:AN96) -> -412.6647667 | AJ96: =-AJ$43 -> -89.91134558 | AK96: =-AK$43 -> -104.0248135 | AL96: =-AL$43 -> -108.2760103 | AM96: =-AM$43 -> -102.4418148 | AN96: =-AN$43 -> -105.1225046
A97: =ROW() -> 97 | D97: Tax | F97: -56.88126838 | AJ97: =-AJ$49 -> -10.83956649 | AK97: =-AK$49 -> -14.29201894 | AL97: =-AL$49 -> -14.74926189 | AM97: =-AM$49 -> -15.18362085 | AN97: =-AN$49 -> -15.67034262
A98: =ROW() -> 98 | D98: Imputation Credits | F98: 28.44063419 | AJ98: =-AJ$50 -> 5.419783243 | AK98: =-AK$50 -> 7.146009472 | AL98: =-AL$50 -> 7.374630947 | AM98: =-AM$50 -> 7.591810424 | AN98: =-AN$50 -> 7.83517131
A99: =ROW() -> 99 | D99: Asset Opening Value | F99: -1657.545605 | AI99: =-AI37 -> -1657.545605
A100: =ROW() -> 100 | D100: Capex | F100: -422.2132643 | AJ100: =-AJ$34 -> -101.5790127 | AK100: =-AK$34 -> -102.096828 | AL100: =-AL$34 -> -103.8566525 | AM100: =-AM$34 -> -105.4293763 | AN100: =-AN$34 -> -107.5069907
A101: =ROW() -> 101 | D101: Asset Residual Value | F101: 1358.017145 | AN101: =AN37 -> 1934.095493
A102: =ROW() -> 102 | D102: Working Capital Opening Value | F102: -23.02891076 | AI102: =-Working_Capital!AJ29 -> -23.02891076
A103: =ROW() -> 103 | D103: Working Capital Variation | F103: -18.25455347 | AJ103: =-Working_Capital!AJ30 -> -12.90400806 | AK103: =-Working_Capital!AK30 -> -4.782067028 | AL103: =-Working_Capital!AL30 -> -1.501480127 | AM103: =-Working_Capital!AM30 -> -0.1923266583 | AN103: =-Working_Capital!AN30 -> -1.026750383
A104: =ROW() -> 104 | D104: Working Capital Residual Value | F104: 30.49808674 | AN104: =Working_Capital!AN31 -> 43.43554302
A105: =ROW() -> 105 | D105: Net Cash Flow (should be 0) | F105: -4.419687457e-06 | AI105: =SUM(AI95:AI104) -> -1680.574516 | AJ105: =SUM(AJ95:AJ104) -> 63.98047537 | AK105: 63.48022291 | AL105: 68.49034796 | AM105: 82.27303021 | AN105: 2062.900787

Sheet B3 Tariff rebalance
B3: Projected P0 for closiing B3 tariff usage charge band 1 2025
B4: Actual B3 tariff band 2 2023 | C4: $/GJ | D4: $ 2023 | E4: 6.2
B6: Actual B3 volumes 2021 used to calculate 2023 tariff
B7: First 1.818255 GJ | D7: GJ | E7: =Load_Tariffs!AJ131 -> 1273263.126
B8: Volume > 1.825 <9.855 GJ | D8: GJ | E8: =Load_Tariffs!AJ132 -> 4361073.337
B9: Volume > 9.855 GJ | D9: GJ
B10: First 9.855 Gj band volume | D10: GJ | E10: =SUM(E7:E9) -> 5634336.464
B11: Forecast revenue from Bands 1 and 2 B3 tariff | D11: 2023 | E11: =E4*E8 -> 27038654.69
B12: Average tariff bands 1 and 2 $/GJ | D12: 2023 | E12: =E11/E10 -> 4.798906644
B14: Applyfprecast inflation for the 1 Jan 2024 taiff variaiton | D14: 2024 | E14: =E12*(1+Input!AI31) -> 5.049674553
B16: Deflate to $2023 | D16: 2023 | E16: =ROUND(E14*Input!AI52,2) -> 4.89

Sheet Price_path_AA6
A1: =Main!A1 -> GDS Tariff Model, September 2023
A2: Price Path
A3: Ref | B3: =COLUMN() -> 2 | C3: =COLUMN() -> 3 | D3: =COLUMN() -> 4 | E3: =COLUMN() -> 5 | F3: =COLUMN() -> 6 | G3: =COLUMN() -> 7 | H3: =COLUMN() -> 8 | I3: =COLUMN() -> 9 | J3: =COLUMN() -> 10 | K3: =COLUMN() -> 11
A4: =ROW() -> 4
A5: =ROW() -> 5 | B5: Smoothing parameters | F5: Annual price movements (Real % change)
A6: =ROW() -> 6 | B6: Rounding decimal places A1 usage tariff (Year 2020 only) | C6: 5 | D6: 5 | G6: P0 | H6: X_Factor_2026 | I6: X_Factor_2027 | J6: X_Factor_2028 | K6: X_Factor_2029
A7: =ROW() -> 7 | B7: Rounding decimal places all other tariffs | C7: 2 | D7: 2 | G7: 0.3856062165 | H7: 0 | I7: 0 | J7: 0 | K7: 0
A8: =ROW() -> 8
A9: =ROW() -> 9 | B9: Conditional formatting key | C9: X
A10: =ROW() -> 10 | D10: AA5 | F10: 2024 | G10: 2025 | H10: 2026 | I10: 2027 | J10: 2028 | K10: 2029
A11: =ROW() -> 11 | B11: WACC | C11: Real post tax | G11: =CoS!AJ14 -> 0.04543740663 | H11: =CoS!AK14 -> 0.04543740663 | I11: =CoS!AL14 -> 0.04543740663 | J11: =CoS!AM14 -> 0.04543740663 | K11: =CoS!AN14 -> 0.04543740663
A12: =ROW() -> 12 | B12: Discount factor | C12: Real post tax | G12: =CoS!AJ15 -> 0.9565374203 | H12: =CoS!AK15 -> 0.9149638364 | I12: =CoS!AL15 -> 0.8751971477 | J12: =CoS!AM15 -> 0.8371588219 | K12: =CoS!AN15 -> 0.8007737399
A13: =ROW() -> 13 | B13: Price change | C13: % | G13: =G7 -> 0.3856062165 | H13: =$H$7 -> 0 | I13: =IF(I$10<=Recalc_From_Year,I$7,H13) -> 0 | J13: =IF(J$10<=Recalc_From_Year,J$7,I13) -> 0 | K13: =IF(K$10<=Recalc_From_Year,K$7,J13) -> 0
A14: =ROW() -> 14 | B14: CPI | C14: % | G14: =Input!AJ49 -> 0.02663601745 | H14: =Input!AK49 -> 0.02663601745 | I14: =Input!AL49 -> 0.02663601745 | J14: =Input!AM49 -> 0.02663601745 | K14: =Input!AN49 -> 0.02663601745
A15: =ROW() -> 15
A16: =ROW() -> 16 | B16: Cost of service | D16: PV
A17: =ROW() -> 17 | B17: OPEX | C17: $ m real 2023 | D17: =SUMPRODUCT($G$12:$K$12,$G17:$K17) -> 399.6753188 | G17: =CoS!AJ70 -> 84.82188905 | H17: =CoS!AK70 -> 95.59031492 | I17: =CoS!AL70 -> 96.91537817 | J17: =CoS!AM70 -> 89.31434487 | K17: =CoS!AN70 -> 89.27362224
A18: =ROW() -> 18 | B18: Depreciation | C18: $ m real 2023 | D18: 304.9897143 | G18: =CoS!AJ71 -> 61.722102 | H18: =CoS!AK71 -> 71.49282151 | I18: =CoS!AL71 -> 72.04946717 | J18: =CoS!AM71 -> 72.08823834 | K18: =CoS!AN71 -> 71.34359197
A19: =ROW() -> 19 | B19: Accelerated depreciaiton | C19: $ m real 2023 | D19: 70.15409546 | G19: =CoS!AJ72 -> 16 | H19: =CoS!AK72 -> 16 | I19: =CoS!AL72 -> 16 | J19: =CoS!AM72 -> 16 | K19: =CoS!AN72 -> 16
A20: =ROW() -> 20 | B20: Return on Asset | C20: $ m real 2023 | D20: 323.8796525 | G20: =CoS!AJ73 -> 72.94389703 | H20: =CoS!AK73 -> 73.76663227 | I20: =CoS!AL73 -> 74.05406168 | J20: =CoS!AM73 -> 74.27717047 | K20: =CoS!AN73 -> 74.45123323
A21: =ROW() -> 21 | B21: Return on Working Capital | C21: $ m real 2023 | D21: 10.44588619 | G21: =CoS!AJ74 -> 1.592114151 | H21: =CoS!AK74 -> 2.419785139 | I21: =CoS!AL74 -> 2.670681516 | J21: =CoS!AM74 -> 2.69732446 | K21: =CoS!AN74 -> 2.639311972
A22: =ROW() -> 22 | B22: Tax | C22: $ m real 2023 | D22: 55.09081684 | G22: =CoS!AJ75 -> 10.22598983 | H22: =CoS!AK75 -> 13.13319915 | I22: =CoS!AL75 -> 13.20172668 | J22: =CoS!AM75 -> 13.23790634 | K22: =CoS!AN75 -> 13.30779031
A23: =ROW() -> 23 | B23: Imputation Credits | C23: $ m real 2023 | D23: -27.54540842 | G23: =CoS!AJ76 -> -5.112994917 | H23: =CoS!AK76 -> -6.566599574 | I23: =CoS!AL76 -> -6.600863341 | J23: =CoS!AM76 -> -6.618953168 | K23: =CoS!AN76 -> -6.653895155
A24: =ROW() -> 24 | B24: Net Cost of Service | C24: $ m real 2023 | D24: 1136.690076 | G24: =SUM(G17:G23) -> 242.1929971 | H24: =SUM(H17:H23) -> 265.8361534 | I24: =SUM(I17:I23) -> 268.2904519 | J24: =SUM(J17:J23) -> 260.9960313 | K24: =SUM(K17:K23) -> 260.3616546 | L24: =SUM(G24:K24) -> 1297.677288
A25: =ROW() -> 25 | B25: Total Tariff Revenue | C25: $ m real 2023 | D25: =SUMPRODUCT($G$12:$K$12,$G25:$K25) -> 1136.690071 | G25: =CoS!AJ78 -> 258.2964047 | H25: =CoS!AK78 -> 258.7030422 | I25: =CoS!AL78 -> 259.1240367 | J25: =CoS!AM78 -> 259.7501441 | K25: =CoS!AN78 -> 260.5969876 | L25: 1296.470615
A26: =ROW() -> 26 | B26: Check CoS - Revenue rounded to nearest $100k (should be 0) | C26: $ m real 2023 | D26: =ROUND(D24-D25,6) -> 4e-06
A27: =ROW() -> 27
A28: =ROW() -> 28 | F28: AAP5 closing tariff $ 2023 | G28: Fixed $ Increments
A29: =ROW() -> 29 | B29: Charging parameter ($ real at 31 December 2023) | C29: Units | F29: 2024 | G29: 2025 | H29: 2026 | I29: 2027 | J29: 2028 | K29: 2029
A30: =ROW() -> 30 | B30: Reference tariff A1
A31: =ROW() -> 31 | B31: Standing charge | C31: $/year | F31: =ROUND(Revenue!AM62,2) -> 38637.89
A32: =ROW() -> 32 | B32: Demand charge
A33: =ROW() -> 33 | B33: First 10 km | C33: $/GJ km | F33: =ROUND(Revenue!AM63,2) -> 162.85
A34: =ROW() -> 34 | B34: Distance > 10 km | C34: $/GJ km | F34: =ROUND(Revenue!AM64,2) -> 85.72
A35: =ROW() -> 35 | B35: Usage charge
A36: =ROW() -> 36 | B36: First 10 km | C36: $/GJ km | F36: =ROUND(Revenue!AM65,5) -> 0.03445
A37: =ROW() -> 37 | B37: Distance > 10 km | C37: $/GJ km | F37: =ROUND(Revenue!AM66,5) -> 0.01736
A38: =ROW() -> 38 | B38: Reference tariff A2
A39: =ROW() -> 39 | B39: Standing charge | C39: $/Year | F39: =ROUND(Revenue!AM68,2) -> 21378.22
A40: =ROW() -> 40 | B40: First 10 TJ | C40: $/GJ | F40: =ROUND(Revenue!AM72,2) -> 2.08
A41: =ROW() -> 41 | B41: Volume > 10 TJ | C41: $/GJ | F41: =ROUND(Revenue!AM73,2) -> 1.1
A42: =ROW() -> 42 | B42: Reference tariff B1
A43: =ROW() -> 43 | B43: Standing charge | C43: $/Year | F43: =ROUND(Revenue!AM75,2) -> 1080.89
A44: =ROW() -> 44 | B44: First 5 TJ | C44: $/GJ | F44: =ROUND(Revenue!AM76,2) -> 4.11
A45: =ROW() -> 45 | B45: Volume > 5 TJ | C45: $/GJ | F45: =ROUND(Revenue!AM78,2) -> 3.53
A46: =ROW() -> 46 | B46: Reference tariff B2
A47: =ROW() -> 47 | B47: Standing charge | C47: $/Year | F47: =ROUND(Revenue!AM80,2) -> 271.25
A48: =ROW() -> 48 | B48: First 100 GJ | C48: $/GJ | F48: =ROUND(Revenue!AM81,2) -> 6.88
A49: =ROW() -> 49 | B49: Volume > 100 GJ | C49: $/GJ | F49: =ROUND(Revenue!AM82,2) -> 4.1
A50: =ROW() -> 50 | B50: Reference tariff B3
A51: =ROW() -> 51 | B51: Standing charge | C51: $/Year | F51: =ROUND(Revenue!AM84,2) -> 134.71
A52: =ROW() -> 52
A53: =ROW() -> 53 | B53: First 9.855 GJ | C53: $/GJ | D53: Rebalanced tariff | F53: =ROUND('B3 Tariff rebalance'!E16,2) -> 4.89
A54: =ROW() -> 54 | B54: Volume > 9.855 GJ | C54: $/GJ | F54: =ROUND(Revenue!AM90,2) -> 4.22
A55: =ROW() -> 55
A56: =ROW() -> 56 | F56: AAP5 closing tariff | G56: Tariffs to which X factor applied (X Factor will be applied to any cell containing "X")
A57: =ROW() -> 57 | B57: Charging parameter ($ real at 30 June 2019) | C57: Units $ real | F57: =F$29 -> 2024 | G57: 2025 | H57: 2026 | I57: 2027 | J57: 2028 | K57: 2029
A58: =ROW() -> 58 | B58: Reference tariff A1
A59: =ROW() -> 59 | B59: Standing charge | C59: $/year | F59: =F31 -> 38637.89 | G59: =IF(G31<>0,0,"x") -> x | H59: =IF(H31<>0,0,"x") -> x | I59: =IF(I31<>0,0,"x") -> x | J59: =IF(J31<>0,0,"x") -> x | K59: =IF(K31<>0,0,"x") -> x
A60: =ROW() -> 60 | B60: Demand charge
A61: =ROW() -> 61 | B61: First 10 km | C61: $/GJ km | F61: 162.85 | G61: =IF(G33<>0,0,"x") -> x | H61: x | I61: x | J61: x | K61: x
A62: =ROW() -> 62 | B62: Distance > 10 km | C62: $/GJ km | F62: 85.72 | G62: x | H62: x | I62: x | J62: x | K62: x
A63: =ROW() -> 63 | B63: Usage charge | F63: 0
A64: =ROW() -> 64 | B64: First 10 km | C64: $/GJ km | F64: 0.03445 | G64: =IF(G36<>0,0,"x") -> x | H64: x | I64: x | J64: x | K64: x
A65: =ROW() -> 65 | B65: Distance > 10 km | C65: $/GJ km | F65: 0.01736 | G65: x | H65: x | I65: x | J65: x | K65: x
A66: =ROW() -> 66 | B66: Reference tariff A2 | F66: 0
A67: =ROW() -> 67 | B67: Standing charge | C67: $/Year | F67: 21378.22 | G67: =IF(G39<>0,0,"x") -> x | H67: x | I67: x | J67: x | K67: x
A68: =ROW() -> 68 | B68: First 10 TJ | C68: $/GJ | F68: 2.08 | G68: x | H68: x | I68: x | J68: x | K68: x
A69: =ROW() -> 69 | B69: Volume > 10 TJ | C69: $/GJ | F69: 1.1 | G69: x | H69: x | I69: x | J69: x | K69: x
A70: =ROW() -> 70 | B70: Reference tariff B1 | F70: 0
A71: =ROW() -> 71 | B71: Standing charge | C71: $/Year | F71: 1080.89 | G71: =IF(G43<>0,0,"x") -> x | H71: x | I71: x | J71: x | K71: x
A72: =ROW() -> 72 | B72: First 5 TJ | C72: $/GJ | F72: 4.11 | G72: x | H72: x | I72: x | J72: x | K72: x
A73: =ROW() -> 73 | B73: Volume > 5 TJ | C73: $/GJ | F73: 3.53 | G73: x | H73: x | I73: x | J73: x | K73: x
A74: =ROW() -> 74 | B74: Reference tariff B2 | F74: 0
A75: =ROW() -> 75 | B75: Standing charge | C75: $/Year | F75: 271.25 | G75: =IF(G47<>0,0,"x") -> x | H75: x | I75: x | J75: x | K75: x
A76: =ROW() -> 76 | B76: First 100 GJ | C76: $/GJ | F76: 6.88 | G76: x | H76: x | I76: x | J76: x | K76: x
A77: =ROW() -> 77 | B77: Volume > 100 GJ | C77: $/GJ | F77: 4.1 | G77: x | H77: x | I77: x | J77: x | K77: x
A78: =ROW() -> 78 | B78: Reference tariff B3 | F78: 0
A79: =ROW() -> 79 | B79: Standing charge | C79: $/Year | F79: 134.71 | G79: =IF(G51<>0,0,"x") -> x | H79: x | I79: x | J79: x | K79: x
A80: =ROW() -> 80 | G80: x | H80: x | I80: x | J80: x | K80: x
A81: =ROW() -> 81 | B81: Volume > 1.825 <9.855 GJ | C81: $/GJ | F81: 4.89 | G81: x | H81: x | I81: x | J81: x | K81: x
A82: =ROW() -> 82 | B82: Volume > 9.855 GJ | C82: $/GJ | F82: 4.22 | G82: x | H82: x | I82: x | J82: x | K82: x
A83: =ROW() -> 83
A84: =ROW() -> 84 | B84: Manual tariff adjustment to balance NPV = 0 (necessary due to tariff rounding)
A85: =ROW() -> 85 | F85: AAP5 closing tariff | G85: Forecast tariffs ($ real)
A86: =ROW() -> 86 | B86: Charging parameter ($ real at 31 December 2019) | C86: Units $ real | F86: =F$29 -> 2024 | G86: 2025 | H86: 2026 | I86: 2027 | J86: 2028 | K86: 2029
A87: =ROW() -> 87 | B87: Reference tariff A1
A88: =ROW() -> 88 | B88: Standing charge | C88: $/year | G88: 1.5 | L88: =D26 -> 4e-06
A89: =ROW() -> 89 | B89: Demand charge
A90: =ROW() -> 90 | B90: First 10 km | C90: $/GJ km
A91: =ROW() -> 91 | B91: Distance > 10 km | C91: $/GJ km
A92: =ROW() -> 92 | B92: Usage charge
A93: =ROW() -> 93 | B93: First 10 km | C93: $/GJ km
A94: =ROW() -> 94 | B94: Distance > 10 km | C94: $/GJ km
A95: =ROW() -> 95 | B95: Reference tariff A2
A96: =ROW() -> 96 | B96: Standing charge | C96: $/Year
A97: =ROW() -> 97 | B97: First 10 TJ | C97: $/GJ
A98: =ROW() -> 98 | B98: Volume > 10 TJ | C98: $/GJ
A99: =ROW() -> 99 | B99: Reference tariff B1
A100: =ROW() -> 100 | B100: Standing charge | C100: $/Year
A101: =ROW() -> 101 | B101: First 5 TJ | C101: $/GJ
A102: =ROW() -> 102 | B102: Volume > 5 TJ | C102: $/GJ
A103: =ROW() -> 103 | B103: Reference tariff B2
A104: =ROW() -> 104 | B104: Standing charge | C104: $/Year | G104: 27.31
A105: =ROW() -> 105 | B105: First 100 GJ | C105: $/GJ | G105: =-0.56 -> -0.56
A106: =ROW() -> 106 | B106: Volume > 100 GJ | C106: $/GJ | G106: 1
A107: =ROW() -> 107 | B107: Reference tariff B3
A108: =ROW() -> 108 | B108: Standing charge | C108: $/Year | G108: =-18.7 -> -18.7
A109: =ROW() -> 109
A110: =ROW() -> 110 | B110: Volume > 1.825 <9.855 GJ | C110: $/GJ | G110: 1.5
A111: =ROW() -> 111 | B111: Volume > 9.855 GJ | C111: $/GJ | G111: 1
A112: =ROW() -> 112
A113: =ROW() -> 113 | B113: Proposed Tariffs
A114: =ROW() -> 114 | F114: AAP5 closing tariff | G114: ="Forecast tariffs (Real "&Input!G52&" $)" -> Forecast tariffs (Real 31/12/2023 $)
A115: =ROW() -> 115 | B115: Charging parameter ($ real at 31 December 2019) | C115: Units $ real | F115: =F$29 -> 2024 | G115: 2025 | H115: 2026 | I115: 2027 | J115: 2028 | K115: 2029
A116: =ROW() -> 116 | B116: Reference tariff A1
A117: =ROW() -> 117 | B117: Standing charge | C117: $/year | F117: =F59 -> 38637.89 | G117: =ROUND(IF(G31<>0,F117+G31,F117*(1+G$13)),$C$7)+G88 -> 53538.4 | H117: =IF(H31<>0,G117+H31,G117*(1+H$13))+H88 -> 53538.4 | I117: =IF(I31<>0,H117+I31,H117*(1+I$13))+I88 -> 53538.4 | J117: 53538.4 | K117: 53538.4
A118: =ROW() -> 118 | B118: Demand charge
A119: =ROW() -> 119 | B119: First 10 km | C119: $/GJ km | F119: =F61 -> 162.85 | G119: =ROUND(IF(G33<>0,F119+G33,F119*(1+G$13)),$C$7)+G90 -> 225.65 | H119: =IF(H33<>0,G119+H33,G119*(1+H$13))+H90 -> 225.65 | I119: =IF(I33<>0,H119+I33,H119*(1+I$13))+I90 -> 225.65 | J119: 225.65 | K119: 225.65
A120: =ROW() -> 120 | B120: Distance > 10 km | C120: $/GJ km | F120: =F62 -> 85.72 | G120: =ROUND(IF(G34<>0,F120+G34,F120*(1+G$13)),$C$7)+G91 -> 118.77 | H120: =IF(H34<>0,G120+H34,G120*(1+H$13))+H91 -> 118.77 | I120: =IF(I34<>0,H120+I34,H120*(1+I$13))+I91 -> 118.77 | J120: 118.77 | K120: 118.77
A121: =ROW() -> 121 | B121: Usage charge
A122: =ROW() -> 122 | B122: First 10 km | C122: $/GJ km | F122: =F64 -> 0.03445 | G122: =ROUND(IF(G36<>0,F122+G36,F122*(1+G$13)),$C$6)+G93 -> 0.04773 | H122: =IF(H36<>0,G122+H36,G122*(1+H$13))+H93 -> 0.04773 | I122: =IF(I36<>0,H122+I36,H122*(1+I$13))+I93 -> 0.04773 | J122: 0.04773 | K122: 0.04773
A123: =ROW() -> 123 | B123: Distance > 10 km | C123: $/GJ km | F123: =F65 -> 0.01736 | G123: =ROUND(IF(G37<>0,F123+G37,F123*(1+G$13)),$C$6)+G94 -> 0.02405 | H123: =IF(H37<>0,G123+H37,G123*(1+H$13))+H94 -> 0.02405 | I123: =IF(I37<>0,H123+I37,H123*(1+I$13))+I94 -> 0.02405 | J123: 0.02405 | K123: 0.02405
A124: =ROW() -> 124 | B124: Reference tariff A2
A125: =ROW() -> 125 | B125: Standing charge | C125: $/Year | F125: =F67 -> 21378.22 | G125: =ROUND(IF(G39<>0,F125+G39,F125*(1+G$13)),$C$7)+G96 -> 29621.79 | H125: =IF(H39<>0,G125+H39,G125*(1+H$13))+H96 -> 29621.79 | I125: =IF(I39<>0,H125+I39,H125*(1+I$13))+I96 -> 29621.79 | J125: 29621.79 | K125: 29621.79
A126: =ROW() -> 126 | B126: First 10 TJ | C126: $/GJ | F126: 2.08 | G126: =ROUND(IF(G40<>0,F126+G40,F126*(1+G$13)),$C$7)+G97 -> 2.88 | H126: =IF(H40<>0,G126+H40,G126*(1+H$13))+H97 -> 2.88 | I126: =IF(I40<>0,H126+I40,H126*(1+I$13))+I97 -> 2.88 | J126: 2.88 | K126: 2.88
A127: =ROW() -> 127 | B127: Volume > 10 TJ | C127: $/GJ | F127: 1.1 | G127: =ROUND(IF(G41<>0,F127+G41,F127*(1+G$13)),$C$7)+G98 -> 1.52 | H127: =IF(H41<>0,G127+H41,G127*(1+H$13))+H98 -> 1.52 | I127: =IF(I41<>0,H127+I41,H127*(1+I$13))+I98 -> 1.52 | J127: 1.52 | K127: 1.52
A128: =ROW() -> 128 | B128: Reference tariff B1 | F128: 0
A129: =ROW() -> 129 | B129: Standing charge | C129: $/Year | F129: 1080.89 | G129: =ROUND(IF(G43<>0,F129+G43,F129*(1+G$13)),$C$7)+G100 -> 1497.69 | H129: =IF(H43<>0,G129+H43,G129*(1+H$13))+H100 -> 1497.69 | I129: =IF(I43<>0,H129+I43,H129*(1+I$13))+I100 -> 1497.69 | J129: 1497.69 | K129: 1497.69
A130: =ROW() -> 130 | B130: First 5 TJ | C130: $/GJ | F130: 4.11 | G130: =ROUND(IF(G44<>0,F130+G44,F130*(1+G$13)),$C$7)+G101 -> 5.69 | H130: =IF(H44<>0,G130+H44,G130*(1+H$13))+H101 -> 5.69 | I130: =IF(I44<>0,H130+I44,H130*(1+I$13))+I101 -> 5.69 | J130: 5.69 | K130: 5.69
A131: =ROW() -> 131 | B131: Volume > 5 TJ | C131: $/GJ | F131: 3.53 | G131: =ROUND(IF(G45<>0,F131+G45,F131*(1+G$13)),$C$7)+G102 -> 4.89 | H131: =IF(H45<>0,G131+H45,G131*(1+H$13))+H102 -> 4.89 | I131: =IF(I45<>0,H131+I45,H131*(1+I$13))+I102 -> 4.89 | J131: 4.89 | K131: 4.89
A132: =ROW() -> 132 | B132: Reference tariff B2 | F132: 0
A133: =ROW() -> 133 | B133: Standing charge | C133: $/Year | F133: 271.25 | G133: =ROUND(IF(G47<>0,F133+G47,F133*(1+G$13)),$C$7)+G104 -> 403.16 | H133: =IF(H47<>0,G133+H47,G133*(1+H$13))+H104 -> 403.16 | I133: =IF(I47<>0,H133+I47,H133*(1+I$13))+I104 -> 403.16 | J133: 403.16 | K133: 403.16
A134: =ROW() -> 134 | B134: First 100 GJ | C134: $/GJ | F134: 6.88 | G134: =ROUND(IF(G48<>0,F134+G48,F134*(1+G$13)),$C$7)+G105 -> 8.97 | H134: =IF(H48<>0,G134+H48,G134*(1+H$13))+H105 -> 8.97 | I134: =IF(I48<>0,H134+I48,H134*(1+I$13))+I105 -> 8.97 | J134: 8.97 | K134: 8.97
A135: =ROW() -> 135 | B135: Volume > 100 GJ | C135: $/GJ | F135: 4.1 | G135: =ROUND(IF(G49<>0,F135+G49,F135*(1+G$13)),$C$7)+G106 -> 6.68 | H135: =IF(H49<>0,G135+H49,G135*(1+H$13))+H106 -> 6.68 | I135: =IF(I49<>0,H135+I49,H135*(1+I$13))+I106 -> 6.68 | J135: 6.68 | K135: 6.68
A136: =ROW() -> 136 | B136: Reference tariff B3 | F136: 0
A137: =ROW() -> 137 | B137: Standing charge | C137: $/Year | F137: 134.71 | G137: =ROUND(IF(G51<>0,F137+G51,F137*(1+G$13)),$C$7)+G108 -> 167.96 | H137: =IF(H51<>0,G137+H51,IF($C$8=0,G137*(1+H$13),$F$137)) -> 167.96 | I137: =IF(I51<>0,H137+I51,IF($C$8=0,H137*(1+I$13),$F$137)) -> 167.96 | J137: =IF(J51<>0,I137+J51,IF($C$8=0,I137*(1+J$13),$F$137)) -> 167.96 | K137: =IF(K51<>0,J137+K51,IF($C$8=0,J137*(1+K$13),$F$137)) -> 167.96
A138: =ROW() -> 138 | F138: 0
A139: =ROW() -> 139 | B139: Volume > 1.825 <9.855 GJ | C139: $/GJ | F139: 4.89 | G139: =ROUND(IF(G53<>0,F139+G53,F139*(1+G$13)),$C$7)+G110 -> 8.28 | H139: =IF(H53<>0,G139+H53,G139*(1+IF($C$8=0,H$13,#REF!)))+H110 -> 8.28 | I139: =IF(I53<>0,H139+I53,H139*(1+IF($C$8=0,I$13,#REF!)))+I110 -> 8.28 | J139: =IF(J53<>0,I139+J53,I139*(1+IF($C$8=0,J$13,#REF!)))+J110 -> 8.28 | K139: =IF(K53<>0,J139+K53,J139*(1+IF($C$8=0,K$13,#REF!)))+K110 -> 8.28
A140: =ROW() -> 140 | B140: Volume > 9.855 GJ | C140: $/GJ | F140: 4.22 | G140: 6.85 | H140: =IF(H54<>0,G140+H54,G140*(1+IF($C$8=0,H$13,#REF!)))+H111 -> 6.85 | I140: =IF(I54<>0,H140+I54,H140*(1+IF($C$8=0,I$13,#REF!)))+I111 -> 6.85 | J140: =IF(J54<>0,I140+J54,I140*(1+IF($C$8=0,J$13,#REF!)))+J111 -> 6.85 | K140: =IF(K54<>0,J140+K54,J140*(1+IF($C$8=0,K$13,#REF!)))+K111 -> 6.85
A141: =ROW() -> 141
A142: =ROW() -> 142 | B142: Average B3 customer bill ($ real December 2023)
A143: =ROW() -> 143

Sheet Load_Tariffs
A1: =Main!A1 -> GDS Tariff Model, September 2023
A2: Inputs for Tariff Revenue
A3: Ref | C3: =COLUMN() -> 3 | D3: =COLUMN() -> 4 | E3: =COLUMN() -> 5 | F3: =COLUMN() -> 6 | G3: =COLUMN() -> 7 | H3: =COLUMN() -> 8 | I3: =COLUMN() -> 9 | J3: =COLUMN() -> 10 | K3: =COLUMN() -> 11 | L3: =COLUMN() -> 12 | M3: =COLUMN() -> 13 | N3: =COLUMN() -> 14 | O3: =COLUMN() -> 15 | P3: =COLUMN() -> 16 | Q3: =COLUMN() -> 17 | R3: =COLUMN() -> 18 | S3: =COLUMN() -> 19 | T3: =COLUMN() -> 20 | U3: =COLUMN() -> 21 | V3: =COLUMN() -> 22 | W3: =COLUMN() -> 23 | X3: =COLUMN() -> 24 | Y3: =COLUMN() -> 25 | Z3: =COLUMN() -> 26 | AA3: =COLUMN() -> 27 | AB3: =COLUMN() -> 28 | AC3: =COLUMN() -> 29 | AD3: =COLUMN() -> 30 | AE3: =COLUMN() -> 31 | AF3: =COLUMN() -> 32 | AG3: =COLUMN() -> 33 | AH3: =COLUMN() -> 34 | AI3: =COLUMN() -> 35 | AJ3: =COLUMN() -> 36 | AK3: =COLUMN() -> 37 | AL3: =COLUMN() -> 38 | AM3: =COLUMN() -> 39 | AN3: =COLUMN() -> 40 | AO3: =COLUMN() -> 41 | AP3: =COLUMN() -> 42 | AQ3: =COLUMN() -> 43 | AR3: =COLUMN() -> 44
A4: =ROW() -> 4 | J4: Year ending 31 December | O4: Year ending 31 December | W4: Year Ending 30 June | AD4: Year ending 31 December | AI4: Year ending 31 December | AN4: Year ending 31 December
A5: Regulatory Period | J5: 1 | K5: 1 | L5: 1 | M5: 1 | N5: 1 | O5: 2 | P5: 2 | Q5: 2 | R5: 2 | S5: 2 | T5: 3 | U5: 3 | V5: 3 | W5: 3 | X5: 3 | Y5: 3 | Z5: 3 | AA5: 4 | AB5: 4 | AC5: 4 | AD5: 4 | AE5: 4 | AF5: 4 | AG5: 4 | AH5: 4 | AI5: 5 | AJ5: 5 | AK5: 5 | AL5: 5 | AM5: 5 | AN5: 6 | AO5: 6 | AP5: 6 | AQ5: 6 | AR5: 6
A6: Year ending | I6: 1999 | J6: 2000 | K6: 2001 | L6: 2002 | M6: 2003 | N6: 2004 | O6: 2005 | P6: 2006 | Q6: 2007 | R6: 2008 | S6: =1+R6 -> 2009 | T6: =1+S6 -> 2010 | U6: 2010 | V6: =1+U6 -> 2011 | W6: =T6+1 -> 2011 | X6: =1+V6 -> 2012 | Y6: =1+X6 -> 2013 | Z6: =1+Y6 -> 2014 | AA6: 2014 | AB6: 2015 | AC6: 2015 | AD6: 2015 | AE6: =1+AD6 -> 2016 | AF6: 2017 | AG6: 2018 | AH6: 2019 | AI6: 2020 | AJ6: 2021 | AK6: 2022 | AL6: 2023 | AM6: 2024 | AN6: =1+AM6 -> 2025 | AO6: =1+AN6 -> 2026 | AP6: =1+AO6 -> 2027 | AQ6: =1+AP6 -> 2028 | AR6: =1+AQ6 -> 2029
A7: Months | I7: 1 to 12 | J7: 1 to 12 | K7: 1 to 12 | L7: 1 to 12 | M7: 1 to 12 | N7: 1 to 12 | O7: 1 to 12 | P7: 1 to 12 | Q7: 1 to 12 | R7: 1 to 12 | S7: 1 to 12 | T7: 1 to 6 | U7: 7 to 12 | V7: 1 to 6 | W7: 7 to 6 | X7: 7 to 6 | Y7: 7 to 6 | Z7: 7 to 6 | AA7: 7 to 12 | AB7: 1 to 9 | AC7: 10 to 12 | AD7: 1 to 12 | AE7: 1 to 12 | AF7: 1 to 12 | AG7: 1 to 12 | AH7: 1 to 12 | AI7: 1 to 12 | AJ7: 1 to 12 | AK7: 1 to 12 | AL7: 1 to 12 | AM7: 1 to 12 | AN7: 1 to 12 | AO7: 1 to 12 | AP7: 1 to 12 | AQ7: 1 to 12 | AR7: 1 to 12
A8: Days | I8: =Input!I8 -> 365 | J8: =Input!J8 -> 366 | K8: =Input!K8 -> 365 | L8: =Input!L8 -> 365 | M8: =Input!M8 -> 365 | N8: =Input!N8 -> 366 | O8: =Input!O8 -> 365 | P8: =Input!P8 -> 365 | Q8: =Input!Q8 -> 365 | R8: =Input!R8 -> 366 | S8: =Input!S8 -> 365 | T8: =Input!T8 -> 181 | U8: 184 | V8: 181 | W8: =Input!U8 -> 365 | X8: =Input!V8 -> 366 | Y8: =Input!W8 -> 365 | Z8: =Input!X8 -> 365 | AA8: =DATEVALUE("31/12/2014")-DATEVALUE("30/6/2014") -> 184 | AB8: =DATEVALUE("30/9/2015")-DATEVALUE("31/12/2014") -> 273 | AC8: =DATEVALUE("31/12/2015")-DATEVALUE("30/9/2015") -> 92 | AD8: =Input!Z8 -> 365 | AE8: =Input!AA8 -> 366 | AF8: =Input!AB8 -> 365 | AG8: =Input!AC8 -> 365 | AH8: =Input!AD8 -> 365 | AI8: =Input!AE8 -> 366 | AJ8: =Input!AF8 -> 365 | AK8: =Input!AG8 -> 365 | AL8: =Input!AH8 -> 365 | AM8: =Input!AI8 -> 366 | AN8: =Input!AJ8 -> 366 | AO8: =Input!AK8 -> 365 | AP8: =Input!AL8 -> 365 | AQ8: =Input!AM8 -> 365 | AR8: =Input!AN8 -> 366
A9: Year portion | I9: =Input!I9 -> 1 | J9: =Input!J9 -> 1 | K9: =Input!K9 -> 1 | L9: =Input!L9 -> 1 | M9: =Input!M9 -> 1 | N9: =Input!N9 -> 1 | O9: =Input!O9 -> 1 | P9: =Input!P9 -> 1 | Q9: =Input!Q9 -> 1 | R9: =Input!R9 -> 1 | S9: =Input!S9 -> 1 | T9: =Input!T9 -> 0.495890411 | U9: =U8/365 -> 0.504109589 | V9: =1-U9 -> 0.495890411 | W9: =Input!U9 -> 1 | X9: =Input!V9 -> 1 | Y9: =Input!W9 -> 1 | Z9: =Input!X9 -> 1 | AA9: =Input!Y9 -> 0.504109589 | AB9: =AB8/365 -> 0.7479452055 | AC9: =1-AB9 -> 0.2520547945 | AD9: =Input!Z9 -> 1 | AE9: =Input!AA9 -> 1 | AF9: =Input!AB9 -> 1 | AG9: =Input!AC9 -> 1 | AH9: =Input!AD9 -> 1 | AI9: =Input!AE9 -> 1 | AJ9: =Input!AF9 -> 1 | AK9: =Input!AG9 -> 1 | AL9: =Input!AH9 -> 1 | AM9: =Input!AI9 -> 1 | AN9: =Input!AJ9 -> 1 | AO9: =Input!AK9 -> 1 | AP9: =Input!AL9 -> 1 | AQ9: =Input!AM9 -> 1 | AR9: =Input!AN9 -> 1
A10: Financial Parameters
A11: =ROW() -> 11 | C11: Actual and Forecast Inflations used in calculation
A12: =ROW() -> 12 | D12: Selected CPI period | I12: =Input!I47 -> 1999-12-31 | J12: =Input!J47 -> 2000-12-31 | K12: =Input!K47 -> 2001-12-31 | L12: =Input!L47 -> 2002-12-31 | M12: =Input!M47 -> 2003-12-31 | N12: =Input!N47 -> 2004-12-31 | O12: =Input!O47 -> 2005-12-31 | P12: =Input!P47 -> 2006-12-31 | Q12: =Input!Q47 -> 2007-12-31 | R12: =Input!R47 -> 2008-12-31 | S12: =Input!S47 -> 2009-12-31 | T12: =Input!T47 -> 2010-06-30 | U12: 2010-12-31 | V12: 2011-06-06 | W12: =Input!U47 -> 2011-06-30 | X12: =Input!V47 -> 2012-06-30 | Y12: =Input!W47 -> 2013-06-30 | Z12: =Input!X47 -> 2014-06-30 | AA12: =Input!Y47 -> 2014-12-31 | AB12: =AD12 -> 2015-12-31 | AC12: 2015-12-31 | AD12: =Input!Z47 -> 2015-12-31 | AE12: =Input!AA47 -> 2016-12-31 | AF12: =Input!AB47 -> 2017-12-31 | AG12: =Input!AC47 -> 2018-12-31 | AH12: =Input!AD47 -> 2019-12-31 | AI12: =Input!AE47 -> 2020-12-31 | AJ12: =Input!AF47 -> 2021-12-31 | AK12: =Input!AG47 -> 2022-12-31 | AL12: =Input!AH47 -> 2023-12-31 | AM12: =Input!AI47 -> 2024-12-31 | AN12: =Input!AJ47 -> 2025-12-31 | AO12: =Input!AK47 -> 2026-12-31 | AP12: =Input!AL47 -> 2027-12-31 | AQ12: =Input!AM47 -> 2028-12-31 | AR12: =Input!AN47 -> 2029-12-03
A13: =ROW() -> 13 | D13: CPI | I13: =Input!I48 -> 69.06674058 | J13: =Input!J48 -> 73.07383592 | K13: =Input!K48 -> 75.3556541 | L13: =Input!L48 -> 77.63747228 | M13: =Input!M48 -> 79.47405765 | N13: =Input!N48 -> 81.53325942 | O13: =Input!O48 -> 83.81507761 | P13: =Input!P48 -> 86.5421286 | Q13: =Input!Q48 -> 89.10221729 | R13: =Input!R48 -> 92.38580931 | S13: =Input!S48 -> 94.33370288 | T13: =Input!T48 -> 95.78070953 | U13: =T13*(1+U14) -> 96.83813747 | V13: =U13*(1+V14) -> 99.23126386 | W13: =Input!U48 -> 99.23126386 | X13: =Input!V48 -> 100.4 | Y13: =Input!W48 -> 102.8 | Z13: =Input!X48 -> 105.9 | AA13: =Input!Y48 -> 106.6 | AB13: =AD13 -> 108.4 | AC13: =AD13 -> 108.4 | AD13: =Input!Z$48 -> 108.4 | AE13: =Input!AA$48 -> 110 | AF13: =Input!AB$48 -> 112.1 | AG13: =Input!AC$48 -> 114.1 | AH13: =Input!AD$48 -> 116.2 | AI13: =Input!AE$48 -> 117.2 | AJ13: =Input!AF$48 -> 121.3 | AK13: =Input!AG$48 -> 130.8 | AL13: =Input!AH$48 -> 136.686 | AM13: =Input!AI$48 -> 141.128295 | AN13: =Input!AJ$48 -> 144.8873907 | AO13: =Input!AK$48 -> 148.7466138 | AP13: =Input!AL$48 -> 152.7086312 | AQ13: =Input!AM$48 -> 156.776181 | AR13: =Input!AN$48 -> 160.9520741
A14: =ROW() -> 14 | D14: Inflation | J14: =J13/I13-1 -> 0.05801772764 | K14: 0.03122619954 | L14: 0.03028064993 | M14: 0.02365591398 | N14: 0.02591036415 | O14: 0.02798634812 | P14: 0.03253652058 | Q14: 0.02958199357 | R14: 0.03685196752 | S14: 0.02108433735 | T14: 0.01533923304 | U14: 0.01104009297 | V14: 0.02471264368 | W14: =W13/T13-1 -> 0.03602556653 | X14: =X13/W13-1 -> 0.01177790241 | Y14: 0.02390438247 | Z14: 0.03015564202 | AA14: 0.006610009443 | AB14: 0.01688555347 | AC14: =AD14 -> 0.01688555347 | AD14: =AD13/AA13-1 -> 0.01688555347 | AE14: 0.0147601476 | AF14: 0.01909090909 | AG14: 0.0178412132 | AH14: 0.01840490798 | AI14: =AI13/AH13-1 -> 0.008605851979 | AJ14: 0.03498293515 | AK14: =AK13/AJ13-1 -> 0.07831821929 | AL14: =AL13/AK13-1 -> 0.045 | AM14: =AM13/AL13-1 -> 0.0325 | AN14: =AN13/AM13-1 -> 0.02663601745 | AO14: =AO13/AN13-1 -> 0.02663601745 | AP14: =AP13/AO13-1 -> 0.02663601745 | AQ14: =AQ13/AP13-1 -> 0.02663601745 | AR14: =AR13/AQ13-1 -> 0.02663601745
A15: =ROW() -> 15 | C15: Inflation to Convert from the end of the period
A16: =ROW() -> 16 | D16: ="Inflation Factor (convert to real "&Input!$G$52&" $)" -> Inflation Factor (convert to real 31/12/2023 $) | G16: Base period | H16: =Input!G47 -> 2023-12-31 | I16: =Input!I52 -> 1.979042284 | J16: =Input!J52 -> 1.870519021 | K16: =Input!K52 -> 1.813878489 | L16: =Input!L52 -> 1.760567365 | M16: =Input!M52 -> 1.719881985 | N16: =Input!N52 -> 1.676444692 | O16: =Input!O52 -> 1.630804432 | P16: =Input!P52 -> 1.579415739 | Q16: =Input!Q52 -> 1.534035899 | R16: =Input!R52 -> 1.479512936 | S16: =Input!S52 -> 1.448962522 | T16: =HLOOKUP($H$16,$I$12:$AM$13,2,FALSE)/T$13 -> 1.427072327 | U16: =HLOOKUP($H$16,$I$12:$AM$13,2,FALSE)/U$13 -> 1.411489353 | V16: 1.377448948 | W16: =Input!U52 -> 1.377448948 | X16: =Input!V52 -> 1.361414343 | Y16: =Input!W52 -> 1.32963035 | Z16: =Input!X52 -> 1.290708215 | AA16: =Input!Y52 -> 1.282232645 | AB16: =AC16 -> 1.260940959 | AC16: =AD16 -> 1.260940959 | AD16: =Input!Z52 -> 1.260940959 | AE16: =Input!AA52 -> 1.2426 | AF16: =Input!AB52 -> 1.219322034 | AG16: =Input!AC52 -> 1.197949167 | AH16: =Input!AD52 -> 1.176299484 | AI16: =Input!AE52 -> 1.166262799 | AJ16: =Input!AF52 -> 1.126842539 | AK16: =Input!AG52 -> 1.045 | AL16: =Input!AH52 -> 1 | AM16: =Input!AI52 -> 0.9685230024 | AN16: =Input!AJ52 -> 0.9433947241 | AO16: =Input!AK52 -> 0.9189183976 | AP16: =Input!AL52 -> 0.8950771081 | AQ16: =Input!AM52 -> 0.8718543797 | AR16: =Input!AN52 -> 0.8492341636
A17: =ROW() -> 17 | D17: ="Inflation Factor (convert " &Input!$G$52& " $ to nominal $)" -> Inflation Factor (convert 31/12/2023 $ to nominal $) | I17: =1/I16 -> 0.5052949137 | J17: 0.5346109764 | K17: 0.5513048454 | L17: 0.5679987145 | M17: 0.5814352432 | N17: 0.5965004421 | O17: 0.6131943111 | P17: 0.6331455204 | Q17: 0.6518752271 | R17: 0.6758981118 | S17: 0.6901489756 | T17: =1/T16 -> 0.7007353316 | U17: 0.7084715148 | V17: 0.7259797189 | W17: 0.7259797189 | X17: 0.7345302372 | Y17: 0.7520887289 | Z17: 0.7747684474 | AA17: =1/AA16 -> 0.7798896741 | AB17: =1/AB16 -> 0.7930585429 | AC17: 0.7930585429 | AD17: 0.7930585429 | AE17: 0.8047642041 | AF17: 0.8201278843 | AG17: 0.8347599608 | AH17: 0.850123641 | AI17: =1/AI16 -> 0.8574396793 | AJ17: 0.887435436 | AK17: 0.956937799 | AL17: 1 | AM17: 1.0325 | AN17: =1/AN16 -> 1.060001688 | AO17: 1.088235911 | AP17: 1.117222182 | AQ17: 1.146980532 | AR17: 1.177531525
A18: =ROW() -> 18
A19: Volume & Customer Num by Tariff Class
A20: =ROW() -> 20 | O20: Actual 2 | T20: Actual 3 and est for 2013/14 | AB20: Actuals | AI20: Actual | AL20: Forecast | AP20: Forecast
A21: =ROW() -> 21 | C21: Customers Including Prudent Discounts
A22: =ROW() -> 22 | D22: Tariff class A1 | O22: =O29+O36 -> 70.5 | P22: 72.5 | Q22: 72 | R22: 73 | S22: 75.5 | T22: 75.33333333 | U22: 75 | V22: 75.16666667 | W22: 75.16666667 | X22: 72.91666667 | Y22: 75.66666667 | Z22: 74.5 | AA22: 72.5 | AB22: 0 | AC22: 0 | AD22: 73.5 | AE22: 76 | AF22: 75.5 | AG22: 74.5 | AH22: 74.5 | AI22: 74 | AJ22: 73.5 | AK22: 73 | AL22: 74.5 | AM22: 76 | AN22: 76 | AO22: 76 | AP22: 76 | AQ22: 76 | AR22: 76
A23: =ROW() -> 23 | D23: Tariff class A2 | O23: =O30+O37 -> 93 | P23: 96 | Q23: 97 | R23: 98 | S23: 99 | T23: 102.1666667 | U23: 100.5 | V23: 105 | W23: 105 | X23: 112.5 | Y23: 109.0833333 | Z23: 107.5 | AA23: 107 | AB23: 0 | AC23: 0 | AD23: 106.5 | AE23: 102 | AF23: 99 | AG23: 102 | AH23: 106.5 | AI23: 105.5 | AJ23: 104 | AK23: 104 | AL23: 103.5 | AM23: 104.5 | AN23: 105 | AO23: 105 | AP23: 105 | AQ23: 105 | AR23: 105
A24: =ROW() -> 24 | D24: Tariff class B1 | O24: =O31+O38 -> 1074 | P24: 1084.5 | Q24: 1106.5 | R24: 1136.5 | S24: 1184.5 | T24: 1225.166667 | U24: 1244.5 | V24: 1258.833333 | W24: 1258.833333 | X24: 1298.916667 | Y24: 1335.416667 | Z24: 1365 | AA24: 1400 | AB24: 0 | AC24: 0 | AD24: 1445 | AE24: 1519.5 | AF24: 1600 | AG24: 1670.5 | AH24: 1739 | AI24: 1807.5 | AJ24: 1876.5 | AK24: 1940 | AL24: 1996.5 | AM24: 2054.5 | AN24: 2114 | AO24: 2175 | AP24: 2238 | AQ24: 2303 | AR24: 2370
A25: =ROW() -> 25 | D25: Tariff class B2 | O25: =O32+O39 -> 5988 | P25: 5810 | Q25: 6218 | R25: 6677 | S25: 7248.505679 | T25: 7702.5 | U25: 7898 | V25: 8110.083333 | W25: 8110.083333 | X25: 8713.75 | Y25: 9267.25 | Z25: 9801.5 | AA25: 10224.5 | AB25: 0 | AC25: 0 | AD25: 10624.5 | AE25: 11114.5 | AF25: 11496.5 | AG25: 11738.5 | AH25: 11974 | AI25: 12129.5 | AJ25: 12228.5 | AK25: 12429 | AL25: 12659 | AM25: 12899.455 | AN25: 13144.67265 | AO25: 13394.54943 | AP25: 13649.17386 | AQ25: 13908.7843 | AR25: 14173.38046
A26: =ROW() -> 26 | D26: Tariff class B3 | O26: =O33+O40 -> 515677.5 | P26: 536107.5 | Q26: 556115.5 | R26: 573808.5 | S26: 589563.5 | T26: 601247 | U26: 609163.8988 | V26: 614525 | W26: 614525 | X26: 629900.5833 | Y26: 642710.8333 | Z26: 657672.5 | AA26: 671182 | AB26: 0 | AC26: 0 | AD26: 686910.5 | AE26: 705512.5 | AF26: 718910.5 | AG26: 728627 | AH26: 737032 | AI26: 744038 | AJ26: 751396.5 | AK26: 761657.5 | AL26: 771643.3143 | AM26: 779502.7472 | AN26: 786469.6988 | AO26: 794292.7121 | AP26: 803215.2565 | AQ26: 812818.5155 | AR26: 822735.8457
A27: =ROW() -> 27 | D27: Total | O27: =SUM(O22:O26) -> 522903 | P27: =SUM(P22:P26) -> 543170.5 | Q27: =SUM(Q22:Q26) -> 563609 | R27: =SUM(R22:R26) -> 581793 | S27: =SUM(S22:S26) -> 598171.0057 | T27: =SUM(T22:T26) -> 610352.1667 | U27: 618481.8988 | V27: 624074.0833 | W27: 624074.0833 | X27: 640098.6667 | Y27: 653498.25 | Z27: 669021 | AA27: 682986 | AD27: =SUM(AD22:AD26) -> 699160 | AE27: 718324.5 | AF27: 732181.5 | AG27: 742212.5 | AH27: 750926 | AI27: =SUM(AI22:AI26) -> 758154.5 | AJ27: 765679 | AK27: 776203.5 | AL27: 786476.8143 | AM27: 794637.2022 | AN27: =SUM(AN22:AN26) -> 801909.3715 | AO27: 810043.2615 | AP27: 819283.4304 | AQ27: 829211.2998 | AR27: 839460.2261
A28: =ROW() -> 28 | C28: Customers Receiving Prudent Discounts
A29: =ROW() -> 29 | D29: Tariff class A1 | O29: 29 | P29: 30.5 | Q29: 29.5 | R29: 28 | S29: 27 | T29: 25 | U29: =W29 -> 22 | V29: =W29 -> 22 | W29: 22 | X29: 17 | Y29: 13 | Z29: 10 | AA29: 8 | AD29: 7 | AE29: 4 | AF29: 3 | AG29: 2 | AH29: 4 | AI29: 4 | AJ29: 3.5 | AK29: 1 | AL29: 0.5 | AM29: 0 | AN29: 0 | AO29: 0 | AP29: 0 | AQ29: 0 | AR29: 0
A30: =ROW() -> 30 | D30: Tariff class A2 | O30: 12 | P30: 11.5 | Q30: 10 | R30: 7.5 | S30: 5 | T30: 5 | U30: =W30 -> 4 | V30: =W30 -> 4 | W30: 4 | X30: 3 | Y30: 2.5 | Z30: 3 | AA30: 4 | AD30: 4 | AE30: 3.5 | AF30: 2 | AG30: 1 | AH30: 1 | AI30: 1 | AJ30: 1 | AK30: 0 | AL30: 0 | AM30: 0 | AN30: 0 | AO30: 0 | AP30: 0 | AQ30: 0 | AR30: 0
A31: =ROW() -> 31 | D31: Tariff class B1 | O31: 4 | P31: 4 | Q31: 4 | R31: 4 | S31: 3.5 | T31: 3 | U31: 2.5 | V31: 2.5 | W31: 2.5 | X31: 1.5 | Y31: 1 | Z31: 1 | AA31: 1 | AD31: 1 | AE31: 1 | AF31: 0.5 | AG31: 0 | AH31: 0 | AI31: 0 | AJ31: 0 | AK31: 0 | AL31: 0 | AM31: 0 | AN31: 0 | AO31: 0 | AP31: 0 | AQ31: 0 | AR31: 0
A32: =ROW() -> 32 | D32: Tariff class B2 | O32: 5 | P32: 5 | Q32: 5 | R32: 5 | S32: 5.005679466 | T32: 5 | U32: 5 | V32: 5 | W32: 5 | X32: 5 | Y32: 5 | Z32: 4.5 | AA32: 3 | AD32: 2 | AE32: 2 | AF32: 2 | AG32: 1.5 | AH32: 1 | AI32: 1 | AJ32: 1 | AK32: 1 | AL32: 0.5 | AM32: 0 | AN32: 0 | AO32: 0 | AP32: 0 | AQ32: 0 | AR32: 0
A33: =ROW() -> 33 | D33: Tariff class B3 | O33: 1 | P33: 1 | Q33: 1 | R33: 1 | S33: 1 | T33: 1 | U33: 1 | V33: 1 | W33: 1 | X33: 1 | Y33: 1 | Z33: 1 | AA33: 1 | AD33: 1 | AE33: 0.5 | AF33: 0 | AG33: 0 | AH33: 0 | AI33: 0 | AJ33: 0 | AK33: 0 | AL33: 0 | AM33: 0 | AN33: 0 | AO33: 0 | AP33: 0 | AQ33: 0 | AR33: 0
A34: =ROW() -> 34 | D34: Total | O34: =SUM(O29:O33) -> 51 | P34: =SUM(P29:P33) -> 52 | Q34: =SUM(Q29:Q33) -> 49.5 | R34: =SUM(R29:R33) -> 45.5 | S34: =SUM(S29:S33) -> 41.50567947 | T34: =SUM(T29:T33) -> 39 | U34: 34.5 | V34: 34.5 | W34: 34.5 | X34: 27.5 | Y34: 22.5 | Z34: 19.5 | AA34: =SUM(AA29:AA33) -> 17 | AD34: 15 | AE34: 11 | AF34: 7.5 | AG34: 4.5 | AH34: 6 | AI34: =SUM(AI29:AI33) -> 6 | AJ34: 5.5 | AK34: 2 | AL34: 1 | AM34: 0 | AN34: =SUM(AN29:AN33) -> 0 | AO34: 0 | AP34: 0 | AQ34: 0 | AR34: 0
A35: =ROW() -> 35 | C35: Customers (Excluding Prudent Discounts)
A36: =ROW() -> 36 | D36: Tariff class A1 | O36: 41.5 | P36: 42 | Q36: 42.5 | R36: 45 | S36: 48.5 | T36: 50.33333333 | U36: 53 | V36: =W36 -> 53.16666667 | W36: 53.16666667 | X36: 55.91666667 | Y36: 62.66666667 | Z36: 64.5 | AA36: 64.5 | AD36: 66.5 | AE36: 72 | AF36: 72.5 | AG36: 72.5 | AH36: 70.5 | AI36: 70 | AJ36: 70 | AK36: 72 | AL36: 74 | AM36: 76 | AN36: 76 | AO36: 76 | AP36: 76 | AQ36: 76 | AR36: 76
A37: =ROW() -> 37 | D37: Tariff class A2 | O37: 81 | P37: 84.5 | Q37: 87 | R37: 90.5 | S37: 94 | T37: 97.16666667 | U37: 96.5 | V37: =W37 -> 101 | W37: 101 | X37: 109.5 | Y37: 106.5833333 | Z37: 104.5 | AA37: 103 | AD37: 102.5 | AE37: 98.5 | AF37: 97 | AG37: 101 | AH37: 105.5 | AI37: 104.5 | AJ37: 103 | AK37: 104 | AL37: 103.5 | AM37: 104.5 | AN37: 105 | AO37: 105 | AP37: 105 | AQ37: 105 | AR37: 105
A38: =ROW() -> 38 | D38: Tariff class B1 | O38: 1070 | P38: 1080.5 | Q38: 1102.5 | R38: 1132.5 | S38: 1181 | T38: 1222.166667 | U38: 1242 | V38: 1256.333333 | W38: 1256.333333 | X38: 1297.416667 | Y38: 1334.416667 | Z38: 1364 | AA38: 1399 | AD38: 1444 | AE38: 1518.5 | AF38: 1599.5 | AG38: 1670.5 | AH38: 1739 | AI38: 1807.5 | AJ38: 1876.5 | AK38: 1940 | AL38: 1996.5 | AM38: 2054.5 | AN38: 2114 | AO38: 2175 | AP38: 2238 | AQ38: 2303 | AR38: 2370
A39: =ROW() -> 39 | D39: Tariff class B2 | O39: 5983 | P39: 5805 | Q39: 6213 | R39: 6672 | S39: 7243.5 | T39: 7697.5 | U39: 7893 | V39: 8105.083333 | W39: 8105.083333 | X39: 8708.75 | Y39: 9262.25 | Z39: 9797 | AA39: 10221.5 | AD39: 10622.5 | AE39: 11112.5 | AF39: 11494.5 | AG39: 11737 | AH39: 11973 | AI39: 12128.5 | AJ39: 12227.5 | AK39: 12428 | AL39: 12658.5 | AM39: 12899.455 | AN39: 13144.67265 | AO39: 13394.54943 | AP39: 13649.17386 | AQ39: 13908.7843 | AR39: 14173.38046
A40: =ROW() -> 40 | D40: Tariff class B3 | O40: 515676.5 | P40: 536106.5 | Q40: 556114.5 | R40: 573807.5 | S40: 589562.5 | T40: 601246 | U40: 609162.8988 | V40: 614524 | W40: 614524 | X40: 629899.5833 | Y40: 642709.8333 | Z40: 657671.5 | AA40: 671181 | AD40: 686909.5 | AE40: 705512 | AF40: 718910.5 | AG40: 728627 | AH40: 737032 | AI40: 744038 | AJ40: 751396.5 | AK40: 761657.5 | AL40: 771643.3143 | AM40: 779502.7472 | AN40: 786469.6988 | AO40: 794292.7121 | AP40: 803215.2565 | AQ40: 812818.5155 | AR40: 822735.8457
A41: =ROW() -> 41 | D41: Total | O41: =SUM(O36:O40) -> 522852 | P41: 543118.5 | Q41: 563559.5 | R41: 581747.5 | S41: 598129.5 | T41: 610313.1667 | U41: 618447.3988 | V41: 624039.5833 | W41: 624039.5833 | X41: 640071.1667 | Y41: 653475.75 | Z41: 669001.5 | AA41: =SUM(AA36:AA40) -> 682969 | AD41: =SUM(AD36:AD40) -> 699145 | AE41: 718313.5 | AF41: 732174 | AG41: 742208 | AH41: 750920 | AI41: =SUM(AI36:AI40) -> 758148.5 | AJ41: 765673.5 | AK41: 776201.5 | AL41: 786475.8143 | AM41: 794637.2022 | AN41: =SUM(AN36:AN40) -> 801909.3715 | AO41: 810043.2615 | AP41: 819283.4304 | AQ41: 829211.2998 | AR41: 839460.2261
A42: =ROW() -> 42 | C42: Volume (Including Prudent Discounts) [TJ]
A43: =ROW() -> 43 | D43: Tariff class A1 | O43: 16191.68504 | P43: 15869.0038 | Q43: 15601.67466 | R43: 12400.4278 | S43: 12209.3604 | T43: 6031.337349 | U43: 6214.313395 | V43: =W43-U43 -> 6292.668281 | W43: 12506.98168 | X43: 12071.65486 | Y43: 11296.60722 | Z43: 11362.13068 | AA43: 6025.896565 | AD43: 11398.21581 | AE43: 10777.96142 | AF43: 10338.17915 | AG43: 11225.07152 | AH43: 10821.47884 | AI43: 11753.92605 | AJ43: 12346.51513 | AK43: 11830.26724 | AL43: 12737.15153 | AM43: 15047.81297 | AN43: 15220.82795 | AO43: 14972.67343 | AP43: 14949.59837 | AQ43: 14884.43381 | AR43: 14840.90779
A44: =ROW() -> 44 | D44: Tariff class A2 | O44: 2239.295585 | P44: 2067.887482 | Q44: 2111.61597 | R44: 1945.340459 | S44: 1956.817742 | T44: 936.9033746 | U44: 1052.735121 | V44: =W44-U44 -> 870.5179483 | W44: 1923.253069 | X44: 2092.299763 | Y44: 2040.058109 | Z44: 1927.568029 | AA44: 971.99815 | AD44: 1854.028603 | AE44: 1819.923627 | AF44: 1814.45347 | AG44: 1787.967278 | AH44: 1842.34484 | AI44: 1711.437586 | AJ44: 1829.924647 | AK44: 1918.28728 | AL44: 1868.442566 | AM44: 1912.001261 | AN44: 1933.416298 | AO44: 1919.986189 | AP44: 1915.818462 | AQ44: 1910.91866 | AR44: 1906.091343
A45: =ROW() -> 45 | D45: Tariff class B1 | O45: 1890.602 | P45: 1703.088083 | Q45: 1717.715314 | R45: 1649.406131 | S45: 1636.164865 | T45: 745.5632319 | U45: 910.7456253 | V45: 683.8857193 | W45: 1594.631345 | X45: 1553.663922 | Y45: 1640.269951 | Z45: 1629.429407 | AA45: 889.2586427 | AD45: 1720.802873 | AE45: 1930.425315 | AF45: 1874.796319 | AG45: 2004.555894 | AH45: 1952.663457 | AI45: 1840.144876 | AJ45: 2076.475007 | AK45: 2136.322785 | AL45: 2090.145906 | AM45: 2069.958246 | AN45: 2049.786238 | AO45: 2029.602559 | AP45: 2009.833001 | AQ45: 1990.407407 | AR45: 1971.262851
A46: =ROW() -> 46 | D46: Tariff class B2 | O46: 1068.909 | P46: 1109.032828 | Q46: 1134.902225 | R46: 1196.891861 | S46: 1158.582311 | T46: 552.7825543 | U46: 646.6664185 | V46: 522.0128637 | W46: 1168.679282 | X46: 1189.664699 | Y46: 1232.063588 | Z46: 1255.113315 | AA46: 663.227406 | AD46: 1292.02506 | AE46: 1368.908476 | AF46: 1343.140615 | AG46: 1353.511453 | AH46: 1338.511679 | AI46: 1238.352725 | AJ46: 1328.286771 | AK46: 1310.949248 | AL46: 1280.889099 | AM46: 1276.982521 | AN46: 1273.106768 | AO46: 1269.242548 | AP46: 1265.389831 | AQ46: 1261.562024 | AR46: 1257.750045
A47: =ROW() -> 47 | D47: Tariff class B3 | O47: 10302.854 | P47: 9974.977966 | Q47: 10147.42947 | R47: 10602.50509 | S47: 10434.25466 | T47: 4589.274683 | U47: 6078.261289 | V47: 3691.503785 | W47: 9769.765074 | X47: 9645.962254 | Y47: 9905.950696 | Z47: 9840.84139 | AA47: 5226.947008 | AD47: 9796.899664 | AE47: 10874.77906 | AF47: 9932.181873 | AG47: 10077.69828 | AH47: 9934.135443 | AI47: 10113.39119 | AJ47: 10511.75965 | AK47: 10318.24765 | AL47: 10002.6331 | AM47: 9787.295861 | AN47: 9585.161728 | AO47: 9397.010867 | AP47: 9225.903576 | AQ47: 9074.414215 | AR47: 8938.943166
A48: =ROW() -> 48 | D48: Total | O48: =SUM(O43:O47) -> 31693.34562 | P48: =SUM(P43:P47) -> 30723.99016 | Q48: =SUM(Q43:Q47) -> 30713.33764 | R48: =SUM(R43:R47) -> 27794.57134 | S48: =SUM(S43:S47) -> 27395.17998 | T48: 12855.86119 | U48: 14902.72185 | V48: 12060.5886 | W48: 26963.31045 | X48: 26553.2455 | Y48: 26114.94957 | Z48: 26015.08283 | AA48: =SUM(AA43:AA47) -> 13777.32777 | AD48: 26061.97201 | AE48: 26771.99789 | AF48: 25302.75142 | AG48: 26448.80442 | AH48: 25889.13426 | AI48: =SUM(AI43:AI47) -> 26657.25242 | AJ48: 28092.9612 | AK48: 27514.07421 | AL48: 27979.26221 | AM48: 30094.05085 | AN48: =SUM(AN43:AN47) -> 30062.29898 | AO48: 29588.51559 | AP48: 29366.54324 | AQ48: 29121.73611 | AR48: 28914.95519
A49: =ROW() -> 49 | C49: Authority adjustments to volume (Including Prudent Discounts) [TJ] | O49: Actual 2 | T49: Estimate | AB49: Actuals | AI49: Actual | AL49: Forecast | AP49: Forecast
A50: =ROW() -> 50 | D50: Tariff class A1
A51: =ROW() -> 51 | D51: Tariff class A2
A52: =ROW() -> 52 | D52: Tariff class B1
A53: =ROW() -> 53 | D53: Tariff class B2
A54: =ROW() -> 54 | D54: Tariff class B3 | N54: WAGN submission 24/12/2010 | T54: =4589.27118678824-T47 -> -0.003496266674 | U54: =5806-U47 -> -272.2612895 | V54: =W54-U54 -> 272.2612895
A55: =ROW() -> 55 | D55: Total | O55: =SUM(O50:O54) -> 0 | P55: 0 | Q55: 0 | R55: 0 | S55: 0 | T55: -0.003496266674 | U55: -272.2612895 | V55: 272.2612895 | W55: 0 | X55: 0 | Y55: 0 | Z55: 0 | AD55: =SUM(AD50:AD54) -> 0 | AE55: 0 | AF55: 0 | AG55: 0 | AH55: 0 | AI55: =SUM(AI50:AI54) -> 0 | AJ55: 0 | AK55: 0 | AL55: 0 | AM55: 0 | AN55: =SUM(AN50:AN54) -> 0 | AO55: 0 | AP55: 0 | AQ55: 0 | AR55: 0
A56: =ROW() -> 56 | C56: Modelled Volume (Including Prudent Discounts) [TJ] | O56: Actual 2 | T56: Actual 3 and est for 2013/14 | AB56: Actuals | AI56: Actual | AL56: Forecast | AP56: Forecast
A57: =ROW() -> 57 | D57: Tariff class A1 | O57: =O43+O50 -> 16191.68504 | P57: =P43+P50 -> 15869.0038 | Q57: =Q43+Q50 -> 15601.67466 | R57: =R43+R50 -> 12400.4278 | S57: =S43+S50 -> 12209.3604 | T57: =T43+T50 -> 6031.337349 | U57: 6214.313395 | V57: 6292.668281 | W57: 12506.98168 | X57: 12071.65486 | Y57: 11296.60722 | Z57: 11362.13068 | AA57: 6025.896565 | AD57: =AD43+AD50 -> 11398.21581 | AE57: 10777.96142 | AF57: 10338.17915 | AG57: 11225.07152 | AH57: 10821.47884 | AI57: =AI43+AI50 -> 11753.92605 | AJ57: 12346.51513 | AK57: 11830.26724 | AL57: 12737.15153 | AM57: 15047.81297 | AN57: =AN43+AN50 -> 15220.82795 | AO57: 14972.67343 | AP57: 14949.59837 | AQ57: 14884.43381 | AR57: 14840.90779
A58: =ROW() -> 58 | D58: Tariff class A2 | O58: =O44+O51 -> 2239.295585 | P58: 2067.887482 | Q58: 2111.61597 | R58: 1945.340459 | S58: 1956.817742 | T58: 936.9033746 | U58: 1052.735121 | V58: 870.5179483 | W58: 1923.253069 | X58: 2092.299763 | Y58: 2040.058109 | Z58: 1927.568029 | AA58: 971.99815 | AD58: =AD44+AD51 -> 1854.028603 | AE58: 1819.923627 | AF58: 1814.45347 | AG58: 1787.967278 | AH58: 1842.34484 | AI58: =AI44+AI51 -> 1711.437586 | AJ58: 1829.924647 | AK58: 1918.28728 | AL58: 1868.442566 | AM58: 1912.001261 | AN58: =AN44+AN51 -> 1933.416298 | AO58: 1919.986189 | AP58: 1915.818462 | AQ58: 1910.91866 | AR58: 1906.091343
A59: =ROW() -> 59 | D59: Tariff class B1 | O59: 1890.602 | P59: 1703.088083 | Q59: 1717.715314 | R59: 1649.406131 | S59: 1636.164865 | T59: 745.5632319 | U59: 910.7456253 | V59: 683.8857193 | W59: 1594.631345 | X59: 1553.663922 | Y59: 1640.269951 | Z59: 1629.429407 | AA59: 889.2586427 | AD59: =AD45+AD52 -> 1720.802873 | AE59: 1930.425315 | AF59: 1874.796319 | AG59: 2004.555894 | AH59: 1952.663457 | AI59: =AI45+AI52 -> 1840.144876 | AJ59: 2076.475007 | AK59: 2136.322785 | AL59: 2090.145906 | AM59: 2069.958246 | AN59: =AN45+AN52 -> 2049.786238 | AO59: 2029.602559 | AP59: 2009.833001 | AQ59: 1990.407407 | AR59: 1971.262851
A60: =ROW() -> 60 | D60: Tariff class B2 | O60: 1068.909 | P60: 1109.032828 | Q60: 1134.902225 | R60: 1196.891861 | S60: 1158.582311 | T60: 552.7825543 | U60: 646.6664185 | V60: 522.0128637 | W60: 1168.679282 | X60: 1189.664699 | Y60: 1232.063588 | Z60: 1255.113315 | AA60: 663.227406 | AD60: =AD46+AD53 -> 1292.02506 | AE60: 1368.908476 | AF60: 1343.140615 | AG60: 1353.511453 | AH60: 1338.511679 | AI60: =AI46+AI53 -> 1238.352725 | AJ60: 1328.286771 | AK60: 1310.949248 | AL60: 1280.889099 | AM60: 1276.982521 | AN60: =AN46+AN53 -> 1273.106768 | AO60: 1269.242548 | AP60: 1265.389831 | AQ60: 1261.562024 | AR60: 1257.750045
A61: =ROW() -> 61 | D61: Tariff class B3 | O61: 10302.854 | P61: 9974.977966 | Q61: 10147.42947 | R61: 10602.50509 | S61: 10434.25466 | T61: 4589.271187 | U61: 5806 | V61: 3963.765074 | W61: 9769.765074 | X61: 9645.962254 | Y61: 9905.950696 | Z61: 9840.84139 | AA61: 5226.947008 | AD61: =AD47+AD54 -> 9796.899664 | AE61: 10874.77906 | AF61: 9932.181873 | AG61: 10077.69828 | AH61: 9934.135443 | AI61: =AI47+AI54 -> 10113.39119 | AJ61: 10511.75965 | AK61: 10318.24765 | AL61: 10002.6331 | AM61: 9787.295861 | AN61: =AN47+AN54 -> 9585.161728 | AO61: 9397.010867 | AP61: 9225.903576 | AQ61: 9074.414215 | AR61: 8938.943166
A62: =ROW() -> 62 | D62: Total | O62: =SUM(O57:O61) -> 31693.34562 | P62: 30723.99016 | Q62: 30713.33764 | R62: 27794.57134 | S62: 27395.17998 | T62: 12855.8577 | U62: 14630.46056 | V62: 12332.84989 | W62: 26963.31045 | X62: 26553.2455 | Y62: 26114.94957 | Z62: 26015.08283 | AA62: =SUM(AA57:AA61) -> 13777.32777 | AD62: =SUM(AD57:AD61) -> 26061.97201 | AE62: 26771.99789 | AF62: 25302.75142 | AG62: 26448.80442 | AH62: 25889.13426 | AI62: =SUM(AI57:AI61) -> 26657.25242 | AJ62: 28092.9612 | AK62: 27514.07421 | AL62: 27979.26221 | AM62: 30094.05085 | AN62: =SUM(AN57:AN61) -> 30062.29898 | AO62: 29588.51559 | AP62: 29366.54324 | AQ62: 29121.73611 | AR62: 28914.95519
A63: =ROW() -> 63 | C63: Volume of Prudent Discounts [TJ]
A64: =ROW() -> 64 | D64: Tariff class A1 | O64: 11296.79104 | P64: 10770.79694 | Q64: 10049.11316 | R64: 6739.789882 | S64: 6558.942626 | T64: 3042.31029 | U64: 2828.607685 | V64: =W64-U64 -> 2616.601033 | W64: 5445.208718 | X64: 3509.122373 | Y64: 2818.078397 | Z64: 2692.272436 | AA64: 1365.485083 | AD64: 2555.292333 | AE64: 1303.226657 | AF64: 1045.562486 | AG64: 1300.164276 | AH64: 1955.472897 | AI64: 3175.140246 | AJ64: 4.517679 | AK64: 0 | AL64: 0 | AM64: 0 | AN64: 0 | AO64: 0 | AP64: 0 | AQ64: 0 | AR64: 0
A65: =ROW() -> 65 | D65: Tariff class A2 | O65: 365.01537 | P65: 329.50928 | Q65: 350.493518 | R65: 243.118371 | S65: 175.3598537 | T65: 49.906037 | U65: 60.16105509 | V65: =W65-U65 -> 46.87684991 | W65: 107.037905 | X65: 72.247343 | Y65: 56.564383 | Z65: 43.053627 | AA65: 23.578265 | AD65: 49.569611 | AE65: 49.199402 | AF65: 20.702943 | AG65: 0 | AH65: 0.439734 | AI65: 0.022242 | AJ65: 1.038718 | AK65: 0 | AL65: 0 | AM65: 0 | AN65: 0 | AO65: 0 | AP65: 0 | AQ65: 0 | AR65: 0
A66: =ROW() -> 66 | D66: Tariff class B1 | O66: 10.517 | P66: 10.376937 | Q66: 10.00596632 | R66: 8.315351313 | S66: 9.59728022 | T66: 1.809206 | U66: 1.970497382 | V66: 0.4672086183 | W66: 2.437706 | X66: 7.6e-05 | Y66: 0 | Z66: 0 | AA66: 0 | AD66: 0 | AE66: 0 | AF66: 0 | AG66: 0 | AH66: 0 | AI66: 0 | AJ66: 0 | AK66: 0 | AL66: 0 | AM66: 0 | AN66: 0 | AO66: 0 | AP66: 0 | AQ66: 0 | AR66: 0
A67: =ROW() -> 67 | D67: Tariff class B2 | O67: =5.169-0.86 -> 4.309 | P67: =3.131383-0.95 -> 2.181383 | Q67: =1.74440634963386-0.02 -> 1.72440635 | R67: 1.797894512 | S67: 1.741422764 | T67: 0.6762485319 | U67: 1.19580294 | V67: 0.3562082316 | W67: 1.552011171 | X67: 1.196401906 | Y67: 0.4597468801 | Z67: 0.4452877621 | AA67: 0.2171567033 | AD67: 0.3885947692 | AE67: 0.3911495833 | AF67: 0.3908289794 | AG67: 0 | AH67: 0.381661 | AI67: 0.370296 | AJ67: 0.248984 | AK67: 0.165 | AL67: 0 | AM67: 0 | AN67: 0 | AO67: 0 | AP67: 0 | AQ67: 0 | AR67: 0
A68: =ROW() -> 68 | D68: Tariff class B3 | O68: 0.5 | P68: 0 | Q68: 0.0066 | R68: 0.0047 | S68: 0.007345700984 | T68: 0 | U68: 0 | V68: 0 | W68: 0 | X68: 0.001401 | Y68: 0.000307 | Z68: 0.000113 | AA68: 0 | AD68: 0 | AE68: 0 | AF68: 0 | AG68: 0 | AH68: 0 | AI68: 0 | AJ68: 0 | AK68: 0 | AL68: 0 | AM68: 0 | AN68: 0 | AO68: 0 | AP68: 0 | AQ68: 0 | AR68: 0
A69: =ROW() -> 69 | D69: Total | O69: =SUM(O64:O68) -> 11677.13241 | P69: =SUM(P64:P68) -> 11112.86454 | Q69: =SUM(Q64:Q68) -> 10411.34365 | R69: =SUM(R64:R68) -> 6993.026199 | S69: =SUM(S64:S68) -> 6745.648528 | T69: =SUM(T64:T68) -> 3094.701782 | U69: 2891.935041 | V69: 2664.301299 | W69: 5556.23634 | X69: 3582.567595 | Y69: 2875.102834 | Z69: 2735.771464 | AA69: =SUM(AA64:AA68) -> 1389.280505 | AD69: 2605.250539 | AE69: 1352.817209 | AF69: 1066.656258 | AG69: 1300.164276 | AH69: 1956.294292 | AI69: =SUM(AI64:AI68) -> 3175.532784 | AJ69: 5.805381 | AK69: 0.165 | AL69: 0 | AM69: 0 | AN69: =SUM(AN64:AN68) -> 0 | AO69: 0 | AP69: 0 | AQ69: 0 | AR69: 0
A70: =ROW() -> 70 | C70: Volume Excluding Prudent Discounts [TJ]
A71: =ROW() -> 71 | D71: Tariff class A1 | O71: =O57-O64 -> 4894.893999 | P71: 5098.206856 | Q71: 5552.561498 | R71: 5660.63792 | S71: 5650.417774 | T71: 2989.027059 | U71: 3385.705709 | V71: 3676.067249 | W71: 7061.772958 | X71: 8562.532485 | Y71: 8478.528824 | Z71: 8669.858249 | AA71: 4660.411482 | AD71: =AD57-AD64 -> 8842.923473 | AE71: 9474.73476 | AF71: 9292.61666 | AG71: 9924.907241 | AH71: 8866.005944 | AI71: =AI57-AI64 -> 8578.7858 | AJ71: 12341.99745 | AK71: 11830.26724 | AL71: 12737.15153 | AM71: 15047.81297 | AN71: =AN57-AN64 -> 15220.82795 | AO71: 14972.67343 | AP71: 14949.59837 | AQ71: 14884.43381 | AR71: 14840.90779
A72: =ROW() -> 72 | D72: Tariff class A2 | O72: 1874.280215 | P72: 1738.378202 | Q72: 1761.122452 | R72: 1702.222088 | S72: 1781.457888 | T72: 886.9973376 | U72: 992.574066 | V72: 823.6410984 | W72: 1816.215164 | X72: 2020.05242 | Y72: 1983.493726 | Z72: 1884.514402 | AA72: 948.419885 | AD72: =AD58-AD65 -> 1804.458992 | AE72: 1770.724225 | AF72: 1793.750527 | AG72: 1787.967278 | AH72: 1841.905106 | AI72: =AI58-AI65 -> 1711.415344 | AJ72: 1828.885929 | AK72: 1918.28728 | AL72: 1868.442566 | AM72: 1912.001261 | AN72: =AN58-AN65 -> 1933.416298 | AO72: 1919.986189 | AP72: 1915.818462 | AQ72: 1910.91866 | AR72: 1906.091343
A73: =ROW() -> 73 | D73: Tariff class B1 | O73: 1880.085 | P73: 1692.711146 | Q73: 1707.709348 | R73: 1641.09078 | S73: 1626.567585 | T73: 743.7540259 | U73: 908.7751279 | V73: 683.4185106 | W73: 1592.193639 | X73: 1553.663846 | Y73: 1640.269951 | Z73: 1629.429407 | AA73: 889.2586427 | AD73: =AD59-AD66 -> 1720.802873 | AE73: 1930.425315 | AF73: 1874.796319 | AG73: 2004.555894 | AH73: 1952.663457 | AI73: =AI59-AI66 -> 1840.144876 | AJ73: 2076.475007 | AK73: 2136.322785 | AL73: 2090.145906 | AM73: 2069.958246 | AN73: =AN59-AN66 -> 2049.786238 | AO73: 2029.602559 | AP73: 2009.833001 | AQ73: 1990.407407 | AR73: 1971.262851
A74: =ROW() -> 74 | D74: Tariff class B2 | O74: 1064.6 | P74: 1106.851445 | Q74: 1133.177818 | R74: 1195.093966 | S74: 1156.840888 | T74: 552.1063057 | U74: 645.4706156 | V74: 521.6566555 | W74: 1167.127271 | X74: 1188.468297 | Y74: 1231.603841 | Z74: 1254.668028 | AA74: 663.0102493 | AD74: =AD60-AD67 -> 1291.636465 | AE74: 1368.517326 | AF74: 1342.749786 | AG74: 1353.511453 | AH74: 1338.130018 | AI74: =AI60-AI67 -> 1237.982429 | AJ74: 1328.037787 | AK74: 1310.784248 | AL74: 1280.889099 | AM74: 1276.982521 | AN74: =AN60-AN67 -> 1273.106768 | AO74: 1269.242548 | AP74: 1265.389831 | AQ74: 1261.562024 | AR74: 1257.750045
A75: =ROW() -> 75 | D75: Tariff class B3 | O75: 10302.354 | P75: 9974.977966 | Q75: 10147.42287 | R75: 10602.50039 | S75: 10434.24731 | T75: 4589.271187 | U75: 5806 | V75: 3963.765074 | W75: =W61-W68 -> 9769.765074 | X75: 9645.960853 | Y75: 9905.950389 | Z75: 9840.841277 | AA75: 5226.947008 | AD75: =AD61-AD68 -> 9796.899664 | AE75: 10874.77906 | AF75: 9932.181873 | AG75: 10077.69828 | AH75: 9934.135443 | AI75: =AI61-AI68 -> 10113.39119 | AJ75: 10511.75965 | AK75: 10318.24765 | AL75: 10002.6331 | AM75: 9787.295861 | AN75: =AN61-AN68 -> 9585.161728 | AO75: 9397.010867 | AP75: 9225.903576 | AQ75: 9074.414215 | AR75: 8938.943166
A76: =ROW() -> 76 | D76: Total | O76: =SUM(O71:O75) -> 20016.21321 | P76: =SUM(P71:P75) -> 19611.12562 | Q76: =SUM(Q71:Q75) -> 20301.99398 | R76: =SUM(R71:R75) -> 20801.54514 | S76: =SUM(S71:S75) -> 20649.53145 | T76: =SUM(T71:T75) -> 9761.155915 | U76: 11738.52552 | V76: 9668.548587 | W76: 21407.07411 | X76: 22970.6779 | Y76: 23239.84673 | Z76: 23279.31136 | AA76: 12388.04727 | AD76: =SUM(AD71:AD75) -> 23456.72147 | AE76: 25419.18069 | AF76: 24236.09517 | AG76: 25148.64015 | AH76: 23932.83997 | AI76: =SUM(AI71:AI75) -> 23481.71963 | AJ76: 28087.15582 | AK76: 27513.90921 | AL76: 27979.26221 | AM76: 30094.05085 | AN76: =SUM(AN71:AN75) -> 30062.29898 | AO76: 29588.51559 | AP76: 29366.54324 | AQ76: 29121.73611 | AR76: 28914.95519
A77: Volume Excluding Prudent Discount & Customer Num by Bands
A78: =ROW() -> 78 | T78: Actual 3 and est for 2013/14 | AB78: Actuals | AI78: Actual | AL78: Forecast | AP78: Forecast
A79: =ROW() -> 79 | C79: A1
A80: =ROW() -> 80 | D80: Customers | T80: =T36 -> 50.33333333 | U80: 53 | V80: 53.16666667 | W80: 53.16666667 | X80: 55.91666667 | Y80: 62.66666667 | Z80: 64.5 | AA80: 64.5 | AD80: =AD36 -> 66.5 | AE80: 72 | AF80: 72.5 | AG80: 72.5 | AH80: 70.5 | AI80: 70 | AJ80: 70 | AK80: 72 | AL80: 74 | AM80: 76 | AN80: =AN36 -> 76 | AO80: 76 | AP80: 76 | AQ80: 76 | AR80: 76
A81: =ROW() -> 81 | D81: Demand 1 [GJ km Year] | T81: 4810.674978 | W81: 9941.092845 | X81: 11680.59719 | Y81: 12196.77594 | Z81: 12836.93546 | AA81: 6908.508355 | AD81: 13355.22104 | AE81: 15366.25762 | AF81: 15901.48185 | AG81: 16933.5405 | AH81: 17024.75091 | AI81: 16896.72608 | AJ81: 17662.97163 | AK81: 17576.273 | AL81: 16203.0356 | AM81: 16707.03455 | AN81: 16149.1342 | AO81: 16015.1342 | AP81: 15914.6342 | AQ81: 15619.8342 | AR81: 15607.6842
A82: =ROW() -> 82 | D82: Demand 2 [GJ km Year] | T82: 1022.982247 | W82: 2395.216712 | X82: 6559.023452 | Y82: 5974.018389 | Z82: 6077.220082 | AA82: 3742.059419 | AD82: 7362.087342 | AE82: 7594.702027 | AF82: 6938.869589 | AG82: 6587.707562 | AH82: 6529.567178 | AI82: 6527.880548 | AJ82: 6479.893425 | AK82: 6450.14 | AL82: 6209.46 | AM82: 6209.46 | AN82: 6209.46 | AO82: 6209.46 | AP82: 6209.46 | AQ82: 6209.46 | AR82: 6209.46
A83: =ROW() -> 83 | D83: Usage 1 [TJ km] | T83: 10466.01377 | W83: 23453.57172 | X83: 30807.77556 | Y83: 28099.35376 | Z83: 29939.8747 | AA83: 16267.79064 | AD83: 31828.34975 | AE83: 37584.49962 | AF83: 37057.85173 | AG83: 42709.11395 | AH83: 37509.94087 | AI83: 33716.244 | AJ83: 41797.03556 | AK83: 39754.90292 | AL83: 39004.16758 | AM83: 41384.67988 | AN83: 41622.74442 | AO83: 41491.86158 | AP83: 41368.90344 | AQ83: 41138.771 | AR83: 40964.80278
A84: =ROW() -> 84 | D84: Usage 2 [TJ km] | T84: 1432.245102 | W84: 2792.582836 | X84: 22417.44889 | Y84: 10456.27511 | Z84: 9608.150919 | AA84: 5860.346571 | AD84: 14173.39355 | AE84: 17215.38124 | AF84: 18631.62799 | AG84: 24799.91344 | AH84: 22350.33747 | AI84: 19516.98113 | AJ84: 25527.48918 | AK84: 26913.82663 | AL84: 30059.37761 | AM84: 30468.02584 | AN84: 26580.30366 | AO84: 26555.40894 | AP84: 26530.73956 | AQ84: 26506.94344 | AR84: 26483.36848
A85: =ROW() -> 85 | D85: Modelled [GJ per Annum] | T85: =T71*1000 -> 2989027.059 | U85: 3385705.709 | V85: 3676067.249 | W85: 7061772.958 | X85: 8562532.485 | Y85: 8478528.824 | Z85: 8669858.249 | AA85: 4660411.482 | AD85: =AD71*1000 -> 8842923.473 | AE85: 9474734.76 | AF85: 9292616.66 | AG85: 9924907.241 | AH85: 8866005.944 | AI85: 8578785.8 | AJ85: 12341997.45 | AK85: 11830267.24 | AL85: 12737151.53 | AM85: 15047812.97 | AN85: =AN71*1000 -> 15220827.95 | AO85: 14972673.43 | AP85: 14949598.37 | AQ85: 14884433.81 | AR85: 14840907.79
A86: =ROW() -> 86 | D86: Adjustment [GJ per Annum] | T86: 0 | U86: 0 | V86: 0 | W86: 0 | X86: 0 | Y86: 0 | Z86: 0 | AA86: 0 | AD86: 0 | AE86: 0 | AF86: 0 | AG86: 0 | AH86: 0 | AI86: 0 | AJ86: 0 | AK86: 0 | AL86: 0 | AM86: 0 | AN86: 0 | AO86: 0 | AP86: 0 | AQ86: 0 | AR86: 0
A87: =ROW() -> 87 | D87: Total [GJ per Annum] | T87: =T85+T86 -> 2989027.059 | U87: 3385705.709 | V87: 3676067.249 | W87: 7061772.958 | X87: 8562532.485 | Y87: 8478528.824 | Z87: 8669858.249 | AA87: 4660411.482 | AD87: =AD85+AD86 -> 8842923.473 | AE87: 9474734.76 | AF87: 9292616.66 | AG87: 9924907.241 | AH87: 8866005.944 | AI87: =AI85+AI86 -> 8578785.8 | AJ87: 12341997.45 | AK87: 11830267.24 | AL87: 12737151.53 | AM87: 15047812.97 | AN87: =AN85+AN86 -> 15220827.95 | AO87: 14972673.43 | AP87: 14949598.37 | AQ87: 14884433.81 | AR87: 14840907.79
A88: =ROW() -> 88 | D88: Volume per Customer [GJ per customer] | T88: =T87/T80 -> 59384.64356 | U88: 63881.2398 | V88: 69142.3307 | W88: 132823.3158 | X88: 153130.2382 | Y88: 135295.6727 | Z88: 134416.407 | AA88: 72254.44158 | AD88: =AD87/AD80 -> 132976.2928 | AE88: 131593.5383 | AF88: 128174.0229 | AG88: 136895.2723 | AH88: 125758.9496 | AI88: 122554.0829 | AJ88: 176314.2493 | AK88: 164309.2672 | AL88: 172123.6694 | AM88: 197997.539 | AN88: =AN87/AN80 -> 200274.052 | AO88: 197008.8609 | AP88: 196705.2417 | AQ88: 195847.8133 | AR88: 195275.1025
A89: =ROW() -> 89 | C89: A2
A90: =ROW() -> 90 | D90: A2 Customers | T90: =T37 -> 97.16666667 | U90: 96.5 | V90: 101 | W90: 101 | X90: 109.5 | Y90: 106.5833333 | Z90: 104.5 | AA90: 103 | AD90: =AD37 -> 102.5 | AE90: 98.5 | AF90: 97 | AG90: 101 | AH90: 105.5 | AI90: 104.5 | AJ90: 103 | AK90: 104 | AL90: 103.5 | AM90: 104.5 | AN90: =AN37 -> 105 | AO90: 105 | AP90: 105 | AQ90: 105 | AR90: 105
A91: =ROW() -> 91 | D91: Band 1 | T91: 228196.5464 | W91: 439801.477 | X91: 851175.004 | Y91: 838543.447 | Z91: 815846.866
A92: =ROW() -> 92 | D92: Band 2 | T92: 203649.7527 | W92: 383576.215 | X92: 1168877.416 | Y92: 1144950.279 | Z92: 1068670.536
A93: =ROW() -> 93 | D93: Band 3 | T93: 455151.0385 | W93: 992837.4724
A94: =ROW() -> 94 | D94: Band 1* | AA94: 405625.606 | AD94: 785654.977 | AE94: 762671.7419 | AF94: 768684.569 | AG94: 777864.024 | AH94: 796479.232 | AI94: 761528.096 | AJ94: 794158.328 | AK94: 838985.7832 | AL94: 820178.2331 | AM94: 839298.9134 | AN94: 848699.3348 | AO94: 842804.0062 | AP94: 840974.5257 | AQ94: 838823.691 | AR94: 836704.6749
A95: =ROW() -> 95 | D95: Band 2* | AA95: 542794.279 | AD95: 1018804.015 | AE95: 1008052.483 | AF95: 1025065.958 | AG95: 1010103.254 | AH95: 1045425.874 | AI95: 949887.248 | AJ95: 1034727.601 | AK95: 1079301.497 | AL95: 1048264.333 | AM95: 1072702.347 | AN95: 1084716.963 | AO95: 1077182.183 | AP95: 1074843.936 | AQ95: 1072094.969 | AR95: 1069386.668
A96: =ROW() -> 96 | D96: Total [GJ per Annum] | T96: =SUM(T91:T93) -> 886997.3376 | U96: 0 | V96: 0 | W96: 1816215.164 | X96: 2020052.42 | Y96: 1983493.726 | Z96: 1884517.402 | AA96: =SUM(AA91:AA95) -> 948419.885 | AD96: =SUM(AD91:AD95) -> 1804458.992 | AE96: 1770724.225 | AF96: 1793750.527 | AG96: 1787967.278 | AH96: 1841905.106 | AI96: =SUM(AI91:AI95) -> 1711415.344 | AJ96: 1828885.929 | AK96: 1918287.28 | AL96: 1868442.566 | AM96: 1912001.261 | AN96: =SUM(AN91:AN95) -> 1933416.298 | AO96: 1919986.189 | AP96: 1915818.462 | AQ96: 1910918.66 | AR96: 1906091.343
A97: =ROW() -> 97 | D97: Adjustment [GJ per Annum] | T97: 0 | U97: 0 | V97: 0 | W97: 0 | X97: 0 | Y97: 0 | Z97: 0 | AA97: 0 | AD97: 0 | AE97: 0 | AF97: 0 | AG97: 0 | AH97: 0 | AI97: 0 | AJ97: 0 | AK97: 0 | AL97: 0 | AM97: 0 | AN97: 0 | AO97: 0 | AP97: 0 | AQ97: 0 | AR97: 0
A98: =ROW() -> 98 | D98: Modelled [GJ per Annum] | T98: =T96+T97 -> 886997.3376 | U98: 0 | V98: 0 | W98: 1816215.164 | X98: 2020052.42 | Y98: 1983493.726 | Z98: 1884517.402 | AA98: 948419.885 | AD98: =AD96+AD97 -> 1804458.992 | AE98: 1770724.225 | AF98: 1793750.527 | AG98: 1787967.278 | AH98: 1841905.106 | AI98: =AI96+AI97 -> 1711415.344 | AJ98: 1828885.929 | AK98: 1918287.28 | AL98: 1868442.566 | AM98: 1912001.261 | AN98: =AN96+AN97 -> 1933416.298 | AO98: 1919986.189 | AP98: 1915818.462 | AQ98: 1910918.66 | AR98: 1906091.343
A99: =ROW() -> 99 | D99: Volume per Customer [GJ per customer] | T99: =T98/T90 -> 9128.61754 | U99: 0 | V99: 0 | W99: 17982.32836 | X99: 18447.96731 | Y99: 18609.79258 | Z99: 18033.65935 | AA99: 9207.960049 | AD99: =AD98/AD90 -> 17604.47797 | AE99: 17976.89569 | AF99: 18492.27347 | AG99: 17702.64632 | AH99: 17458.81617 | AI99: =AI98/AI90 -> 16377.18033 | AJ99: 17756.17407 | AK99: 18445.07 | AL99: 18052.58518 | AM99: 18296.66278 | AN99: =AN98/AN90 -> 18413.48855 | AO99: 18285.58276 | AP99: 18245.89011 | AQ99: 18199.22533 | AR99: 18153.25089
A100: =ROW() -> 100 | C100: B1
A101: =ROW() -> 101 | D101: Customers | T101: =T38 -> 1222.166667 | U101: 1242 | V101: 1256.333333 | W101: 1256.333333 | X101: 1297.416667 | Y101: 1334.416667 | Z101: 1364 | AA101: 1399 | AD101: =AD38 -> 1444 | AE101: 1518.5 | AF101: 1599.5 | AG101: 1670.5 | AH101: 1739 | AI101: 1807.5 | AJ101: 1876.5 | AK101: 1940 | AL101: 1996.5 | AM101: 2054.5 | AN101: =AN38 -> 2114 | AO101: 2175 | AP101: 2238 | AQ101: 2303 | AR101: 2370
A102: =ROW() -> 102 | D102: Band 1 | T102: 649493.4631 | W102: 1389540.322 | X102: 1385587.464 | Y102: 1463332.441 | Z102: 1472170.211 | AA102: 791288.4815 | AD102: 1523036.72 | AE102: 1664051.405 | AF102: 1632990.466 | AG102: 1714526.397 | AH102: 1716864.059 | AI102: 1628082.863 | AJ102: 1801812.429 | AK102: 1857482.05 | AL102: 1850777.491 | AM102: 1842731.977 | AN102: 1828178.617 | AO102: 1813909.835 | AP102: 1801562.084 | AQ102: 1786323.662 | AR102: 1770410.406
A103: =ROW() -> 103 | D103: Band 2 | T103: 94260.5628 | W103: 202653.3169 | X103: 168076.3819 | Y103: 176654.1947 | Z103: 175019.4857
A104: =ROW() -> 104 | D104: Band 2* | AA104: 97970.16121 | AD104: 197766.1523 | AE104: 266373.9094 | AF104: 241805.8528 | AG104: 290029.4973 | AH104: 235799.3977 | AI104: 212062.0134 | AJ104: 274662.5779 | AK104: 278840.7353 | AL104: 239368.4145 | AM104: 227226.2695 | AN104: 221607.6208 | AO104: 215692.7241 | AP104: 208270.9174 | AQ104: 204083.7451 | AR104: 200852.4455
A105: =ROW() -> 105 | D105: Total [GJ per Annum] | T105: =SUM(T102:T103) -> 743754.0259 | U105: 0 | V105: 0 | W105: 1592193.639 | X105: 1553663.846 | Y105: 1639986.635 | Z105: 1647189.697 | AA105: =SUM(AA102:AA104) -> 889258.6427 | AD105: =SUM(AD102:AD104) -> 1720802.873 | AE105: 1930425.315 | AF105: 1874796.319 | AG105: 2004555.894 | AH105: 1952663.457 | AI105: =SUM(AI102:AI104) -> 1840144.876 | AJ105: 2076475.007 | AK105: 2136322.785 | AL105: 2090145.906 | AM105: 2069958.246 | AN105: =SUM(AN102:AN104) -> 2049786.238 | AO105: 2029602.559 | AP105: 2009833.001 | AQ105: 1990407.407 | AR105: 1971262.851
A106: =ROW() -> 106 | D106: Adjustment [GJ per Annum] | T106: 0 | U106: =W106*J106 -> 0 | V106: =W106*L106 -> 0 | W106: 0 | X106: 0 | Y106: 0 | Z106: 0 | AA106: 0 | AD106: 0 | AE106: 0 | AF106: 0 | AG106: 0 | AH106: 0 | AI106: 0 | AJ106: 0 | AK106: 0 | AL106: 0 | AM106: 0 | AN106: 0 | AO106: 0 | AP106: 0 | AQ106: 0 | AR106: 0
A107: =ROW() -> 107 | D107: Modelled [GJ per Annum] | T107: =T105+T106 -> 743754.0259 | U107: 0 | V107: 0 | W107: 1592193.639 | X107: 1553663.846 | Y107: 1639986.635 | Z107: 1647189.697 | AA107: 889258.6427 | AD107: =AD105+AD106 -> 1720802.873 | AE107: 1930425.315 | AF107: 1874796.319 | AG107: 2004555.894 | AH107: 1952663.457 | AI107: =AI105+AI106 -> 1840144.876 | AJ107: 2076475.007 | AK107: 2136322.785 | AL107: 2090145.906 | AM107: 2069958.246 | AN107: =AN105+AN106 -> 2049786.238 | AO107: 2029602.559 | AP107: 2009833.001 | AQ107: 1990407.407 | AR107: 1971262.851
A108: =ROW() -> 108 | D108: Volume per Customer [GJ per customer] | T108: =T107/T101 -> 608.5536827 | U108: 0 | V108: 0 | W108: 1267.333753 | X108: 1197.505694 | Y108: 1228.991421 | Z108: 1207.61708 | AA108: 635.6387725 | AD108: =AD107/AD101 -> 1191.69174 | AE108: 1271.271198 | AF108: 1172.113985 | AG108: 1199.973597 | AH108: 1122.865703 | AI108: =AI107/AI101 -> 1018.060789 | AJ108: 1106.568083 | AK108: 1101.197312 | AL108: 1046.905037 | AM108: 1007.524092 | AN108: =AN107/AN101 -> 969.6245213 | AO108: 933.1506017 | AP108: 898.0487048 | AQ108: 864.2672198 | AR108: 831.7564774
A109: =ROW() -> 109 | C109: B2
A110: =ROW() -> 110 | D110: B2 Customers | T110: =T39 -> 7697.5 | U110: 7893 | V110: 8105.083333 | W110: 8105.083333 | X110: 8708.75 | Y110: 9262.25 | Z110: 9797 | AA110: 10221.5 | AD110: =AD39 -> 10622.5 | AE110: 11112.5 | AF110: 11494.5 | AG110: 11737 | AH110: 11973 | AI110: 12128.5 | AJ110: 12227.5 | AK110: 12428 | AL110: 12658.5 | AM110: 12899.455 | AN110: =AN39 -> 13144.67265 | AO110: 13394.54943 | AP110: 13649.17386 | AQ110: 13908.7843 | AR110: 14173.38046
A111: =ROW() -> 111 | D111: Band 1 | T111: 185987.7142 | W111: 389585.8249 | X111: 403522.1127 | Y111: 418531.9016 | Z111: 430255.2483 | AA111: 228811.0652 | AD111: 454358.7074 | AE111: 481672.4814 | AF111: 480578.9736 | AG111: 490010.7087 | AH111: 490288.3704 | AI111: 489070.4026 | AJ111: 504024.2042 | AK111: 498090.0168 | AL111: 492169.7148 | AM111: 504174.4322 | AN111: 505259.9444 | AO111: 506537.4908 | AP111: 507503.2763 | AQ111: 508789.2974 | AR111: 509600.9805
A112: =ROW() -> 112 | D112: Band 2 | T112: 366118.5915 | W112: 777541.4461 | X112: 784946.1842 | Y112: 812884.7301 | Z112: 825273.9552 | AA112: 434199.1841 | AD112: 837277.7577 | AE112: 886844.8449 | AF112: 862170.8128 | AG112: 863500.7444 | AH112: 847841.6481 | AI112: 748912.0259 | AJ112: 824013.5825 | AK112: 812694.231 | AL112: 788719.3842 | AM112: 772808.0885 | AN112: 767846.8236 | AO112: 762705.0571 | AP112: 757886.555 | AQ112: 752772.7269 | AR112: 748149.0645
A113: =ROW() -> 113 | D113: Total [GJ per Annum] | T113: =SUM(T111:T112) -> 552106.3057 | U113: 0 | V113: 0 | W113: 1167127.271 | X113: 1188468.297 | Y113: 1231416.632 | Z113: 1255529.203 | AA113: 663010.2493 | AD113: =SUM(AD111:AD112) -> 1291636.465 | AE113: 1368517.326 | AF113: 1342749.786 | AG113: 1353511.453 | AH113: 1338130.018 | AI113: =SUM(AI111:AI112) -> 1237982.429 | AJ113: 1328037.787 | AK113: 1310784.248 | AL113: 1280889.099 | AM113: 1276982.521 | AN113: =SUM(AN111:AN112) -> 1273106.768 | AO113: 1269242.548 | AP113: 1265389.831 | AQ113: 1261562.024 | AR113: 1257750.045
A114: =ROW() -> 114 | D114: Adjustment [GJ per Annum] | T114: 0 | U114: =W114*J114 -> 0 | V114: =W114*L114 -> 0 | W114: 0 | X114: 0 | Y114: 0 | Z114: 0 | AA114: 0 | AD114: 0 | AE114: 0 | AF114: 0 | AG114: 0 | AH114: 0 | AI114: 0 | AJ114: 0 | AK114: 0 | AL114: 0 | AM114: 0 | AN114: 0 | AO114: 0 | AP114: 0 | AQ114: 0 | AR114: 0
A115: =ROW() -> 115 | D115: Modelled [GJ per Annum] | T115: =T113+T114 -> 552106.3057 | U115: 0 | V115: 0 | W115: 1167127.271 | X115: 1188468.297 | Y115: 1231416.632 | Z115: 1255529.203 | AA115: 663010.2493 | AD115: =AD113+AD114 -> 1291636.465 | AE115: 1368517.326 | AF115: 1342749.786 | AG115: 1353511.453 | AH115: 1338130.018 | AI115: =AI113+AI114 -> 1237982.429 | AJ115: 1328037.787 | AK115: 1310784.248 | AL115: 1280889.099 | AM115: 1276982.521 | AN115: =AN113+AN114 -> 1273106.768 | AO115: 1269242.548 | AP115: 1265389.831 | AQ115: 1261562.024 | AR115: 1257750.045
A116: =ROW() -> 116 | D116: Volume per Customer [GJ per customer] | T116: =T115/T110 -> 71.7254051 | U116: 0 | V116: 0 | W116: 143.9994165 | X116: 136.4682988 | Y116: 132.9500534 | Z116: 128.1544558 | AA116: 64.86428111 | AD116: =AD115/AD110 -> 121.5943954 | AE116: 123.1511655 | AF116: 116.8167199 | AG116: 115.3200522 | AH116: 111.7623 | AI116: =AI115/AI110 -> 102.0721795 | AJ116: 108.610737 | AK116: 105.4702485 | AL116: 101.1880633 | AM116: 98.99507542 | AN116: =AN115/AN110 -> 96.85344035 | AO116: 94.75813688 | AP116: 92.7081627 | AQ116: 90.70253714 | AR116: 88.7403008
A117: =ROW() -> 117
A118: =ROW() -> 118 | D118: Modelled Band 1 | T118: =T111 -> 185987.7142 | W118: =W111 -> 389585.8249 | X118: 403522.1127 | Y118: 418531.9016 | Z118: 430255.2483 | AA118: 228811.0652 | AD118: =AD111 -> 454358.7074 | AE118: 481672.4814 | AF118: 480578.9736 | AG118: 490010.7087 | AH118: 490288.3704 | AI118: =AI$115*AI122 -> 489070.4026 | AJ118: =AJ$115*AJ122 -> 504024.2042 | AK118: 498090.0168 | AL118: 492169.7148 | AM118: 504174.4322 | AN118: =AN$115*AN122 -> 505259.9444 | AO118: =AO$115*AO122 -> 506537.4908 | AP118: 507503.2763 | AQ118: 508789.2974 | AR118: 509600.9805
A119: =ROW() -> 119 | D119: Modelled Band 2 | T119: =T112 -> 366118.5915 | W119: =W112 -> 777541.4461 | X119: 784946.1842 | Y119: 812884.7301 | Z119: 825273.9552 | AA119: 434199.1841 | AD119: =AD112 -> 837277.7577 | AE119: 886844.8449 | AF119: 862170.8128 | AG119: 863500.7444 | AH119: 847841.6481 | AI119: =AI$115*AI123 -> 748912.0259 | AJ119: 824013.5825 | AK119: 812694.231 | AL119: 788719.3842 | AM119: 772808.0885 | AN119: =AN$115*AN123 -> 767846.8236 | AO119: 762705.0571 | AP119: 757886.555 | AQ119: 752772.7269 | AR119: 748149.0645
A120: =ROW() -> 120 | D120: Total [GJ per Annum] | T120: =SUM(T118:T119) -> 552106.3057 | U120: 0 | V120: 0 | W120: 1167127.271 | X120: 1188468.297 | Y120: 1231416.632 | Z120: 1255529.203 | AA120: 663010.2493 | AD120: =SUM(AD118:AD119) -> 1291636.465 | AE120: 1368517.326 | AF120: 1342749.786 | AG120: 1353511.453 | AH120: 1338130.018 | AI120: 1237982.429 | AJ120: 1328037.787 | AK120: 1310784.248 | AL120: 1280889.099 | AM120: 1276982.521 | AN120: =SUM(AN118:AN119) -> 1273106.768 | AO120: 1269242.548 | AP120: 1265389.831 | AQ120: 1261562.024 | AR120: 1257750.045
A121: =ROW() -> 121
A122: =ROW() -> 122 | D122: Modelled Band 1 | AI122: =AI111/AI$113 -> 0.3950543976 | AJ122: 0.3795254994 | AK122: 0.3799938988 | AL122: 0.3842406928 | AM122: 0.394817019 | AN122: =AN111/AN$113 -> 0.3968716192 | AO122: 0.3990864407 | AP122: 0.4010647658 | AQ122: 0.4033010566 | AR122: 0.4051687237
A123: =ROW() -> 123 | D123: Modelled Band 2 | AI123: 0.6049456024 | AJ123: 0.6204745006 | AK123: 0.6200061012 | AL123: 0.6157593072 | AM123: 0.605182981 | AN123: =AN112/AN$113 -> 0.6031283808 | AO123: 0.6009135593 | AP123: 0.5989352342 | AQ123: 0.5966989434 | AR123: 0.5948312763
A124: =ROW() -> 124 | D124: Total [GJ per Annum] | AI124: 1 | AJ124: 1 | AK124: 1 | AL124: 1 | AM124: 1 | AN124: =AN113/AN$113 -> 1 | AO124: 1 | AP124: 1 | AQ124: 1 | AR124: 1
A125: =ROW() -> 125
A126: =ROW() -> 126 | C126: B3
A127: =ROW() -> 127 | D127: Modelled B3 Customers | O127: 517005 | P127: 536255 | Q127: 553005 | R127: 568255 | S127: 583955 | T127: =T40 -> 601246 | U127: 609162.8988 | V127: 614524 | W127: 614524 | X127: 629899.5833 | Y127: 642709.8333 | Z127: 657671.5 | AA127: 671181 | AD127: =AD40 -> 686909.5 | AE127: 705512 | AF127: 718910.5 | AG127: 728627 | AH127: 737032 | AI127: 744038 | AJ127: 751396.5 | AK127: 761657.5 | AL127: 771643.3143 | AM127: 779502.7472 | AN127: =AN40 -> 786469.6988 | AO127: 794292.7121 | AP127: 803215.2565 | AQ127: 812818.5155 | AR127: 822735.8457
A128: =ROW() -> 128 | D128: Band 1 | O128: 5612594.867 | P128: 5804269.831 | Q128: 5947535.191 | R128: 6153433.466 | S128: 6175963.154 | T128: 3008688.118 | W128: 6231553.639 | X128: 4913980.424 | Y128: 5015651.234 | Z128: 5094684.331
A129: =ROW() -> 129 | D129: Band 2 | O129: 3447512.497 | P129: 3565248.028 | Q129: 3653248.165 | R129: 3601834.077 | S129: 3793559.069 | T129: 1249333.842 | W129: 2807463.61 | X129: 4731980.429 | Y129: 4888608.743 | Z129: 4772554.581
A130: =ROW() -> 130 | D130: Band 3 | O130: 1086632.898 | P130: 1123742.351 | Q130: 1151479.406 | R130: 1191342.579 | S130: 1195704.465 | T130: 331249.2265 | W130: 730749.4901
A131: =ROW() -> 131 | D131: Band 1* | AA131: 0 | AD131: 288522.8556 | AE131: 1180420.566 | AF131: 1198474.251 | AG131: 1219.086447 | AH131: 1236.348624 | AI131: 1259.936396 | AJ131: 1273263.126 | AK131: 1280066.816 | AL131: 1262578.314 | AM131: 1254707.184
A132: =ROW() -> 132 | D132: Band 2* | AA132: 2658352.316 | AD132: 4884879.333 | AE132: 4166565.797 | AF132: 4166780.088 | AG132: 4215.164047 | AH132: 4241.292033 | AI132: 4312.169307 | AJ132: 4361073.337 | AK132: 4322337.418 | AL132: 4244062.571 | AM132: 4197231.41 | AN132: 5402410.802 | AO132: 5358735.638 | AP132: 5322931.749 | AQ132: 5296821.267 | AR132: 5278656.265
A133: =ROW() -> 133 | D133: Band 3* | AA133: 2568594.692 | AD133: 4623497.475 | AE133: 5527792.696 | AF133: 4566927.535 | AG133: 4643.447786 | AH133: 4456.494786 | AI133: 4541.285483 | AJ133: 4877423.186 | AK133: 4715843.417 | AL133: 4495992.218 | AM133: 4335357.266 | AN133: 4182750.926 | AO133: 4038275.228 | AP133: 3902971.827 | AQ133: 3777592.947 | AR133: 3660286.901
D134: Total [GJ per Annum] | AN134: =SUM(AN131:AN133) -> 9585161.728 | AO134: 9397010.867 | AP134: 9225903.576 | AQ134: 9074414.215 | AR134: 8938943.166
D135: ERA adjustment [TJ per Annum] | AG135: 0 | AH135: 0 | AI135: 0 | AJ135: 0 | AK135: 0 | AL135: 0 | AM135: 0 | AN135: 0 | AO135: 0 | AP135: 0 | AQ135: 0 | AR135: 0
A136: =ROW() -> 136 | D136: Total [GJ per Annum] Adjusted | O136: =SUM(O128:O130) -> 10146740.26 | P136: 10493260.21 | Q136: 10752262.76 | R136: 10946610.12 | S136: 11165226.69 | T136: 4589271.187 | W136: 9769766.739 | X136: 9645960.853 | Y136: 9904259.977 | Z136: 9867238.912 | AA136: =SUM(AA128:AA133) -> 5226947.008 | AD136: =SUM(AD128:AD133) -> 9796899.664 | AE136: 10874779.06 | AF136: 9932181.873 | AG136: 10077.69828 | AH136: 9934.135443 | AI136: =SUM(AI128:AI133) -> 10113.39119 | AJ136: =SUM(AJ128:AJ135) -> 10511759.65 | AK136: 10318247.65 | AL136: 10002633.1 | AM136: 9787295.861 | AN136: =AN134+AN135 -> 9585161.728 | AO136: 9397010.867 | AP136: 9225903.576 | AQ136: 9074414.215 | AR136: 8938943.166
A137: =ROW() -> 137 | D137: Volume per Customer [GJ per customer] | T137: =T136/T127 -> 7.632934251 | W137: =W136/W127 -> 15.89810445 | X137: 15.31348981 | Y137: 15.41015784 | Z137: 15.00329406 | AA137: 7.787686195 | AD137: 14.26228588 | AE137: =AE136/AE127 -> 15.41402423 | AF137: 13.81560274 | AG137: 0.01383107993 | AH137: 0.01347856734 | AI137: 0.01359257348 | AJ137: =AJ136/AJ127 -> 13.98963084 | AK137: 13.5470965 | AL137: 12.96276779 | AM137: 12.55581959 | AN137: 12.18757918 | AO137: 11.83066485 | AP137: 11.48621556 | AQ137: 11.16413325 | AR137: 10.86490058
A138: =ROW() -> 138 | T138: Modelled - Estimate | AB138: Actuals | AI138: Actual | AL138: Forecast | AP138: Forecast
A139: =ROW() -> 139 | D139: Modelled Band 1 | T139: =T$136*T148 -> 3008688.118 | W139: =W$136*W148 -> 6231553.639 | X139: 4913980.424 | Y139: 5015651.234 | Z139: 5094684.331
A140: =ROW() -> 140 | D140: Modelled Band 2 | T140: =T$136*T149 -> 1249333.842 | W140: 2807463.61 | X140: 4731980.429 | Y140: 4888608.743 | Z140: 4772554.581
A141: =ROW() -> 141 | D141: Modelled Band 3 | T141: =T$136*T150 -> 331249.2265 | W141: 730749.4901 | X141: 0 | Y141: 0 | Z141: 0
A142: =ROW() -> 142 | D142: Modelled Band 1* | S142: =S$136*S151 -> 0 | T142: 0 | W142: 0 | X142: 0 | Y142: 0 | Z142: 0 | AA142: 0 | AB142: 0 | AC142: 0 | AD142: 288522.8556 | AE142: =AE$136*AE151 -> 1180420.566 | AF142: 1198474.251 | AG142: 1219.086447 | AH142: 1236.348624 | AI142: 1259.936396 | AJ142: =AJ$136*AJ151 -> 1273263.126 | AK142: 1280066.816 | AL142: 1262578.314 | AM142: 1254707.184 | AN142: 0 | AO142: 0 | AP142: 0 | AQ142: 0 | AR142: 0
A143: =ROW() -> 143 | D143: Modelled Band 2* | S143: =S$136*S152 -> 0 | T143: 0 | W143: 0 | X143: 0 | Y143: 0 | Z143: 0 | AA143: 2658352.316 | AB143: 0 | AC143: 0 | AD143: 4884879.333 | AE143: =AE$136*AE152 -> 4166565.797 | AF143: 4166780.088 | AG143: 4215.164047 | AH143: 4241.292033 | AI143: 4312.169307 | AJ143: =AJ$136*AJ152 -> 4361073.337 | AK143: 4322337.418 | AL143: 4244062.571 | AM143: 4197231.41 | AN143: 5402410.802 | AO143: 5358735.638 | AP143: 5322931.749 | AQ143: 5296821.267 | AR143: 5278656.265
A144: =ROW() -> 144 | D144: Modelled Band 3* | S144: =S$136*S153 -> 0 | T144: 0 | W144: 0 | X144: 0 | Y144: 0 | Z144: 0 | AA144: 2568594.692 | AB144: 0 | AC144: 0 | AD144: 4623497.475 | AE144: =AE$136*AE153 -> 5527792.696 | AF144: 4566927.535 | AG144: 4643.447786 | AH144: 4456.494786 | AI144: 4541.285483 | AJ144: =AJ$136*AJ153 -> 4877423.186 | AK144: 4715843.417 | AL144: 4495992.218 | AM144: 4335357.266 | AN144: 4182750.926 | AO144: 4038275.228 | AP144: 3902971.827 | AQ144: 3777592.947 | AR144: 3660286.901
A145: =ROW() -> 145 | D145: Modelled Total [GJ per Annum] | O145: =O136 -> 10146740.26 | P145: =P136 -> 10493260.21 | Q145: =Q136 -> 10752262.76 | R145: =R136 -> 10946610.12 | S145: =S136 -> 11165226.69 | T145: =SUM(T139:T144) -> 4589271.187 | W145: 9769766.739 | X145: 9645960.853 | Y145: 9904259.977 | Z145: 9867238.912 | AA145: 5226947.008 | AB145: 0 | AC145: 0 | AD145: 9796899.664 | AE145: =SUM(AE139:AE144) -> 10874779.06 | AF145: 9932181.873 | AG145: 10077.69828 | AH145: 9934.135443 | AI145: 10113.39119 | AJ145: =SUM(AJ139:AJ144) -> 10511759.65 | AK145: 10318247.65 | AL145: 10002633.1 | AM145: 9787295.861 | AN145: 9585161.728 | AO145: 9397010.867 | AP145: 9225903.576 | AQ145: 9074414.215 | AR145: 8938943.166
A146: =ROW() -> 146 | D146: Volume per Customer | O146: =O145/O127 -> 19.62600026 | P146: 19.56766876 | Q146: 19.44333733 | R146: 19.26355267 | S146: 19.12001214 | T146: 7.632934251 | W146: 15.89810445 | X146: 15.31348981 | Y146: 15.41015784 | Z146: 15.00329406 | AA146: 7.787686195 | AD146: 14.26228588 | AE146: =AE145/AE127 -> 15.41402423 | AF146: 13.81560274 | AG146: 0.01383107993 | AH146: 0.01347856734 | AI146: 0.01359257348 | AJ146: =AJ145/AJ127 -> 13.98963084 | AK146: 13.5470965 | AL146: 12.96276779 | AM146: 12.55581959 | AN146: 12.18757918 | AO146: 11.83066485 | AP146: 11.48621556 | AQ146: 11.16413325 | AR146: 10.86490058
A147: =ROW() -> 147 | T147: =T138 -> Modelled - Estimate | AB147: Actuals | AI147: Actual | AL147: Forecast | AP147: Forecast
A148: =ROW() -> 148 | D148: Modelled Band 1 | T148: =T128/T$136 -> 0.6555917041 | W148: =W128/W$136 -> 0.6378405755 | X148: 0.5094340003 | Y148: 0.5064135277 | Z148: 0.5163231961
A149: =ROW() -> 149 | D149: Modelled Band 2 | T149: =T129/T$136 -> 0.2722292477 | W149: 0.2873623992 | X149: 0.4905659997 | Y149: 0.4935864723 | Z149: 0.4836768039
A150: =ROW() -> 150 | D150: Modelled Band 3 | T150: =T130/T$136 -> 0.07217904827 | W150: 0.07479702531 | X150: 0 | Y150: 0 | Z150: 0
A151: =ROW() -> 151 | D151: Modelled Band 1* | AA151: =AA131/AA$136 -> 0 | AD151: =AD131/AD$136 -> 0.02945042467 | AE151: 0.1085466251 | AF151: 0.1206657577 | AG151: 0.1209687384 | AH151: 0.124454577 | AI151: 0.1245810009 | AJ151: 0.1211274961 | AK151: 0.1240585474 | AL151: 0.1262245952 | AM151: 0.128197533 | AN151: =AN131/AN$134 -> 0 | AO151: 0 | AP151: 0 | AQ151: 0 | AR151: 0
A152: =ROW() -> 152 | D152: Modelled Band 2* | AA152: =AA132/AA$136 -> 0.5085860469 | AD152: =AD132/AD$136 -> 0.498614817 | AE152: 0.3831402711 | AF152: 0.4195231361 | AG152: 0.4182665455 | AH152: 0.4269412328 | AI152: 0.4263821331 | AJ152: 0.4148756709 | AK152: 0.4189022753 | AL152: 0.4242945359 | AM152: 0.4288448484 | AN152: 0.5636222899 | AO152: 0.5702595979 | AP152: 0.5769550597 | AQ152: 0.5837094431 | AR152: 0.5905235291
A153: =ROW() -> 153 | D153: Modelled Band 3* | AA153: =AA133/AA$136 -> 0.4914139531 | AD153: =AD133/AD$136 -> 0.4719347583 | AE153: 0.5083131038 | AF153: 0.4598111063 | AG153: 0.460764716 | AH153: 0.4486041902 | AI153: 0.449036866 | AJ153: 0.4639968329 | AK153: 0.4570391772 | AL153: 0.4494808689 | AM153: 0.4429576185 | AN153: 0.4363777101 | AO153: 0.4297404021 | AP153: 0.4230449403 | AQ153: 0.4162905569 | AR153: 0.4094764709
A154: =ROW() -> 154 | T154: =SUM(T148:T153) -> 1 | U154: =SUM(U148:U153) -> 0 | V154: 0 | W154: 1 | X154: 1 | Y154: 1 | Z154: 1 | AA154: 1 | AD154: 1 | AE154: 1 | AF154: 1 | AG154: 1 | AH154: 1 | AI154: =SUM(AI148:AI153) -> 1 | AJ154: 1 | AK154: 1 | AL154: 1 | AM154: 1 | AN154: =SUM(AN148:AN153) -> 1 | AO154: 1 | AP154: 1 | AQ154: 1 | AR154: 1
A155: Prudent Discounts
A156: =ROW() -> 156 | C156: Prudent Discounts | O156: Approved 2
A157: =ROW() -> 157 | D157: Discounted Revenue [m$ 31/12/2004] | O157: 3372.350687 | P157: 3367.643259 | Q157: 3361.38203 | R157: 3355.815836 | S157: 3367.626992
A158: =ROW() -> 158 | D158: ="Discounted Revenue [m$ "&Input!$G$52&"]" -> Discounted Revenue [m$ 31/12/2023] | O158: =O157*$N$16/1000 -> 5.65355941 | P158: =P157*$N$16/1000 -> 5.645667667 | Q158: =Q157*$N$16/1000 -> 5.635171063 | R158: =R157*$N$16/1000 -> 5.625839646 | S158: =S157*$N$16/1000 -> 5.645640397
A159: =ROW() -> 159 | C159: Prudent Discounts | O159: Actual 2 [m$ OD] | T159: ="Approved 3 [m$ 31/12/2009]" -> Approved 3 [m$ 31/12/2009] | AA159: Actuals [m$ OD] | AI159: Actual 4 [m$ OD] | AL159: Forecast 5 [m$ OD] | AP159: Forecast [m$ OD]
A160: =ROW() -> 160 | D160: Discounted Revenue | O160: 4231.59836 | P160: 4558.284913 | Q160: 4561.407993 | R160: 3850.048486 | S160: 4029.130035 | T160: 1.61324818 | U160: 1.702819142 | V160: 1.56952495 | W160: 3.272344092 | X160: 3.28607519 | Y160: 3.250368184 | Z160: 3.160529652 | AA160: 0.9597968866 | AD160: 2.022598293 | AE160: 0.78735303 | AF160: 0.31370567 | AG160: 0.2477026774 | AH160: 0.2539211 | AI160: 0.39570686 | AJ160: 0.396 | AK160: 0.03270692 | AL160: 0 | AM160: 0 | AN160: 0 | AO160: 0 | AP160: 0 | AQ160: 0 | AR160: 0
A161: =ROW() -> 161 | O161: ="Actual 2 [m$ "&Input!$G$52&"]" -> Actual 2 [m$ 31/12/2023] | T161: ="Approved 3 [m$ "&Input!$G$52&"]" -> Approved 3 [m$ 31/12/2023] | AD161: ="Actuals [m$ "&Input!$G$52&"]" -> Actuals [m$ 31/12/2023] | AI161: ="Actual [$ "&Input!$G$52&"]" -> Actual [$ 31/12/2023] | AL161: ="Forecast [$ "&Input!$G$52&"]" -> Forecast [$ 31/12/2023] | AP161: ="Forecast [m$ "&Input!$G$52&"]" -> Forecast [m$ 31/12/2023]
A162: =ROW() -> 162 | D162: ="Discounted Revenue [m$ "&Input!$G$52&"]" -> Discounted Revenue [m$ 31/12/2023] | O162: =O160*O$16/1000 -> 6.900909359 | P162: =P160*P$16/1000 -> 7.199426935 | Q162: 6.99736361 | R162: 5.69619654 | S162: 5.838058415 | T162: =T160*$S$16 -> 2.337536151 | U162: =U160*$S$16 -> 2.467321118 | V162: 2.274182829 | W162: 4.741503947 | X162: 4.761399794 | Y162: 4.70966168 | Z162: 4.579489014 | AA162: =AA160*AA$16 -> 1.230682901 | AD162: =AD160*AD$16 -> 2.550377032 | AE162: 0.9783648751 | AF162: 0.3825082356 | AG162: 0.2967352162 | AH162: 0.2986872588 | AI162: =AI160*AI$16 -> 0.46149819 | AJ162: =AJ160*AJ$16 -> 0.4462296455 | AK162: 0.0341787314 | AL162: 0 | AM162: 0 | AN162: =AN160*AN$16 -> 0 | AO162: =AO160*AO$16 -> 0 | AP162: 0 | AQ162: 0 | AR162: 0
A163: =ROW() -> 163 | C163: Volume | O163: Actual 2 | T163: Actual 3 and est for 2013/14 | AA163: Actual | AI163: Actual | AL163: Forecast | AP163: ="Forecast [m$ "&Input!$G$52&"]" -> Forecast [m$ 31/12/2023]
A164: =ROW() -> 164 | D164: Volume [TJ] | O164: =O69 -> 11677.13241 | P164: 11112.86454 | Q164: 10411.34365 | R164: 6993.026199 | S164: 6745.648528 | T164: 3094.701782 | U164: 2891.935041 | V164: 2664.301299 | W164: 5556.23634 | X164: 3582.567595 | Y164: 2875.102834 | Z164: 2735.771464 | AA164: 1389.280505 | AD164: =AD69 -> 2605.250539 | AE164: 1352.817209 | AF164: 1066.656258 | AG164: 1300.164276 | AH164: 1956.294292 | AI164: 3175.532784 | AJ164: 5.805381 | AK164: 0.165 | AL164: 0 | AM164: 0 | AN164: 0 | AO164: 0 | AP164: 0 | AQ164: 0 | AR164: 0
A165: =ROW() -> 165 | D165: ="Discounted Notional Tariff [$ per GJ, "&Input!$G$52&"]" -> Discounted Notional Tariff [$ per GJ, 31/12/2023] | O165: =1000*O162/O164 -> 0.5909763731 | P165: 0.6478461883 | Q165: 0.672090351 | R165: 0.8145538681 | S165: 0.8654554696 | T165: 0.7553348647 | U165: 0.8531730771 | V165: 0.8535756935 | W165: 0.8533661379 | X165: 1.329046743 | Y165: 1.638084601 | Z165: 1.673929667 | AA165: 0.8858419137 | AD165: =1000*AD162/AD164 -> 0.9789373399 | AE165: =1000*AE162/AE164 -> 0.7232055217 | AF165: 0.3586049702 | AG165: 0.2282290182 | AH165: 0.1526801259 | AI165: 0.1453293735 | AJ165: =1000*AJ162/AJ164 -> 76.86483376 | AK165: =IF(AK160=0, " ",1000*AK162/AK164) -> 207.1438267
A166: =ROW() -> 166 | O166: Actual 2 [m$ OD] | T166: =T163&" [m$ OD]" -> Actual 3 and est for 2013/14 [m$ OD] | AA166: Actuals [m$ OD] | AI166: Actual [m$ OD] | AL166: Forecast 5 [m$ OD] | AP166: Forecast [m$ OD]
A167: =ROW() -> 167 | D167: Discounted Notional Tariff [$ per GJ, Nominal] | O167: =O165*O$17 -> 0.36238335 | P167: 0.410180912 | Q167: 0.4381190502 | R167: 0.5505554214 | S167: 0.5972932058 | T167: 0.5292898269 | U167: 0.6044488223 | V167: 0.619678642 | W167: 0.6195265089 | X167: 0.9762250194 | Y167: 1.231984966 | Z167: 1.296907889 | AA167: =AA165*AA$17 -> 0.6908589614 | AB167: 0 | AC167: 0 | AD167: 0.7763546204 | AE167: 0.5820099161 | AF167: 0.2941019355 | AG167: 0.1905164463 | AH167: 0.1297969846 | AI167: 0.1246111714 | AJ167: =AJ165*AJ$17 -> 68.21257726 | AK167: =IF(AK165=" ",0,AK165*AK$17) -> 198.2237576 | AL167: 0 | AM167: 0 | AN167: 0 | AO167: 0 | AP167: 0 | AQ167: 0 | AR167: 0
A168: Tariff Revenue
A169: =ROW() -> 169 | C169: Proposed Tariff Revenue [Real] | O169: Actual 2 [m$ 31/12/2009] | T169: Approved 3 [m$ 31/12/2009] | AA169: Approved [m$ 30/6/2014] | AI169: ="Actual [$ "&Input!$G$52&"]" -> Actual [$ 31/12/2023] | AL169: ="Forecast [$ "&Input!$G$52&"]" -> Forecast [$ 31/12/2023] | AP169: ="Forecast [m$ "&Input!$G$52&"]" -> Forecast [m$ 31/12/2023]
A170: =ROW() -> 170 | D170: A1 | O170: 4.80139987 | P170: 4.2922495 | Q170: 4.3136383 | R170: 4.545798883 | S170: 4.826820838 | T170: 2.768748194 | U170: 3.182541018 | V170: 3.179597933 | W170: 6.362138951 | X170: 7.008674989 | Y170: 7.512294084 | Z170: 7.924159466 | AA170: 4.094850881 | AB170: 4.815685591 | AC170: 3.180525157 | AE170: 7.878421387 | AF170: 7.226269581 | AG170: 6.577223067 | AH170: 5.988655881 | AI170: =Revenue!AI$103 -> 0 | AJ170: =Revenue!AJ$103 -> 0 | AK170: =Revenue!AK$103 -> 0 | AL170: =Revenue!AL$103 -> 0 | AM170: =Revenue!AM$103 -> 0 | AN170: =Revenue!AN$103 -> 11.07637799 | AO170: =Revenue!AO$103 -> 11.03929513 | AP170: =Revenue!AP$103 -> 11.01015522 | AQ170: =Revenue!AQ$103 -> 10.93207708 | AR170: =Revenue!AR$103 -> 10.92046495
A171: =ROW() -> 171 | D171: A2 | O171: 4.41869984 | P171: 4.72661995 | Q171: 4.93738968 | R171: 4.918677475 | S171: 5.203813145 | T171: 2.607760183 | U171: 2.759398225 | V171: 3.57409815 | W171: 6.333496375 | X171: 7.817500234 | Y171: 8.45458036 | Z171: 9.10643868 | AA171: 3.125233004 | AB171: 4.595120053 | AC171: 1.454069924 | AE171: 5.608288214 | AF171: 5.315696163 | AG171: 5.040065608 | AH171: 4.671191358 | AI171: =Revenue!AI$111 -> 0 | AJ171: =Revenue!AJ$111 -> 0 | AK171: =Revenue!AK$111 -> 0 | AL171: =Revenue!AL$111 -> 0 | AM171: =Revenue!AM$111 -> 0 | AN171: =Revenue!AN$111 -> 7.203311819 | AO171: =Revenue!AO$111 -> 7.174880406 | AP171: =Revenue!AP$111 -> 7.166057367 | AQ171: =Revenue!AQ$111 -> 7.155684533 | AR171: =Revenue!AR$111 -> 7.14546515
A172: =ROW() -> 172 | D172: B1 | O172: 8.59801223 | P172: 8.413272871 | Q172: 8.711606538 | R172: 7.658183152 | S172: 8.299208156 | T172: 4.017820159 | U172: 4.721702136 | V172: 4.861209307 | W172: 9.582911443 | X172: 11.04703331 | Y172: 12.10981779 | Z172: 13.23535228 | AA172: 5.276063572 | AB172: 7.544028389 | AC172: 2.192048269 | AE172: 8.828295417 | AF172: 8.243961957 | AG172: 7.717327216 | AH172: 7.228097872 | AI172: =Revenue!AI$117 -> 0 | AJ172: =Revenue!AJ$117 -> 0 | AK172: =Revenue!AK$117 -> 0 | AL172: =Revenue!AL$117 -> 0 | AM172: =Revenue!AM$117 -> 0 | AN172: =Revenue!AN$117 -> 14.65211426 | AO172: =Revenue!AO$117 -> 14.63336013 | AP172: =Revenue!AP$117 -> 14.62116326 | AQ172: =Revenue!AQ$117 -> 14.61133122 | AR172: =Revenue!AR$117 -> 14.60532897
A173: =ROW() -> 173 | D173: B2 | O173: 6.26021071 | P173: 6.501671833 | Q173: 6.979974896 | R173: 7.371811049 | S173: 7.523205351 | T173: 3.66696144 | U173: 4.031464526 | V173: 4.941080427 | W173: 8.972544953 | X173: 10.83174427 | Y173: 11.7801164 | Z173: 12.85390142 | AA173: 5.733021665 | AB173: 7.926108625 | AC173: 2.466590787 | AE173: 9.143368074 | AF173: 8.320907832 | AG173: 7.566229981 | AH173: 6.734082658 | AI173: =Revenue!AI$122 -> 0 | AJ173: =Revenue!AJ$122 -> 0 | AK173: =Revenue!AK$122 -> 0 | AL173: =Revenue!AL$122 -> 0 | AM173: =Revenue!AM$122 -> 0 | AN173: =Revenue!AN$122 -> 14.96080471 | AO173: =Revenue!AO$122 -> 15.03865762 | AP173: =Revenue!AP$122 -> 15.11778751 | AQ173: =Revenue!AQ$122 -> 15.19982729 | AR173: =Revenue!AR$122 -> 15.28289661
A174: =ROW() -> 174 | D174: B3 | O174: 87.52746275 | P174: 87.12634889 | Q174: 90.54797867 | R174: 94.38861393 | S174: 97.8627623 | T174: 45.89263033 | U174: 56.02774359 | V174: 63.86178671 | W174: 119.8895303 | X174: 151.5492519 | Y174: 166.3879097 | Z174: 183.0571263 | AA174: 79.58052432 | AB174: 108.3592022 | AC174: 31.93360483 | AE174: 127.4029613 | AF174: 118.679674 | AG174: 112.0611405 | AH174: 106.2312504 | AI174: =Revenue!AI$131 -> 0 | AJ174: =Revenue!AJ$131 -> 0 | AK174: =Revenue!AK$131 -> 0 | AL174: =Revenue!AL$131 -> 0 | AM174: =Revenue!AM$131 -> 0 | AN174: =Revenue!AN$131 -> 205.4792559 | AO174: =Revenue!AO$131 -> 205.4419203 | AP174: =Revenue!AP$131 -> 205.7172664 | AQ174: =Revenue!AQ$131 -> 206.2551897 | AR174: =Revenue!AR$131 -> 206.9669518
A175: =ROW() -> 175 | D175: Total | O175: =SUM(O170:O174) -> 111.6057854 | P175: 111.060163 | Q175: 115.4905881 | R175: 118.8830845 | S175: 123.7158098 | T175: 58.9539203 | U175: 70.72284949 | V175: 80.41777252 | W175: 151.140622 | X175: 188.2542047 | Y175: 206.2447183 | Z175: 226.1769781 | AA175: =SUM(AA170:AA174) -> 97.80969344 | AB175: =SUM(AB170:AB174) -> 133.2401449 | AC175: 41.22683897 | AE175: 158.8613343 | AF175: 147.7865096 | AG175: 138.9619864 | AH175: 130.8532781 | AI175: =SUM(AI170:AI174) -> 0 | AJ175: 0 | AK175: 0 | AL175: 0 | AM175: 0 | AN175: =SUM(AN170:AN174) -> 253.3718647 | AO175: 253.3281136 | AP175: 253.6324297 | AQ175: 254.1541098 | AR175: 254.9211075
A176: =ROW() -> 176 | C176: Proposed Tariff Revenue [Nominal] | O176: Actual 2 [m$ OD] | T176: Approved 3 [m$ OD] | AA176: Approved [m$ OD] | AI176: Actual 4 [m$ OD] | AL176: Forecast 5 [m$ OD] | AP176: Forecast [m$ OD]
A177: =ROW() -> 177 | D177: A1 | O177: =O170*O$17/$S$17 -> 4.266022539 | P177: =P170*P$17/$S$17 -> 3.937727417 | Q177: 4.074415881 | R177: 4.45193283 | S177: 4.826820838 | T177: =T170*T$17/$S$17 -> 2.811218667 | U177: =U170*U$17/$S$17 -> 3.267033257 | V177: 3.344674404 | W177: 6.69244469 | X177: 7.459380342 | Y177: 8.186510316 | Z177: 8.89574417 | AA177: =AA170*AA$17/$Z$17 -> 4.121917884 | AB177: =AB170*AB$17/$Z$17 -> 4.929370331 | AC177: 3.255608376 | AE177: =AE170*AE$17/$Z$17 -> 8.183440534 | AF177: 7.649337299 | AG177: 7.086507572 | AH177: 6.571121939 | AI177: =AI170*AI$17 -> 0 | AJ177: =AJ170*AJ$17 -> 0 | AK177: 0 | AL177: 0 | AM177: 0 | AN177: 11.74097937 | AO177: =AO170*AO$17 -> 12.0133574 | AP177: 12.30078964 | AQ177: 12.53887958 | AR177: 12.85919175
A178: =ROW() -> 178 | D178: A2 | O178: =O171*O$17/$S$17 -> 3.925995256 | P178: 4.336220662 | Q178: 4.663575739 | R178: 4.817111863 | S178: 5.203813145 | T178: =T171*T$17/$S$17 -> 2.647761224 | U178: 2.832656585 | V178: 3.759656048 | W178: 6.662315065 | X178: 8.320218538 | Y178: 9.21336526 | Z178: 10.22298316 | AA178: =AA171*AA$17/$Z$17 -> 3.145890823 | AB178: 4.703597863 | AC178: 1.48839641 | AE178: =AE171*AE$17/$Z$17 -> 5.825417408 | AF178: 5.626907837 | AG178: 5.430325645 | AH178: 5.125518752 | AI178: =AI171*AI$17 -> 0 | AJ178: =AJ171*AJ$17 -> 0 | AK178: 0 | AL178: 0 | AM178: 0 | AN178: 7.635522687 | AO178: 7.807962519 | AP178: 8.00607825 | AQ178: 8.207430851 | AR178: 8.414010476
A179: =ROW() -> 179 | D179: B1 | O179: =O172*O$17/$S$17 -> 7.639295822 | P179: 7.718371277 | Q179: 8.228484996 | R179: 7.500049577 | S179: 8.299208156 | T179: =T172*T$17/$S$17 -> 4.079450438 | U179: 4.84705706 | V179: 5.113590675 | W179: 10.08043133 | X179: 11.75743251 | Y179: 13.19665433 | Z179: 14.85814469 | AA179: =AA172*AA$17/$Z$17 -> 5.310938402 | AB179: 7.722121599 | AC179: 2.243796339 | AE179: =AE172*AE$17/$Z$17 -> 9.170089668 | AF179: 8.726611288 | AG179: 8.314891741 | AH179: 7.931114001 | AI179: =AI172*AI$17 -> 0 | AJ179: =AJ172*AJ$17 -> 0 | AK179: 0 | AL179: 0 | AM179: 0 | AN179: 15.53126585 | AO179: 15.924548 | AP179: 16.33508793 | AQ179: 16.75891245 | AR179: 17.1982353
A180: =ROW() -> 180 | D180: B2 | O180: =O173*O$17/$S$17 -> 5.562169516 | P180: 5.96466059 | Q180: 6.592884843 | R180: 7.219590762 | S180: 7.523205351 | T180: =T173*T$17/$S$17 -> 3.723209816 | U180: 4.138494557 | V180: 5.197608496 | W180: 9.438376195 | X180: 11.52829892 | Y180: 12.83736277 | Z180: 14.42992396 | AA180: =AA173*AA$17/$Z$17 -> 5.770916993 | AB180: 8.113221671 | AC180: 2.524820031 | AE180: =AE173*AE$17/$Z$17 -> 9.497360605 | AF180: 8.808062021 | AG180: 8.152094814 | AH180: 7.389050093 | AI180: =AI173*AI$17 -> 0 | AJ180: =AJ173*AJ$17 -> 0 | AK180: 0 | AL180: 0 | AM180: 0 | AN180: 15.85847824 | AO180: 16.36560728 | AP180: 16.88992755 | AQ180: 17.43390599 | AR180: 17.99609256
A181: =ROW() -> 181 | D181: B3 | O181: =O174*O$17/$S$17 -> 77.76776336 | P181: 79.93007228 | Q181: 85.52643885 | R181: 92.4395865 | S181: 97.8627623 | T181: =T174*T$17/$S$17 -> 46.59658808 | U181: 57.51520581 | V181: 67.17732489 | W181: 126.1138835 | X181: 161.294897 | Y181: 181.3209552 | Z181: 205.5018417 | AA181: =AA174*AA$17/$Z$17 -> 80.10655234 | AB181: 110.9172571 | AC181: 32.68746708 | AE181: =AE174*AE$17/$Z$17 -> 132.335465 | AF181: 125.6278702 | AG181: 120.7382071 | AH181: 116.5634683 | AI181: =AI174*AI$17 -> 0 | AJ181: =AJ174*AJ$17 -> 0 | AK181: 0 | AL181: 0 | AM181: 0 | AN181: 217.8083581 | AO181: 223.5692754 | AP181: 229.8318933 | AQ181: 236.5706871 | AR181: 243.7101104
A182: =ROW() -> 182 | D182: Total | O182: =SUM(O177:O181) -> 99.1612465 | P182: 101.8870522 | Q182: 109.0858003 | R182: 116.4282715 | S182: 123.7158098 | T182: 59.85822822 | U182: 72.60044727 | V182: 84.59285452 | W182: 158.9874508 | X182: 200.3602274 | Y182: 224.7548479 | Z182: 253.9086377 | AA182: 98.45621644 | AB182: 136.3855685 | AC182: 42.20008824 | AE182: =SUM(AE177:AE181) -> 165.0117732 | AF182: 156.4387887 | AG182: 149.7220269 | AH182: 143.5802731 | AI182: 0 | AJ182: 0 | AK182: 0 | AL182: 0 | AM182: 0 | AN182: =SUM(AN177:AN181) -> 268.5746042 | AO182: 275.6807506 | AP182: 283.3637766 | AQ182: 291.509816 | AR182: 300.1776405
A183: Ancillary Services
A184: =ROW() -> 184 | C184: Revenue | O184: Actual 22 [m$ OD] | T184: Approved 3 [m$ 31/12/2009] | AD184: Actual [$ OD] | AH184: Actual[$ OD) | AI184: Actual 4 [m$ OD] | AL184: Forecast 5 [m$ OD] | AP184: Forecast [m$ OD]
A185: =ROW() -> 185 | D185: Revenue propsoed | O185: 0.53 | P185: 0.525 | Q185: 0.548 | R185: 0.709 | S185: 0.706 | T185: =0.77/2 -> 0.385 | U185: =T185 -> 0.385 | V185: =T185 -> 0.385 | W185: =U185+V185 -> 0.77 | X185: =$T$185*2 -> 0.77 | Y185: =$T$185*2 -> 0.77 | Z185: =$T$185*2 -> 0.77 | AA185: =AA187*AA$17 -> 0 | AB185: =AB187*AB$17 -> 0 | AC185: 0 | AD185: 0 | AE185: 0 | AF185: 0 | AG185: 0 | AH185: 0 | AI185: =AI319/1000000 -> 3.51656442 | AJ185: 3.38003805 | AK185: 2.83586809 | AL185: =AL187*AL17 -> 2.829615594 | AM185: 4.132376816 | AN185: 5.22002072 | AO185: 5.849190304 | AP185: 6.135345153 | AQ185: 6.418542371 | AR185: 6.683527804
A186: =ROW() -> 186 | T186: ="Approved 3 [m$ "&Input!$G$52&"]" -> Approved 3 [m$ 31/12/2023] | AA186: ="Actual [m$ "&Input!$G$52&"]" -> Actual [m$ 31/12/2023] | AI186: ="Actual [$ "&Input!$G$52&"]" -> Actual [$ 31/12/2023] | AL186: ="Forecast [$ "&Input!$G$52&"]" -> Forecast [$ 31/12/2023] | AN186: ="Forecast [m$ "&Input!$G$52&"]" -> Forecast [m$ 31/12/2023]
A187: =ROW() -> 187 | T187: =T286/1000000 -> 0 | W187: =W286/1000000 -> 0 | X187: 0 | Y187: 0 | Z187: 0 | AA187: 0 | AB187: 0 | AC187: =AC286/1000000 -> 0 | AD187: 0 | AE187: 0 | AF187: 0 | AG187: 0 | AH187: 0 | AI187: =AI286/1000000 -> 4.204025236 | AJ187: 3.835635126 | AK187: 2.984564402 | AL187: 2.829615594 | AM187: 4.002302001 | AN187: 4.924540007 | AO187: 5.374928582 | AP187: 5.491606997 | AQ187: 5.596034277 | AR187: 5.675880145
A188: =ROW() -> 188 | D188: ERA Adjustment | O188: 0 | P188: 0 | Q188: 0 | R188: 0 | S188: 0 | T188: 0 | U188: 0 | V188: 0 | W188: 0 | X188: 0 | Y188: 0 | Z188: 0 | AA188: 0 | AB188: 0 | AC188: 0 | AD188: 0 | AE188: 0 | AF188: 0 | AG188: 0 | AH188: 0 | AI188: 0 | AJ188: 0 | AK188: 0 | AL188: 0 | AM188: 0 | AN188: 0 | AO188: 0 | AP188: 0 | AQ188: 0 | AR188: 0
A189: =ROW() -> 189 | D189: ="Revenue [m$ "&Input!$G$52&"]" -> Revenue [m$ 31/12/2023] | O189: =O185*O$16+O188 -> 0.8643263488 | P189: =P185*P$16+P188 -> 0.829193263 | Q189: =Q185*Q$16+Q188 -> 0.8406516726 | R189: =R185*R$16+R188 -> 1.048974672 | S189: =S185*S$16+S188 -> 1.02296754 | T189: =T187+T188 -> 0 | W189: =W187+W188 -> 0 | X189: =X187+X188 -> 0 | Y189: =Y187+Y188 -> 0 | Z189: =Z187+Z188 -> 0 | AA189: =AA187+AA188 -> 0 | AB189: =AB187+AB188 -> 0 | AC189: 0 | AD189: =AD187+AD188 -> 0 | AE189: 0 | AF189: 0 | AG189: 0 | AH189: 0 | AI189: 4.204025236 | AJ189: 3.835635126 | AK189: 2.984564402 | AL189: 2.829615594 | AM189: 4.002302001 | AN189: =AN187+AN188 -> 4.924540007 | AO189: 5.374928582 | AP189: 5.491606997 | AQ189: 5.596034277 | AR189: 5.675880145
A190: =ROW() -> 190 | O190: Actual 2 [m$ OD] | T190: Approved 3 [m$ OD] | AA190: Actual[$ OD) | AI190: Actual 4 [m$ Nominal] | AL190: Forecast [m$ Nominal] | AP190: Forecast [$ Nominal)
A191: =ROW() -> 191 | D191: Adjusted Revenue [m$ OD] | O191: =O189*O$17 -> 0.53 | P191: 0.525 | Q191: 0.548 | R191: 0.709 | S191: 0.706 | T191: 0 | W191: =W189*W$17 -> 0 | X191: =X189*X$17 -> 0 | Y191: =Y189*Y$17 -> 0 | Z191: =Z189*Z$17 -> 0 | AA191: =AA189*AA$17 -> 0 | AB191: =AB189*AB$17 -> 0 | AC191: 0 | AD191: =AD189*AD$17 -> 0 | AE191: 0 | AF191: 0 | AG191: 0 | AH191: 0 | AI191: 3.60469805 | AJ191: 3.40387853 | AK191: 2.85604249 | AL191: 2.829615594 | AM191: 4.132376816 | AN191: =AN189*AN$17 -> 5.22002072 | AO191: 5.849190304 | AP191: 6.135345153 | AQ191: 6.418542371 | AR191: 6.683527804
A192: Tariffs Excluding GST
A193: =ROW() -> 193 | C193: A1 | J193: Actual 1 (FA1) [$ OD] | O193: Actual 2 [$ OD] | T193: Actual 3 [$ Nominal] | AA193: Actual [$ OD] | AI193: Actual 4 [m$ Nominal] | AM193: Forecast [m$ Nominal] | AP193: Forecast [$ Nominal)
A194: =ROW() -> 194 | D194: Fixed [$/year] | J194: 43720 | K194: 44069.76364 | L194: 44056.54545 | M194: 44342.90909 | N194: 44365.08182 | O194: 44263.04545 | P194: 44734.3 | Q194: 44286.96 | R194: 44286.96 | S194: 44286.96 | T194: 44286.96 | W194: 44286.96 | X194: 41283.45 | Y194: 45308.99444 | Z194: 46738.99 | AA194: 46742.47 | AB194: 46742.47 | AC194: 46027.88148 | AE194: 42220.77 | AF194: 38925.9 | AG194: 35827.4 | AH194: 32444.85 | AI194: 33482.8 | AJ194: 34153.64 | AK194: 35342.19 | AL194: 37912.49 | AM194: =ROUND(AL194*(1+Input!$AI$31),2) -> 39893.62 | AN194: =ROUND(Revenue!AN62*AN$17,2) -> 56750.79 | AO194: =ROUND(Revenue!AO62*AO$17,2) -> 58262.41 | AP194: =ROUND(Revenue!AP62*AP$17,2) -> 59814.29 | AQ194: =ROUND(Revenue!AQ62*AQ$17,2) -> 61407.5 | AR194: =ROUND(Revenue!AR62*AR$17,2) -> 63043.15
A195: =ROW() -> 195 | D195: Demand 1 (<=10km) [$/GJ*km*year], | J195: 180.4818182 | K195: 181.9272727 | L195: 181.8727273 | M195: 183.0545455 | N195: 183.1454545 | O195: 182.7272727 | P195: 184.71 | Q195: 182.86 | R195: 182.86 | S195: 182.86 | T195: 182.86 | W195: 182.86 | X195: 174.02 | Y195: 190.9826186 | Z195: 197.0028843 | AA195: 197.0028843 | AB195: 197.0028843 | AC195: 193.9929687 | AE195: 177.94 | AF195: 164.05 | AG195: 151.04 | AH195: 136.75 | AI195: 141.12 | AJ195: 143.95 | AK195: 148.96 | AL195: 159.79 | AM195: =ROUND(AL195*(1+Input!$AI$31),2) -> 168.14 | AN195: =ROUND(Revenue!AN63*AN$17,2) -> 239.19 | AO195: =ROUND(Revenue!AO63*AO$17,2) -> 245.56 | AP195: =ROUND(Revenue!AP63*AP$17,2) -> 252.1 | AQ195: =ROUND(Revenue!AQ63*AQ$17,2) -> 258.82 | AR195: =ROUND(Revenue!AR63*AR$17,2) -> 265.71
A196: =ROW() -> 196 | D196: Demand 2 (>10km) [$/GJ*km*year], | J196: 90.24545455 | K196: 90.96363636 | L196: 90.93636364 | M196: 91.52727273 | N196: 91.57272727 | O196: 91.36363636 | P196: 92.35 | Q196: 91.43 | R196: 91.43 | S196: 91.43 | T196: 91.43 | W196: 91.43 | X196: 91.59 | Y196: 100.5221915 | Z196: 103.6909149 | AA196: 103.6909149 | AB196: 103.6909149 | AC196: 102.1086719 | AE196: 93.66 | AF196: 86.35 | AG196: 79.5 | AH196: 71.98 | AI196: 74.28 | AJ196: 75.77 | AK196: 78.41 | AL196: 84.11 | AM196: =ROUND(AL196*(1+Input!$AI$31),2) -> 88.51 | AN196: =ROUND(Revenue!AN64*AN$17,2) -> 125.9 | AO196: =ROUND(Revenue!AO64*AO$17,2) -> 129.25 | AP196: =ROUND(Revenue!AP64*AP$17,2) -> 132.69 | AQ196: =ROUND(Revenue!AQ64*AQ$17,2) -> 136.23 | AR196: =ROUND(Revenue!AR64*AR$17,2) -> 139.86
A197: =ROW() -> 197 | D197: Usage 1 (<=10km) [$/GJ*km] | J197: 0.04398181818 | K197: 0.04433636364 | L197: 0.04432727273 | M197: 0.04461818182 | N197: 0.04463636364 | O197: 0.04453636364 | P197: 0.04502 | Q197: 0.0446 | R197: 0.0446 | S197: 0.0446 | T197: 0.0446 | W197: 0.0446 | X197: 0.03691 | Y197: 0.04051864027 | Z197: 0.0417958996 | AA197: 0.0417958996 | AB197: 0.0417958996 | AC197: 0.04115726563 | AE197: 0.03776 | AF197: 0.0347 | AG197: 0.03195 | AH197: 0.02893 | AI197: 0.02985 | AJ197: 0.03045 | AK197: 0.03151 | AL197: 0.0338 | AM197: =ROUND(AL197*(1+Input!$AI$31),5) -> 0.03557 | AN197: =ROUND(Revenue!AN65*AN$17,5) -> 0.05059 | AO197: =ROUND(Revenue!AO65*AO$17,5) -> 0.05194 | AP197: =ROUND(Revenue!AP65*AP$17,5) -> 0.05333 | AQ197: =ROUND(Revenue!AQ65*AQ$17,5) -> 0.05475 | AR197: =ROUND(Revenue!AR65*AR$17,5) -> 0.0562
A198: =ROW() -> 198 | D198: Usage 2 (>10km) [$/GJ*km] | J198: 0.02199090909 | K198: 0.02216363636 | L198: 0.02215454545 | M198: 0.0223 | N198: 0.02230909091 | O198: 0.02225454545 | P198: 0.02249 | Q198: 0.0223 | R198: 0.0223 | S198: 0.0223 | T198: 0.0223 | W198: 0.0223 | X198: 0.01845 | Y198: 0.02024331861 | Z198: 0.02088143965 | AA198: 0.02088143965 | AB198: 0.02088143965 | AC198: 0.02056304687 | AE198: 0.01896 | AF198: 0.01749 | AG198: 0.0161 | AH198: 0.01458 | AI198: 0.01505 | AJ198: 0.01535 | AK198: 0.01588 | AL198: 0.01703 | AM198: =ROUND(AL198*(1+Input!$AI$31),5) -> 0.01792 | AN198: =ROUND(Revenue!AN66*AN$17,5) -> 0.02549 | AO198: =ROUND(Revenue!AO66*AO$17,5) -> 0.02617 | AP198: =ROUND(Revenue!AP66*AP$17,5) -> 0.02687 | AQ198: =ROUND(Revenue!AQ66*AQ$17,5) -> 0.02758 | AR198: =ROUND(Revenue!AR66*AR$17,5) -> 0.02832
A199: =ROW() -> 199 | C199: A2
A200: =ROW() -> 200 | D200: Fixed [$/year] | J200: 496.8181818 | K200: 500.7909091 | L200: 500.6363636 | M200: 503.8909091 | N200: 504.1454545 | O200: 502.9818182 | P200: 508.18 | Q200: 526.04 | R200: 526.04 | S200: 556.13 | T200: 556.13 | W200: 556.13 | X200: 22854.58 | Y200: 25083.20134 | Z200: 25875.63257 | AA200: 25879.11 | AB200: 25879.11 | AC200: 25483.47539 | AE200: 23375.64 | AF200: 21551.35 | AG200: 19827.7 | AH200: 17952 | AI200: 18526.31 | AJ200: 18897.49 | AK200: 19555.12 | AL200: 20976.86 | AM200: =ROUND(AL200*(1+Input!$AI$31),2) -> 22073.01 | AN200: =ROUND(Revenue!AN68*AN$17,2) -> 31399.15 | AO200: =ROUND(Revenue!AO68*AO$17,2) -> 32235.5 | AP200: =ROUND(Revenue!AP68*AP$17,2) -> 33094.12 | AQ200: =ROUND(Revenue!AQ68*AQ$17,2) -> 33975.62 | AR200: =ROUND(Revenue!AR68*AR$17,2) -> 34880.59
... 117 more rows

Sheet Revenue
A2: Revenue
A3: Ref | C3: =COLUMN() -> 3 | D3: =COLUMN() -> 4 | E3: =COLUMN() -> 5 | F3: =COLUMN() -> 6 | G3: =COLUMN() -> 7 | H3: =COLUMN() -> 8 | I3: =COLUMN() -> 9 | J3: =COLUMN() -> 10 | K3: =COLUMN() -> 11 | L3: =COLUMN() -> 12 | M3: =COLUMN() -> 13 | N3: =COLUMN() -> 14 | O3: =COLUMN() -> 15 | P3: =COLUMN() -> 16 | Q3: =COLUMN() -> 17 | R3: =COLUMN() -> 18 | S3: =COLUMN() -> 19 | T3: =COLUMN() -> 20 | U3: =COLUMN() -> 21 | V3: =COLUMN() -> 22 | W3: =COLUMN() -> 23 | X3: =COLUMN() -> 24 | Y3: =COLUMN() -> 25 | Z3: =COLUMN() -> 26 | AA3: =COLUMN() -> 27 | AD3: =COLUMN() -> 30 | AE3: =COLUMN() -> 31 | AF3: =COLUMN() -> 32 | AG3: =COLUMN() -> 33 | AH3: =COLUMN() -> 34 | AI3: =COLUMN() -> 35 | AJ3: =COLUMN() -> 36 | AK3: =COLUMN() -> 37 | AL3: =COLUMN() -> 38 | AM3: =COLUMN() -> 39 | AN3: =COLUMN() -> 40 | AO3: =COLUMN() -> 41 | AP3: =COLUMN() -> 42 | AQ3: =COLUMN() -> 43 | AR3: =COLUMN() -> 44
A4: =ROW() -> 4 | J4: Year ending 31 December | O4: Year ending 31 December | W4: Year Ending 30 June | AD4: Year Ending 31 December | AI4: Year Ending 31 December | AN4: Year Ending 31 December
A5: Regulatory Period | J5: 1 | K5: 1 | L5: 1 | M5: 1 | N5: 1 | O5: 2 | P5: 2 | Q5: 2 | R5: 2 | S5: 2 | T5: 3 | U5: 3 | V5: 3 | W5: 3 | X5: 3 | Y5: 3 | Z5: 3 | AA5: 4 | AB5: 4 | AC5: 4 | AD5: 4 | AE5: 4 | AF5: 4 | AG5: 4 | AH5: 4 | AI5: 5 | AJ5: 5 | AK5: 5 | AL5: 5 | AM5: 5 | AN5: 6 | AO5: 6 | AP5: 6 | AQ5: 6 | AR5: 6
A6: Year ending | J6: =Load_Tariffs!J6 -> 2000 | K6: =Load_Tariffs!K6 -> 2001 | L6: =Load_Tariffs!L6 -> 2002 | M6: =Load_Tariffs!M6 -> 2003 | N6: =Load_Tariffs!N6 -> 2004 | O6: =Load_Tariffs!O6 -> 2005 | P6: =Load_Tariffs!P6 -> 2006 | Q6: =Load_Tariffs!Q6 -> 2007 | R6: =Load_Tariffs!R6 -> 2008 | S6: =Load_Tariffs!S6 -> 2009 | T6: =Load_Tariffs!T6 -> 2010 | U6: =Load_Tariffs!U6 -> 2010 | V6: =Load_Tariffs!V6 -> 2011 | W6: =Load_Tariffs!W6 -> 2011 | X6: =Load_Tariffs!X6 -> 2012 | Y6: =Load_Tariffs!Y6 -> 2013 | Z6: =Load_Tariffs!Z6 -> 2014 | AA6: =Load_Tariffs!AA6 -> 2014 | AB6: =Load_Tariffs!AB6 -> 2015 | AC6: =Load_Tariffs!AC6 -> 2015 | AD6: =Load_Tariffs!AD6 -> 2015 | AE6: =Load_Tariffs!AE6 -> 2016 | AF6: =Load_Tariffs!AF6 -> 2017 | AG6: =Load_Tariffs!AG6 -> 2018 | AH6: =Load_Tariffs!AH6 -> 2019 | AI6: =Load_Tariffs!AI6 -> 2020 | AJ6: =Load_Tariffs!AJ6 -> 2021 | AK6: =Load_Tariffs!AK6 -> 2022 | AL6: =Load_Tariffs!AL6 -> 2023 | AM6: =Load_Tariffs!AM6 -> 2024 | AN6: =Load_Tariffs!AN6 -> 2025 | AO6: =Load_Tariffs!AO6 -> 2026 | AP6: =Load_Tariffs!AP6 -> 2027 | AQ6: =Load_Tariffs!AQ6 -> 2028 | AR6: =Load_Tariffs!AR6 -> 2029
A7: Months | J7: =Load_Tariffs!J7 -> 1 to 12 | K7: =Load_Tariffs!K7 -> 1 to 12 | L7: =Load_Tariffs!L7 -> 1 to 12 | M7: =Load_Tariffs!M7 -> 1 to 12 | N7: =Load_Tariffs!N7 -> 1 to 12 | O7: =Load_Tariffs!O7 -> 1 to 12 | P7: =Load_Tariffs!P7 -> 1 to 12 | Q7: =Load_Tariffs!Q7 -> 1 to 12 | R7: =Load_Tariffs!R7 -> 1 to 12 | S7: =Load_Tariffs!S7 -> 1 to 12 | T7: =Load_Tariffs!T7 -> 1 to 6 | U7: =Load_Tariffs!U7 -> 7 to 12 | V7: =Load_Tariffs!V7 -> 1 to 6 | W7: =Load_Tariffs!W7 -> 7 to 6 | X7: =Load_Tariffs!X7 -> 7 to 6 | Y7: =Load_Tariffs!Y7 -> 7 to 6 | Z7: =Load_Tariffs!Z7 -> 7 to 6 | AA7: =Load_Tariffs!AA7 -> 7 to 12 | AB7: =Load_Tariffs!AB7 -> 1 to 9 | AC7: =Load_Tariffs!AC7 -> 10 to 12 | AD7: =Load_Tariffs!AD7 -> 1 to 12 | AE7: =Load_Tariffs!AE7 -> 1 to 12 | AF7: =Load_Tariffs!AF7 -> 1 to 12 | AG7: =Load_Tariffs!AG7 -> 1 to 12 | AH7: =Load_Tariffs!AH7 -> 1 to 12 | AI7: =Load_Tariffs!AI7 -> 1 to 12 | AJ7: =Load_Tariffs!AJ7 -> 1 to 12 | AK7: =Load_Tariffs!AK7 -> 1 to 12 | AL7: =Load_Tariffs!AL7 -> 1 to 12 | AM7: =Load_Tariffs!AR7 -> 1 to 12 | AN7: =Load_Tariffs!AN7 -> 1 to 12 | AO7: =Load_Tariffs!AO7 -> 1 to 12 | AP7: =Load_Tariffs!AP7 -> 1 to 12 | AQ7: =Load_Tariffs!AQ7 -> 1 to 12 | AR7: =Load_Tariffs!AR7 -> 1 to 12
A8: Days | J8: =Load_Tariffs!J8 -> 366 | K8: =Load_Tariffs!K8 -> 365 | L8: =Load_Tariffs!L8 -> 365 | M8: =Load_Tariffs!M8 -> 365 | N8: =Load_Tariffs!N8 -> 366 | O8: =Load_Tariffs!O8 -> 365 | P8: =Load_Tariffs!P8 -> 365 | Q8: =Load_Tariffs!Q8 -> 365 | R8: =Load_Tariffs!R8 -> 366 | S8: =Load_Tariffs!S8 -> 365 | T8: =Load_Tariffs!T8 -> 181 | U8: =Load_Tariffs!U8 -> 184 | V8: =Load_Tariffs!V8 -> 181 | W8: =Load_Tariffs!W8 -> 365 | X8: =Load_Tariffs!X8 -> 366 | Y8: =Load_Tariffs!Y8 -> 365 | Z8: =Load_Tariffs!Z8 -> 365 | AA8: =Load_Tariffs!AA8 -> 184 | AB8: =Load_Tariffs!AB8 -> 273 | AC8: =Load_Tariffs!AC8 -> 92 | AD8: =Load_Tariffs!AD8 -> 365 | AE8: =Load_Tariffs!AE8 -> 366 | AF8: =Load_Tariffs!AF8 -> 365 | AG8: =Load_Tariffs!AG8 -> 365 | AH8: =Load_Tariffs!AH8 -> 365 | AI8: =Load_Tariffs!AI8 -> 366 | AJ8: =Load_Tariffs!AJ8 -> 365 | AK8: =Load_Tariffs!AK8 -> 365 | AL8: =Load_Tariffs!AL8 -> 365 | AM8: =Load_Tariffs!AR8 -> 366 | AN8: =Load_Tariffs!AN8 -> 366 | AO8: =Load_Tariffs!AO8 -> 365 | AP8: =Load_Tariffs!AP8 -> 365 | AQ8: =Load_Tariffs!AQ8 -> 365 | AR8: =Load_Tariffs!AR8 -> 366
A9: Year portion | J9: =Load_Tariffs!J9 -> 1 | K9: =Load_Tariffs!K9 -> 1 | L9: =Load_Tariffs!L9 -> 1 | M9: =Load_Tariffs!M9 -> 1 | N9: =Load_Tariffs!N9 -> 1 | O9: =Load_Tariffs!O9 -> 1 | P9: =Load_Tariffs!P9 -> 1 | Q9: =Load_Tariffs!Q9 -> 1 | R9: =Load_Tariffs!R9 -> 1 | S9: =Load_Tariffs!S9 -> 1 | T9: =Load_Tariffs!T9 -> 0.495890411 | U9: =Load_Tariffs!U9 -> 0.504109589 | V9: =Load_Tariffs!V9 -> 0.495890411 | W9: =Load_Tariffs!W9 -> 1 | X9: =Load_Tariffs!X9 -> 1 | Y9: =Load_Tariffs!Y9 -> 1 | Z9: =Load_Tariffs!Z9 -> 1 | AA9: =Load_Tariffs!AA9 -> 0.504109589 | AB9: =Load_Tariffs!AB9 -> 0.7479452055 | AC9: =Load_Tariffs!AC9 -> 0.2520547945 | AD9: =Load_Tariffs!AD9 -> 1 | AE9: =Load_Tariffs!AE9 -> 1 | AF9: =Load_Tariffs!AF9 -> 1 | AG9: =Load_Tariffs!AG9 -> 1 | AH9: =Load_Tariffs!AH9 -> 1 | AI9: =Load_Tariffs!AI9 -> 1 | AJ9: =Load_Tariffs!AJ9 -> 1 | AK9: =Load_Tariffs!AK9 -> 1 | AL9: =Load_Tariffs!AL9 -> 1 | AM9: =Load_Tariffs!AR9 -> 1 | AN9: =Load_Tariffs!AN9 -> 1 | AO9: =Load_Tariffs!AO9 -> 1 | AP9: =Load_Tariffs!AP9 -> 1 | AQ9: =Load_Tariffs!AQ9 -> 1 | AR9: =Load_Tariffs!AR9 -> 1
A10: Financial Parameters | AL10: 2025 check
A11: =ROW() -> 11 | C11: Inflation factor | J11: Actual 1 | O11: Actual 2 | T11: Actual 3 | Y11: FORECAST | AA11: Actual | AI11: Actual | AL11: Forecast | AP11: Forecast
A12: =ROW() -> 12 | D12: ="Inflation Factor (convert to real "&Input!$G$52&" $)" -> Inflation Factor (convert to real 31/12/2023 $) | T12: =Load_Tariffs!T16 -> 1.427072327 | U12: =Load_Tariffs!U16 -> 1.411489353 | V12: =Load_Tariffs!V16 -> 1.377448948 | W12: =Load_Tariffs!W16 -> 1.377448948 | X12: =Load_Tariffs!X16 -> 1.361414343 | Y12: =Load_Tariffs!Y16 -> 1.32963035 | Z12: =Load_Tariffs!Z16 -> 1.290708215 | AA12: =Load_Tariffs!AA16 -> 1.282232645 | AB12: =Load_Tariffs!AB16 -> 1.260940959 | AC12: =Load_Tariffs!AC16 -> 1.260940959 | AD12: =Load_Tariffs!AD16 -> 1.260940959 | AE12: =Load_Tariffs!AE16 -> 1.2426 | AF12: =Load_Tariffs!AF16 -> 1.219322034 | AG12: =Load_Tariffs!AG16 -> 1.197949167 | AH12: =Load_Tariffs!AH16 -> 1.176299484 | AI12: =Load_Tariffs!AI16 -> 1.166262799 | AJ12: =Load_Tariffs!AJ16 -> 1.126842539 | AK12: =Load_Tariffs!AK16 -> 1.045 | AL12: =Load_Tariffs!AL16 -> 1 | AM12: =Load_Tariffs!AM16 -> 0.9685230024 | AN12: =Load_Tariffs!AN16 -> 0.9433947241 | AO12: =Load_Tariffs!AO16 -> 0.9189183976 | AP12: =Load_Tariffs!AP16 -> 0.8950771081 | AQ12: =Load_Tariffs!AQ16 -> 0.8718543797 | AR12: =Load_Tariffs!AR16 -> 0.8492341636
A13: =ROW() -> 13 | D13: ="Inflation Factor (convert " &Input!$G$52& " $ to nominal $)" -> Inflation Factor (convert 31/12/2023 $ to nominal $) | T13: =Load_Tariffs!T17 -> 0.7007353316 | U13: =Load_Tariffs!U17 -> 0.7084715148 | V13: =Load_Tariffs!V17 -> 0.7259797189 | W13: =Load_Tariffs!W17 -> 0.7259797189 | X13: =Load_Tariffs!X17 -> 0.7345302372 | Y13: =Load_Tariffs!Y17 -> 0.7520887289 | Z13: =Load_Tariffs!Z17 -> 0.7747684474 | AA13: =Load_Tariffs!AA17 -> 0.7798896741 | AB13: =Load_Tariffs!AB17 -> 0.7930585429 | AC13: =Load_Tariffs!AC17 -> 0.7930585429 | AD13: =Load_Tariffs!AD17 -> 0.7930585429 | AE13: =Load_Tariffs!AE17 -> 0.8047642041 | AF13: =Load_Tariffs!AF17 -> 0.8201278843 | AG13: =Load_Tariffs!AG17 -> 0.8347599608 | AH13: =Load_Tariffs!AH17 -> 0.850123641 | AI13: =Load_Tariffs!AI17 -> 0.8574396793 | AJ13: =Load_Tariffs!AJ17 -> 0.887435436 | AK13: =Load_Tariffs!AK17 -> 0.956937799 | AL13: =Load_Tariffs!AL17 -> 1 | AM13: =Load_Tariffs!AM17 -> 1.0325 | AN13: =Load_Tariffs!AN17 -> 1.060001688 | AO13: =Load_Tariffs!AO17 -> 1.088235911 | AP13: =Load_Tariffs!AP17 -> 1.117222182 | AQ13: =Load_Tariffs!AQ17 -> 1.146980532 | AR13: =Load_Tariffs!AR17 -> 1.177531525
A14: =ROW() -> 14 | J14: Approved 1 | O14: Approved 2 | T14: Approved 3 | AD14: Actual 4 up to Dec 2017 | AG14: Forecast | AK14: Forecast | AP14: Forecast
A15: =ROW() -> 15 | C15: Real Post-tax WACC
A16: =ROW() -> 16 | D16: WACC | T16: =(1+$W$19)^(T$8/365)-1 -> 0.04527784254 | U16: =(1+$W$19)^(U$8/365)-1 -> 0.04604532451 | V16: =(1+$W$19)^(V$8/365)-1 -> 0.04527784254 | W16: =WACC!$W$38 -> 0.06569980507 | X16: =W16 -> 0.06569980507 | Y16: =X16 -> 0.06569980507 | Z16: =Y16 -> 0.06569980507 | AA16: =(1+WACC!$Y$38)^AA$9-1 -> 0.0198101078 | AB16: =AD16 -> 0.04010991168 | AC16: =AD16 -> 0.04010991168 | AD16: =WACC!Z$38 -> 0.04010991168 | AE16: =WACC!AA$38 -> 0.04010991168 | AF16: =WACC!AB$38 -> 0.04010991168 | AG16: =WACC!AC$38 -> 0.04010991168 | AH16: =WACC!AD$38 -> 0.04071768675 | AI16: =WACC!AE$38 -> 0.02981411904 | AJ16: =WACC!AF$38 -> 0.02965097884 | AK16: =WACC!AG$38 -> 0.02877545976 | AL16: =WACC!AH$38 -> 0.02831322919 | AM16: =WACC!AI$38 -> 0.02829691517 | AN16: =WACC!AJ$38 -> 0.04543740663 | AO16: =WACC!AK$38 -> 0.04543740663 | AP16: =WACC!AL$38 -> 0.04543740663 | AQ16: =WACC!AM$38 -> 0.04543740663 | AR16: =WACC!AN$38 -> 0.04543740663
A17: =ROW() -> 17 | D17: Discounting Factor | T17: =1/(1+T16) -> 0.9566834379 | U17: =T17/(1+U16) -> 0.9145716878 | V17: =U17/(1+V16) -> 0.8749555865 | W17: =T17/(1+W16) -> 0.8977044318 | X17: =W17/(1+X16) -> 0.8423614488 | Y17: =X17/(1+Y16) -> 0.7904303302 | Z17: =Y17/(1+Z16) -> 0.7417007364 | AA17: =1/(1+AA16) -> 0.9805747093 | AB17: =AD17 -> 0.9427606624 | AC17: =AD17 -> 0.9427606624 | AD17: =AA17/(1+AD16) -> 0.9427606624 | AE17: =AD17/(1+AE16) -> 0.9064048442 | AF17: =AE17/(1+AF16) -> 0.8714510207 | AG17: =AF17/(1+AG16) -> 0.8378451267 | AH17: =AG17/(1+AH16) -> 0.8050647523 | AI17: =1/(1+AI16) -> 0.9710490287 | AJ17: =AI17/(1+AJ16) -> 0.943085617 | AK17: =AJ17/(1+AK16) -> 0.916706953 | AL17: =AK17/(1+AL16) -> 0.8914666533 | AM17: =AL17/(1+AM16) -> 0.8669350653 | AN17: =1/(1+AN16) -> 0.9565374203 | AO17: =AN17/(1+AO16) -> 0.9149638364 | AP17: =AO17/(1+AP16) -> 0.8751971477 | AQ17: 0.8371588219 | AR17: 0.8007737399
A18: =ROW() -> 18 | C18: Nominal Post Tax WACC
A19: =ROW() -> 19 | D19: WACC | T19: =(1+$W$19)^(T$8/365)-1 -> 0.04527784254 | U19: =(1+$W$19)^(U$8/365)-1 -> 0.04604532451 | V19: =(1+$W$19)^(V$8/365)-1 -> 0.04527784254 | W19: =WACC!$W$37 -> 0.093408 | X19: =W19 -> 0.093408 | Y19: =X19 -> 0.093408 | Z19: =Y19 -> 0.093408 | AA19: =(1+WACC!$Y$37)^AA$9-1 -> 0.02953234787 | AB19: =AD19 -> 0.059872 | AC19: =AD19 -> 0.059872 | AD19: =WACC!Z$37 -> 0.059872 | AE19: =WACC!AA$37 -> 0.059872 | AF19: =WACC!AB$37 -> 0.059872 | AG19: =WACC!AC$37 -> 0.059872 | AH19: =WACC!AD$37 -> 0.059872 | AI19: =WACC!AE$37 -> 0.041554 | AJ19: =WACC!AF$37 -> 0.041389 | AK19: =WACC!AG$37 -> 0.0405035 | AL19: =WACC!AH$37 -> 0.040036 | AM19: =WACC!AI$37 -> 0.0400195 | AN19: =WACC!AJ$37 -> 0.07328369564 | AO19: =WACC!AK$37 -> 0.07328369564 | AP19: =WACC!AL$37 -> 0.07328369564 | AQ19: =WACC!AM$37 -> 0.07328369564 | AR19: =WACC!AN$37 -> 0.07328369564
A20: =ROW() -> 20 | D20: Discounting Factor | T20: =1/(1+T19) -> 0.9566834379 | U20: =T20/(1+U19) -> 0.9145716878 | V20: =U20/(1+V19) -> 0.8749555865 | W20: =T20/(1+W19) -> 0.8749555865 | X20: =W20/(1+X19) -> 0.8002096075 | Y20: =X20/(1+Y19) -> 0.7318490513 | Z20: =Y20/(1+Z19) -> 0.6693284221 | AA20: =1/(1+AA19) -> 0.9713147936 | AB20: 0.9164453761 | AC20: 0.9164453761 | AD20: =AA20/(1+AD19) -> 0.9164453761 | AE20: =AD20/(1+AE19) -> 0.8646755231 | AF20: =AE20/(1+AF19) -> 0.8158301409 | AG20: =AF20/(1+AG19) -> 0.7697440266 | AH20: =AG20/(1+AH19) -> 0.7262613095 | AI20: =1/(1+AI19) -> 0.9601038448 | AJ20: =AI20/(1+AJ19) -> 0.9219454448 | AK20: =AJ20/(1+AK19) -> 0.8860570337 | AL20: =AK20/(1+AL19) -> 0.8519484265 | AM20: =AL20/(1+AM19) -> 0.81916582 | AN20: =1/(1+AN19) -> 0.9317201072 | AO20: =AN20/(1+AO19) -> 0.8681023582 | AP20: =AO20/(1+AP19) -> 0.8088284223 | AQ20: 0.7536017044 | AR20: 0.7021458608
A21: Modelled Volume & Customer # (excluding prudent discount)
A22: =ROW() -> 22 | AA22: Actual | AI22: Actual | AL22: Forecast | AP22: Forecast
A23: =ROW() -> 23 | C23: A1
A24: =ROW() -> 24 | D24: Customers | T24: =Load_Tariffs!T80 -> 50.33333333 | U24: =Load_Tariffs!U80 -> 53 | V24: =Load_Tariffs!V80 -> 53.16666667 | W24: =Load_Tariffs!W80 -> 53.16666667 | X24: =Load_Tariffs!X80 -> 55.91666667 | Y24: =Load_Tariffs!Y80 -> 62.66666667 | Z24: =Load_Tariffs!Z80 -> 64.5 | AA24: =Load_Tariffs!AA80 -> 64.5 | AD24: =Load_Tariffs!AD80 -> 66.5 | AE24: =Load_Tariffs!AE80 -> 72 | AF24: =Load_Tariffs!AF80 -> 72.5 | AG24: =Load_Tariffs!AG80 -> 72.5 | AH24: =Load_Tariffs!AH80 -> 70.5 | AI24: =Load_Tariffs!AI80 -> 70 | AJ24: =Load_Tariffs!AJ80 -> 70 | AK24: =Load_Tariffs!AK80 -> 72 | AL24: =Load_Tariffs!AL80 -> 74 | AM24: =Load_Tariffs!AM80 -> 76 | AN24: =Load_Tariffs!AN80 -> 76 | AO24: =Load_Tariffs!AO80 -> 76 | AP24: =Load_Tariffs!AP80 -> 76 | AQ24: =Load_Tariffs!AQ80 -> 76 | AR24: =Load_Tariffs!AR80 -> 76
A25: =ROW() -> 25 | D25: Demand 1 [GJ km] | T25: =Load_Tariffs!T81 -> 4810.674978 | U25: =Load_Tariffs!U81 -> 0 | V25: =Load_Tariffs!V81 -> 0 | W25: =Load_Tariffs!W81 -> 9941.092845 | X25: =Load_Tariffs!X81 -> 11680.59719 | Y25: =Load_Tariffs!Y81 -> 12196.77594 | Z25: =Load_Tariffs!Z81 -> 12836.93546 | AA25: =Load_Tariffs!AA81 -> 6908.508355 | AD25: =Load_Tariffs!AD81 -> 13355.22104 | AE25: =Load_Tariffs!AE81 -> 15366.25762 | AF25: =Load_Tariffs!AF81 -> 15901.48185 | AG25: =Load_Tariffs!AG81 -> 16933.5405 | AH25: =Load_Tariffs!AH81 -> 17024.75091 | AI25: =Load_Tariffs!AI81 -> 16896.72608 | AJ25: =Load_Tariffs!AJ81 -> 17662.97163 | AK25: =Load_Tariffs!AK81 -> 17576.273 | AL25: =Load_Tariffs!AL81 -> 16203.0356 | AM25: =Load_Tariffs!AM81 -> 16707.03455 | AN25: =Load_Tariffs!AN81 -> 16149.1342 | AO25: =Load_Tariffs!AO81 -> 16015.1342 | AP25: =Load_Tariffs!AP81 -> 15914.6342 | AQ25: =Load_Tariffs!AQ81 -> 15619.8342 | AR25: =Load_Tariffs!AR81 -> 15607.6842
A26: =ROW() -> 26 | D26: Demand 2 [GJ km] | T26: =Load_Tariffs!T82 -> 1022.982247 | U26: =Load_Tariffs!U82 -> 0 | V26: =Load_Tariffs!V82 -> 0 | W26: =Load_Tariffs!W82 -> 2395.216712 | X26: =Load_Tariffs!X82 -> 6559.023452 | Y26: =Load_Tariffs!Y82 -> 5974.018389 | Z26: =Load_Tariffs!Z82 -> 6077.220082 | AA26: =Load_Tariffs!AA82 -> 3742.059419 | AD26: =Load_Tariffs!AD82 -> 7362.087342 | AE26: =Load_Tariffs!AE82 -> 7594.702027 | AF26: =Load_Tariffs!AF82 -> 6938.869589 | AG26: =Load_Tariffs!AG82 -> 6587.707562 | AH26: =Load_Tariffs!AH82 -> 6529.567178 | AI26: =Load_Tariffs!AI82 -> 6527.880548 | AJ26: =Load_Tariffs!AJ82 -> 6479.893425 | AK26: =Load_Tariffs!AK82 -> 6450.14 | AL26: =Load_Tariffs!AL82 -> 6209.46 | AM26: =Load_Tariffs!AM82 -> 6209.46 | AN26: =Load_Tariffs!AN82 -> 6209.46 | AO26: =Load_Tariffs!AO82 -> 6209.46 | AP26: =Load_Tariffs!AP82 -> 6209.46 | AQ26: =Load_Tariffs!AQ82 -> 6209.46 | AR26: =Load_Tariffs!AR82 -> 6209.46
A27: =ROW() -> 27 | D27: Usage 1 [TJ km] | T27: =Load_Tariffs!T83 -> 10466.01377 | U27: =Load_Tariffs!U83 -> 0 | V27: =Load_Tariffs!V83 -> 0 | W27: =Load_Tariffs!W83 -> 23453.57172 | X27: =Load_Tariffs!X83 -> 30807.77556 | Y27: =Load_Tariffs!Y83 -> 28099.35376 | Z27: =Load_Tariffs!Z83 -> 29939.8747 | AA27: =Load_Tariffs!AA83 -> 16267.79064 | AD27: =Load_Tariffs!AD83 -> 31828.34975 | AE27: =Load_Tariffs!AE83 -> 37584.49962 | AF27: =Load_Tariffs!AF83 -> 37057.85173 | AG27: =Load_Tariffs!AG83 -> 42709.11395 | AH27: =Load_Tariffs!AH83 -> 37509.94087 | AI27: =Load_Tariffs!AI83 -> 33716.244 | AJ27: =Load_Tariffs!AJ83 -> 41797.03556 | AK27: =Load_Tariffs!AK83 -> 39754.90292 | AL27: =Load_Tariffs!AL83 -> 39004.16758 | AM27: =Load_Tariffs!AM83 -> 41384.67988 | AN27: =Load_Tariffs!AN83 -> 41622.74442 | AO27: =Load_Tariffs!AO83 -> 41491.86158 | AP27: =Load_Tariffs!AP83 -> 41368.90344 | AQ27: =Load_Tariffs!AQ83 -> 41138.771 | AR27: =Load_Tariffs!AR83 -> 40964.80278
A28: =ROW() -> 28 | D28: Usage 2 [TJ km] | T28: =Load_Tariffs!T84 -> 1432.245102 | U28: =Load_Tariffs!U84 -> 0 | V28: =Load_Tariffs!V84 -> 0 | W28: =Load_Tariffs!W84 -> 2792.582836 | X28: =Load_Tariffs!X84 -> 22417.44889 | Y28: =Load_Tariffs!Y84 -> 10456.27511 | Z28: =Load_Tariffs!Z84 -> 9608.150919 | AA28: =Load_Tariffs!AA84 -> 5860.346571 | AD28: =Load_Tariffs!AD84 -> 14173.39355 | AE28: =Load_Tariffs!AE84 -> 17215.38124 | AF28: =Load_Tariffs!AF84 -> 18631.62799 | AG28: =Load_Tariffs!AG84 -> 24799.91344 | AH28: =Load_Tariffs!AH84 -> 22350.33747 | AI28: =Load_Tariffs!AI84 -> 19516.98113 | AJ28: =Load_Tariffs!AJ84 -> 25527.48918 | AK28: =Load_Tariffs!AK84 -> 26913.82663 | AL28: =Load_Tariffs!AL84 -> 30059.37761 | AM28: =Load_Tariffs!AM84 -> 30468.02584 | AN28: =Load_Tariffs!AN84 -> 26580.30366 | AO28: =Load_Tariffs!AO84 -> 26555.40894 | AP28: =Load_Tariffs!AP84 -> 26530.73956 | AQ28: =Load_Tariffs!AQ84 -> 26506.94344 | AR28: =Load_Tariffs!AR84 -> 26483.36848
A29: =ROW() -> 29 | D29: Total Volume [GJ per Annum] | T29: =Load_Tariffs!T71*1000 -> 2989027.059 | U29: =Load_Tariffs!U71*1000 -> 3385705.709 | V29: =Load_Tariffs!V71*1000 -> 3676067.249 | W29: =Load_Tariffs!W71*1000 -> 7061772.958 | X29: =Load_Tariffs!X71*1000 -> 8562532.485 | Y29: =Load_Tariffs!Y71*1000 -> 8478528.824 | Z29: =Load_Tariffs!Z71*1000 -> 8669858.249 | AA29: =Load_Tariffs!AA71*1000 -> 4660411.482 | AD29: =Load_Tariffs!AD71*1000 -> 8842923.473 | AE29: =Load_Tariffs!AE71*1000 -> 9474734.76 | AF29: =Load_Tariffs!AF71*1000 -> 9292616.66 | AG29: =Load_Tariffs!AG71*1000 -> 9924907.241 | AH29: =Load_Tariffs!AH71*1000 -> 8866005.944 | AI29: =Load_Tariffs!AI71*1000 -> 8578785.8 | AJ29: =Load_Tariffs!AJ71*1000 -> 12341997.45 | AK29: =Load_Tariffs!AK71*1000 -> 11830267.24 | AL29: =Load_Tariffs!AL71*1000 -> 12737151.53 | AM29: =Load_Tariffs!AM71*1000 -> 15047812.97 | AN29: =Load_Tariffs!AN71*1000 -> 15220827.95 | AO29: =Load_Tariffs!AO71*1000 -> 14972673.43 | AP29: =Load_Tariffs!AP71*1000 -> 14949598.37 | AQ29: =Load_Tariffs!AQ71*1000 -> 14884433.81 | AR29: =Load_Tariffs!AR71*1000 -> 14840907.79
A30: =ROW() -> 30 | C30: A2
A31: =ROW() -> 31 | D31: A2 Customers | T31: =Load_Tariffs!T37 -> 97.16666667 | U31: =Load_Tariffs!U37 -> 96.5 | V31: =Load_Tariffs!V37 -> 101 | W31: =Load_Tariffs!W37 -> 101 | X31: =Load_Tariffs!X37 -> 109.5 | Y31: =Load_Tariffs!Y37 -> 106.5833333 | Z31: =Load_Tariffs!Z37 -> 104.5 | AA31: =Load_Tariffs!AA37 -> 103 | AD31: =Load_Tariffs!AD37 -> 102.5 | AE31: =Load_Tariffs!AE37 -> 98.5 | AF31: =Load_Tariffs!AF37 -> 97 | AG31: =Load_Tariffs!AG37 -> 101 | AH31: =Load_Tariffs!AH37 -> 105.5 | AI31: =Load_Tariffs!AI37 -> 104.5 | AJ31: =Load_Tariffs!AJ37 -> 103 | AK31: =Load_Tariffs!AK37 -> 104 | AL31: =Load_Tariffs!AL37 -> 103.5 | AM31: =Load_Tariffs!AM37 -> 104.5 | AN31: =Load_Tariffs!AN37 -> 105 | AO31: =Load_Tariffs!AO37 -> 105 | AP31: =Load_Tariffs!AP37 -> 105 | AQ31: =Load_Tariffs!AQ37 -> 105 | AR31: =Load_Tariffs!AR37 -> 105
A32: =ROW() -> 32 | D32: GJ Band 1 | T32: =Load_Tariffs!T91 -> 228196.5464 | U32: =Load_Tariffs!U91 -> 0 | V32: =Load_Tariffs!V91 -> 0 | W32: =Load_Tariffs!W91 -> 439801.477 | X32: =Load_Tariffs!X91 -> 851175.004 | Y32: =Load_Tariffs!Y91 -> 838543.447 | Z32: =Load_Tariffs!Z91 -> 815846.866 | AA32: =Load_Tariffs!AA91 -> 0 | AD32: =Load_Tariffs!AD91 -> 0 | AE32: =Load_Tariffs!AE91 -> 0 | AF32: =Load_Tariffs!AF91 -> 0 | AG32: =Load_Tariffs!AG91 -> 0 | AH32: =Load_Tariffs!AH91 -> 0 | AI32: =Load_Tariffs!AI91 -> 0 | AJ32: =Load_Tariffs!AJ91 -> 0 | AK32: =Load_Tariffs!AK91 -> 0 | AL32: =Load_Tariffs!AL91 -> 0 | AM32: =Load_Tariffs!AM91 -> 0 | AN32: =Load_Tariffs!AN91 -> 0 | AO32: =Load_Tariffs!AO91 -> 0 | AP32: =Load_Tariffs!AP91 -> 0 | AQ32: =Load_Tariffs!AQ91 -> 0 | AR32: =Load_Tariffs!AR91 -> 0
A33: =ROW() -> 33 | D33: GJ Band 2 | T33: =Load_Tariffs!T92 -> 203649.7527 | U33: =Load_Tariffs!U92 -> 0 | V33: =Load_Tariffs!V92 -> 0 | W33: =Load_Tariffs!W92 -> 383576.215 | X33: =Load_Tariffs!X92 -> 1168877.416 | Y33: =Load_Tariffs!Y92 -> 1144950.279 | Z33: =Load_Tariffs!Z92 -> 1068670.536 | AA33: =Load_Tariffs!AA92 -> 0 | AD33: =Load_Tariffs!AD92 -> 0 | AE33: =Load_Tariffs!AE92 -> 0 | AF33: =Load_Tariffs!AF92 -> 0 | AG33: =Load_Tariffs!AG92 -> 0 | AH33: =Load_Tariffs!AH92 -> 0 | AI33: =Load_Tariffs!AI92 -> 0 | AJ33: =Load_Tariffs!AJ92 -> 0 | AK33: =Load_Tariffs!AK92 -> 0 | AL33: =Load_Tariffs!AL92 -> 0 | AM33: =Load_Tariffs!AM92 -> 0 | AN33: =Load_Tariffs!AN92 -> 0 | AO33: =Load_Tariffs!AO92 -> 0 | AP33: =Load_Tariffs!AP92 -> 0 | AQ33: =Load_Tariffs!AQ92 -> 0 | AR33: =Load_Tariffs!AR92 -> 0
A34: =ROW() -> 34 | D34: GJ Band 3 | T34: =Load_Tariffs!T93 -> 455151.0385 | U34: =Load_Tariffs!U93 -> 0 | V34: =Load_Tariffs!V93 -> 0 | W34: =Load_Tariffs!W93 -> 992837.4724 | X34: =Load_Tariffs!X93 -> 0 | Y34: =Load_Tariffs!Y93 -> 0 | Z34: =Load_Tariffs!Z93 -> 0 | AA34: =Load_Tariffs!AA93 -> 0 | AD34: =Load_Tariffs!AD93 -> 0 | AE34: =Load_Tariffs!AE93 -> 0 | AF34: =Load_Tariffs!AF93 -> 0 | AG34: =Load_Tariffs!AG93 -> 0 | AH34: =Load_Tariffs!AH93 -> 0 | AI34: =Load_Tariffs!AI93 -> 0 | AJ34: =Load_Tariffs!AJ93 -> 0 | AK34: =Load_Tariffs!AK93 -> 0 | AL34: =Load_Tariffs!AL93 -> 0 | AM34: =Load_Tariffs!AM93 -> 0 | AN34: =Load_Tariffs!AN93 -> 0 | AO34: =Load_Tariffs!AO93 -> 0 | AP34: =Load_Tariffs!AP93 -> 0 | AQ34: =Load_Tariffs!AQ93 -> 0 | AR34: =Load_Tariffs!AR93 -> 0
A35: =ROW() -> 35 | D35: GJ Band 1* | AA35: =Load_Tariffs!AA94 -> 405625.606 | AD35: =Load_Tariffs!AD94 -> 785654.977 | AE35: =Load_Tariffs!AE94 -> 762671.7419 | AF35: =Load_Tariffs!AF94 -> 768684.569 | AG35: =Load_Tariffs!AG94 -> 777864.024 | AH35: =Load_Tariffs!AH94 -> 796479.232 | AI35: =Load_Tariffs!AI94 -> 761528.096 | AJ35: =Load_Tariffs!AJ94 -> 794158.328 | AK35: =Load_Tariffs!AK94 -> 838985.7832 | AL35: =Load_Tariffs!AL94 -> 820178.2331 | AM35: =Load_Tariffs!AM94 -> 839298.9134 | AN35: =Load_Tariffs!AN94 -> 848699.3348 | AO35: =Load_Tariffs!AO94 -> 842804.0062 | AP35: =Load_Tariffs!AP94 -> 840974.5257 | AQ35: =Load_Tariffs!AQ94 -> 838823.691 | AR35: =Load_Tariffs!AR94 -> 836704.6749
A36: =ROW() -> 36 | D36: GJ Band 2* | AA36: =Load_Tariffs!AA95 -> 542794.279 | AD36: =Load_Tariffs!AD95 -> 1018804.015 | AE36: =Load_Tariffs!AE95 -> 1008052.483 | AF36: =Load_Tariffs!AF95 -> 1025065.958 | AG36: =Load_Tariffs!AG95 -> 1010103.254 | AH36: =Load_Tariffs!AH95 -> 1045425.874 | AI36: =Load_Tariffs!AI95 -> 949887.248 | AJ36: =Load_Tariffs!AJ95 -> 1034727.601 | AK36: =Load_Tariffs!AK95 -> 1079301.497 | AL36: =Load_Tariffs!AL95 -> 1048264.333 | AM36: =Load_Tariffs!AM95 -> 1072702.347 | AN36: =Load_Tariffs!AN95 -> 1084716.963 | AO36: =Load_Tariffs!AO95 -> 1077182.183 | AP36: =Load_Tariffs!AP95 -> 1074843.936 | AQ36: =Load_Tariffs!AQ95 -> 1072094.969 | AR36: =Load_Tariffs!AR95 -> 1069386.668
A37: =ROW() -> 37 | D37: Total Volume [GJ per Annum] | T37: =SUM(T32:T36) -> 886997.3376 | U37: 0 | V37: 0 | W37: 1816215.164 | X37: 2020052.42 | Y37: 1983493.726 | Z37: 1884517.402 | AA37: =SUM(AA32:AA36) -> 948419.885 | AD37: =SUM(AD32:AD36) -> 1804458.992 | AE37: 1770724.225 | AF37: 1793750.527 | AG37: 1787967.278 | AH37: 1841905.106 | AI37: =SUM(AI32:AI36) -> 1711415.344 | AJ37: 1828885.929 | AK37: 1918287.28 | AL37: 1868442.566 | AM37: =SUM(AM32:AM36) -> 1912001.261 | AN37: =SUM(AN32:AN36) -> 1933416.298 | AO37: 1919986.189 | AP37: 1915818.462 | AQ37: 1910918.66 | AR37: 1906091.343
A38: =ROW() -> 38 | C38: B1
A39: =ROW() -> 39 | D39: Customers | T39: =Load_Tariffs!T38 -> 1222.166667 | U39: =Load_Tariffs!U38 -> 1242 | V39: =Load_Tariffs!V38 -> 1256.333333 | W39: =Load_Tariffs!W38 -> 1256.333333 | X39: =Load_Tariffs!X38 -> 1297.416667 | Y39: =Load_Tariffs!Y38 -> 1334.416667 | Z39: =Load_Tariffs!Z38 -> 1364 | AA39: =Load_Tariffs!AA38 -> 1399 | AD39: =Load_Tariffs!AD38 -> 1444 | AE39: =Load_Tariffs!AE38 -> 1518.5 | AF39: =Load_Tariffs!AF38 -> 1599.5 | AG39: =Load_Tariffs!AG38 -> 1670.5 | AH39: =Load_Tariffs!AH38 -> 1739 | AI39: =Load_Tariffs!AI38 -> 1807.5 | AJ39: =Load_Tariffs!AJ38 -> 1876.5 | AK39: =Load_Tariffs!AK38 -> 1940 | AL39: =Load_Tariffs!AL38 -> 1996.5 | AM39: =Load_Tariffs!AM38 -> 2054.5 | AN39: =Load_Tariffs!AN38 -> 2114 | AO39: =Load_Tariffs!AO38 -> 2175 | AP39: =Load_Tariffs!AP38 -> 2238 | AQ39: =Load_Tariffs!AQ38 -> 2303 | AR39: =Load_Tariffs!AR38 -> 2370
A40: =ROW() -> 40 | D40: GJ Band 1 | T40: =Load_Tariffs!T102 -> 649493.4631 | U40: =Load_Tariffs!U102 -> 0 | V40: =Load_Tariffs!V102 -> 0 | W40: =Load_Tariffs!W102 -> 1389540.322 | X40: =Load_Tariffs!X102 -> 1385587.464 | Y40: =Load_Tariffs!Y102 -> 1463332.441 | Z40: =Load_Tariffs!Z102 -> 1472170.211 | AA40: =Load_Tariffs!AA102 -> 791288.4815 | AD40: =Load_Tariffs!AD102 -> 1523036.72 | AE40: =Load_Tariffs!AE102 -> 1664051.405 | AF40: =Load_Tariffs!AF102 -> 1632990.466 | AG40: =Load_Tariffs!AG102 -> 1714526.397 | AH40: =Load_Tariffs!AH102 -> 1716864.059 | AI40: =Load_Tariffs!AI102 -> 1628082.863 | AJ40: =Load_Tariffs!AJ102 -> 1801812.429 | AK40: =Load_Tariffs!AK102 -> 1857482.05 | AL40: =Load_Tariffs!AL102 -> 1850777.491 | AM40: =Load_Tariffs!AM102 -> 1842731.977 | AN40: =Load_Tariffs!AN102 -> 1828178.617 | AO40: =Load_Tariffs!AO102 -> 1813909.835 | AP40: =Load_Tariffs!AP102 -> 1801562.084 | AQ40: =Load_Tariffs!AQ102 -> 1786323.662 | AR40: =Load_Tariffs!AR102 -> 1770410.406
A41: =ROW() -> 41 | D41: GJ Band 2 | T41: =Load_Tariffs!T103 -> 94260.5628 | U41: =Load_Tariffs!U103 -> 0 | V41: =Load_Tariffs!V103 -> 0 | W41: =Load_Tariffs!W103 -> 202653.3169 | X41: =Load_Tariffs!X103 -> 168076.3819 | Y41: =Load_Tariffs!Y103 -> 176654.1947 | Z41: =Load_Tariffs!Z103 -> 175019.4857 | AA41: =Load_Tariffs!AA103 -> 0 | AD41: =Load_Tariffs!AD103 -> 0 | AE41: =Load_Tariffs!AE103 -> 0 | AF41: =Load_Tariffs!AF103 -> 0 | AG41: =Load_Tariffs!AG103 -> 0 | AH41: =Load_Tariffs!AH103 -> 0 | AI41: =Load_Tariffs!AI103 -> 0 | AJ41: =Load_Tariffs!AJ103 -> 0 | AK41: =Load_Tariffs!AK103 -> 0 | AL41: =Load_Tariffs!AL103 -> 0 | AM41: =Load_Tariffs!AM103 -> 0 | AN41: =Load_Tariffs!AN103 -> 0 | AO41: =Load_Tariffs!AO103 -> 0 | AP41: =Load_Tariffs!AP103 -> 0 | AQ41: =Load_Tariffs!AQ103 -> 0 | AR41: =Load_Tariffs!AR103 -> 0
A42: =ROW() -> 42 | D42: GJ Band 2* | AA42: =Load_Tariffs!AA104 -> 97970.16121 | AD42: =Load_Tariffs!AD104 -> 197766.1523 | AE42: =Load_Tariffs!AE104 -> 266373.9094 | AF42: =Load_Tariffs!AF104 -> 241805.8528 | AG42: =Load_Tariffs!AG104 -> 290029.4973 | AH42: =Load_Tariffs!AH104 -> 235799.3977 | AI42: =Load_Tariffs!AI104 -> 212062.0134 | AJ42: =Load_Tariffs!AJ104 -> 274662.5779 | AK42: =Load_Tariffs!AK104 -> 278840.7353 | AL42: =Load_Tariffs!AL104 -> 239368.4145 | AM42: =Load_Tariffs!AM104 -> 227226.2695 | AN42: =Load_Tariffs!AN104 -> 221607.6208 | AO42: =Load_Tariffs!AO104 -> 215692.7241 | AP42: =Load_Tariffs!AP104 -> 208270.9174 | AQ42: =Load_Tariffs!AQ104 -> 204083.7451 | AR42: =Load_Tariffs!AR104 -> 200852.4455
A43: =ROW() -> 43 | D43: Total Volume [GJ per Annum] | T43: =SUM(T40:T42) -> 743754.0259 | U43: =SUM(U40:U42) -> 0 | V43: 0 | W43: 1592193.639 | X43: 1553663.846 | Y43: 1639986.635 | Z43: 1647189.697 | AA43: 889258.6427 | AD43: 1720802.873 | AE43: 1930425.315 | AF43: 1874796.319 | AG43: 2004555.894 | AH43: 1952663.457 | AI43: =SUM(AI40:AI42) -> 1840144.876 | AJ43: 2076475.007 | AK43: 2136322.785 | AL43: 2090145.906 | AM43: =SUM(AM40:AM42) -> 2069958.246 | AN43: =SUM(AN40:AN42) -> 2049786.238 | AO43: 2029602.559 | AP43: 2009833.001 | AQ43: 1990407.407 | AR43: 1971262.851
A44: =ROW() -> 44 | C44: B2
A45: =ROW() -> 45 | D45: Modelled B2 Customers | T45: =Load_Tariffs!T39 -> 7697.5 | U45: =Load_Tariffs!U39 -> 7893 | V45: =Load_Tariffs!V39 -> 8105.083333 | W45: =Load_Tariffs!W39 -> 8105.083333 | X45: =Load_Tariffs!X39 -> 8708.75 | Y45: =Load_Tariffs!Y39 -> 9262.25 | Z45: =Load_Tariffs!Z39 -> 9797 | AA45: =Load_Tariffs!AA39 -> 10221.5 | AD45: =Load_Tariffs!AD39 -> 10622.5 | AE45: =Load_Tariffs!AE39 -> 11112.5 | AF45: =Load_Tariffs!AF39 -> 11494.5 | AG45: =Load_Tariffs!AG39 -> 11737 | AH45: =Load_Tariffs!AH39 -> 11973 | AI45: =Load_Tariffs!AI39 -> 12128.5 | AJ45: =Load_Tariffs!AJ39 -> 12227.5 | AK45: =Load_Tariffs!AK39 -> 12428 | AL45: =Load_Tariffs!AL39 -> 12658.5 | AM45: =Load_Tariffs!AM39 -> 12899.455 | AN45: =Load_Tariffs!AN39 -> 13144.67265 | AO45: =Load_Tariffs!AO39 -> 13394.54943 | AP45: =Load_Tariffs!AP39 -> 13649.17386 | AQ45: =Load_Tariffs!AQ39 -> 13908.7843 | AR45: =Load_Tariffs!AR39 -> 14173.38046
A46: =ROW() -> 46 | D46: GJ Band 1 | T46: =Load_Tariffs!T118 -> 185987.7142 | U46: =Load_Tariffs!U118 -> 0 | V46: =Load_Tariffs!V118 -> 0 | W46: =Load_Tariffs!W118 -> 389585.8249 | X46: =Load_Tariffs!X118 -> 403522.1127 | Y46: =Load_Tariffs!Y118 -> 418531.9016 | Z46: =Load_Tariffs!Z118 -> 430255.2483 | AA46: =Load_Tariffs!AA118 -> 228811.0652 | AD46: =Load_Tariffs!AD118 -> 454358.7074 | AE46: =Load_Tariffs!AE118 -> 481672.4814 | AF46: =Load_Tariffs!AF118 -> 480578.9736 | AG46: =Load_Tariffs!AG118 -> 490010.7087 | AH46: =Load_Tariffs!AH118 -> 490288.3704 | AI46: =Load_Tariffs!AI118 -> 489070.4026 | AJ46: =Load_Tariffs!AJ118 -> 504024.2042 | AK46: =Load_Tariffs!AK118 -> 498090.0168 | AL46: =Load_Tariffs!AL118 -> 492169.7148 | AM46: =Load_Tariffs!AM118 -> 504174.4322 | AN46: =Load_Tariffs!AN118 -> 505259.9444 | AO46: =Load_Tariffs!AO118 -> 506537.4908 | AP46: =Load_Tariffs!AP118 -> 507503.2763 | AQ46: =Load_Tariffs!AQ118 -> 508789.2974 | AR46: =Load_Tariffs!AR118 -> 509600.9805
A47: =ROW() -> 47 | D47: GJ Band 2 | T47: =Load_Tariffs!T119 -> 366118.5915 | U47: =Load_Tariffs!U119 -> 0 | V47: =Load_Tariffs!V119 -> 0 | W47: =Load_Tariffs!W119 -> 777541.4461 | X47: =Load_Tariffs!X119 -> 784946.1842 | Y47: =Load_Tariffs!Y119 -> 812884.7301 | Z47: =Load_Tariffs!Z119 -> 825273.9552 | AA47: =Load_Tariffs!AA119 -> 434199.1841 | AD47: =Load_Tariffs!AD119 -> 837277.7577 | AE47: =Load_Tariffs!AE119 -> 886844.8449 | AF47: =Load_Tariffs!AF119 -> 862170.8128 | AG47: =Load_Tariffs!AG119 -> 863500.7444 | AH47: =Load_Tariffs!AH119 -> 847841.6481 | AI47: =Load_Tariffs!AI119 -> 748912.0259 | AJ47: =Load_Tariffs!AJ119 -> 824013.5825 | AK47: =Load_Tariffs!AK119 -> 812694.231 | AL47: =Load_Tariffs!AL119 -> 788719.3842 | AM47: =Load_Tariffs!AM119 -> 772808.0885 | AN47: =Load_Tariffs!AN119 -> 767846.8236 | AO47: =Load_Tariffs!AO119 -> 762705.0571 | AP47: =Load_Tariffs!AP119 -> 757886.555 | AQ47: =Load_Tariffs!AQ119 -> 752772.7269 | AR47: =Load_Tariffs!AR119 -> 748149.0645
A48: =ROW() -> 48 | D48: Total Volume [GJ per Annum] | T48: =SUM(T46:T47) -> 552106.3057 | U48: =SUM(U46:U47) -> 0 | V48: 0 | W48: 1167127.271 | X48: 1188468.297 | Y48: 1231416.632 | Z48: 1255529.203 | AA48: =SUM(AA46:AA47) -> 663010.2493 | AD48: 1291636.465 | AE48: 1368517.326 | AF48: 1342749.786 | AG48: =SUM(AG46:AG47) -> 1353511.453 | AH48: =SUM(AH46:AH47) -> 1338130.018 | AI48: =SUM(AI46:AI47) -> 1237982.429 | AJ48: 1328037.787 | AK48: 1310784.248 | AL48: =SUM(AL46:AL47) -> 1280889.099 | AM48: =SUM(AM46:AM47) -> 1276982.521 | AN48: =SUM(AN46:AN47) -> 1273106.768 | AO48: 1269242.548 | AP48: 1265389.831 | AQ48: =SUM(AQ46:AQ47) -> 1261562.024 | AR48: =SUM(AR46:AR47) -> 1257750.045
A49: =ROW() -> 49 | C49: B3
A50: =ROW() -> 50 | D50: Modelled B3 Customers | T50: =Load_Tariffs!T40 -> 601246 | U50: =Load_Tariffs!U40 -> 609162.8988 | V50: =Load_Tariffs!V40 -> 614524 | W50: =Load_Tariffs!W40 -> 614524 | X50: =Load_Tariffs!X40 -> 629899.5833 | Y50: =Load_Tariffs!Y40 -> 642709.8333 | Z50: =Load_Tariffs!Z40 -> 657671.5 | AA50: =Load_Tariffs!AA40 -> 671181 | AD50: =Load_Tariffs!AD40 -> 686909.5 | AE50: =Load_Tariffs!AE40 -> 705512 | AF50: =Load_Tariffs!AF40 -> 718910.5 | AG50: =Load_Tariffs!AG40 -> 728627 | AH50: =Load_Tariffs!AH40 -> 737032 | AI50: =Load_Tariffs!AI40 -> 744038 | AJ50: =Load_Tariffs!AJ40 -> 751396.5 | AK50: =Load_Tariffs!AK40 -> 761657.5 | AL50: =Load_Tariffs!AL40 -> 771643.3143 | AM50: =Load_Tariffs!AM40 -> 779502.7472 | AN50: =Load_Tariffs!AN40 -> 786469.6988 | AO50: =Load_Tariffs!AO40 -> 794292.7121 | AP50: =Load_Tariffs!AP40 -> 803215.2565 | AQ50: =Load_Tariffs!AQ40 -> 812818.5155 | AR50: =Load_Tariffs!AR40 -> 822735.8457
A51: =ROW() -> 51 | D51: GJ Band 1 | T51: =Load_Tariffs!T139 -> 3008688.118 | U51: =Load_Tariffs!U139 -> 0 | V51: =Load_Tariffs!V139 -> 0 | W51: =Load_Tariffs!W139 -> 6231553.639 | X51: =Load_Tariffs!X139 -> 4913980.424 | Y51: =Load_Tariffs!Y139 -> 5015651.234 | Z51: =Load_Tariffs!Z139 -> 5094684.331 | AA51: =Load_Tariffs!AA139 -> 0 | AD51: =Load_Tariffs!AD139 -> 0 | AE51: =Load_Tariffs!AE139 -> 0 | AF51: =Load_Tariffs!AF139 -> 0 | AG51: =Load_Tariffs!AG139 -> 0 | AH51: =Load_Tariffs!AH139 -> 0 | AI51: =Load_Tariffs!AI139 -> 0 | AJ51: =Load_Tariffs!AJ139 -> 0 | AK51: =Load_Tariffs!AK139 -> 0 | AL51: =Load_Tariffs!AL139 -> 0 | AM51: =Load_Tariffs!AM139 -> 0 | AN51: =Load_Tariffs!AN139 -> 0 | AO51: =Load_Tariffs!AO139 -> 0 | AP51: =Load_Tariffs!AP139 -> 0 | AQ51: =Load_Tariffs!AQ139 -> 0 | AR51: =Load_Tariffs!AR139 -> 0
A52: =ROW() -> 52 | D52: GJ Band 2 | T52: =Load_Tariffs!T140 -> 1249333.842 | U52: =Load_Tariffs!U140 -> 0 | V52: =Load_Tariffs!V140 -> 0 | W52: =Load_Tariffs!W140 -> 2807463.61 | X52: =Load_Tariffs!X140 -> 4731980.429 | Y52: =Load_Tariffs!Y140 -> 4888608.743 | Z52: =Load_Tariffs!Z140 -> 4772554.581 | AA52: =Load_Tariffs!AA140 -> 0 | AD52: =Load_Tariffs!AD140 -> 0 | AE52: =Load_Tariffs!AE140 -> 0 | AF52: =Load_Tariffs!AF140 -> 0 | AG52: =Load_Tariffs!AG140 -> 0 | AH52: =Load_Tariffs!AH140 -> 0 | AI52: =Load_Tariffs!AI140 -> 0 | AJ52: =Load_Tariffs!AJ140 -> 0 | AK52: =Load_Tariffs!AK140 -> 0 | AL52: =Load_Tariffs!AL140 -> 0 | AM52: =Load_Tariffs!AM140 -> 0 | AN52: =Load_Tariffs!AN140 -> 0 | AO52: =Load_Tariffs!AO140 -> 0 | AP52: =Load_Tariffs!AP140 -> 0 | AQ52: =Load_Tariffs!AQ140 -> 0 | AR52: =Load_Tariffs!AR140 -> 0
A53: =ROW() -> 53 | D53: GJ Band 3 | T53: =Load_Tariffs!T141 -> 331249.2265 | U53: =Load_Tariffs!U141 -> 0 | V53: =Load_Tariffs!V141 -> 0 | W53: =Load_Tariffs!W141 -> 730749.4901 | X53: =Load_Tariffs!X141 -> 0 | Y53: =Load_Tariffs!Y141 -> 0 | Z53: =Load_Tariffs!Z141 -> 0 | AA53: =Load_Tariffs!AA141 -> 0 | AD53: =Load_Tariffs!AD141 -> 0 | AE53: =Load_Tariffs!AE141 -> 0 | AF53: =Load_Tariffs!AF141 -> 0 | AG53: =Load_Tariffs!AG141 -> 0 | AH53: =Load_Tariffs!AH141 -> 0 | AI53: =Load_Tariffs!AI141 -> 0 | AJ53: =Load_Tariffs!AJ141 -> 0 | AK53: =Load_Tariffs!AK141 -> 0 | AL53: =Load_Tariffs!AL141 -> 0 | AM53: =Load_Tariffs!AM141 -> 0 | AN53: =Load_Tariffs!AN141 -> 0 | AO53: =Load_Tariffs!AO141 -> 0 | AP53: =Load_Tariffs!AP141 -> 0 | AQ53: =Load_Tariffs!AQ141 -> 0 | AR53: =Load_Tariffs!AR141 -> 0
A54: =ROW() -> 54 | D54: GJ Band 1* | AA54: =Load_Tariffs!AA142 -> 0 | AD54: =Load_Tariffs!AD142 -> 288522.8556 | AE54: =Load_Tariffs!AE142 -> 1180420.566 | AF54: =Load_Tariffs!AF142 -> 1198474.251 | AG54: =Load_Tariffs!AG142 -> 1219.086447 | AH54: =Load_Tariffs!AH142 -> 1236.348624 | AI54: =Load_Tariffs!AI142 -> 1259.936396 | AJ54: =Load_Tariffs!AJ142 -> 1273263.126 | AK54: =Load_Tariffs!AK142 -> 1280066.816 | AL54: =Load_Tariffs!AL142 -> 1262578.314 | AM54: =Load_Tariffs!AM142 -> 1254707.184 | AN54: =Load_Tariffs!AN142 -> 0 | AO54: =Load_Tariffs!AO142 -> 0 | AP54: =Load_Tariffs!AP142 -> 0 | AQ54: =Load_Tariffs!AQ142 -> 0 | AR54: =Load_Tariffs!AR142 -> 0
A55: =ROW() -> 55 | D55: GJ Band 2* | AA55: =Load_Tariffs!AA143 -> 2658352.316 | AD55: =Load_Tariffs!AD143 -> 4884879.333 | AE55: =Load_Tariffs!AE143 -> 4166565.797 | AF55: =Load_Tariffs!AF143 -> 4166780.088 | AG55: =Load_Tariffs!AG143 -> 4215.164047 | AH55: =Load_Tariffs!AH143 -> 4241.292033 | AI55: =Load_Tariffs!AI143 -> 4312.169307 | AJ55: =Load_Tariffs!AJ143 -> 4361073.337 | AK55: =Load_Tariffs!AK143 -> 4322337.418 | AL55: =Load_Tariffs!AL143 -> 4244062.571 | AM55: =Load_Tariffs!AM143 -> 4197231.41 | AN55: =Load_Tariffs!AN143 -> 5402410.802 | AO55: =Load_Tariffs!AO143 -> 5358735.638 | AP55: =Load_Tariffs!AP143 -> 5322931.749 | AQ55: =Load_Tariffs!AQ143 -> 5296821.267 | AR55: =Load_Tariffs!AR143 -> 5278656.265
A56: =ROW() -> 56 | D56: GJ Band 3* | AA56: =Load_Tariffs!AA144 -> 2568594.692 | AD56: =Load_Tariffs!AD144 -> 4623497.475 | AE56: =Load_Tariffs!AE144 -> 5527792.696 | AF56: =Load_Tariffs!AF144 -> 4566927.535 | AG56: =Load_Tariffs!AG144 -> 4643.447786 | AH56: =Load_Tariffs!AH144 -> 4456.494786 | AI56: =Load_Tariffs!AI144 -> 4541.285483 | AJ56: =Load_Tariffs!AJ144 -> 4877423.186 | AK56: =Load_Tariffs!AK144 -> 4715843.417 | AL56: =Load_Tariffs!AL144 -> 4495992.218 | AM56: =Load_Tariffs!AM144 -> 4335357.266 | AN56: =Load_Tariffs!AN144 -> 4182750.926 | AO56: =Load_Tariffs!AO144 -> 4038275.228 | AP56: =Load_Tariffs!AP144 -> 3902971.827 | AQ56: =Load_Tariffs!AQ144 -> 3777592.947 | AR56: =Load_Tariffs!AR144 -> 3660286.901
A57: =ROW() -> 57 | D57: Total Volume [GJ per Annum] | T57: =SUM(T51:T56) -> 4589271.187 | U57: 0 | V57: 0 | W57: 9769766.739 | X57: 9645960.853 | Y57: 9904259.977 | Z57: 9867238.912 | AA57: =SUM(AA51:AA56) -> 5226947.008 | AD57: =SUM(AD51:AD56) -> 9796899.664 | AE57: 10874779.06 | AF57: 9932181.873 | AG57: 10077.69828 | AH57: 9934.135443 | AI57: =SUM(AI51:AI56) -> 10113.39119 | AJ57: 10511759.65 | AK57: 10318247.65 | AL57: 10002633.1 | AM57: =SUM(AM51:AM56) -> 9787295.861 | AN57: =SUM(AN51:AN56) -> 9585161.728 | AO57: 9397010.867 | AP57: 9225903.576 | AQ57: 9074414.215 | AR57: 8938943.166
A58: =ROW() -> 58
A59: ="Tariffs Excluding GST [$ "&Input!$G$52&"]" -> Tariffs Excluding GST [$ 31/12/2023] | E59: Calculation uses factor from first year of tariff change
A60: =ROW() -> 60 | AH60: ="Actual [$ "&Input!$G$52&"]" -> Actual [$ 31/12/2023] | AI60: ="Actual [$ "&Input!$G$52&"]" -> Actual [$ 31/12/2023] | AM60: ="Forecast [$ "&Input!$G$52&"]" -> Forecast [$ 31/12/2023] | AP60: ="Forecast [$ "&Input!$G$52&"]" -> Forecast [$ 31/12/2023]
A61: =ROW() -> 61 | C61: A1
A62: =ROW() -> 62 | D62: Fixed [$/year] | AM62: =ROUND(Load_Tariffs!AM194*Revenue!$AM$12,2) -> 38637.89 | AN62: =Price_path_AA6!G117 -> 53538.4 | AO62: =Price_path_AA6!H117 -> 53538.4 | AP62: =Price_path_AA6!I117 -> 53538.4 | AQ62: =Price_path_AA6!J117 -> 53538.4 | AR62: =Price_path_AA6!K117 -> 53538.4
A63: =ROW() -> 63 | D63: Demand 1 (<=10km) [$/GJ*km*year] | AM63: =ROUND(Load_Tariffs!AM195*Revenue!$AM$12,2) -> 162.85 | AN63: =Price_path_AA6!G119 -> 225.65 | AO63: =Price_path_AA6!H119 -> 225.65 | AP63: =Price_path_AA6!I119 -> 225.65 | AQ63: =Price_path_AA6!J119 -> 225.65 | AR63: =Price_path_AA6!K119 -> 225.65
A64: =ROW() -> 64 | D64: Demand 2 (>10km) [$/GJ*km*year] | AM64: =ROUND(Load_Tariffs!AM196*Revenue!$AM$12,2) -> 85.72 | AN64: =Price_path_AA6!G120 -> 118.77 | AO64: =Price_path_AA6!H120 -> 118.77 | AP64: =Price_path_AA6!I120 -> 118.77 | AQ64: =Price_path_AA6!J120 -> 118.77 | AR64: =Price_path_AA6!K120 -> 118.77
A65: =ROW() -> 65 | D65: Usage 1 (<=10km) [$/GJ*km] | AM65: =ROUND(Load_Tariffs!AM197*Revenue!$AM$12,5) -> 0.03445 | AN65: =Price_path_AA6!G122 -> 0.04773 | AO65: =Price_path_AA6!H122 -> 0.04773 | AP65: =Price_path_AA6!I122 -> 0.04773 | AQ65: =Price_path_AA6!J122 -> 0.04773 | AR65: =Price_path_AA6!K122 -> 0.04773
A66: =ROW() -> 66 | D66: Usage 2 (>10km) [$/GJ*km] | AM66: =ROUND(Load_Tariffs!AM198*Revenue!$AM$12,5) -> 0.01736 | AN66: =Price_path_AA6!G123 -> 0.02405 | AO66: =Price_path_AA6!H123 -> 0.02405 | AP66: =Price_path_AA6!I123 -> 0.02405 | AQ66: =Price_path_AA6!J123 -> 0.02405 | AR66: =Price_path_AA6!K123 -> 0.02405
A67: =ROW() -> 67 | C67: A2 | AM67: =ROUND(Load_Tariffs!AM199*Revenue!$AM$12,2) -> 0
A68: =ROW() -> 68 | D68: Fixed [$/year] | AM68: =ROUND(Load_Tariffs!AM200*Revenue!$AM$12,2) -> 21378.22 | AN68: =Price_path_AA6!G125 -> 29621.79 | AO68: =Price_path_AA6!H125 -> 29621.79 | AP68: =Price_path_AA6!I125 -> 29621.79 | AQ68: =Price_path_AA6!J125 -> 29621.79 | AR68: =Price_path_AA6!K125 -> 29621.79
A69: =ROW() -> 69 | D69: Usage 1 (Q<=5TJ/year) [$/GJ] | AM69: =ROUND(Load_Tariffs!AM201*Revenue!$AM$12,2) -> 0
A70: =ROW() -> 70 | D70: Usage 2 (5<Q<=10TJ/year) [$/GJ] | AM70: =ROUND(Load_Tariffs!AM202*Revenue!$AM$12,2) -> 0
A71: =ROW() -> 71 | D71: Usage 3 (Q>10TJ/year) [$/GJ] | AM71: =ROUND(Load_Tariffs!AM203*Revenue!$AM$12,2) -> 0
A72: =ROW() -> 72 | D72: Usage 1* (Q<=10TJ/year) [$/GJ] | AM72: =ROUND(Load_Tariffs!AM204*Revenue!$AM$12,2) -> 2.08 | AN72: =Price_path_AA6!G126 -> 2.88 | AO72: =Price_path_AA6!H126 -> 2.88 | AP72: =Price_path_AA6!I126 -> 2.88 | AQ72: =Price_path_AA6!J126 -> 2.88 | AR72: =Price_path_AA6!K126 -> 2.88
A73: =ROW() -> 73 | D73: Usage 2* (Q>10TJ/year) [$/GJ] | AM73: =ROUND(Load_Tariffs!AM205*Revenue!$AM$12,2) -> 1.1 | AN73: =Price_path_AA6!G127 -> 1.52 | AO73: =Price_path_AA6!H127 -> 1.52 | AP73: =Price_path_AA6!I127 -> 1.52 | AQ73: =Price_path_AA6!J127 -> 1.52 | AR73: =Price_path_AA6!K127 -> 1.52
A74: =ROW() -> 74 | C74: B1 | AM74: =ROUND(Load_Tariffs!AM206*Revenue!$AM$12,2) -> 0
A75: =ROW() -> 75 | D75: Fixed [$/year] | AM75: =ROUND(Load_Tariffs!AM207*Revenue!$AM$12,2) -> 1080.89 | AN75: =Price_path_AA6!G129 -> 1497.69 | AO75: =Price_path_AA6!H129 -> 1497.69 | AP75: =Price_path_AA6!I129 -> 1497.69 | AQ75: =Price_path_AA6!J129 -> 1497.69 | AR75: =Price_path_AA6!K129 -> 1497.69
A76: =ROW() -> 76 | D76: Usage 1 (Q<=5TJ/year) [$/GJ], | AM76: =ROUND(Load_Tariffs!AM208*Revenue!$AM$12,2) -> 4.11 | AN76: =Price_path_AA6!G130 -> 5.69 | AO76: =Price_path_AA6!H130 -> 5.69 | AP76: =Price_path_AA6!I130 -> 5.69 | AQ76: =Price_path_AA6!J130 -> 5.69 | AR76: =Price_path_AA6!K130 -> 5.69
A77: =ROW() -> 77 | D77: Usage 2 (Q>5TJ/year) [$/GJ] | AM77: =ROUND(Load_Tariffs!AM209*Revenue!$AM$12,2) -> 0
A78: =ROW() -> 78 | D78: Usage 2* (Q>5TJ/year) [$/GJ] | AM78: =ROUND(Load_Tariffs!AM210*Revenue!$AM$12,2) -> 3.53 | AN78: =Price_path_AA6!G131 -> 4.89 | AO78: =Price_path_AA6!H131 -> 4.89 | AP78: =Price_path_AA6!I131 -> 4.89 | AQ78: =Price_path_AA6!J131 -> 4.89 | AR78: =Price_path_AA6!K131 -> 4.89
A79: =ROW() -> 79 | C79: B2 | AM79: =ROUND(Load_Tariffs!AM211*Revenue!$AM$12,2) -> 0
A80: =ROW() -> 80 | D80: Fixed [$/year] | AM80: =ROUND(Load_Tariffs!AM212*Revenue!$AM$12,2) -> 271.25 | AN80: =Price_path_AA6!G133 -> 403.16 | AO80: =Price_path_AA6!H133 -> 403.16 | AP80: =Price_path_AA6!I133 -> 403.16 | AQ80: =Price_path_AA6!J133 -> 403.16 | AR80: =Price_path_AA6!K133 -> 403.16
A81: =ROW() -> 81 | D81: Usage 1 (Q<=100GJ/year) [$/GJ] | AM81: =ROUND(Load_Tariffs!AM213*Revenue!$AM$12,2) -> 6.88 | AN81: =Price_path_AA6!G134 -> 8.97 | AO81: =Price_path_AA6!H134 -> 8.97 | AP81: =Price_path_AA6!I134 -> 8.97 | AQ81: =Price_path_AA6!J134 -> 8.97 | AR81: =Price_path_AA6!K134 -> 8.97
A82: =ROW() -> 82 | D82: Usage 2 (Q>100GJ/year) [$/GJ] | AM82: =ROUND(Load_Tariffs!AM214*Revenue!$AM$12,2) -> 4.1 | AN82: =Price_path_AA6!G135 -> 6.68 | AO82: =Price_path_AA6!H135 -> 6.68 | AP82: =Price_path_AA6!I135 -> 6.68 | AQ82: =Price_path_AA6!J135 -> 6.68 | AR82: =Price_path_AA6!K135 -> 6.68
A83: =ROW() -> 83 | C83: B3 | AM83: =ROUND(Load_Tariffs!AM215*Revenue!$AM$12,2) -> 0
A84: =ROW() -> 84 | D84: Fixed [$/year] | AM84: =ROUND(Load_Tariffs!AM216*Revenue!$AM$12,2) -> 134.71 | AN84: =Price_path_AA6!G137 -> 167.96 | AO84: =Price_path_AA6!H137 -> 167.96 | AP84: =Price_path_AA6!I137 -> 167.96 | AQ84: =Price_path_AA6!J137 -> 167.96 | AR84: =Price_path_AA6!K137 -> 167.96
A85: =ROW() -> 85 | D85: Usage 1 (Q<=10GJ/year) [$/GJ] | AM85: =ROUND(Load_Tariffs!AM217*Revenue!$AM$12,2) -> 0
A86: =ROW() -> 86 | D86: Usage 2 (10<Q<=15GJ/year) [$/GJ] | AM86: =ROUND(Load_Tariffs!AM218*Revenue!$AM$12,2) -> 0
A87: =ROW() -> 87 | D87: Usage 3 (Q>15GJ/year) [$/GJ] | AM87: =ROUND(Load_Tariffs!AM219*Revenue!$AM$12,2) -> 0
A88: =ROW() -> 88 | D88: Usage 1* (Q<=2GJ/year to 2016); (Q<=1.825GJ/year, 2017 onwards) [$/GJ] | AM88: =ROUND(Load_Tariffs!AM220*Revenue!$AM$12,2) -> 0
A89: =ROW() -> 89 | D89: Usage 2* (2<Q<=10GJ/year to 2016); (1.825<Q<=9.855GJ/year, 2017 to 2024)(First 9.855 GJ from 2025) [$/GJ] | AM89: =ROUND(Load_Tariffs!AM221*Revenue!$AM$12,2) -> 6.31 | AN89: =Price_path_AA6!G139 -> 8.28 | AO89: =Price_path_AA6!H139 -> 8.28 | AP89: =Price_path_AA6!I139 -> 8.28 | AQ89: =Price_path_AA6!J139 -> 8.28 | AR89: =Price_path_AA6!K139 -> 8.28
A90: =ROW() -> 90 | D90: Usage 3* (Q>10GJ/year to 2016); (Q>9.855GJ/year, 2017 onwards) [$/GJ] | AM90: =ROUND(Load_Tariffs!AM222*Revenue!$AM$12,2) -> 4.22 | AN90: =Price_path_AA6!G140 -> 6.85 | AO90: =Price_path_AA6!H140 -> 6.85 | AP90: =Price_path_AA6!I140 -> 6.85 | AQ90: =Price_path_AA6!J140 -> 6.85 | AR90: =Price_path_AA6!K140 -> 6.85
A91: =ROW() -> 91 | AM91: =ROUND(Load_Tariffs!AM223*Revenue!$AM$12,2) -> 0
A92: =ROW() -> 92
A93: ="Revenue [m$ "&Input!$G$52&"]" -> Revenue [m$ 31/12/2023] | AI93: ="Actual [$ "&Input!$G$52&"]" -> Actual [$ 31/12/2023] | AL93: ="Forecast [$ "&Input!$G$52&"]" -> Forecast [$ 31/12/2023] | AP93: ="Forecast [$ "&Input!$G$52&"]" -> Forecast [$ 31/12/2023]
A94: =ROW() -> 94
A95: =ROW() -> 95 | C95: PV of Tariff Revenue
A96: =ROW() -> 96 | D96: Discounting Factor Real Post-tax | AN96: =AN17 -> 0.9565374203 | AO96: 0.9149638364 | AP96: 0.8751971477 | AQ96: 0.8371588219 | AR96: 0.8007737399
A97: =ROW() -> 97 | C97: A1 | F97: PV
A98: =ROW() -> 98 | D98: Fixed | E98: =F98/$F$103 -> 0.369922013 | F98: =SUMPRODUCT($AN$96:$AR$96,AN98:AR98) -> 17.84070562 | AN98: =AN24*AN62/1000000 -> 4.0689184 | AO98: 4.0689184 | AP98: 4.0689184 | AQ98: 4.0689184 | AR98: 4.0689184
A99: =ROW() -> 99 | D99: Demand 1 (<=10km) | E99: 0.3256599597 | F99: =SUMPRODUCT($AN$96:$AR$96,AN99:AR99) -> 15.70602253 | AN99: =AN25*AN63/1000000 -> 3.644052132 | AO99: 3.613815032 | AP99: 3.591137207 | AQ99: 3.524615587 | AR99: 3.52187394
A100: =ROW() -> 100 | D100: Demand 2 (>10km) | E100: 0.06704891982 | F100: 3.233654657 | AN100: =AN26*AN64/1000000 -> 0.7374975642 | AO100: 0.7374975642 | AP100: 0.7374975642 | AQ100: 0.7374975642 | AR100: 0.7374975642
A101: =ROW() -> 101 | D101: Usage 1 (<=10km) | E101: 0.1793540263 | F101: 8.649937747 | AN101: =AN27*AN65/1000 -> 1.986653591 | AO101: 1.980406553 | AP101: 1.974537761 | AQ101: 1.96355354 | AR101: 1.955250037
A102: =ROW() -> 102 | D102: Usage 2 (>10km) | E102: 0.05801508117 | F102: 2.79796808 | AN102: =AN28*AN66/1000 -> 0.6392563031 | AO102: 0.6386575851 | AP102: 0.6380642865 | AQ102: 0.6374919896 | AR102: 0.6369250119
A103: =ROW() -> 103 | D103: Total | E103: 1 | F103: 48.22828863 | AN103: =SUM(AN98:AN102) -> 11.07637799 | AO103: =SUM(AO98:AO102) -> 11.03929513 | AP103: 11.01015522 | AQ103: 10.93207708 | AR103: 10.92046495
A104: =ROW() -> 104 | C104: A2
A105: =ROW() -> 105 | D105: Fixed | E105: =F105/$F$111 -> 0.4337746891 | F105: =SUMPRODUCT($AN$96:$AR$96,AN105:AR105) -> 13.63746486 | AN105: =AN31*AN68/1000000 -> 3.11028795 | AO105: 3.11028795 | AP105: 3.11028795 | AQ105: 3.11028795 | AR105: 3.11028795
A106: =ROW() -> 106 | D106: Usage 1 (Q<=5TJ/year) | E106: =F106/$F$111 -> 0 | F106: 0 | AN106: =AN32*AN69/1000000 -> 0 | AO106: 0 | AP106: 0 | AQ106: 0 | AR106: 0
A107: =ROW() -> 107 | D107: Usage 2 (5<Q<=10TJ/year) | E107: =F107/$F$111 -> 0 | F107: 0 | AN107: =AN33*AN70/1000000 -> 0 | AO107: 0 | AP107: 0 | AQ107: 0 | AR107: 0
A108: =ROW() -> 108 | D108: Usage 3 (Q>10TJ/year) | E108: =F108/$F$111 -> 0 | F108: 0 | AN108: =AN34*AN71/1000000 -> 0 | AO108: 0 | AP108: 0 | AQ108: 0 | AR108: 0
A109: =ROW() -> 109 | D109: Usage 1* (Q<=10TJ/year) | E109: =F109/$F$111 -> 0.3381359536 | F109: 10.63067371 | AN109: =AN35*AN72/1000000 -> 2.444254084 | AO109: 2.427275538 | AP109: 2.422006634 | AQ109: 2.41581223 | AR109: 2.409709464
A110: =ROW() -> 110 | D110: Usage 2* (Q>10TJ/year) | E110: 0.2280893573 | F110: 7.170913088 | AN110: =AN36*AN73/1000000 -> 1.648769784 | AO110: 1.637316918 | AP110: 1.633762783 | AQ110: 1.629584353 | AR110: 1.625467736
A111: =ROW() -> 111 | D111: Total | E111: =F111/$F$111 -> 1 | F111: 31.43905166 | AN111: =SUM(AN105:AN110) -> 7.203311819 | AO111: =SUM(AO105:AO110) -> 7.174880406 | AP111: 7.166057367 | AQ111: 7.155684533 | AR111: 7.14546515
A112: =ROW() -> 112 | C112: B1
A113: =ROW() -> 113 | D113: Fixed | E113: =F113/$F$117 -> 0.2287972883 | F113: 14.67237199 | AN113: =AN39*AN75/1000000 -> 3.16611666 | AO113: 3.25747575 | AP113: 3.35183022 | AQ113: 3.44918007 | AR113: 3.5495253
A114: =ROW() -> 114 | D114: Usage 1 (Q<=5TJ/year) | E114: =F114/$F$117 -> 0.7007984498 | F114: 44.94098521 | AN114: =AN40*AN76/1000000 -> 10.40233633 | AO114: 10.32114696 | AP114: 10.25088826 | AQ114: 10.16418164 | AR114: 10.07363521
A115: =ROW() -> 115 | D115: Usage 2 (5<Q<=10TJ/year) | E115: =F115/$F$117 -> 0 | F115: 0 | AN115: =AN41*AN77/1000000 -> 0 | AO115: 0 | AP115: 0 | AQ115: 0 | AR115: 0
A116: =ROW() -> 116 | D116: Usage 2* (Q>5TJ/year) | E116: =F116/$F$117 -> 0.07040426189 | F116: 4.514902813 | AN116: =AN42*AN78/1000000 -> 1.083661266 | AO116: 1.054737421 | AP116: 1.018444786 | AQ116: 0.9979695137 | AR116: 0.9821684586
A117: =ROW() -> 117 | D117: Total | E117: =F117/$F$117 -> 1 | F117: 64.12826001 | AN117: =SUM(AN113:AN116) -> 14.65211426 | AO117: =SUM(AO113:AO116) -> 14.63336013 | AP117: 14.62116326 | AQ117: 14.61133122 | AR117: 14.60532897
A118: =ROW() -> 118 | C118: B2
A119: =ROW() -> 119 | D119: Fixed | E119: =F119/$F$122 -> 0.3636368932 | F119: 24.09612734 | AN119: =AN45*AN80/1000000 -> 5.299406224 | AO119: 5.400146546 | AP119: 5.502800935 | AQ119: 5.607465477 | AR119: 5.714140065
A120: =ROW() -> 120 | D120: Usage 1 (Q<=100GJ/year) | E120: =F120/$F$122 -> 0.3011838808 | F120: 19.95772509 | AN120: =AN46*AN81/1000000 -> 4.532181701 | AO120: 4.543641293 | AP120: 4.552304388 | AQ120: 4.563839998 | AR120: 4.571120796
A121: =ROW() -> 121 | D121: Usage 2 (Q>100GJ/year) | E121: =F121/$F$122 -> 0.335179226 | F121: 22.21040127 | AN121: =AN47*AN82/1000000 -> 5.129216782 | AO121: 5.094869782 | AP121: 5.062682187 | AQ121: 5.028521816 | AR121: 4.997635751
A122: =ROW() -> 122 | D122: Total | E122: =F122/$F$122 -> 1 | F122: 66.2642537 | AN122: =SUM(AN119:AN121) -> 14.96080471 | AO122: =SUM(AO119:AO121) -> 15.03865762 | AP122: 15.11778751 | AQ122: 15.19982729 | AR122: 15.28289661
A123: =ROW() -> 123 | C123: B3
A124: =ROW() -> 124 | D124: Fixed | E124: =F124/$F$131 -> 0.6549929526 | F124: 591.436197 | AN124: =AN50*AN84/1000000 -> 132.0954506 | AO124: 133.4094039 | AP124: 134.9080345 | AQ124: 136.5209979 | AR124: 138.1867126
A125: =ROW() -> 125 | D125: Usage 1 (Q<=15GJ/year) | E125: =F125/$F$131 -> 0 | F125: 0 | AN125: =AN51*AN85/1000000 -> 0 | AO125: 0 | AP125: 0 | AQ125: 0 | AR125: 0
A126: =ROW() -> 126 | D126: Usage 2 (15<Q<=45GJ/year) | E126: =F126/$F$131 -> 0 | F126: 0 | AN126: =AN52*AN86/1000000 -> 0 | AO126: 0 | AP126: 0 | AQ126: 0 | AR126: 0
A127: =ROW() -> 127 | D127: Usage 3 (Q>45GJ/year) | E127: =F127/$F$131 -> 0 | F127: 0 | AN127: =AN53*AN87/1000000 -> 0 | AO127: 0 | AP127: 0 | AQ127: 0 | AR127: 0
A128: =ROW() -> 128 | D128: Usage 1* (Q<=2GJ/year to 2016); (Q<=1.825GJ/year, 2017 onwards) | E128: =F128/$F$131 -> 0 | F128: 0 | AN128: =AN54*AN88/1000000 -> 0 | AO128: 0 | AP128: 0 | AQ128: 0 | AR128: 0
A129: =ROW() -> 129 | D129: Usage 2* (2<Q<=10GJ/year to 2016); (1.825<Q<=9.855GJ/year, 2017 onwards) | E129: 0.2144863809 | F129: 193.6738539 | AN129: =AN55*AN89/1000000 -> 44.73196144 | AO129: 44.37033108 | AP129: 44.07387488 | AQ129: 43.85768009 | AR129: 43.70727387
A130: =ROW() -> 130 | D130: Usage 3* (Q>10GJ/year to 2016); (Q>9.855GJ/year, 2017 onwards) | E130: 0.1305206665 | F130: 117.8556904 | AN130: =AN56*AN90/1000000 -> 28.65184384 | AO130: 27.66218532 | AP130: 26.73535702 | AQ130: 25.87651169 | AR130: 25.07296527
A131: =ROW() -> 131 | D131: Total | E131: =F131/$F$131 -> 1 | F131: 902.9657413 | AN131: =SUM(AN124:AN130) -> 205.4792559 | AO131: =SUM(AO124:AO130) -> 205.4419203 | AP131: 205.7172664 | AQ131: 206.2551897 | AR131: 206.9669518
A132: =ROW() -> 132 | C132: Calculated Tariff Revenue | F132: PV | I132: Lower Bound Check per Rule 94 (3)(b) | N132: Upper Bound Check per Rule 94 (3)(a)
A133: =ROW() -> 133 | D133: A1 | E133: =F133/$F$141 -> 0.04242870581 | F133: 48.22828863 | I133: =IF(F168<F133,"Complies","Breach - Reset Tariffs") -> Complies | N133: =IF(F175>F133,"Complies","Breach - Reset Tariffs") -> Complies | AN133: =AN103 -> 11.07637799 | AO133: 11.03929513 | AP133: 11.01015522 | AQ133: =AQ103 -> 10.93207708 | AR133: =AR103 -> 10.92046495
A134: =ROW() -> 134 | D134: A2 | E134: 0.02765842022 | F134: 31.43905166 | I134: =IF(F169<F134,"Complies","Breach - Reset Tariffs") -> Complies | N134: =IF(F176>F134,"Complies","Breach - Reset Tariffs") -> Complies | AN134: =AN111 -> 7.203311819 | AO134: 7.174880406 | AP134: 7.166057367 | AQ134: =AQ111 -> 7.155684533 | AR134: =AR111 -> 7.14546515
A135: =ROW() -> 135 | D135: B1 | E135: 0.0564166624 | F135: 64.12826001 | I135: =IF(F170<F135,"Complies","Breach - Reset Tariffs") -> Complies | N135: =IF(F177>F135,"Complies","Breach - Reset Tariffs") -> Complies | AN135: =AN117 -> 14.65211426 | AO135: 14.63336013 | AP135: 14.62116326 | AQ135: =AQ117 -> 14.61133122 | AR135: =AR117 -> 14.60532897
A136: =ROW() -> 136 | D136: B2 | E136: 0.05829579704 | F136: 66.2642537 | I136: =IF(F171<F136,"Complies","Breach - Reset Tariffs") -> Complies | N136: =IF(F178>F136,"Complies","Breach - Reset Tariffs") -> Complies | AN136: =AN122 -> 14.96080471 | AO136: 15.03865762 | AP136: 15.11778751 | AQ136: =AQ122 -> 15.19982729 | AR136: =AR122 -> 15.28289661
A137: =ROW() -> 137 | D137: B3 | E137: 0.794381656 | F137: 902.9657413 | I137: =IF(F172<F137,"Complies","Breach - Reset Tariffs") -> Complies | N137: =IF(F179>F137,"Complies","Breach - Reset Tariffs") -> Breach - Reset Tariffs | AN137: =AN131 -> 205.4792559 | AO137: 205.4419203 | AP137: 205.7172664 | AQ137: =AQ131 -> 206.2551897 | AR137: =AR131 -> 206.9669518
A138: =ROW() -> 138 | D138: Total Tariff Revenue | E138: 0.9791812415 | F138: 1113.025595 | AN138: =SUM(AN133:AN137) -> 253.3718647 | AO138: =SUM(AO133:AO137) -> 253.3281136 | AP138: 253.6324297 | AQ138: 254.1541098 | AR138: 254.9211075
A139: =ROW() -> 139 | D139: Revenue from Prudent Discounts | E139: 0 | F139: 0 | AN139: =Load_Tariffs!AN162 -> 0 | AO139: =Load_Tariffs!AO162 -> 0 | AP139: =Load_Tariffs!AP162 -> 0 | AQ139: =Load_Tariffs!AQ162 -> 0 | AR139: =Load_Tariffs!AR162 -> 0
A140: =ROW() -> 140 | D140: Revenue from Ancillary Services | E140: 0.0208187585 | F140: 23.66447608 | AN140: =Load_Tariffs!AN189 -> 4.924540007 | AO140: =Load_Tariffs!AO189 -> 5.374928582 | AP140: =Load_Tariffs!AP189 -> 5.491606997 | AQ140: =Load_Tariffs!AQ189 -> 5.596034277 | AR140: =Load_Tariffs!AR189 -> 5.675880145
A141: =ROW() -> 141 | D141: Total Smoothed Revenue | E141: 1 | F141: 1136.690071 | AN141: =SUM(AN138:AN140) -> 258.2964047 | AO141: 258.7030422 | AP141: 259.1240367 | AQ141: =SUM(AQ138:AQ140) -> 259.7501441 | AR141: =SUM(AR138:AR140) -> 260.5969876
A142: =ROW() -> 142
A143: =ROW() -> 143 | C143: Calculated Tariff Revenue | F143: PV | I143: Lower Bound Check per Rule 94 (3)(b) | N143: Upper Bound Check per Rule 94 (3)(a) | AN143: PV | AO143: PV | AP143: PV | AQ143: PV | AR143: PV
A144: =ROW() -> 144 | D144: A1 | E144: =F144/$F$141 -> 0.04242870581 | F144: =SUM(AN144:AR144) -> 48.22828863 | I144: =IF(F168<F144,"Complies","Breach - Reset Tariffs") -> Complies | N144: =IF(F175>F144,"Complies","Breach - Reset Tariffs") -> Complies | AN144: =AN$96*AN133 -> 10.59497003 | AO144: 10.10055583 | AP144: 9.636056444 | AQ144: 9.15188477 | AR144: 8.744821561
A145: =ROW() -> 145 | D145: A2 | E145: =F145/$F$141 -> 0.02765842022 | F145: 31.43905166 | I145: =IF(F169<F145,"Complies","Breach - Reset Tariffs") -> Complies | N145: =IF(F176>F145,"Complies","Breach - Reset Tariffs") -> Complies | AN145: =AN$96*AN134 -> 6.890237304 | AO145: 6.564756102 | AP145: 6.271712968 | AQ145: 5.990444433 | AR145: 5.721900851
A146: =ROW() -> 146 | D146: B1 | E146: 0.0564166624 | F146: 64.12826001 | I146: Complies | N146: Complies | AN146: =AN$96*AN135 -> 14.01529557 | AO146: 13.38899532 | AP146: 12.79640038 | AQ146: 12.23200483 | AR146: 11.6955639
A147: =ROW() -> 147 | D147: B2 | E147: 0.05829579704 | F147: 66.2642537 | I147: Complies | N147: Complies | AN147: =AN$96*AN136 -> 14.31056954 | AO147: 13.75982787 | AP147: 13.23104451 | AQ147: 12.72466951 | AR147: 12.23814228
A148: =ROW() -> 148 | D148: B3 | E148: 0.794381656 | F148: 902.9657413 | I148: Complies | N148: Breach - Reset Tariffs | AN148: =AN$96*AN137 -> 196.5485974 | AO148: 187.9719276 | AP148: 180.0431648 | AQ148: 172.6683516 | AR148: 165.7337
A149: =ROW() -> 149 | D149: Total Tariff Revenue | E149: =F149/$F$141 -> 0.9791812415 | F149: =SUM(AN149:AR149) -> 1113.025595 | AN149: =SUM(AN144:AN148) -> 242.3596698 | AO149: 231.7860627 | AP149: 221.9783791 | AQ149: 212.7673551 | AR149: 204.1341286
A150: =ROW() -> 150 | D150: Revenue from Prudent Discounts | E150: =F150/$F$141 -> 0 | F150: 0 | AN150: =AN$96*AN139 -> 0 | AO150: 0 | AP150: 0 | AQ150: 0 | AR150: 0
A151: =ROW() -> 151 | D151: Revenue from Ancillary Services | E151: 0.0208187585 | F151: 23.66447608 | AN151: =AN$96*AN140 -> 4.710506794 | AO151: 4.917865276 | AP151: 4.80623878 | AQ151: 4.684769463 | AR151: 4.545095771
A152: =ROW() -> 152 | D152: Total Smoothed Revenue | E152: 1 | F152: 1136.690071 | AN152: =SUM(AN149:AN151) -> 247.0701766 | AO152: 236.703928 | AP152: 226.7846179 | AQ152: =SUM(AQ149:AQ151) -> 217.4521246 | AR152: =SUM(AR149:AR151) -> 208.6792244
A153: Hide | C153: UAFG Allocation to tariff Class
A154: Hide | D154: A1 | AN154: =Input!AJ1708 -> 0.1735174386 | AO154: =Input!AK1708 -> 0.1736830117 | AP154: =Input!AL1708 -> 0.1853750198 | AQ154: =Input!AM1708 -> 0.1890323094 | AR154: =Input!AN1708 -> 0.2100878907 | AS154: Confidentail
A155: Hide | D155: A2 | AN155: =Input!AJ1709 -> 0.0220409458 | AO155: =Input!AK1709 -> 0.0222718398 | AP155: =Input!AL1709 -> 0.02375614893 | AQ155: =Input!AM1709 -> 0.02426866698 | AR155: =Input!AN1709 -> 0.02698262906 | AS155: Confidentail
A156: Hide | D156: B1 | AN156: =Input!AJ1710 -> 0.8928593696 | AO156: =Input!AK1710 -> 0.8995775883 | AP156: =Input!AL1710 -> 0.9522506863 | AQ156: =Input!AM1710 -> 0.9658625702 | AR156: =Input!AN1710 -> 1.066239403 | AS156: Confidentail
A157: Hide | D157: B2 | AN157: =Input!AJ1711 -> 0.5545482184 | AO157: =Input!AK1711 -> 0.5625644022 | AP157: =Input!AL1711 -> 0.5995365458 | AQ157: =Input!AM1711 -> 0.6121839854 | AR157: =Input!AN1711 -> 0.6803063609 | AS157: Confidentail
A158: Hide | D158: B3 | AN158: =Input!AJ1712 -> 4.175167781 | AO158: =Input!AK1712 -> 4.165022524 | AP158: =Input!AL1712 -> 4.37119552 | AQ158: =Input!AM1712 -> 4.403438715 | AR158: =Input!AN1712 -> 4.83499875 | AS158: Confidentail
A159: Hide | D159: Total | AN159: =SUM(AN154:AN158) -> 5.818133753 | AO159: 5.823119366 | AP159: 6.132113921 | AQ159: 6.194786247 | AR159: =SUM(AR154:AR158) -> 6.818615033 | AS159: Confidentail
A160: =ROW() -> 160 | C160: Avoidable OPEX plus UAFG Cost
A161: =ROW() -> 161 | D161: A1 | AN161: =AN154+Input!AJ1715 -> 0.2055932119 | AO161: =AO154+Input!AK1715 -> 0.2102242631 | AP161: =AP154+Input!AL1715 -> 0.2223057007 | AQ161: =AQ154+Input!AR1715 -> 0.1890323094 | AR161: =AR154+Input!AN1715 -> 0.2433327066
A162: =ROW() -> 162 | D162: A2 | AN162: =AN155+Input!AJ1716 -> 0.03066493186 | AO162: =AO155+Input!AK1716 -> 0.03209642731 | AP162: =AP155+Input!AL1716 -> 0.03368543962 | AQ162: =AQ155+Input!AR1716 -> 0.02426866698 | AR162: =AR155+Input!AN1716 -> 0.03592092732
A163: =ROW() -> 163 | D163: B1 | AN163: =AN156+Input!AJ1717 -> 1.142317227 | AO163: =AO156+Input!AK1717 -> 1.183764104 | AP163: =AP156+Input!AL1717 -> 1.239465852 | AQ163: =AQ156+Input!AR1717 -> 0.9658625702 | AR163: =AR156+Input!AN1717 -> 1.324789071
A164: =ROW() -> 164 | D164: B2 | AN164: =AN157+Input!AJ1718 -> 0.9916728271 | AO164: =AO157+Input!AK1718 -> 1.060543984 | AP164: =AP157+Input!AL1718 -> 1.102823226 | AQ164: =AQ157+Input!AR1718 -> 0.6121839854 | AR164: =AR157+Input!AN1718 -> 1.133362535
A165: =ROW() -> 165 | D165: B3 | AN165: =AN158+Input!AJ1719 -> 18.44278748 | AO165: =AO158+Input!AK1719 -> 20.4189308 | AP165: =AP158+Input!AL1719 -> 20.79832592 | AQ165: =AQ158+Input!AR1719 -> 4.403438715 | AR165: =AR158+Input!AN1719 -> 19.6226201
A166: =ROW() -> 166 | D166: Total | AN166: =SUM(AN161:AN165) -> 20.81303568 | AO166: 22.90555958 | AP166: 23.39660613 | AQ166: 6.194786247 | AR166: =SUM(AR161:AR165) -> 22.36002534
A167: =ROW() -> 167 | C167: Avoidable Return and Depreciation | F167: PV
A168: =ROW() -> 168 | D168: A1 | E168: =F168/$F$173 -> 0.03255969506 | F168: =SUMPRODUCT($AN$96:$AR$96,AN168:AR168) -> 4.196860771 | AN168: =AN161+Input!AJ1729 -> 0.2057338563 | AO168: =AO161+Input!AK1729 -> 1.196458621 | AP168: =AP161+Input!AL1729 -> 1.29566251 | AQ168: =AQ161+Input!AR1729 -> 0.1890323094 | AR168: =AR161+Input!AN1729 -> 2.014479234
A169: =ROW() -> 169 | D169: A2 | E169: 0.02265554628 | F169: 2.920241521 | AN169: =AN162+Input!AJ1730 -> 0.03080557625 | AO169: =AO162+Input!AK1730 -> 0.8534259514 | AP169: =AP162+Input!AL1730 -> 0.9440136364 | AQ169: =AQ162+Input!AR1730 -> 0.02426866698 | AR169: =AR162+Input!AN1730 -> 1.577731785
A170: =ROW() -> 170 | D170: B1 | E170: 0.07106083721 | F170: 9.159558758 | AN170: =AN163+Input!AJ1731 -> 1.142457871 | AO170: =AO163+Input!AK1731 -> 2.184797298 | AP170: =AP163+Input!AL1731 -> 2.60288332 | AQ170: =AQ163+Input!AR1731 -> 0.9658625702 | AR170: =AR163+Input!AN1731 -> 3.722809524
A171: =ROW() -> 171 | D171: B2 | E171: 0.0665853568 | F171: 8.582680869 | AN171: =AN164+Input!AJ1732 -> 0.9918134715 | AO171: =AO164+Input!AK1732 -> 2.042885203 | AP171: =AP164+Input!AL1732 -> 2.554410676 | AQ171: =AQ164+Input!AR1732 -> 0.6121839854 | AR171: =AR164+Input!AN1732 -> 3.767231336
A172: =ROW() -> 172 | D172: B3 | E172: 0.8071385646 | F172: 104.0380806 | AN172: =AN165+Input!AJ1733 -> 18.44292813 | AO172: =AO165+Input!AK1733 -> 25.58195907 | AP172: =AP165+Input!AL1733 -> 31.1976215 | AQ172: =AQ165+Input!AR1733 -> 4.403438715 | AR172: =AR165+Input!AN1733 -> 39.96099493
A173: =ROW() -> 173 | D173: Total | E173: 1 | F173: 128.8974225 | AN173: =SUM(AN168:AN172) -> 20.8137389 | AO173: 31.85952615 | AP173: 38.59459165 | AQ173: 6.194786247 | AR173: =SUM(AR168:AR172) -> 51.04324681
A174: =ROW() -> 174 | C174: Stand Alone Costs | F174: PV
A175: =ROW() -> 175 | D175: A1 | E175: =F175/$F$180 -> 0.1614077942 | F175: =SUMPRODUCT($AN$96:$AR$96,AN175:AR175) -> 153.7145244 | AN175: =AN154+Input!AJ1743+Input!AJ1757 -> 41.22317601 | AO175: =AO154+Input!AK1743+Input!AK1757 -> 44.7290995 | AP175: =AP154+Input!AL1743+Input!AL1757 -> 45.04652493 | AQ175: =AQ154+Input!AR1743+Input!AR1757 -> 0.1890323094 | AR175: =AR154+Input!AN1743+Input!AN1757 -> 42.17753853
A176: =ROW() -> 176 | D176: A2 | E176: 0.1861046532 | F176: 177.2342432 | AN176: =AN155+Input!AJ1744+Input!AJ1758 -> 47.38712649 | AO176: =AO155+Input!AK1744+Input!AK1758 -> 51.77232717 | AP176: =AP155+Input!AL1744+Input!AL1758 -> 52.15622003 | AQ176: =AQ155+Input!AR1744+Input!AR1758 -> 0.02426866698 | AR176: =AR155+Input!AN1744+Input!AN1758 -> 48.54003406
A177: =ROW() -> 177 | D177: B1 | E177: 0.1925142902 | F177: 183.338374 | AN177: =AN156+Input!AJ1745+Input!AJ1759 -> 48.78847192 | AO177: =AO156+Input!AK1745+Input!AK1759 -> 53.25401805 | AP177: =AP156+Input!AL1745+Input!AL1759 -> 53.6955408 | AQ177: =AQ156+Input!AR1745+Input!AR1759 -> 0.9658625702 | AR177: =AR156+Input!AN1745+Input!AN1759 -> 50.12915358
A178: =ROW() -> 178 | D178: B2 | E178: 0.1909815114 | F178: 181.878653 | AN178: =AN157+Input!AJ1746+Input!AJ1760 -> 48.47259414 | AO178: =AO157+Input!AK1746+Input!AK1760 -> 52.94256133 | AP178: =AP157+Input!AL1746+Input!AL1760 -> 53.36865548 | AQ178: =AQ157+Input!AR1746+Input!AR1760 -> 0.6121839854 | AR178: =AR157+Input!AN1746+Input!AN1760 -> 49.76647152
A179: =ROW() -> 179 | D179: B3 | E179: 0.268991751 | F179: 256.1706469 | AN179: =AN158+Input!AJ1747+Input!AJ1761 -> 67.14098498 | AO179: =AO158+Input!AK1747+Input!AK1761 -> 73.68768932 | AP179: =AP158+Input!AL1747+Input!AL1761 -> 74.4656782 | AQ179: =AQ158+Input!AR1747+Input!AR1761 -> 4.403438715 | AR179: =AR158+Input!AN1747+Input!AN1761 -> 69.51737046
A180: =ROW() -> 180 | D180: Total | E180: 1 | F180: 952.3364415 | AN180: =SUM(AN175:AN179) -> 253.0123535 | AO180: =SUM(AO175:AO179) -> 276.3856954 | AP180: 278.7326194 | AQ180: 6.194786247 | AR180: =SUM(AR175:AR179) -> 260.1305681
A181: =ROW() -> 181 | C181: PV of Volume [TJ] | F181: PV
A182: =ROW() -> 182 | D182: A1 | E182: =F182/$F$189 -> 0.5089543791 | F182: =SUMPRODUCT($AI$96:$AR$96,AI29:AR29)/1000 -> 65687.43638
A183: =ROW() -> 183 | D183: A2 | E183: 0.06515329091 | F183: =SUMPRODUCT($AI$96:$AR$96,AI37:AR37)/1000 -> 8408.912129
A184: =ROW() -> 184 | D184: B1 | E184: 0.06835032797 | F184: =SUMPRODUCT($AI$96:$AR$96,AI43:AR43)/1000 -> 8821.53294
A185: =ROW() -> 185 | D185: B2 | E185: 0.04300093836 | F185: =SUMPRODUCT($AI$96:$AR$96,AI48:AR48)/1000 -> 5549.851851
A186: =ROW() -> 186 | D186: B3 | E186: 0.3145410636 | F186: =SUMPRODUCT($AI$96:$AR$96,AI57:AR57)/1000 -> 40595.77234
A187: =ROW() -> 187 | D187: Total | E187: 1 | F187: =SUM(F182:F186) -> 129063.5056
A188: =ROW() -> 188 | D188: Prudent Discount Volume | E188: 0 | F188: =SUMPRODUCT($AN$96:$AR$96,Load_Tariffs!AN69:AR69) -> 0
A189: =ROW() -> 189 | D189: Total Volume | E189: 1 | F189: =SUM(F187:F188) -> 129063.5056
A190: =ROW() -> 190
A191: Revenue [m$ nominal] | AN191: Forecast [m$ OD]
A192: =ROW() -> 192
A193: =ROW() -> 193 | C193: PV of Tariff Revenue
A194: =ROW() -> 194 | D194: Discounting Factor Nominal Post-tax | AN194: =AN$20 -> 0.9317201072 | AO194: 0.8681023582 | AP194: 0.8088284223 | AQ194: 0.7536017044 | AR194: 0.7021458608
A195: =ROW() -> 195 | C195: A1 | F195: PV
A196: =ROW() -> 196 | D196: Fixed [$/year] | E196: =F196/$F$201 -> 0.369922013 | F196: =SUMPRODUCT($AN$194:$AR$194,AN196:AR196) -> 18.42052855 | AN196: =AN98*AN$13 -> 4.313060372 | AO196: 4.427943124 | AP196: 4.545885894 | AQ196: 4.66697019 | AR196: 4.79127969
A197: =ROW() -> 197 | D197: Demand 1 (<=10km) [$/GJ*km*year], | E197: 0.3256599597 | F197: =SUMPRODUCT($AN$194:$AR$194,AN197:AR197) -> 16.21646826 | AN197: =AN99*AN$13 -> 3.862701411 | AO197: 3.932683296 | AP197: 4.012098147 | AQ197: 4.042665461 | AR197: 4.147117592
A198: =ROW() -> 198 | D198: Demand 2 (>10km) [$/GJ*km*year], | E198: 0.06704891982 | F198: 3.338748434 | AN198: =AN100*AN$13 -> 0.781748663 | AO198: 0.802571334 | AP198: 0.8239486381 | AQ198: 0.8458953484 | AR198: 0.8684266316
A199: =ROW() -> 199 | D199: Usage 1 (<=10km) [$/GJ*km] | E199: 0.1793540263 | F199: 8.931060724 | AN199: =AN101*AN$13 -> 2.10585616 | AO199: 2.15514953 | AP199: 2.205997386 | AQ199: 2.252157683 | AR199: 2.302368558
A200: =ROW() -> 200 | D200: Usage 2 (>10km) [$/GJ*km] | E200: 0.05801508117 | F200: 2.888902042 | AN200: =AN102*AN$13 -> 0.6776127604 | AO200: 0.6950101192 | AP200: 0.7128595746 | AQ200: 0.7311909013 | AR200: 0.7499992807
A201: =ROW() -> 201 | D201: Total | E201: 1 | F201: =SUMPRODUCT($AN$194:$AR$194,AN201:AR201) -> 49.79570801 | AN201: =SUM(AN196:AN200) -> 11.74097937 | AO201: =SUM(AO196:AO200) -> 12.0133574 | AP201: 12.30078964 | AQ201: 12.53887958 | AR201: 12.85919175
... 87 more rows

Sheet Working_Capital
A1: =Main!A1 -> GDS Tariff Model, September 2023
A2: Working Capital [m$ nominal]
A3: Ref | C3: =COLUMN() -> 3 | D3: =COLUMN() -> 4 | E3: =COLUMN() -> 5 | F3: =COLUMN() -> 6 | G3: =COLUMN() -> 7 | H3: =COLUMN() -> 8 | I3: =COLUMN() -> 9 | J3: =COLUMN() -> 10 | K3: =COLUMN() -> 11 | L3: =COLUMN() -> 12 | M3: =COLUMN() -> 13 | N3: =COLUMN() -> 14 | O3: =COLUMN() -> 15 | P3: =COLUMN() -> 16 | Q3: =COLUMN() -> 17 | R3: =COLUMN() -> 18 | S3: =COLUMN() -> 19 | T3: =COLUMN() -> 20 | U3: =COLUMN() -> 21 | V3: =COLUMN() -> 22 | W3: =COLUMN() -> 23 | X3: =COLUMN() -> 24 | Y3: =COLUMN() -> 25 | Z3: =COLUMN() -> 26 | AA3: =COLUMN() -> 27 | AB3: =COLUMN() -> 28 | AC3: =COLUMN() -> 29 | AD3: =COLUMN() -> 30 | AE3: =COLUMN() -> 31 | AF3: =COLUMN() -> 32 | AG3: =COLUMN() -> 33 | AH3: =COLUMN() -> 34 | AI3: =COLUMN() -> 35 | AJ3: =COLUMN() -> 36 | AK3: =COLUMN() -> 37 | AL3: =COLUMN() -> 38 | AM3: =COLUMN() -> 39 | AN3: =COLUMN() -> 40
A4: Regulatory Period | J4: 1 | K4: 1 | L4: 1 | M4: 1 | N4: 1 | O4: 2 | P4: 2 | Q4: 2 | R4: 2 | S4: 2 | T4: 3 | U4: 3 | V4: 3 | W4: 3 | X4: 3 | Y4: 4 | Z4: 4 | AA4: 4 | AB4: 4 | AC4: 4 | AD4: 4 | AE4: 5 | AF4: 5 | AG4: 5 | AH4: 5 | AI4: 5 | AJ4: 6 | AK4: 6 | AL4: 6 | AM4: 6 | AN4: 6
A5: Year ending | I5: 1999 | J5: 2000 | K5: 2001 | L5: 2002 | M5: 2003 | N5: 2004 | O5: 2005 | P5: 2006 | Q5: 2007 | R5: 2008 | S5: =1+R5 -> 2009 | T5: =1+S5 -> 2010 | U5: =T5+1 -> 2011 | V5: =U5+1 -> 2012 | W5: =V5+1 -> 2013 | X5: =W5+1 -> 2014 | Y5: 2014 | Z5: =Y5+1 -> 2015 | AA5: 2016 | AB5: 2017 | AC5: 2018 | AD5: 2019 | AE5: 2020 | AF5: 2021 | AG5: 2022 | AH5: 2023 | AI5: 2024 | AJ5: =AI5+1 -> 2025 | AK5: =AJ5+1 -> 2026 | AL5: =AK5+1 -> 2027 | AM5: =AL5+1 -> 2028 | AN5: =AM5+1 -> 2029
A6: Months | I6: 1 to 12 | J6: 1 to 12 | K6: 1 to 12 | L6: 1 to 12 | M6: 1 to 12 | N6: 1 to 12 | O6: 1 to 12 | P6: 1 to 12 | Q6: 1 to 12 | R6: 1 to 12 | S6: 1 to 12 | T6: 1 to 6 | U6: 7 to 6 | V6: 7 to 6 | W6: 7 to 6 | X6: 7 to 6 | Y6: 7 to 12 | Z6: 1 to 12 | AA6: 1 to 12 | AB6: 1 to 12 | AC6: 1 to 12 | AD6: 1 to 12 | AE6: 1 to 12 | AF6: 1 to 12 | AG6: 1 to 12 | AH6: 1 to 12 | AI6: 1 to 12 | AJ6: 1 to 12 | AK6: 1 to 12 | AL6: 1 to 12 | AM6: 1 to 12 | AN6: 1 to 12
A7: Days | I7: =Input!I$8 -> 365 | J7: =Input!J$8 -> 366 | K7: =Input!K$8 -> 365 | L7: =Input!L$8 -> 365 | M7: =Input!M$8 -> 365 | N7: =Input!N$8 -> 366 | O7: =Input!O$8 -> 365 | P7: =Input!P$8 -> 365 | Q7: =Input!Q$8 -> 365 | R7: =Input!R$8 -> 366 | S7: =Input!S$8 -> 365 | T7: =Input!T$8 -> 181 | U7: =Input!U$8 -> 365 | V7: =Input!V$8 -> 366 | W7: =Input!W$8 -> 365 | X7: =Input!X$8 -> 365 | Y7: =Input!Y$8 -> 184 | Z7: =Input!Z$8 -> 365 | AA7: =Input!AA$8 -> 366 | AB7: =Input!AB$8 -> 365 | AC7: =Input!AC$8 -> 365 | AD7: =Input!AD$8 -> 365 | AE7: =Input!AE$8 -> 366 | AF7: =Input!AF$8 -> 365 | AG7: =Input!AG$8 -> 365 | AH7: =Input!AH$8 -> 365 | AI7: 365 | AJ7: 365 | AK7: =Input!AK$8 -> 365 | AL7: =Input!AL$8 -> 365 | AM7: =Input!AM$8 -> 365 | AN7: 365
A8: Year portion | I8: =Input!I$9 -> 1 | J8: =Input!J$9 -> 1 | K8: =Input!K$9 -> 1 | L8: =Input!L$9 -> 1 | M8: =Input!M$9 -> 1 | N8: =Input!N$9 -> 1 | O8: =Input!O$9 -> 1 | P8: =Input!P$9 -> 1 | Q8: =Input!Q$9 -> 1 | R8: =Input!R$9 -> 1 | S8: =Input!S$9 -> 1 | T8: =Input!T$9 -> 0.495890411 | U8: =Input!U$9 -> 1 | V8: =Input!V$9 -> 1 | W8: =Input!W$9 -> 1 | X8: =Input!X$9 -> 1 | Y8: =Input!Y$9 -> 0.504109589 | Z8: =Input!Z$9 -> 1 | AA8: =Input!AA$9 -> 1 | AB8: =Input!AB$9 -> 1 | AC8: =Input!AC$9 -> 1 | AD8: =Input!AD$9 -> 1 | AE8: =Input!AE$9 -> 1 | AF8: =Input!AF$9 -> 1 | AG8: =Input!AG$9 -> 1 | AH8: =Input!AH$9 -> 1 | AI8: =Input!AI$9 -> 1 | AJ8: =Input!AJ$9 -> 1 | AK8: =Input!AK$9 -> 1 | AL8: =Input!AL$9 -> 1 | AM8: =Input!AM$9 -> 1 | AN8: =Input!AN$9 -> 1
A9: Financial Parameters
A10: =ROW() -> 10 | C10: Modelled Inflation
A11: =ROW() -> 11 | D11: Inflation | J11: =Input!J$49 -> 0.05801772764 | K11: =Input!K$49 -> 0.03122619954 | L11: =Input!L$49 -> 0.03028064993 | M11: =Input!M$49 -> 0.02365591398 | N11: =Input!N$49 -> 0.02591036415 | O11: =Input!O$49 -> 0.02798634812 | P11: =Input!P$49 -> 0.03253652058 | Q11: =Input!Q$49 -> 0.02958199357 | R11: =Input!R$49 -> 0.03685196752 | S11: =Input!S$49 -> 0.02108433735 | T11: =Input!T$49 -> 0.01533923304 | U11: =Input!U$49 -> 0.03602556653 | V11: =Input!V$49 -> 0.01177790241 | W11: =Input!W$49 -> 0.02390438247 | X11: =Input!X$49 -> 0.03015564202 | Y11: =Input!Y$49 -> 0.006610009443 | Z11: =Input!Z$49 -> 0.01688555347 | AA11: =Input!AA$49 -> 0.0147601476 | AB11: =Input!AB$49 -> 0.01909090909 | AC11: =Input!AC$49 -> 0.0178412132 | AD11: =Input!AD$49 -> 0.01840490798 | AE11: =Input!AE$49 -> 0.008605851979 | AF11: =Input!AF$49 -> 0.03498293515 | AG11: =Input!AG$49 -> 0.07831821929 | AH11: =Input!AH$49 -> 0.045 | AI11: =Input!AI$49 -> 0.0325 | AJ11: =Input!AJ$49 -> 0.02663601745 | AK11: =Input!AK$49 -> 0.02663601745 | AL11: =Input!AL$49 -> 0.02663601745 | AM11: =Input!AM$49 -> 0.02663601745 | AN11: =Input!AN$49 -> 0.02663601745
